Workbook

Sheet Design the AEF circuit
A1: TPSF12C1/-Q1 & TPSF12C3/-Q1 Common-Mode Active EMI Filter (AEF) Design Tool
B3: About | F3: = Input Box | I3: Terms Of Use
A6: Step 1: Enter application parameters
A7: System type?
B9: Nominal input voltage | C9: 230 | D9: VRMS
B10: Rated input current | C10: 32 | D10: ARMS
B11: Switching frequency | C11: 100 | D11: kHz
B12: Switch-node voltage | C12: 600 | D12: V
B13: Power level | C13: =C9*C10/1000*No_of_phases -> 22.08 | D13: kW
A15: Step 2: Enter CM choke and Y-capacitor data
A16: CM choke model? | E16: ® | F16: =IF(CMdata=1,"Enter CM choke impedance model parameters here:","Enter CM choke impedance (magnitude & phase) data vs. frequency in the ""CM choke"" tab") -> Enter CM choke impedance (magnitude & phase) data vs. frequency in the "CM choke" tab | J16: =IF(F14="Simple Model: L || R || C","","") ->  | K16: =IF(F14="Simple Model: L || R || C","","") -> 
F17: CM choke model #1 → | G17: Grid-side choke, LCM1 | H17: Regulator-side choke, LCM2
A18: Grid-side Y-capacitors (each)
A19: Capacitance | C19: 1 | D19: nF | F19: Inductance, LMAG (mH) | G19: 0.7 | H19: 0.7
A20: ESR | C20: 5 | D20: Ω | F20: Resistance, RPAR (kΩ) | G20: 0.25 | H20: 0.25
A21: ESL | C21: 15 | D21: nH | F21: Capacitance, CPAR (pF) | G21: 6 | H21: 6
F22: Inductance, LMAG2 [mH] | G22: 0.1 | H22: 0.1
A23: Regulator-side Y-capacitors (each) | F23: Resistance, RPAR2 [kW] | G23: 0.35 | H23: 0.35
A24: Capacitance | C24: 4.7 | D24: nF | F24: Inductance, LMAG3 [mH] | G24: 0.02 | H24: 0.02
A25: ESR | C25: 5 | D25: Ω | F25: Resistance, RPAR3 [kW] | G25: 0.7 | H25: 0.7
A26: ESL | C26: 15 | D26: nH
A28: Step 3: Enter source impedances
A29: Grid source impedance (each power line)
A30: LGRID | C30: 10 | D30: µH
A31: RGRID | C31: 10 | D31: mΩ
A32: LISN present? | C32: 10
A34: Regulator CM noise source impedance (parasitic)
A35: CSRC | C35: 100 | D35: pF
A36: RSRC | C36: 50 | D36: mΩ
A37: LSRC | C37: 100 | D37: nH
A39: Step 4: Enter SENSE and INJECT capacitor parameters
A40: Sense capacitors - CSENx (each)
A41: Capacitance | C41: 0.68 | D41: nF
A42: ESR | C42: 10 | D42: Ω
A43: ESL | C43: 10 | D43: nH
A45: Inject capacitor - CINJ
A46: Capacitance | C46: 22 | D46: nF
A47: ESR | C47: 1 | D47: Ω
A48: ESL | C48: 15 | D48: nH
A50: Step 5: Set the COMP1-to-COMP2 component values
A51: RG | C51: 1.5 | D51: kΩ
A52: CG1 | C52: 10 | D52: nF
A53: CG2 | C53: 10 | D53: pF
A55: Step 6: Review damping network component values
B56: Calculated | C56: Selected
A57: RD1 | B57: ='Stability calculations'!B52/1000 -> 1 | C57: =B57 -> 1 | D57: kΩ
A58: CD2 | B58: =ROUND('Stability calculations'!B55*1000000000,1) -> 42.2 | C58: 47 | D58: nF
A59: CD1 | B59: =ROUND('Stability calculations'!B53*1000000000,1) -> 5.9 | C59: 8.2 | D59: nF
A60: RD2 | B60: ='Stability calculations'!B56 -> 125 | C60: 125 | D60: Ω
A61: RD1A | B61: ='Stability calculations'!B54 -> 50 | C61: 50 | D61: Ω
A62: RD3 | B62: ='Stability calculations'!B57 -> 700 | C62: 698 | D62: Ω
A63: CD3 | B63: =ROUND('Stability calculations'!B58*1000000000,2) -> 22 | C63: 22 | D63: nF
A64: fLFstability | C64: ='Stability calculations'!D35/1000 -> 18.8365 | D64: kHz
A65: fRD1-CD2 | C65: ='Stability calculations'!$D$46/1000 -> 3.386275385 | D65: kHz
A66: fRD1-CD1 | C66: ='Stability calculations'!$D$42/1000 -> 19.4091394 | D66: kHz
A67: fRD2-CD2 | C67: ='Stability calculations'!$D$43/1000 -> 27.09020308 | D67: kHz
A68: fRD3-CD3 | C68: ='Stability calculations'!$D$44/1000 -> 10.36434899 | D68: kHz
A69: fRD1A-CD1 | C69: ='Stability calculations'!$D$45/1000 -> 388.182788 | D69: kHz
E70: **Adjust the component values to ensure the phase does not reach -180° in the 1-100kHz range**
A71: Step 7: Check the INJ pin voltage swing
B72: VDD supply voltage | C72: 15 | D72: V
B73: CM disturbance at FSW | C73: ='Variable management'!L38*1000 -> 116.232278 | D73: mVpp
B74: INJ pin voltage swing | C74: ='Variable management'!L40 -> 8.533849433 | D74: Vpp

Sheet Schematic management (hidden)
A1: =SETUP -> 2
A2: =CHOOSE(SETUP,"TPSF12C1","TPSF12C3_4wire","TPSF12C3_3wire") -> TPSF12C3_4wire

Sheet CM choke
A2: Enter/paste the CM choke impedance (magnitude & phase) data here:
C4: Grid-side CM choke | E4: Regulator-side CM choke
C5: LCM1 | E5: LCM2
A6: CM Choke Model #2 → | B6: Frequency [Hz] | C6: ZCM1 Magnitude [Ω] | D6: ZCM1 Phase [°] | E6: ZCM2 Magnitude [Ω] | F6: ZCM2 Phase [°]
A7: =IF(CMdata=1,"","Min. frequency") -> Min. frequency | B7: 1000 | C7: 5.889462471 | D7: 87.70389557 | E7: 5.889462471 | F7: 87.70389557
A8: =IF(CMdata=1,"",_xlfn.CONCAT(MIN(B7:B2106)/1000," kHz")) -> 1 kHz | B8: 1017.419366 | C8: 5.974882126 | D8: 87.69536591 | E8: 5.974882126 | F8: 87.69536591
A9: =IF(CMdata=1,"","Max. frequency") -> Max. frequency | B9: 1035.142167 | C9: 6.082362652 | D9: 87.65731812 | E9: 6.082362652 | F9: 87.65731812
A10: =IF(CMdata=1,"",_xlfn.CONCAT(MAX(B7:B2106)/1000000," MHz")) -> 100.5773063 MHz | B10: 1053.173687 | C10: 6.180328846 | D10: 87.6111908 | E10: 6.180328846 | F10: 87.6111908
B11: 1071.519305 | C11: 6.295680046 | D11: 87.58959198 | E11: 6.295680046 | F11: 87.58959198
B12: 1090.184492 | C12: 6.407814503 | D12: 87.59597778 | E12: 6.407814503 | F12: 87.59597778
B13: 1109.174815 | C13: 6.510790348 | D13: 87.61585999 | E13: 6.510790348 | F13: 87.61585999
B14: 1128.495938 | C14: 6.61958313 | D14: 87.4920578 | E14: 6.61958313 | F14: 87.4920578
B15: 1148.153621 | C15: 6.741020679 | D15: 87.41464996 | E15: 6.741020679 | F15: 87.41464996
B16: 1168.15373 | C16: 6.847271919 | D16: 87.48007202 | E16: 6.847271919 | F16: 87.48007202
B17: 1188.502227 | C17: 6.968936443 | D17: 87.39090729 | E17: 6.968936443 | F17: 87.39090729
B18: 1209.205183 | C18: 7.096273422 | D18: 87.39759827 | E18: 7.096273422 | F18: 87.39759827
B19: 1230.268771 | C19: 7.223829746 | D19: 87.39621735 | E19: 7.223829746 | F19: 87.39621735
B20: 1251.699273 | C20: 7.346939564 | D20: 87.32360077 | E20: 7.346939564 | F20: 87.32360077
B21: 1273.503081 | C21: 7.464734077 | D21: 87.30983734 | E21: 7.464734077 | F21: 87.30983734
B22: 1295.686698 | C22: 7.596175194 | D22: 87.25063324 | E22: 7.596175194 | F22: 87.25063324
B23: 1318.256739 | C23: 7.73435688 | D23: 87.27842712 | E23: 7.73435688 | F23: 87.27842712
B24: 1341.219935 | C24: 7.859617233 | D24: 87.17877197 | E24: 7.859617233 | F24: 87.17877197
B25: 1364.583137 | C25: 7.993328571 | D25: 87.19544983 | E25: 7.993328571 | F25: 87.19544983
B26: 1388.35331 | C26: 8.137718201 | D26: 87.08048248 | E26: 8.137718201 | F26: 87.08048248
B27: 1412.537545 | C27: 8.266537666 | D27: 87.11509705 | E27: 8.266537666 | F27: 87.11509705
B28: 1437.143053 | C28: 8.426178932 | D28: 87.07208252 | E28: 8.426178932 | F28: 87.07208252
B29: 1462.177174 | C29: 8.570441246 | D29: 87.03477478 | E29: 8.570441246 | F29: 87.03477478
B30: 1487.647374 | C30: 8.700901031 | D30: 86.96448517 | E30: 8.700901031 | F30: 86.96448517
B31: 1513.561248 | C31: 8.862319946 | D31: 86.86663055 | E31: 8.862319946 | F31: 86.86663055
B32: 1539.926526 | C32: 9.014159203 | D32: 86.90089416 | E32: 9.014159203 | F32: 86.90089416
B33: 1566.75107 | C33: 9.17023468 | D33: 86.81458282 | E33: 9.17023468 | F33: 86.81458282
B34: 1594.042881 | C34: 9.324559212 | D34: 86.83856964 | E34: 9.324559212 | F34: 86.83856964
B35: 1621.810097 | C35: 9.488832474 | D35: 86.75388336 | E35: 9.488832474 | F35: 86.75388336
B36: 1650.061001 | C36: 9.65196991 | D36: 86.69368744 | E36: 9.65196991 | F36: 86.69368744
B37: 1678.804018 | C37: 9.821387291 | D37: 86.670578 | E37: 9.821387291 | F37: 86.670578
B38: 1708.04772 | C38: 9.990907669 | D38: 86.64935303 | E38: 9.990907669 | F38: 86.64935303
B39: 1737.800829 | C39: 10.16649723 | D39: 86.63343048 | E39: 10.16649723 | F39: 86.63343048
B40: 1768.072218 | C40: 10.32996655 | D40: 86.54706573 | E40: 10.32996655 | F40: 86.54706573
B41: 1798.870915 | C41: 10.51758766 | D41: 86.5177536 | E41: 10.51758766 | F41: 86.5177536
B42: 1830.206106 | C42: 10.69663715 | D42: 86.48651886 | E42: 10.69663715 | F42: 86.48651886
B43: 1862.087137 | C43: 10.87343597 | D43: 86.43436432 | E43: 10.87343597 | F43: 86.43436432
B44: 1894.523514 | C44: 11.06445789 | D44: 86.42674255 | E44: 11.06445789 | F44: 86.42674255
B45: 1927.524913 | C45: 11.25201225 | D45: 86.40750885 | E45: 11.25201225 | F45: 86.40750885
B46: 1961.101175 | C46: 11.45058918 | D46: 86.2947998 | E46: 11.45058918 | F46: 86.2947998
B47: 1995.262315 | C47: 11.64210129 | D47: 86.28974152 | E47: 11.64210129 | F47: 86.28974152
B48: 2030.01852 | C48: 11.8449831 | D48: 86.19703674 | E48: 11.8449831 | F48: 86.19703674
B49: 2065.380156 | C49: 12.05259991 | D49: 86.14245605 | E49: 12.05259991 | F49: 86.14245605
B50: 2101.357769 | C50: 12.25127125 | D50: 86.12330627 | E50: 12.25127125 | F50: 86.12330627
B51: 2137.96209 | C51: 12.46498966 | D51: 86.06594086 | E51: 12.46498966 | F51: 86.06594086
B52: 2175.204034 | C52: 12.67407417 | D52: 86.02178955 | E52: 12.67407417 | F52: 86.02178955
B53: 2213.09471 | C53: 12.89514542 | D53: 85.93096924 | E53: 12.89514542 | F53: 85.93096924
B54: 2251.645417 | C54: 13.12805367 | D54: 85.925354 | E54: 13.12805367 | F54: 85.925354
B55: 2290.867653 | C55: 13.34597874 | D55: 85.88395691 | E55: 13.34597874 | F55: 85.88395691
B56: 2330.773115 | C56: 13.5692749 | D56: 85.82084656 | E56: 13.5692749 | F56: 85.82084656
B57: 2371.373706 | C57: 13.8145113 | D57: 85.83016205 | E57: 13.8145113 | F57: 85.83016205
B58: 2412.681533 | C58: 14.03886986 | D58: 85.71694946 | E58: 14.03886986 | F58: 85.71694946
B59: 2454.708916 | C59: 14.28875828 | D59: 85.65406036 | E59: 14.28875828 | F59: 85.65406036
B60: 2497.468389 | C60: 14.51930523 | D60: 85.6124649 | E60: 14.51930523 | F60: 85.6124649
B61: 2540.972706 | C61: 14.77841377 | D61: 85.59921265 | E61: 14.77841377 | F61: 85.59921265
B62: 2585.23484 | C62: 15.04559803 | D62: 85.51582336 | E62: 15.04559803 | F62: 85.51582336
B63: 2630.267992 | C63: 15.28451729 | D63: 85.43989563 | E63: 15.28451729 | F63: 85.43989563
B64: 2676.085593 | C64: 15.55624485 | D64: 85.40080261 | E64: 15.55624485 | F64: 85.40080261
B65: 2722.701308 | C65: 15.81576443 | D65: 85.34796906 | E65: 15.81576443 | F65: 85.34796906
B66: 2770.129039 | C66: 16.08647919 | D66: 85.27280426 | E66: 16.08647919 | F66: 85.27280426
B67: 2818.382931 | C67: 16.36537933 | D67: 85.23622131 | E67: 16.36537933 | F67: 85.23622131
B68: 2867.477376 | C68: 16.64286804 | D68: 85.17494202 | E68: 16.64286804 | F68: 85.17494202
B69: 2917.427014 | C69: 16.92840767 | D69: 85.11641693 | E69: 16.92840767 | F69: 85.11641693
B70: 2968.246743 | C70: 17.21315575 | D70: 85.06463623 | E70: 17.21315575 | F70: 85.06463623
B71: 3019.95172 | C71: 17.50399971 | D71: 84.96593475 | E71: 17.50399971 | F71: 84.96593475
B72: 3072.557365 | C72: 17.79743958 | D72: 84.93994141 | E72: 17.79743958 | F72: 84.93994141
B73: 3126.079367 | C73: 18.11210251 | D73: 84.88581085 | E73: 18.11210251 | F73: 84.88581085
B74: 3180.533688 | C74: 18.40708733 | D74: 84.80943298 | E74: 18.40708733 | F74: 84.80943298
B75: 3235.936569 | C75: 18.72450256 | D75: 84.71435547 | E75: 18.72450256 | F75: 84.71435547
B76: 3292.304533 | C76: 19.04473495 | D76: 84.6871109 | E76: 19.04473495 | F76: 84.6871109
B77: 3349.654392 | C77: 19.37426186 | D77: 84.60634613 | E77: 19.37426186 | F77: 84.60634613
B78: 3408.003248 | C78: 19.69452667 | D78: 84.53355408 | E78: 19.69452667 | F78: 84.53355408
B79: 3467.368505 | C79: 20.02367401 | D79: 84.44616699 | E79: 20.02367401 | F79: 84.44616699
B80: 3527.767866 | C80: 20.37530327 | D80: 84.3996048 | E80: 20.37530327 | F80: 84.3996048
B81: 3589.219346 | C81: 20.71669579 | D81: 84.33182526 | E81: 20.71669579 | F81: 84.33182526
B82: 3651.741273 | C82: 21.06759644 | D82: 84.24908447 | E82: 21.06759644 | F82: 84.24908447
B83: 3715.352291 | C83: 21.42105865 | D83: 84.18872833 | E83: 21.42105865 | F83: 84.18872833
B84: 3780.071373 | C84: 21.78864098 | D84: 84.13259125 | E84: 21.78864098 | F84: 84.13259125
B85: 3845.91782 | C85: 22.15925789 | D85: 84.05221558 | E85: 22.15925789 | F85: 84.05221558
B86: 3912.911271 | C86: 22.52973175 | D86: 83.96512604 | E86: 22.52973175 | F86: 83.96512604
B87: 3981.071706 | C87: 22.90275955 | D87: 83.89364624 | E87: 22.90275955 | F87: 83.89364624
B88: 4050.419451 | C88: 23.29142952 | D88: 83.83097076 | E88: 23.29142952 | F88: 83.83097076
B89: 4120.975191 | C89: 23.69144058 | D89: 83.72653198 | E89: 23.69144058 | F89: 83.72653198
B90: 4192.759967 | C90: 24.09659004 | D90: 83.67105103 | E90: 24.09659004 | F90: 83.67105103
B91: 4265.795188 | C91: 24.49474716 | D91: 83.58314514 | E91: 24.49474716 | F91: 83.58314514
B92: 4340.102636 | C92: 24.90816689 | D92: 83.48770905 | E92: 24.90816689 | F92: 83.48770905
B93: 4415.704474 | C93: 25.31632233 | D93: 83.42502594 | E93: 25.31632233 | F93: 83.42502594
B94: 4492.623247 | C94: 25.74538422 | D94: 83.32434082 | E94: 25.74538422 | F94: 83.32434082
B95: 4570.881896 | C95: 26.17902946 | D95: 83.25763702 | E95: 26.17902946 | F95: 83.25763702
B96: 4650.503762 | C96: 26.62114525 | D96: 83.14248657 | E96: 26.62114525 | F96: 83.14248657
B97: 4731.51259 | C97: 27.06811905 | D97: 83.07491302 | E97: 27.06811905 | F97: 83.07491302
B98: 4813.93254 | C98: 27.51694679 | D98: 83.00005341 | E98: 27.51694679 | F98: 83.00005341
B99: 4897.788194 | C99: 27.98274422 | D99: 82.87880707 | E99: 27.98274422 | F99: 82.87880707
B100: 4983.10456 | C100: 28.44761848 | D100: 82.8069458 | E100: 28.44761848 | F100: 82.8069458
B101: 5069.907083 | C101: 28.92575264 | D101: 82.72679138 | E101: 28.92575264 | F101: 82.72679138
B102: 5158.221651 | C102: 29.40075302 | D102: 82.62599945 | E102: 29.40075302 | F102: 82.62599945
B103: 5248.074602 | C103: 29.89841461 | D103: 82.5315094 | E103: 29.89841461 | F103: 82.5315094
B104: 5339.492736 | C104: 30.38782883 | D104: 82.45492554 | E104: 30.38782883 | F104: 82.45492554
B105: 5432.503315 | C105: 30.89874458 | D105: 82.33708191 | E105: 30.89874458 | F105: 82.33708191
B106: 5527.134079 | C106: 31.418396 | D106: 82.23945618 | E106: 31.418396 | F106: 82.23945618
B107: 5623.413252 | C107: 31.93339729 | D107: 82.15132904 | E107: 31.93339729 | F107: 82.15132904
B108: 5721.369547 | C108: 32.47554779 | D108: 82.05323791 | E108: 32.47554779 | F108: 82.05323791
B109: 5821.032178 | C109: 33.00892639 | D109: 81.95368958 | E109: 33.00892639 | F109: 81.95368958
B110: 5922.430869 | C110: 33.54904556 | D110: 81.85497284 | E110: 33.54904556 | F110: 81.85497284
B111: 6025.595861 | C111: 34.11374664 | D111: 81.73835754 | E111: 34.11374664 | F111: 81.73835754
B112: 6130.557921 | C112: 34.67723084 | D112: 81.62672424 | E112: 34.67723084 | F112: 81.62672424
B113: 6237.348355 | C113: 35.24268723 | D113: 81.53653717 | E113: 35.24268723 | F113: 81.53653717
B114: 6345.99901 | C114: 35.82945251 | D114: 81.4201355 | E114: 35.82945251 | F114: 81.4201355
B115: 6456.54229 | C115: 36.41498566 | D115: 81.30144501 | E115: 36.41498566 | F115: 81.30144501
B116: 6569.011165 | C116: 37.0152626 | D116: 81.19189453 | E116: 37.0152626 | F116: 81.19189453
B117: 6683.439176 | C117: 37.63801575 | D117: 81.08191681 | E117: 37.63801575 | F117: 81.08191681
B118: 6799.86045 | C118: 38.26331329 | D118: 80.96134186 | E118: 38.26331329 | F118: 80.96134186
B119: 6918.309709 | C119: 38.8758316 | D119: 80.85738373 | E119: 38.8758316 | F119: 80.85738373
B120: 7038.822279 | C120: 39.52217484 | D120: 80.72703552 | E120: 39.52217484 | F120: 80.72703552
B121: 7161.434102 | C121: 40.17580795 | D121: 80.58545685 | E121: 40.17580795 | F121: 80.58545685
B122: 7286.181745 | C122: 40.81169891 | D122: 80.47896576 | E122: 40.81169891 | F122: 80.47896576
B123: 7413.102413 | C123: 41.49168777 | D123: 80.34334564 | E123: 41.49168777 | F123: 80.34334564
B124: 7542.233958 | C124: 42.17551041 | D124: 80.23167419 | E124: 42.17551041 | F124: 80.23167419
B125: 7673.614894 | C125: 42.86258316 | D125: 80.10240936 | E125: 42.86258316 | F125: 80.10240936
B126: 7807.284401 | C126: 43.55107117 | D126: 79.97475433 | E126: 43.55107117 | F126: 79.97475433
B127: 7943.282347 | C127: 44.27954102 | D127: 79.85435486 | E127: 44.27954102 | F127: 79.85435486
B128: 8081.649291 | C128: 44.99053955 | D128: 79.70740509 | E128: 44.99053955 | F128: 79.70740509
B129: 8222.426499 | C129: 45.72317886 | D129: 79.58050537 | E129: 45.72317886 | F129: 79.58050537
B130: 8365.655958 | C130: 46.46354294 | D130: 79.42897034 | E130: 46.46354294 | F130: 79.42897034
B131: 8511.380382 | C131: 47.22184753 | D131: 79.3052063 | E131: 47.22184753 | F131: 79.3052063
B132: 8659.643234 | C132: 47.98655319 | D132: 79.17601776 | E132: 47.98655319 | F132: 79.17601776
B133: 8810.48873 | C133: 48.75204468 | D133: 79.00821686 | E133: 48.75204468 | F133: 79.00821686
B134: 8963.961859 | C134: 49.54153061 | D134: 78.88006592 | E134: 49.54153061 | F134: 78.88006592
B135: 9120.108394 | C135: 50.34906387 | D135: 78.74436951 | E135: 50.34906387 | F135: 78.74436951
B136: 9278.974901 | C136: 51.13879776 | D136: 78.58535004 | E136: 51.13879776 | F136: 78.58535004
B137: 9440.608763 | C137: 51.97535706 | D137: 78.43479919 | E137: 51.97535706 | F137: 78.43479919
B138: 9605.058184 | C138: 52.80157852 | D138: 78.29140472 | E138: 52.80157852 | F138: 78.29140472
B139: 9772.37221 | C139: 53.67037582 | D139: 78.12498474 | E139: 53.67037582 | F139: 78.12498474
B140: 9942.60074 | C140: 54.51189041 | D140: 77.96141815 | E140: 54.51189041 | F140: 77.96141815
B141: 10115.79454 | C141: 55.38163757 | D141: 77.81234741 | E141: 55.38163757 | F141: 77.81234741
B142: 10292.00527 | C142: 56.27113724 | D142: 77.64077759 | E142: 56.27113724 | F142: 77.64077759
B143: 10471.28548 | C143: 57.15549088 | D143: 77.50201416 | E143: 57.15549088 | F143: 77.50201416
B144: 10653.68864 | C144: 58.07035065 | D144: 77.32537079 | E144: 58.07035065 | F144: 77.32537079
B145: 10839.26914 | C145: 58.98529053 | D145: 77.1485672 | E145: 58.98529053 | F145: 77.1485672
B146: 11028.08234 | C146: 59.92885208 | D146: 76.97676086 | E146: 59.92885208 | F146: 76.97676086
B147: 11220.18454 | C147: 60.86011505 | D147: 76.81021118 | E147: 60.86011505 | F147: 76.81021118
B148: 11415.63305 | C148: 61.84029388 | D148: 76.65009308 | E148: 61.84029388 | F148: 76.65009308
B149: 11614.48614 | C149: 62.81037521 | D149: 76.47015381 | E149: 62.81037521 | F149: 76.47015381
B150: 11816.80313 | C150: 63.78737259 | D150: 76.30120087 | E150: 63.78737259 | F150: 76.30120087
B151: 12022.64435 | C151: 64.79615021 | D151: 76.1049118 | E151: 64.79615021 | F151: 76.1049118
B152: 12232.07119 | C152: 65.80988312 | D152: 75.92120361 | E152: 65.80988312 | F152: 75.92120361
B153: 12445.14612 | C153: 66.83277893 | D153: 75.74837494 | E153: 66.83277893 | F153: 75.74837494
B154: 12661.93268 | C154: 67.87335968 | D154: 75.55656433 | E154: 67.87335968 | F154: 75.55656433
B155: 12882.49552 | C155: 68.91475677 | D155: 75.37565613 | E155: 68.91475677 | F155: 75.37565613
B156: 13106.90042 | C156: 69.99646759 | D156: 75.16860962 | E156: 69.99646759 | F156: 75.16860962
B157: 13335.21432 | C157: 71.08432007 | D157: 74.95529938 | E157: 71.08432007 | F157: 74.95529938
B158: 13567.5053 | C158: 72.18765259 | D158: 74.78269959 | E158: 72.18765259 | F158: 74.78269959
B159: 13803.84265 | C159: 73.28582001 | D159: 74.58422089 | E159: 73.28582001 | F159: 74.58422089
B160: 14044.29684 | C160: 74.42809296 | D160: 74.3809967 | E160: 74.42809296 | F160: 74.3809967
B161: 14288.93959 | C161: 75.55582428 | D161: 74.17935944 | E161: 75.55582428 | F161: 74.17935944
B162: 14537.84386 | C162: 76.710495 | D162: 73.96284485 | E162: 76.710495 | F162: 73.96284485
B163: 14791.08388 | C163: 77.87807465 | D163: 73.76390839 | E163: 77.87807465 | F163: 73.76390839
B164: 15048.73519 | C164: 79.06100464 | D164: 73.54446411 | E164: 79.06100464 | F164: 73.54446411
B165: 15310.87462 | C165: 80.27210236 | D165: 73.34519196 | E165: 80.27210236 | F165: 73.34519196
B166: 15577.58035 | C166: 81.48475647 | D166: 73.13092804 | E166: 81.48475647 | F166: 73.13092804
B167: 15848.93192 | C167: 82.70855713 | D167: 72.90525055 | E167: 82.70855713 | F167: 72.90525055
B168: 16125.01027 | C168: 83.95440674 | D168: 72.68247223 | E168: 83.95440674 | F168: 72.68247223
B169: 16405.89773 | C169: 85.20694733 | D169: 72.45832825 | E169: 85.20694733 | F169: 72.45832825
B170: 16691.67807 | C170: 86.48038483 | D170: 72.2336731 | E170: 86.48038483 | F170: 72.2336731
B171: 16982.43652 | C171: 87.75793457 | D171: 72.01303864 | E171: 87.75793457 | F171: 72.01303864
B172: 17278.25981 | C172: 89.06111145 | D172: 71.78278351 | E172: 89.06111145 | F172: 71.78278351
B173: 17579.23614 | C173: 90.39582062 | D173: 71.54785156 | E173: 90.39582062 | F173: 71.54785156
B174: 17885.45529 | C174: 91.70553589 | D174: 71.30945587 | E174: 91.70553589 | F174: 71.30945587
B175: 18197.00859 | C175: 93.06956482 | D175: 71.06511688 | E175: 93.06956482 | F175: 71.06511688
B176: 18513.98894 | C176: 94.43907928 | D176: 70.83305359 | E176: 94.43907928 | F176: 70.83305359
B177: 18836.49089 | C177: 95.79533386 | D177: 70.59899139 | E177: 95.79533386 | F177: 70.59899139
B178: 19164.61063 | C178: 97.19010162 | D178: 70.35784149 | E178: 97.19010162 | F178: 70.35784149
B179: 19498.446 | C179: 98.59487152 | D179: 70.10633087 | E179: 98.59487152 | F179: 70.10633087
B180: 19838.09657 | C180: 99.99873352 | D180: 69.85864258 | E180: 99.99873352 | F180: 69.85864258
B181: 20183.66364 | C181: 101.44133 | D181: 69.6008606 | E181: 101.44133 | F181: 69.6008606
B182: 20535.25026 | C182: 102.9035797 | D182: 69.32879639 | E182: 102.9035797 | F182: 69.32879639
B183: 20892.96131 | C183: 104.3593292 | D183: 69.08752441 | E183: 104.3593292 | F183: 69.08752441
B184: 21256.90345 | C184: 105.8518295 | D184: 68.83246613 | E184: 105.8518295 | F184: 68.83246613
B185: 21627.18524 | C185: 107.3396835 | D185: 68.57562256 | E185: 107.3396835 | F185: 68.57562256
B186: 22003.9171 | C186: 108.8508301 | D186: 68.31563568 | E186: 108.8508301 | F186: 68.31563568
B187: 22387.21139 | C187: 110.3437119 | D187: 68.03551483 | E187: 110.3437119 | F187: 68.03551483
B188: 22777.18242 | C188: 111.8853302 | D188: 67.77572632 | E188: 111.8853302 | F188: 67.77572632
B189: 23173.9465 | C189: 113.4481659 | D189: 67.51098633 | E189: 113.4481659 | F189: 67.51098633
B190: 23577.62196 | C190: 115.0141067 | D190: 67.23231506 | E190: 115.0141067 | F190: 67.23231506
B191: 23988.32919 | C191: 116.5887375 | D191: 66.96697998 | E191: 116.5887375 | F191: 66.96697998
B192: 24406.19068 | C192: 118.1705475 | D192: 66.69581604 | E192: 118.1705475 | F192: 66.69581604
B193: 24831.33105 | C193: 119.7664261 | D193: 66.40670013 | E193: 119.7664261 | F193: 66.40670013
B194: 25263.8771 | C194: 121.4117813 | D194: 66.1281662 | E194: 121.4117813 | F194: 66.1281662
B195: 25703.95783 | C195: 123.0262909 | D195: 65.86061096 | E195: 123.0262909 | F195: 65.86061096
B196: 26151.70448 | C196: 124.6711273 | D196: 65.57325745 | E196: 124.6711273 | F196: 65.57325745
B197: 26607.2506 | C197: 126.3335876 | D197: 65.2874527 | E197: 126.3335876 | F197: 65.2874527
B198: 27070.73204 | C198: 127.9783707 | D198: 65.00440979 | E198: 127.9783707 | F198: 65.00440979
B199: 27542.28703 | C199: 129.693573 | D199: 64.71950531 | E199: 129.693573 | F199: 64.71950531
B200: 28022.05622 | C200: 131.3294373 | D200: 64.42146301 | E200: 131.3294373 | F200: 64.42146301
B201: 28510.18268 | C201: 133.0821381 | D201: 64.11919403 | E201: 133.0821381 | F201: 64.11919403
B202: 29006.81199 | C202: 134.7957916 | D202: 63.83346558 | E202: 134.7957916 | F202: 63.83346558
... 472 more rows

Sheet Choose LC filter components (hidden)
A3: Lowest switchiing harmonic above 150 kHz | J3: Ideal choices for Fsw are 48, 72, 144 kHz (to stay bekow the EMI start frequency of 150 kHz)
B4: PFC switching frequency, Fsw | C4: 65 | D4: kHz | J4: Fsw (kHz) | K4: 2nd harmonic | L4: 3rd harmonic | M4: 4th harmonic | N4: 5th harmonic
B5: First switching harmonic above 150 kHz, FEMI | C5: =ROUNDUP(150/C4,0)*C4 -> 195 | D5: kHz | I5: Ideal choice | J5: 144 | K5: =J5*2 -> 288 | L5: =J5*3 -> 432 | M5: =J5*4 -> 576 | N5: =J5*5 -> 720
B6: Harmonic number of FEMI | C6: =ROUNDUP(150/C4,0) -> 3 | I6: Common choice (SiC) | J6: 100 | K6: =J6*2 -> 200 | L6: =J6*3 -> 300 | M6: =J6*4 -> 400 | N6: =J6*5 -> 500
I7: Ideal choice | J7: 72 | K7: 144 | L7: 216 | M7: 288 | N7: 360
A8: Y-capacitance budget | I8: Common choice (Si) | J8: 65 | K8: 130 | L8: =J8*3 -> 195 | M8: =J8*4 -> 260 | N8: =J8*5 -> 325
B9: Line voltage - maximum (RMS) | C9: 264 | D9: VRMS | I9: Ideal choice | J9: 48 | K9: =J9*2 -> 96 | L9: =J9*3 -> 144 | M9: =J9*4 -> 192 | N9: =J9*5 -> 240
B10: Touch current specification (RMS) | C10: 3.5 | D10: mARMS | F10: UL 2202, IEC 61851, etc. | I10: Ideal choice | J10: 36 | K10: =J10*2 -> 72 | L10: =J10*3 -> 108 | M10: =J10*4 -> 144 | N10: =J10*5 -> 180
B11: AC grid line frequency - maximum | C11: 60 | D11: Hz
B12: Total Y-capacitance - maximum | C12: =C10*10^-3/(2*PI()*C11*C9)*1000000000 -> 35.16681192 | D12: nF | F12: Cy = Irms/(2*Pi*fac*Vac)
A15: Filter attenuation parameters | I15: PCB layout details
B16: Filter design frequency for attenuation, FEMI | C16: 195 | D16: kHz | I16: Input and output terminals of the CM chokes do not overlap
B17: Target filter attenuation at FEMI | C17: 40 | D17: dB | I17: No copper planes present below the magnetic components
I18: Minimize magnetic/capacitive coupling by corerct positioning and orientation of the componenets
A19: Grid-side filter stage
B20: Target grid-side filter attenuation at FEMI | C20: 20 | D20: dB
B21: Total grid-side Y-capacitance, CY1 | C21: ='Design the AEF circuit'!$C$19*SETUP -> 2 | D21: nF
B22: Effective LISN resistance for CM noise, RLISN-CM | C22: 25 | D22: Ω | F22: 16.7Ω for 3-wire, 12.5Ω for 4-wire systems
B23: Grid-side choke inductance, LCM1 | D23: mH
B24: Filter resonant frequency | D24: kHz | F24: Keep away from switching frequency and harmonics
A26: PFC-side filter stage
B27: Target PFC-side filter attenuation at FEMI | C27: 20 | D27: dB
B28: Center-node Y-capacitance, CY2 | C28: 10 | D28: nF
B29: Total Y-capacitance at PFC, CY3 | C29: ='Design the AEF circuit'!$C$24*SETUP -> 9.4 | D29: nF | F29: Maximize CY3 to reduce incident noise on the AEF
B30: PFC-side choke inductance, LCM2 | D30: mH
B31: Filter resonant frequency, fRES | D31: kHz | F31: Keep away from switching frequency and harmonics
A34: Filter results with selected components
B35: Calculated total filter attenuation at FEMI | D35: dB
B36: Reactive power consumption at line frequency | D36: VA

Sheet Frequency vector (hidden)
A2: Number of points per decade | B2: ndec | C2: 300 | D2: index | E2: freq_generated [Hz] | F2: freq_customer [Hz] | G2: freq_selected [Hz] | H2: freq_selected [kHz]
A3: Logscale generator | B3: klog | C3: =10^(1/C2) -> 1.007704814 | D3: 0 | E3: =10*('Frequency vector'!$C$3)^D3 -> 10 | F3: ='CM choke'!B7 -> 1000 | G3: =IF(CMdata=1,'Frequency vector'!E3,'Frequency vector'!F3) -> 1000 | H3: =G3/1000 -> 1 | J3: =IF(ABS(Fsw-G3)<=1000,1,0) -> 0 | L3: =MATCH(1,J3:J2103,0) -> 268 | N3: =Fsw -> 100000
D4: 1 | E4: =10*('Frequency vector'!$C$3)^D4 -> 10.07704814 | F4: =IF('CM choke'!B8=0, F3, 'CM choke'!B8) -> 1017.419366 | G4: =IF(CMdata=1,'Frequency vector'!E4,'Frequency vector'!F4) -> 1017.419366 | H4: =G4/1000 -> 1.017419366 | J4: 0 | L4: =INDEX(G3:G2103,Fsw_index) -> 100577.3063
D5: 2 | E5: =10*('Frequency vector'!$C$3)^D5 -> 10.15468992 | F5: =IF('CM choke'!B9=0, F4, 'CM choke'!B9) -> 1035.142167 | G5: =IF(CMdata=1,'Frequency vector'!E5,'Frequency vector'!F5) -> 1035.142167 | H5: 1.035142167 | J5: 0
D6: 3 | E6: =10*('Frequency vector'!$C$3)^D6 -> 10.23292992 | F6: =IF('CM choke'!B10=0, F5, 'CM choke'!B10) -> 1053.173687 | G6: =IF(CMdata=1,'Frequency vector'!E6,'Frequency vector'!F6) -> 1053.173687 | H6: 1.053173687 | J6: 0
D7: 4 | E7: =10*('Frequency vector'!$C$3)^D7 -> 10.31177275 | F7: =IF('CM choke'!B11=0, F6, 'CM choke'!B11) -> 1071.519305 | G7: =IF(CMdata=1,'Frequency vector'!E7,'Frequency vector'!F7) -> 1071.519305 | H7: 1.071519305 | J7: 0
D8: 5 | E8: =10*('Frequency vector'!$C$3)^D8 -> 10.39122304 | F8: =IF('CM choke'!B12=0, F7, 'CM choke'!B12) -> 1090.184492 | G8: =IF(CMdata=1,'Frequency vector'!E8,'Frequency vector'!F8) -> 1090.184492 | H8: 1.090184492 | J8: 0
D9: 6 | E9: =10*('Frequency vector'!$C$3)^D9 -> 10.47128548 | F9: =IF('CM choke'!B13=0, F8, 'CM choke'!B13) -> 1109.174815 | G9: =IF(CMdata=1,'Frequency vector'!E9,'Frequency vector'!F9) -> 1109.174815 | H9: 1.109174815 | J9: 0
D10: 7 | E10: =10*('Frequency vector'!$C$3)^D10 -> 10.55196479 | F10: =IF('CM choke'!B14=0, F9, 'CM choke'!B14) -> 1128.495938 | G10: =IF(CMdata=1,'Frequency vector'!E10,'Frequency vector'!F10) -> 1128.495938 | H10: 1.128495938 | J10: 0
D11: 8 | E11: =10*('Frequency vector'!$C$3)^D11 -> 10.63326572 | F11: =IF('CM choke'!B15=0, F10, 'CM choke'!B15) -> 1148.153621 | G11: =IF(CMdata=1,'Frequency vector'!E11,'Frequency vector'!F11) -> 1148.153621 | H11: 1.148153621 | J11: 0
D12: 9 | E12: =10*('Frequency vector'!$C$3)^D12 -> 10.71519305 | F12: =IF('CM choke'!B16=0, F11, 'CM choke'!B16) -> 1168.15373 | G12: =IF(CMdata=1,'Frequency vector'!E12,'Frequency vector'!F12) -> 1168.15373 | H12: 1.16815373 | J12: 0
D13: 10 | E13: =10*('Frequency vector'!$C$3)^D13 -> 10.79775162 | F13: =IF('CM choke'!B17=0, F12, 'CM choke'!B17) -> 1188.502227 | G13: =IF(CMdata=1,'Frequency vector'!E13,'Frequency vector'!F13) -> 1188.502227 | H13: 1.188502227 | J13: 0
D14: 11 | E14: =10*('Frequency vector'!$C$3)^D14 -> 10.88094629 | F14: =IF('CM choke'!B18=0, F13, 'CM choke'!B18) -> 1209.205183 | G14: =IF(CMdata=1,'Frequency vector'!E14,'Frequency vector'!F14) -> 1209.205183 | H14: 1.209205183 | J14: 0
D15: 12 | E15: =10*('Frequency vector'!$C$3)^D15 -> 10.96478196 | F15: =IF('CM choke'!B19=0, F14, 'CM choke'!B19) -> 1230.268771 | G15: =IF(CMdata=1,'Frequency vector'!E15,'Frequency vector'!F15) -> 1230.268771 | H15: 1.230268771 | J15: 0
D16: 13 | E16: =10*('Frequency vector'!$C$3)^D16 -> 11.04926357 | F16: =IF('CM choke'!B20=0, F15, 'CM choke'!B20) -> 1251.699273 | G16: =IF(CMdata=1,'Frequency vector'!E16,'Frequency vector'!F16) -> 1251.699273 | H16: 1.251699273 | J16: 0
D17: 14 | E17: =10*('Frequency vector'!$C$3)^D17 -> 11.13439609 | F17: =IF('CM choke'!B21=0, F16, 'CM choke'!B21) -> 1273.503081 | G17: =IF(CMdata=1,'Frequency vector'!E17,'Frequency vector'!F17) -> 1273.503081 | H17: 1.273503081 | J17: 0
D18: 15 | E18: =10*('Frequency vector'!$C$3)^D18 -> 11.22018454 | F18: =IF('CM choke'!B22=0, F17, 'CM choke'!B22) -> 1295.686698 | G18: =IF(CMdata=1,'Frequency vector'!E18,'Frequency vector'!F18) -> 1295.686698 | H18: 1.295686698 | J18: 0
D19: 16 | E19: =10*('Frequency vector'!$C$3)^D19 -> 11.30663398 | F19: =IF('CM choke'!B23=0, F18, 'CM choke'!B23) -> 1318.256739 | G19: =IF(CMdata=1,'Frequency vector'!E19,'Frequency vector'!F19) -> 1318.256739 | H19: 1.318256739 | J19: 0
D20: 17 | E20: =10*('Frequency vector'!$C$3)^D20 -> 11.39374949 | F20: =IF('CM choke'!B24=0, F19, 'CM choke'!B24) -> 1341.219935 | G20: =IF(CMdata=1,'Frequency vector'!E20,'Frequency vector'!F20) -> 1341.219935 | H20: 1.341219935 | J20: 0
D21: 18 | E21: =10*('Frequency vector'!$C$3)^D21 -> 11.48153621 | F21: =IF('CM choke'!B25=0, F20, 'CM choke'!B25) -> 1364.583137 | G21: =IF(CMdata=1,'Frequency vector'!E21,'Frequency vector'!F21) -> 1364.583137 | H21: 1.364583137 | J21: 0
D22: 19 | E22: =10*('Frequency vector'!$C$3)^D22 -> 11.56999932 | F22: =IF('CM choke'!B26=0, F21, 'CM choke'!B26) -> 1388.35331 | G22: =IF(CMdata=1,'Frequency vector'!E22,'Frequency vector'!F22) -> 1388.35331 | H22: 1.38835331 | J22: 0
D23: 20 | E23: =10*('Frequency vector'!$C$3)^D23 -> 11.65914401 | F23: =IF('CM choke'!B27=0, F22, 'CM choke'!B27) -> 1412.537545 | G23: =IF(CMdata=1,'Frequency vector'!E23,'Frequency vector'!F23) -> 1412.537545 | H23: 1.412537545 | J23: 0
D24: 21 | E24: =10*('Frequency vector'!$C$3)^D24 -> 11.74897555 | F24: =IF('CM choke'!B28=0, F23, 'CM choke'!B28) -> 1437.143053 | G24: =IF(CMdata=1,'Frequency vector'!E24,'Frequency vector'!F24) -> 1437.143053 | H24: 1.437143053 | J24: 0
D25: 22 | E25: =10*('Frequency vector'!$C$3)^D25 -> 11.83949922 | F25: =IF('CM choke'!B29=0, F24, 'CM choke'!B29) -> 1462.177174 | G25: =IF(CMdata=1,'Frequency vector'!E25,'Frequency vector'!F25) -> 1462.177174 | H25: 1.462177174 | J25: 0
D26: 23 | E26: =10*('Frequency vector'!$C$3)^D26 -> 11.93072036 | F26: =IF('CM choke'!B30=0, F25, 'CM choke'!B30) -> 1487.647374 | G26: =IF(CMdata=1,'Frequency vector'!E26,'Frequency vector'!F26) -> 1487.647374 | H26: 1.487647374 | J26: 0
D27: 24 | E27: =10*('Frequency vector'!$C$3)^D27 -> 12.02264435 | F27: =IF('CM choke'!B31=0, F26, 'CM choke'!B31) -> 1513.561248 | G27: =IF(CMdata=1,'Frequency vector'!E27,'Frequency vector'!F27) -> 1513.561248 | H27: 1.513561248 | J27: 0
D28: 25 | E28: =10*('Frequency vector'!$C$3)^D28 -> 12.11527659 | F28: =IF('CM choke'!B32=0, F27, 'CM choke'!B32) -> 1539.926526 | G28: =IF(CMdata=1,'Frequency vector'!E28,'Frequency vector'!F28) -> 1539.926526 | H28: 1.539926526 | J28: 0
D29: 26 | E29: =10*('Frequency vector'!$C$3)^D29 -> 12.20862254 | F29: =IF('CM choke'!B33=0, F28, 'CM choke'!B33) -> 1566.75107 | G29: =IF(CMdata=1,'Frequency vector'!E29,'Frequency vector'!F29) -> 1566.75107 | H29: 1.56675107 | J29: 0
D30: 27 | E30: =10*('Frequency vector'!$C$3)^D30 -> 12.30268771 | F30: =IF('CM choke'!B34=0, F29, 'CM choke'!B34) -> 1594.042881 | G30: =IF(CMdata=1,'Frequency vector'!E30,'Frequency vector'!F30) -> 1594.042881 | H30: 1.594042881 | J30: 0
D31: 28 | E31: =10*('Frequency vector'!$C$3)^D31 -> 12.39747763 | F31: =IF('CM choke'!B35=0, F30, 'CM choke'!B35) -> 1621.810097 | G31: =IF(CMdata=1,'Frequency vector'!E31,'Frequency vector'!F31) -> 1621.810097 | H31: 1.621810097 | J31: 0
D32: 29 | E32: =10*('Frequency vector'!$C$3)^D32 -> 12.49299789 | F32: =IF('CM choke'!B36=0, F31, 'CM choke'!B36) -> 1650.061001 | G32: =IF(CMdata=1,'Frequency vector'!E32,'Frequency vector'!F32) -> 1650.061001 | H32: 1.650061001 | J32: 0
D33: 30 | E33: =10*('Frequency vector'!$C$3)^D33 -> 12.58925412 | F33: =IF('CM choke'!B37=0, F32, 'CM choke'!B37) -> 1678.804018 | G33: =IF(CMdata=1,'Frequency vector'!E33,'Frequency vector'!F33) -> 1678.804018 | H33: 1.678804018 | J33: 0
D34: 31 | E34: =10*('Frequency vector'!$C$3)^D34 -> 12.68625198 | F34: =IF('CM choke'!B38=0, F33, 'CM choke'!B38) -> 1708.04772 | G34: =IF(CMdata=1,'Frequency vector'!E34,'Frequency vector'!F34) -> 1708.04772 | H34: 1.70804772 | J34: 0
D35: 32 | E35: =10*('Frequency vector'!$C$3)^D35 -> 12.78399719 | F35: =IF('CM choke'!B39=0, F34, 'CM choke'!B39) -> 1737.800829 | G35: =IF(CMdata=1,'Frequency vector'!E35,'Frequency vector'!F35) -> 1737.800829 | H35: 1.737800829 | J35: 0
D36: 33 | E36: =10*('Frequency vector'!$C$3)^D36 -> 12.88249552 | F36: =IF('CM choke'!B40=0, F35, 'CM choke'!B40) -> 1768.072218 | G36: =IF(CMdata=1,'Frequency vector'!E36,'Frequency vector'!F36) -> 1768.072218 | H36: 1.768072218 | J36: 0
D37: 34 | E37: =10*('Frequency vector'!$C$3)^D37 -> 12.98175275 | F37: =IF('CM choke'!B41=0, F36, 'CM choke'!B41) -> 1798.870915 | G37: =IF(CMdata=1,'Frequency vector'!E37,'Frequency vector'!F37) -> 1798.870915 | H37: 1.798870915 | J37: 0
D38: 35 | E38: =10*('Frequency vector'!$C$3)^D38 -> 13.08177474 | F38: =IF('CM choke'!B42=0, F37, 'CM choke'!B42) -> 1830.206106 | G38: =IF(CMdata=1,'Frequency vector'!E38,'Frequency vector'!F38) -> 1830.206106 | H38: 1.830206106 | J38: 0
D39: 36 | E39: =10*('Frequency vector'!$C$3)^D39 -> 13.18256739 | F39: =IF('CM choke'!B43=0, F38, 'CM choke'!B43) -> 1862.087137 | G39: =IF(CMdata=1,'Frequency vector'!E39,'Frequency vector'!F39) -> 1862.087137 | H39: 1.862087137 | J39: 0
D40: 37 | E40: =10*('Frequency vector'!$C$3)^D40 -> 13.28413662 | F40: =IF('CM choke'!B44=0, F39, 'CM choke'!B44) -> 1894.523514 | G40: =IF(CMdata=1,'Frequency vector'!E40,'Frequency vector'!F40) -> 1894.523514 | H40: 1.894523514 | J40: 0
D41: 38 | E41: =10*('Frequency vector'!$C$3)^D41 -> 13.38648842 | F41: =IF('CM choke'!B45=0, F40, 'CM choke'!B45) -> 1927.524913 | G41: =IF(CMdata=1,'Frequency vector'!E41,'Frequency vector'!F41) -> 1927.524913 | H41: 1.927524913 | J41: 0
D42: 39 | E42: =10*('Frequency vector'!$C$3)^D42 -> 13.48962883 | F42: =IF('CM choke'!B46=0, F41, 'CM choke'!B46) -> 1961.101175 | G42: =IF(CMdata=1,'Frequency vector'!E42,'Frequency vector'!F42) -> 1961.101175 | H42: 1.961101175 | J42: 0
D43: 40 | E43: =10*('Frequency vector'!$C$3)^D43 -> 13.59356391 | F43: =IF('CM choke'!B47=0, F42, 'CM choke'!B47) -> 1995.262315 | G43: =IF(CMdata=1,'Frequency vector'!E43,'Frequency vector'!F43) -> 1995.262315 | H43: 1.995262315 | J43: 0
D44: 41 | E44: =10*('Frequency vector'!$C$3)^D44 -> 13.69829979 | F44: =IF('CM choke'!B48=0, F43, 'CM choke'!B48) -> 2030.01852 | G44: =IF(CMdata=1,'Frequency vector'!E44,'Frequency vector'!F44) -> 2030.01852 | H44: 2.03001852 | J44: 0
D45: 42 | E45: =10*('Frequency vector'!$C$3)^D45 -> 13.80384265 | F45: =IF('CM choke'!B49=0, F44, 'CM choke'!B49) -> 2065.380156 | G45: =IF(CMdata=1,'Frequency vector'!E45,'Frequency vector'!F45) -> 2065.380156 | H45: 2.065380156 | J45: 0
D46: 43 | E46: =10*('Frequency vector'!$C$3)^D46 -> 13.91019869 | F46: =IF('CM choke'!B50=0, F45, 'CM choke'!B50) -> 2101.357769 | G46: =IF(CMdata=1,'Frequency vector'!E46,'Frequency vector'!F46) -> 2101.357769 | H46: 2.101357769 | J46: 0
D47: 44 | E47: =10*('Frequency vector'!$C$3)^D47 -> 14.01737418 | F47: =IF('CM choke'!B51=0, F46, 'CM choke'!B51) -> 2137.96209 | G47: =IF(CMdata=1,'Frequency vector'!E47,'Frequency vector'!F47) -> 2137.96209 | H47: 2.13796209 | J47: 0
D48: 45 | E48: =10*('Frequency vector'!$C$3)^D48 -> 14.12537545 | F48: =IF('CM choke'!B52=0, F47, 'CM choke'!B52) -> 2175.204034 | G48: =IF(CMdata=1,'Frequency vector'!E48,'Frequency vector'!F48) -> 2175.204034 | H48: 2.175204034 | J48: 0
D49: 46 | E49: =10*('Frequency vector'!$C$3)^D49 -> 14.23420884 | F49: =IF('CM choke'!B53=0, F48, 'CM choke'!B53) -> 2213.09471 | G49: =IF(CMdata=1,'Frequency vector'!E49,'Frequency vector'!F49) -> 2213.09471 | H49: 2.21309471 | J49: 0
D50: 47 | E50: =10*('Frequency vector'!$C$3)^D50 -> 14.34388077 | F50: =IF('CM choke'!B54=0, F49, 'CM choke'!B54) -> 2251.645417 | G50: =IF(CMdata=1,'Frequency vector'!E50,'Frequency vector'!F50) -> 2251.645417 | H50: 2.251645417 | J50: 0
D51: 48 | E51: =10*('Frequency vector'!$C$3)^D51 -> 14.45439771 | F51: =IF('CM choke'!B55=0, F50, 'CM choke'!B55) -> 2290.867653 | G51: =IF(CMdata=1,'Frequency vector'!E51,'Frequency vector'!F51) -> 2290.867653 | H51: 2.290867653 | J51: 0
D52: 49 | E52: =10*('Frequency vector'!$C$3)^D52 -> 14.56576616 | F52: =IF('CM choke'!B56=0, F51, 'CM choke'!B56) -> 2330.773115 | G52: =IF(CMdata=1,'Frequency vector'!E52,'Frequency vector'!F52) -> 2330.773115 | H52: 2.330773115 | J52: 0
D53: 50 | E53: =10*('Frequency vector'!$C$3)^D53 -> 14.67799268 | F53: =IF('CM choke'!B57=0, F52, 'CM choke'!B57) -> 2371.373706 | G53: =IF(CMdata=1,'Frequency vector'!E53,'Frequency vector'!F53) -> 2371.373706 | H53: 2.371373706 | J53: 0
D54: 51 | E54: =10*('Frequency vector'!$C$3)^D54 -> 14.79108388 | F54: =IF('CM choke'!B58=0, F53, 'CM choke'!B58) -> 2412.681533 | G54: =IF(CMdata=1,'Frequency vector'!E54,'Frequency vector'!F54) -> 2412.681533 | H54: 2.412681533 | J54: 0
D55: 52 | E55: =10*('Frequency vector'!$C$3)^D55 -> 14.90504643 | F55: =IF('CM choke'!B59=0, F54, 'CM choke'!B59) -> 2454.708916 | G55: =IF(CMdata=1,'Frequency vector'!E55,'Frequency vector'!F55) -> 2454.708916 | H55: 2.454708916 | J55: 0
D56: 53 | E56: =10*('Frequency vector'!$C$3)^D56 -> 15.01988705 | F56: =IF('CM choke'!B60=0, F55, 'CM choke'!B60) -> 2497.468389 | G56: =IF(CMdata=1,'Frequency vector'!E56,'Frequency vector'!F56) -> 2497.468389 | H56: 2.497468389 | J56: 0
D57: 54 | E57: =10*('Frequency vector'!$C$3)^D57 -> 15.13561248 | F57: =IF('CM choke'!B61=0, F56, 'CM choke'!B61) -> 2540.972706 | G57: =IF(CMdata=1,'Frequency vector'!E57,'Frequency vector'!F57) -> 2540.972706 | H57: 2.540972706 | J57: 0
D58: 55 | E58: =10*('Frequency vector'!$C$3)^D58 -> 15.25222957 | F58: =IF('CM choke'!B62=0, F57, 'CM choke'!B62) -> 2585.23484 | G58: =IF(CMdata=1,'Frequency vector'!E58,'Frequency vector'!F58) -> 2585.23484 | H58: 2.58523484 | J58: 0
D59: 56 | E59: =10*('Frequency vector'!$C$3)^D59 -> 15.36974516 | F59: =IF('CM choke'!B63=0, F58, 'CM choke'!B63) -> 2630.267992 | G59: =IF(CMdata=1,'Frequency vector'!E59,'Frequency vector'!F59) -> 2630.267992 | H59: 2.630267992 | J59: 0
D60: 57 | E60: =10*('Frequency vector'!$C$3)^D60 -> 15.48816619 | F60: =IF('CM choke'!B64=0, F59, 'CM choke'!B64) -> 2676.085593 | G60: =IF(CMdata=1,'Frequency vector'!E60,'Frequency vector'!F60) -> 2676.085593 | H60: 2.676085593 | J60: 0
D61: 58 | E61: =10*('Frequency vector'!$C$3)^D61 -> 15.60749963 | F61: =IF('CM choke'!B65=0, F60, 'CM choke'!B65) -> 2722.701308 | G61: =IF(CMdata=1,'Frequency vector'!E61,'Frequency vector'!F61) -> 2722.701308 | H61: 2.722701308 | J61: 0
D62: 59 | E62: =10*('Frequency vector'!$C$3)^D62 -> 15.72775251 | F62: =IF('CM choke'!B66=0, F61, 'CM choke'!B66) -> 2770.129039 | G62: =IF(CMdata=1,'Frequency vector'!E62,'Frequency vector'!F62) -> 2770.129039 | H62: 2.770129039 | J62: 0
D63: 60 | E63: =10*('Frequency vector'!$C$3)^D63 -> 15.84893192 | F63: =IF('CM choke'!B67=0, F62, 'CM choke'!B67) -> 2818.382931 | G63: =IF(CMdata=1,'Frequency vector'!E63,'Frequency vector'!F63) -> 2818.382931 | H63: 2.818382931 | J63: 0
D64: 61 | E64: =10*('Frequency vector'!$C$3)^D64 -> 15.971045 | F64: =IF('CM choke'!B68=0, F63, 'CM choke'!B68) -> 2867.477376 | G64: =IF(CMdata=1,'Frequency vector'!E64,'Frequency vector'!F64) -> 2867.477376 | H64: 2.867477376 | J64: 0
D65: 62 | E65: =10*('Frequency vector'!$C$3)^D65 -> 16.09409893 | F65: =IF('CM choke'!B69=0, F64, 'CM choke'!B69) -> 2917.427014 | G65: =IF(CMdata=1,'Frequency vector'!E65,'Frequency vector'!F65) -> 2917.427014 | H65: 2.917427014 | J65: 0
D66: 63 | E66: =10*('Frequency vector'!$C$3)^D66 -> 16.21810097 | F66: =IF('CM choke'!B70=0, F65, 'CM choke'!B70) -> 2968.246743 | G66: =IF(CMdata=1,'Frequency vector'!E66,'Frequency vector'!F66) -> 2968.246743 | H66: 2.968246743 | J66: 0
D67: 64 | E67: =10*('Frequency vector'!$C$3)^D67 -> 16.34305843 | F67: =IF('CM choke'!B71=0, F66, 'CM choke'!B71) -> 3019.95172 | G67: =IF(CMdata=1,'Frequency vector'!E67,'Frequency vector'!F67) -> 3019.95172 | H67: 3.01995172 | J67: =IF(ABS(Fsw-G67)<=1000,1,0) -> 0
D68: 65 | E68: =10*('Frequency vector'!$C$3)^D68 -> 16.46897865 | F68: =IF('CM choke'!B72=0, F67, 'CM choke'!B72) -> 3072.557365 | G68: =IF(CMdata=1,'Frequency vector'!E68,'Frequency vector'!F68) -> 3072.557365 | H68: =G68/1000 -> 3.072557365 | J68: 0
D69: 66 | E69: =10*('Frequency vector'!$C$3)^D69 -> 16.59586907 | F69: =IF('CM choke'!B73=0, F68, 'CM choke'!B73) -> 3126.079367 | G69: =IF(CMdata=1,'Frequency vector'!E69,'Frequency vector'!F69) -> 3126.079367 | H69: 3.126079367 | J69: 0
D70: 67 | E70: =10*('Frequency vector'!$C$3)^D70 -> 16.72373716 | F70: =IF('CM choke'!B74=0, F69, 'CM choke'!B74) -> 3180.533688 | G70: =IF(CMdata=1,'Frequency vector'!E70,'Frequency vector'!F70) -> 3180.533688 | H70: 3.180533688 | J70: 0
D71: 68 | E71: =10*('Frequency vector'!$C$3)^D71 -> 16.85259045 | F71: =IF('CM choke'!B75=0, F70, 'CM choke'!B75) -> 3235.936569 | G71: =IF(CMdata=1,'Frequency vector'!E71,'Frequency vector'!F71) -> 3235.936569 | H71: 3.235936569 | J71: 0
D72: 69 | E72: =10*('Frequency vector'!$C$3)^D72 -> 16.98243652 | F72: =IF('CM choke'!B76=0, F71, 'CM choke'!B76) -> 3292.304533 | G72: =IF(CMdata=1,'Frequency vector'!E72,'Frequency vector'!F72) -> 3292.304533 | H72: 3.292304533 | J72: 0
D73: 70 | E73: =10*('Frequency vector'!$C$3)^D73 -> 17.11328304 | F73: =IF('CM choke'!B77=0, F72, 'CM choke'!B77) -> 3349.654392 | G73: =IF(CMdata=1,'Frequency vector'!E73,'Frequency vector'!F73) -> 3349.654392 | H73: 3.349654392 | J73: 0
D74: 71 | E74: =10*('Frequency vector'!$C$3)^D74 -> 17.24513771 | F74: =IF('CM choke'!B78=0, F73, 'CM choke'!B78) -> 3408.003248 | G74: =IF(CMdata=1,'Frequency vector'!E74,'Frequency vector'!F74) -> 3408.003248 | H74: 3.408003248 | J74: 0
D75: 72 | E75: =10*('Frequency vector'!$C$3)^D75 -> 17.37800829 | F75: =IF('CM choke'!B79=0, F74, 'CM choke'!B79) -> 3467.368505 | G75: =IF(CMdata=1,'Frequency vector'!E75,'Frequency vector'!F75) -> 3467.368505 | H75: 3.467368505 | J75: 0
D76: 73 | E76: =10*('Frequency vector'!$C$3)^D76 -> 17.51190261 | F76: =IF('CM choke'!B80=0, F75, 'CM choke'!B80) -> 3527.767866 | G76: =IF(CMdata=1,'Frequency vector'!E76,'Frequency vector'!F76) -> 3527.767866 | H76: 3.527767866 | J76: 0
D77: 74 | E77: =10*('Frequency vector'!$C$3)^D77 -> 17.64682857 | F77: =IF('CM choke'!B81=0, F76, 'CM choke'!B81) -> 3589.219346 | G77: =IF(CMdata=1,'Frequency vector'!E77,'Frequency vector'!F77) -> 3589.219346 | H77: 3.589219346 | J77: 0
D78: 75 | E78: =10*('Frequency vector'!$C$3)^D78 -> 17.7827941 | F78: =IF('CM choke'!B82=0, F77, 'CM choke'!B82) -> 3651.741273 | G78: =IF(CMdata=1,'Frequency vector'!E78,'Frequency vector'!F78) -> 3651.741273 | H78: 3.651741273 | J78: 0
D79: 76 | E79: =10*('Frequency vector'!$C$3)^D79 -> 17.91980722 | F79: =IF('CM choke'!B83=0, F78, 'CM choke'!B83) -> 3715.352291 | G79: =IF(CMdata=1,'Frequency vector'!E79,'Frequency vector'!F79) -> 3715.352291 | H79: 3.715352291 | J79: 0
D80: 77 | E80: =10*('Frequency vector'!$C$3)^D80 -> 18.05787601 | F80: =IF('CM choke'!B84=0, F79, 'CM choke'!B84) -> 3780.071373 | G80: =IF(CMdata=1,'Frequency vector'!E80,'Frequency vector'!F80) -> 3780.071373 | H80: 3.780071373 | J80: 0
D81: 78 | E81: =10*('Frequency vector'!$C$3)^D81 -> 18.19700859 | F81: =IF('CM choke'!B85=0, F80, 'CM choke'!B85) -> 3845.91782 | G81: =IF(CMdata=1,'Frequency vector'!E81,'Frequency vector'!F81) -> 3845.91782 | H81: 3.84591782 | J81: 0
D82: 79 | E82: =10*('Frequency vector'!$C$3)^D82 -> 18.33721316 | F82: =IF('CM choke'!B86=0, F81, 'CM choke'!B86) -> 3912.911271 | G82: =IF(CMdata=1,'Frequency vector'!E82,'Frequency vector'!F82) -> 3912.911271 | H82: 3.912911271 | J82: 0
D83: 80 | E83: =10*('Frequency vector'!$C$3)^D83 -> 18.47849797 | F83: =IF('CM choke'!B87=0, F82, 'CM choke'!B87) -> 3981.071706 | G83: =IF(CMdata=1,'Frequency vector'!E83,'Frequency vector'!F83) -> 3981.071706 | H83: 3.981071706 | J83: 0
D84: 81 | E84: =10*('Frequency vector'!$C$3)^D84 -> 18.62087137 | F84: =IF('CM choke'!B88=0, F83, 'CM choke'!B88) -> 4050.419451 | G84: =IF(CMdata=1,'Frequency vector'!E84,'Frequency vector'!F84) -> 4050.419451 | H84: 4.050419451 | J84: 0
D85: 82 | E85: =10*('Frequency vector'!$C$3)^D85 -> 18.76434172 | F85: =IF('CM choke'!B89=0, F84, 'CM choke'!B89) -> 4120.975191 | G85: =IF(CMdata=1,'Frequency vector'!E85,'Frequency vector'!F85) -> 4120.975191 | H85: 4.120975191 | J85: 0
D86: 83 | E86: =10*('Frequency vector'!$C$3)^D86 -> 18.90891748 | F86: =IF('CM choke'!B90=0, F85, 'CM choke'!B90) -> 4192.759967 | G86: =IF(CMdata=1,'Frequency vector'!E86,'Frequency vector'!F86) -> 4192.759967 | H86: 4.192759967 | J86: 0
D87: 84 | E87: =10*('Frequency vector'!$C$3)^D87 -> 19.05460718 | F87: =IF('CM choke'!B91=0, F86, 'CM choke'!B91) -> 4265.795188 | G87: =IF(CMdata=1,'Frequency vector'!E87,'Frequency vector'!F87) -> 4265.795188 | H87: 4.265795188 | J87: 0
D88: 85 | E88: =10*('Frequency vector'!$C$3)^D88 -> 19.20141939 | F88: =IF('CM choke'!B92=0, F87, 'CM choke'!B92) -> 4340.102636 | G88: =IF(CMdata=1,'Frequency vector'!E88,'Frequency vector'!F88) -> 4340.102636 | H88: 4.340102636 | J88: 0
D89: 86 | E89: =10*('Frequency vector'!$C$3)^D89 -> 19.34936275 | F89: =IF('CM choke'!B93=0, F88, 'CM choke'!B93) -> 4415.704474 | G89: =IF(CMdata=1,'Frequency vector'!E89,'Frequency vector'!F89) -> 4415.704474 | H89: 4.415704474 | J89: 0
D90: 87 | E90: =10*('Frequency vector'!$C$3)^D90 -> 19.498446 | F90: =IF('CM choke'!B94=0, F89, 'CM choke'!B94) -> 4492.623247 | G90: =IF(CMdata=1,'Frequency vector'!E90,'Frequency vector'!F90) -> 4492.623247 | H90: 4.492623247 | J90: 0
D91: 88 | E91: =10*('Frequency vector'!$C$3)^D91 -> 19.6486779 | F91: =IF('CM choke'!B95=0, F90, 'CM choke'!B95) -> 4570.881896 | G91: =IF(CMdata=1,'Frequency vector'!E91,'Frequency vector'!F91) -> 4570.881896 | H91: 4.570881896 | J91: 0
D92: 89 | E92: =10*('Frequency vector'!$C$3)^D92 -> 19.80006731 | F92: =IF('CM choke'!B96=0, F91, 'CM choke'!B96) -> 4650.503762 | G92: =IF(CMdata=1,'Frequency vector'!E92,'Frequency vector'!F92) -> 4650.503762 | H92: 4.650503762 | J92: 0
D93: 90 | E93: =10*('Frequency vector'!$C$3)^D93 -> 19.95262315 | F93: =IF('CM choke'!B97=0, F92, 'CM choke'!B97) -> 4731.51259 | G93: =IF(CMdata=1,'Frequency vector'!E93,'Frequency vector'!F93) -> 4731.51259 | H93: 4.73151259 | J93: 0
D94: 91 | E94: =10*('Frequency vector'!$C$3)^D94 -> 20.1063544 | F94: =IF('CM choke'!B98=0, F93, 'CM choke'!B98) -> 4813.93254 | G94: =IF(CMdata=1,'Frequency vector'!E94,'Frequency vector'!F94) -> 4813.93254 | H94: 4.81393254 | J94: 0
D95: 92 | E95: =10*('Frequency vector'!$C$3)^D95 -> 20.26127013 | F95: =IF('CM choke'!B99=0, F94, 'CM choke'!B99) -> 4897.788194 | G95: =IF(CMdata=1,'Frequency vector'!E95,'Frequency vector'!F95) -> 4897.788194 | H95: 4.897788194 | J95: 0
D96: 93 | E96: =10*('Frequency vector'!$C$3)^D96 -> 20.41737945 | F96: =IF('CM choke'!B100=0, F95, 'CM choke'!B100) -> 4983.10456 | G96: =IF(CMdata=1,'Frequency vector'!E96,'Frequency vector'!F96) -> 4983.10456 | H96: 4.98310456 | J96: 0
D97: 94 | E97: =10*('Frequency vector'!$C$3)^D97 -> 20.57469156 | F97: =IF('CM choke'!B101=0, F96, 'CM choke'!B101) -> 5069.907083 | G97: =IF(CMdata=1,'Frequency vector'!E97,'Frequency vector'!F97) -> 5069.907083 | H97: 5.069907083 | J97: 0
D98: 95 | E98: =10*('Frequency vector'!$C$3)^D98 -> 20.73321573 | F98: =IF('CM choke'!B102=0, F97, 'CM choke'!B102) -> 5158.221651 | G98: =IF(CMdata=1,'Frequency vector'!E98,'Frequency vector'!F98) -> 5158.221651 | H98: 5.158221651 | J98: 0
D99: 96 | E99: =10*('Frequency vector'!$C$3)^D99 -> 20.89296131 | F99: =IF('CM choke'!B103=0, F98, 'CM choke'!B103) -> 5248.074602 | G99: =IF(CMdata=1,'Frequency vector'!E99,'Frequency vector'!F99) -> 5248.074602 | H99: 5.248074603 | J99: 0
D100: 97 | E100: =10*('Frequency vector'!$C$3)^D100 -> 21.05393769 | F100: =IF('CM choke'!B104=0, F99, 'CM choke'!B104) -> 5339.492736 | G100: =IF(CMdata=1,'Frequency vector'!E100,'Frequency vector'!F100) -> 5339.492736 | H100: 5.339492736 | J100: 0
D101: 98 | E101: =10*('Frequency vector'!$C$3)^D101 -> 21.21615437 | F101: =IF('CM choke'!B105=0, F100, 'CM choke'!B105) -> 5432.503315 | G101: =IF(CMdata=1,'Frequency vector'!E101,'Frequency vector'!F101) -> 5432.503315 | H101: 5.432503315 | J101: 0
D102: 99 | E102: =10*('Frequency vector'!$C$3)^D102 -> 21.3796209 | F102: =IF('CM choke'!B106=0, F101, 'CM choke'!B106) -> 5527.134079 | G102: =IF(CMdata=1,'Frequency vector'!E102,'Frequency vector'!F102) -> 5527.134079 | H102: 5.527134079 | J102: 0
D103: 100 | E103: =10*('Frequency vector'!$C$3)^D103 -> 21.5443469 | F103: =IF('CM choke'!B107=0, F102, 'CM choke'!B107) -> 5623.413252 | G103: =IF(CMdata=1,'Frequency vector'!E103,'Frequency vector'!F103) -> 5623.413252 | H103: 5.623413252 | J103: 0
D104: 101 | E104: =10*('Frequency vector'!$C$3)^D104 -> 21.71034209 | F104: =IF('CM choke'!B108=0, F103, 'CM choke'!B108) -> 5721.369547 | G104: =IF(CMdata=1,'Frequency vector'!E104,'Frequency vector'!F104) -> 5721.369547 | H104: 5.721369547 | J104: 0
D105: 102 | E105: =10*('Frequency vector'!$C$3)^D105 -> 21.87761624 | F105: =IF('CM choke'!B109=0, F104, 'CM choke'!B109) -> 5821.032178 | G105: =IF(CMdata=1,'Frequency vector'!E105,'Frequency vector'!F105) -> 5821.032178 | H105: 5.821032178 | J105: 0
D106: 103 | E106: =10*('Frequency vector'!$C$3)^D106 -> 22.04617921 | F106: =IF('CM choke'!B110=0, F105, 'CM choke'!B110) -> 5922.430869 | G106: =IF(CMdata=1,'Frequency vector'!E106,'Frequency vector'!F106) -> 5922.430869 | H106: 5.922430869 | J106: 0
D107: 104 | E107: =10*('Frequency vector'!$C$3)^D107 -> 22.21604092 | F107: =IF('CM choke'!B111=0, F106, 'CM choke'!B111) -> 6025.595861 | G107: =IF(CMdata=1,'Frequency vector'!E107,'Frequency vector'!F107) -> 6025.595861 | H107: 6.025595861 | J107: 0
D108: 105 | E108: =10*('Frequency vector'!$C$3)^D108 -> 22.38721139 | F108: =IF('CM choke'!B112=0, F107, 'CM choke'!B112) -> 6130.557921 | G108: =IF(CMdata=1,'Frequency vector'!E108,'Frequency vector'!F108) -> 6130.557921 | H108: 6.130557921 | J108: 0
D109: 106 | E109: =10*('Frequency vector'!$C$3)^D109 -> 22.55970069 | F109: =IF('CM choke'!B113=0, F108, 'CM choke'!B113) -> 6237.348355 | G109: =IF(CMdata=1,'Frequency vector'!E109,'Frequency vector'!F109) -> 6237.348355 | H109: 6.237348355 | J109: 0
D110: 107 | E110: =10*('Frequency vector'!$C$3)^D110 -> 22.73351899 | F110: =IF('CM choke'!B114=0, F109, 'CM choke'!B114) -> 6345.99901 | G110: =IF(CMdata=1,'Frequency vector'!E110,'Frequency vector'!F110) -> 6345.99901 | H110: 6.34599901 | J110: 0
D111: 108 | E111: =10*('Frequency vector'!$C$3)^D111 -> 22.90867653 | F111: =IF('CM choke'!B115=0, F110, 'CM choke'!B115) -> 6456.54229 | G111: =IF(CMdata=1,'Frequency vector'!E111,'Frequency vector'!F111) -> 6456.54229 | H111: 6.45654229 | J111: 0
D112: 109 | E112: =10*('Frequency vector'!$C$3)^D112 -> 23.08518362 | F112: =IF('CM choke'!B116=0, F111, 'CM choke'!B116) -> 6569.011165 | G112: =IF(CMdata=1,'Frequency vector'!E112,'Frequency vector'!F112) -> 6569.011165 | H112: 6.569011165 | J112: 0
D113: 110 | E113: =10*('Frequency vector'!$C$3)^D113 -> 23.26305067 | F113: =IF('CM choke'!B117=0, F112, 'CM choke'!B117) -> 6683.439176 | G113: =IF(CMdata=1,'Frequency vector'!E113,'Frequency vector'!F113) -> 6683.439176 | H113: 6.683439176 | J113: 0
D114: 111 | E114: =10*('Frequency vector'!$C$3)^D114 -> 23.44228815 | F114: =IF('CM choke'!B118=0, F113, 'CM choke'!B118) -> 6799.86045 | G114: =IF(CMdata=1,'Frequency vector'!E114,'Frequency vector'!F114) -> 6799.86045 | H114: 6.79986045 | J114: 0
D115: 112 | E115: =10*('Frequency vector'!$C$3)^D115 -> 23.62290663 | F115: =IF('CM choke'!B119=0, F114, 'CM choke'!B119) -> 6918.309709 | G115: =IF(CMdata=1,'Frequency vector'!E115,'Frequency vector'!F115) -> 6918.309709 | H115: 6.918309709 | J115: 0
D116: 113 | E116: =10*('Frequency vector'!$C$3)^D116 -> 23.80491673 | F116: =IF('CM choke'!B120=0, F115, 'CM choke'!B120) -> 7038.822279 | G116: =IF(CMdata=1,'Frequency vector'!E116,'Frequency vector'!F116) -> 7038.822279 | H116: 7.038822279 | J116: 0
D117: 114 | E117: =10*('Frequency vector'!$C$3)^D117 -> 23.98832919 | F117: =IF('CM choke'!B121=0, F116, 'CM choke'!B121) -> 7161.434102 | G117: =IF(CMdata=1,'Frequency vector'!E117,'Frequency vector'!F117) -> 7161.434102 | H117: 7.161434102 | J117: 0
D118: 115 | E118: =10*('Frequency vector'!$C$3)^D118 -> 24.17315481 | F118: =IF('CM choke'!B122=0, F117, 'CM choke'!B122) -> 7286.181745 | G118: =IF(CMdata=1,'Frequency vector'!E118,'Frequency vector'!F118) -> 7286.181745 | H118: 7.286181745 | J118: 0
D119: 116 | E119: =10*('Frequency vector'!$C$3)^D119 -> 24.35940447 | F119: =IF('CM choke'!B123=0, F118, 'CM choke'!B123) -> 7413.102413 | G119: =IF(CMdata=1,'Frequency vector'!E119,'Frequency vector'!F119) -> 7413.102413 | H119: 7.413102413 | J119: 0
D120: 117 | E120: =10*('Frequency vector'!$C$3)^D120 -> 24.54708916 | F120: =IF('CM choke'!B124=0, F119, 'CM choke'!B124) -> 7542.233958 | G120: =IF(CMdata=1,'Frequency vector'!E120,'Frequency vector'!F120) -> 7542.233958 | H120: 7.542233958 | J120: 0
D121: 118 | E121: =10*('Frequency vector'!$C$3)^D121 -> 24.73621992 | F121: =IF('CM choke'!B125=0, F120, 'CM choke'!B125) -> 7673.614894 | G121: =IF(CMdata=1,'Frequency vector'!E121,'Frequency vector'!F121) -> 7673.614894 | H121: 7.673614894 | J121: 0
D122: 119 | E122: =10*('Frequency vector'!$C$3)^D122 -> 24.92680789 | F122: =IF('CM choke'!B126=0, F121, 'CM choke'!B126) -> 7807.284401 | G122: =IF(CMdata=1,'Frequency vector'!E122,'Frequency vector'!F122) -> 7807.284401 | H122: 7.807284401 | J122: 0
D123: 120 | E123: =10*('Frequency vector'!$C$3)^D123 -> 25.11886432 | F123: =IF('CM choke'!B127=0, F122, 'CM choke'!B127) -> 7943.282347 | G123: =IF(CMdata=1,'Frequency vector'!E123,'Frequency vector'!F123) -> 7943.282347 | H123: 7.943282347 | J123: 0
D124: 121 | E124: =10*('Frequency vector'!$C$3)^D124 -> 25.3124005 | F124: =IF('CM choke'!B128=0, F123, 'CM choke'!B128) -> 8081.649291 | G124: =IF(CMdata=1,'Frequency vector'!E124,'Frequency vector'!F124) -> 8081.649291 | H124: 8.081649291 | J124: 0
D125: 122 | E125: =10*('Frequency vector'!$C$3)^D125 -> 25.50742784 | F125: =IF('CM choke'!B129=0, F124, 'CM choke'!B129) -> 8222.426499 | G125: =IF(CMdata=1,'Frequency vector'!E125,'Frequency vector'!F125) -> 8222.426499 | H125: 8.222426499 | J125: 0
D126: 123 | E126: =10*('Frequency vector'!$C$3)^D126 -> 25.70395783 | F126: =IF('CM choke'!B130=0, F125, 'CM choke'!B130) -> 8365.655958 | G126: =IF(CMdata=1,'Frequency vector'!E126,'Frequency vector'!F126) -> 8365.655958 | H126: 8.365655958 | J126: 0
D127: 124 | E127: =10*('Frequency vector'!$C$3)^D127 -> 25.90200205 | F127: =IF('CM choke'!B131=0, F126, 'CM choke'!B131) -> 8511.380382 | G127: =IF(CMdata=1,'Frequency vector'!E127,'Frequency vector'!F127) -> 8511.380382 | H127: 8.511380382 | J127: 0
D128: 125 | E128: =10*('Frequency vector'!$C$3)^D128 -> 26.10157216 | F128: =IF('CM choke'!B132=0, F127, 'CM choke'!B132) -> 8659.643234 | G128: =IF(CMdata=1,'Frequency vector'!E128,'Frequency vector'!F128) -> 8659.643234 | H128: 8.659643234 | J128: 0
D129: 126 | E129: =10*('Frequency vector'!$C$3)^D129 -> 26.30267992 | F129: =IF('CM choke'!B133=0, F128, 'CM choke'!B133) -> 8810.48873 | G129: =IF(CMdata=1,'Frequency vector'!E129,'Frequency vector'!F129) -> 8810.48873 | H129: 8.81048873 | J129: 0
D130: 127 | E130: =10*('Frequency vector'!$C$3)^D130 -> 26.50533718 | F130: =IF('CM choke'!B134=0, F129, 'CM choke'!B134) -> 8963.961859 | G130: =IF(CMdata=1,'Frequency vector'!E130,'Frequency vector'!F130) -> 8963.961859 | H130: 8.963961859 | J130: 0
D131: 128 | E131: =10*('Frequency vector'!$C$3)^D131 -> 26.70955588 | F131: =IF('CM choke'!B135=0, F130, 'CM choke'!B135) -> 9120.108394 | G131: =IF(CMdata=1,'Frequency vector'!E131,'Frequency vector'!F131) -> 9120.108394 | H131: 9.120108394 | J131: =IF(ABS(Fsw-G131)<=1000,1,0) -> 0
D132: 129 | E132: =10*('Frequency vector'!$C$3)^D132 -> 26.91534804 | F132: =IF('CM choke'!B136=0, F131, 'CM choke'!B136) -> 9278.974901 | G132: =IF(CMdata=1,'Frequency vector'!E132,'Frequency vector'!F132) -> 9278.974901 | H132: =G132/1000 -> 9.278974901 | J132: 0
D133: 130 | E133: =10*('Frequency vector'!$C$3)^D133 -> 27.12272579 | F133: =IF('CM choke'!B137=0, F132, 'CM choke'!B137) -> 9440.608763 | G133: =IF(CMdata=1,'Frequency vector'!E133,'Frequency vector'!F133) -> 9440.608763 | H133: 9.440608763 | J133: 0
D134: 131 | E134: =10*('Frequency vector'!$C$3)^D134 -> 27.33170135 | F134: =IF('CM choke'!B138=0, F133, 'CM choke'!B138) -> 9605.058184 | G134: =IF(CMdata=1,'Frequency vector'!E134,'Frequency vector'!F134) -> 9605.058184 | H134: 9.605058184 | J134: 0
D135: 132 | E135: =10*('Frequency vector'!$C$3)^D135 -> 27.54228703 | F135: =IF('CM choke'!B139=0, F134, 'CM choke'!B139) -> 9772.37221 | G135: =IF(CMdata=1,'Frequency vector'!E135,'Frequency vector'!F135) -> 9772.37221 | H135: 9.77237221 | J135: 0
D136: 133 | E136: =10*('Frequency vector'!$C$3)^D136 -> 27.75449524 | F136: =IF('CM choke'!B140=0, F135, 'CM choke'!B140) -> 9942.60074 | G136: =IF(CMdata=1,'Frequency vector'!E136,'Frequency vector'!F136) -> 9942.60074 | H136: 9.94260074 | J136: 0
D137: 134 | E137: =10*('Frequency vector'!$C$3)^D137 -> 27.96833846 | F137: =IF('CM choke'!B141=0, F136, 'CM choke'!B141) -> 10115.79454 | G137: =IF(CMdata=1,'Frequency vector'!E137,'Frequency vector'!F137) -> 10115.79454 | H137: 10.11579454 | J137: 0
D138: 135 | E138: =10*('Frequency vector'!$C$3)^D138 -> 28.18382931 | F138: =IF('CM choke'!B142=0, F137, 'CM choke'!B142) -> 10292.00527 | G138: =IF(CMdata=1,'Frequency vector'!E138,'Frequency vector'!F138) -> 10292.00527 | H138: 10.29200527 | J138: 0
D139: 136 | E139: =10*('Frequency vector'!$C$3)^D139 -> 28.40098048 | F139: =IF('CM choke'!B143=0, F138, 'CM choke'!B143) -> 10471.28548 | G139: =IF(CMdata=1,'Frequency vector'!E139,'Frequency vector'!F139) -> 10471.28548 | H139: 10.47128548 | J139: 0
D140: 137 | E140: =10*('Frequency vector'!$C$3)^D140 -> 28.61980476 | F140: =IF('CM choke'!B144=0, F139, 'CM choke'!B144) -> 10653.68864 | G140: =IF(CMdata=1,'Frequency vector'!E140,'Frequency vector'!F140) -> 10653.68864 | H140: 10.65368864 | J140: 0
D141: 138 | E141: =10*('Frequency vector'!$C$3)^D141 -> 28.84031503 | F141: =IF('CM choke'!B145=0, F140, 'CM choke'!B145) -> 10839.26914 | G141: =IF(CMdata=1,'Frequency vector'!E141,'Frequency vector'!F141) -> 10839.26914 | H141: 10.83926914 | J141: 0
D142: 139 | E142: =10*('Frequency vector'!$C$3)^D142 -> 29.0625243 | F142: =IF('CM choke'!B146=0, F141, 'CM choke'!B146) -> 11028.08234 | G142: =IF(CMdata=1,'Frequency vector'!E142,'Frequency vector'!F142) -> 11028.08234 | H142: 11.02808234 | J142: 0
D143: 140 | E143: =10*('Frequency vector'!$C$3)^D143 -> 29.28644565 | F143: =IF('CM choke'!B147=0, F142, 'CM choke'!B147) -> 11220.18454 | G143: =IF(CMdata=1,'Frequency vector'!E143,'Frequency vector'!F143) -> 11220.18454 | H143: 11.22018454 | J143: 0
D144: 141 | E144: =10*('Frequency vector'!$C$3)^D144 -> 29.51209227 | F144: =IF('CM choke'!B148=0, F143, 'CM choke'!B148) -> 11415.63305 | G144: =IF(CMdata=1,'Frequency vector'!E144,'Frequency vector'!F144) -> 11415.63305 | H144: 11.41563305 | J144: 0
D145: 142 | E145: =10*('Frequency vector'!$C$3)^D145 -> 29.73947745 | F145: =IF('CM choke'!B149=0, F144, 'CM choke'!B149) -> 11614.48614 | G145: =IF(CMdata=1,'Frequency vector'!E145,'Frequency vector'!F145) -> 11614.48614 | H145: 11.61448614 | J145: 0
D146: 143 | E146: =10*('Frequency vector'!$C$3)^D146 -> 29.9686146 | F146: =IF('CM choke'!B150=0, F145, 'CM choke'!B150) -> 11816.80313 | G146: =IF(CMdata=1,'Frequency vector'!E146,'Frequency vector'!F146) -> 11816.80313 | H146: 11.81680313 | J146: 0
D147: 144 | E147: =10*('Frequency vector'!$C$3)^D147 -> 30.1995172 | F147: =IF('CM choke'!B151=0, F146, 'CM choke'!B151) -> 12022.64435 | G147: =IF(CMdata=1,'Frequency vector'!E147,'Frequency vector'!F147) -> 12022.64435 | H147: 12.02264435 | J147: 0
D148: 145 | E148: =10*('Frequency vector'!$C$3)^D148 -> 30.43219887 | F148: =IF('CM choke'!B152=0, F147, 'CM choke'!B152) -> 12232.07119 | G148: =IF(CMdata=1,'Frequency vector'!E148,'Frequency vector'!F148) -> 12232.07119 | H148: 12.23207119 | J148: 0
D149: 146 | E149: =10*('Frequency vector'!$C$3)^D149 -> 30.66667331 | F149: =IF('CM choke'!B153=0, F148, 'CM choke'!B153) -> 12445.14612 | G149: =IF(CMdata=1,'Frequency vector'!E149,'Frequency vector'!F149) -> 12445.14612 | H149: 12.44514612 | J149: 0
D150: 147 | E150: =10*('Frequency vector'!$C$3)^D150 -> 30.90295433 | F150: =IF('CM choke'!B154=0, F149, 'CM choke'!B154) -> 12661.93268 | G150: =IF(CMdata=1,'Frequency vector'!E150,'Frequency vector'!F150) -> 12661.93268 | H150: 12.66193268 | J150: 0
D151: 148 | E151: =10*('Frequency vector'!$C$3)^D151 -> 31.14105584 | F151: =IF('CM choke'!B155=0, F150, 'CM choke'!B155) -> 12882.49552 | G151: =IF(CMdata=1,'Frequency vector'!E151,'Frequency vector'!F151) -> 12882.49552 | H151: 12.88249552 | J151: 0
D152: 149 | E152: =10*('Frequency vector'!$C$3)^D152 -> 31.38099189 | F152: =IF('CM choke'!B156=0, F151, 'CM choke'!B156) -> 13106.90042 | G152: =IF(CMdata=1,'Frequency vector'!E152,'Frequency vector'!F152) -> 13106.90042 | H152: 13.10690042 | J152: 0
D153: 150 | E153: =10*('Frequency vector'!$C$3)^D153 -> 31.6227766 | F153: =IF('CM choke'!B157=0, F152, 'CM choke'!B157) -> 13335.21432 | G153: =IF(CMdata=1,'Frequency vector'!E153,'Frequency vector'!F153) -> 13335.21432 | H153: 13.33521432 | J153: 0
D154: 151 | E154: =10*('Frequency vector'!$C$3)^D154 -> 31.86642422 | F154: =IF('CM choke'!B158=0, F153, 'CM choke'!B158) -> 13567.5053 | G154: =IF(CMdata=1,'Frequency vector'!E154,'Frequency vector'!F154) -> 13567.5053 | H154: 13.5675053 | J154: 0
D155: 152 | E155: =10*('Frequency vector'!$C$3)^D155 -> 32.11194909 | F155: =IF('CM choke'!B159=0, F154, 'CM choke'!B159) -> 13803.84265 | G155: =IF(CMdata=1,'Frequency vector'!E155,'Frequency vector'!F155) -> 13803.84265 | H155: 13.80384265 | J155: 0
D156: 153 | E156: =10*('Frequency vector'!$C$3)^D156 -> 32.35936569 | F156: =IF('CM choke'!B160=0, F155, 'CM choke'!B160) -> 14044.29684 | G156: =IF(CMdata=1,'Frequency vector'!E156,'Frequency vector'!F156) -> 14044.29684 | H156: 14.04429684 | J156: 0
D157: 154 | E157: =10*('Frequency vector'!$C$3)^D157 -> 32.60868859 | F157: =IF('CM choke'!B161=0, F156, 'CM choke'!B161) -> 14288.93959 | G157: =IF(CMdata=1,'Frequency vector'!E157,'Frequency vector'!F157) -> 14288.93959 | H157: 14.28893959 | J157: 0
D158: 155 | E158: =10*('Frequency vector'!$C$3)^D158 -> 32.85993248 | F158: =IF('CM choke'!B162=0, F157, 'CM choke'!B162) -> 14537.84386 | G158: =IF(CMdata=1,'Frequency vector'!E158,'Frequency vector'!F158) -> 14537.84386 | H158: 14.53784386 | J158: 0
D159: 156 | E159: =10*('Frequency vector'!$C$3)^D159 -> 33.11311215 | F159: =IF('CM choke'!B163=0, F158, 'CM choke'!B163) -> 14791.08388 | G159: =IF(CMdata=1,'Frequency vector'!E159,'Frequency vector'!F159) -> 14791.08388 | H159: 14.79108388 | J159: 0
D160: 157 | E160: =10*('Frequency vector'!$C$3)^D160 -> 33.36824252 | F160: =IF('CM choke'!B164=0, F159, 'CM choke'!B164) -> 15048.73519 | G160: =IF(CMdata=1,'Frequency vector'!E160,'Frequency vector'!F160) -> 15048.73519 | H160: 15.04873519 | J160: 0
D161: 158 | E161: =10*('Frequency vector'!$C$3)^D161 -> 33.62533863 | F161: =IF('CM choke'!B165=0, F160, 'CM choke'!B165) -> 15310.87462 | G161: =IF(CMdata=1,'Frequency vector'!E161,'Frequency vector'!F161) -> 15310.87462 | H161: 15.31087462 | J161: 0
D162: 159 | E162: =10*('Frequency vector'!$C$3)^D162 -> 33.88441561 | F162: =IF('CM choke'!B166=0, F161, 'CM choke'!B166) -> 15577.58035 | G162: =IF(CMdata=1,'Frequency vector'!E162,'Frequency vector'!F162) -> 15577.58035 | H162: 15.57758035 | J162: 0
D163: 160 | E163: =10*('Frequency vector'!$C$3)^D163 -> 34.14548874 | F163: =IF('CM choke'!B167=0, F162, 'CM choke'!B167) -> 15848.93192 | G163: =IF(CMdata=1,'Frequency vector'!E163,'Frequency vector'!F163) -> 15848.93192 | H163: 15.84893192 | J163: 0
D164: 161 | E164: =10*('Frequency vector'!$C$3)^D164 -> 34.40857338 | F164: =IF('CM choke'!B168=0, F163, 'CM choke'!B168) -> 16125.01027 | G164: =IF(CMdata=1,'Frequency vector'!E164,'Frequency vector'!F164) -> 16125.01027 | H164: 16.12501027 | J164: 0
D165: 162 | E165: =10*('Frequency vector'!$C$3)^D165 -> 34.67368505 | F165: =IF('CM choke'!B169=0, F164, 'CM choke'!B169) -> 16405.89773 | G165: =IF(CMdata=1,'Frequency vector'!E165,'Frequency vector'!F165) -> 16405.89773 | H165: 16.40589773 | J165: 0
D166: 163 | E166: =10*('Frequency vector'!$C$3)^D166 -> 34.94083934 | F166: =IF('CM choke'!B170=0, F165, 'CM choke'!B170) -> 16691.67807 | G166: =IF(CMdata=1,'Frequency vector'!E166,'Frequency vector'!F166) -> 16691.67807 | H166: 16.69167807 | J166: 0
D167: 164 | E167: =10*('Frequency vector'!$C$3)^D167 -> 35.21005202 | F167: =IF('CM choke'!B171=0, F166, 'CM choke'!B171) -> 16982.43652 | G167: =IF(CMdata=1,'Frequency vector'!E167,'Frequency vector'!F167) -> 16982.43652 | H167: 16.98243652 | J167: 0
D168: 165 | E168: =10*('Frequency vector'!$C$3)^D168 -> 35.48133892 | F168: =IF('CM choke'!B172=0, F167, 'CM choke'!B172) -> 17278.25981 | G168: =IF(CMdata=1,'Frequency vector'!E168,'Frequency vector'!F168) -> 17278.25981 | H168: 17.27825981 | J168: 0
D169: 166 | E169: =10*('Frequency vector'!$C$3)^D169 -> 35.75471605 | F169: =IF('CM choke'!B173=0, F168, 'CM choke'!B173) -> 17579.23614 | G169: =IF(CMdata=1,'Frequency vector'!E169,'Frequency vector'!F169) -> 17579.23614 | H169: 17.57923614 | J169: 0
D170: 167 | E170: =10*('Frequency vector'!$C$3)^D170 -> 36.03019949 | F170: =IF('CM choke'!B174=0, F169, 'CM choke'!B174) -> 17885.45529 | G170: =IF(CMdata=1,'Frequency vector'!E170,'Frequency vector'!F170) -> 17885.45529 | H170: 17.88545529 | J170: 0
D171: 168 | E171: =10*('Frequency vector'!$C$3)^D171 -> 36.30780548 | F171: =IF('CM choke'!B175=0, F170, 'CM choke'!B175) -> 18197.00859 | G171: =IF(CMdata=1,'Frequency vector'!E171,'Frequency vector'!F171) -> 18197.00859 | H171: 18.19700859 | J171: 0
D172: 169 | E172: =10*('Frequency vector'!$C$3)^D172 -> 36.58755037 | F172: =IF('CM choke'!B176=0, F171, 'CM choke'!B176) -> 18513.98894 | G172: =IF(CMdata=1,'Frequency vector'!E172,'Frequency vector'!F172) -> 18513.98894 | H172: 18.51398894 | J172: 0
D173: 170 | E173: =10*('Frequency vector'!$C$3)^D173 -> 36.86945065 | F173: =IF('CM choke'!B177=0, F172, 'CM choke'!B177) -> 18836.49089 | G173: =IF(CMdata=1,'Frequency vector'!E173,'Frequency vector'!F173) -> 18836.49089 | H173: 18.83649089 | J173: 0
D174: 171 | E174: =10*('Frequency vector'!$C$3)^D174 -> 37.15352291 | F174: =IF('CM choke'!B178=0, F173, 'CM choke'!B178) -> 19164.61063 | G174: =IF(CMdata=1,'Frequency vector'!E174,'Frequency vector'!F174) -> 19164.61063 | H174: 19.16461063 | J174: 0
D175: 172 | E175: =10*('Frequency vector'!$C$3)^D175 -> 37.4397839 | F175: =IF('CM choke'!B179=0, F174, 'CM choke'!B179) -> 19498.446 | G175: =IF(CMdata=1,'Frequency vector'!E175,'Frequency vector'!F175) -> 19498.446 | H175: 19.498446 | J175: 0
D176: 173 | E176: =10*('Frequency vector'!$C$3)^D176 -> 37.72825047 | F176: =IF('CM choke'!B180=0, F175, 'CM choke'!B180) -> 19838.09657 | G176: =IF(CMdata=1,'Frequency vector'!E176,'Frequency vector'!F176) -> 19838.09657 | H176: 19.83809657 | J176: 0
D177: 174 | E177: =10*('Frequency vector'!$C$3)^D177 -> 38.01893963 | F177: =IF('CM choke'!B181=0, F176, 'CM choke'!B181) -> 20183.66364 | G177: =IF(CMdata=1,'Frequency vector'!E177,'Frequency vector'!F177) -> 20183.66364 | H177: 20.18366364 | J177: 0
D178: 175 | E178: =10*('Frequency vector'!$C$3)^D178 -> 38.3118685 | F178: =IF('CM choke'!B182=0, F177, 'CM choke'!B182) -> 20535.25026 | G178: =IF(CMdata=1,'Frequency vector'!E178,'Frequency vector'!F178) -> 20535.25026 | H178: 20.53525026 | J178: 0
D179: 176 | E179: =10*('Frequency vector'!$C$3)^D179 -> 38.60705432 | F179: =IF('CM choke'!B183=0, F178, 'CM choke'!B183) -> 20892.96131 | G179: =IF(CMdata=1,'Frequency vector'!E179,'Frequency vector'!F179) -> 20892.96131 | H179: 20.89296131 | J179: 0
D180: 177 | E180: =10*('Frequency vector'!$C$3)^D180 -> 38.9045145 | F180: =IF('CM choke'!B184=0, F179, 'CM choke'!B184) -> 21256.90345 | G180: =IF(CMdata=1,'Frequency vector'!E180,'Frequency vector'!F180) -> 21256.90345 | H180: 21.25690345 | J180: 0
D181: 178 | E181: =10*('Frequency vector'!$C$3)^D181 -> 39.20426655 | F181: =IF('CM choke'!B185=0, F180, 'CM choke'!B185) -> 21627.18524 | G181: =IF(CMdata=1,'Frequency vector'!E181,'Frequency vector'!F181) -> 21627.18524 | H181: 21.62718524 | J181: 0
D182: 179 | E182: =10*('Frequency vector'!$C$3)^D182 -> 39.50632814 | F182: =IF('CM choke'!B186=0, F181, 'CM choke'!B186) -> 22003.9171 | G182: =IF(CMdata=1,'Frequency vector'!E182,'Frequency vector'!F182) -> 22003.9171 | H182: 22.0039171 | J182: 0
D183: 180 | E183: =10*('Frequency vector'!$C$3)^D183 -> 39.81071706 | F183: =IF('CM choke'!B187=0, F182, 'CM choke'!B187) -> 22387.21139 | G183: =IF(CMdata=1,'Frequency vector'!E183,'Frequency vector'!F183) -> 22387.21139 | H183: 22.38721139 | J183: 0
D184: 181 | E184: =10*('Frequency vector'!$C$3)^D184 -> 40.11745123 | F184: =IF('CM choke'!B188=0, F183, 'CM choke'!B188) -> 22777.18242 | G184: =IF(CMdata=1,'Frequency vector'!E184,'Frequency vector'!F184) -> 22777.18242 | H184: 22.77718242 | J184: 0
D185: 182 | E185: =10*('Frequency vector'!$C$3)^D185 -> 40.42654874 | F185: =IF('CM choke'!B189=0, F184, 'CM choke'!B189) -> 23173.9465 | G185: =IF(CMdata=1,'Frequency vector'!E185,'Frequency vector'!F185) -> 23173.9465 | H185: 23.1739465 | J185: 0
D186: 183 | E186: =10*('Frequency vector'!$C$3)^D186 -> 40.73802778 | F186: =IF('CM choke'!B190=0, F185, 'CM choke'!B190) -> 23577.62196 | G186: =IF(CMdata=1,'Frequency vector'!E186,'Frequency vector'!F186) -> 23577.62196 | H186: 23.57762196 | J186: 0
D187: 184 | E187: =10*('Frequency vector'!$C$3)^D187 -> 41.05190671 | F187: =IF('CM choke'!B191=0, F186, 'CM choke'!B191) -> 23988.32919 | G187: =IF(CMdata=1,'Frequency vector'!E187,'Frequency vector'!F187) -> 23988.32919 | H187: 23.98832919 | J187: 0
D188: 185 | E188: =10*('Frequency vector'!$C$3)^D188 -> 41.36820402 | F188: =IF('CM choke'!B192=0, F187, 'CM choke'!B192) -> 24406.19068 | G188: =IF(CMdata=1,'Frequency vector'!E188,'Frequency vector'!F188) -> 24406.19068 | H188: 24.40619068 | J188: 0
D189: 186 | E189: =10*('Frequency vector'!$C$3)^D189 -> 41.68693835 | F189: =IF('CM choke'!B193=0, F188, 'CM choke'!B193) -> 24831.33105 | G189: =IF(CMdata=1,'Frequency vector'!E189,'Frequency vector'!F189) -> 24831.33105 | H189: 24.83133105 | J189: 0
D190: 187 | E190: =10*('Frequency vector'!$C$3)^D190 -> 42.00812846 | F190: =IF('CM choke'!B194=0, F189, 'CM choke'!B194) -> 25263.8771 | G190: =IF(CMdata=1,'Frequency vector'!E190,'Frequency vector'!F190) -> 25263.8771 | H190: 25.2638771 | J190: 0
D191: 188 | E191: =10*('Frequency vector'!$C$3)^D191 -> 42.33179328 | F191: =IF('CM choke'!B195=0, F190, 'CM choke'!B195) -> 25703.95783 | G191: =IF(CMdata=1,'Frequency vector'!E191,'Frequency vector'!F191) -> 25703.95783 | H191: 25.70395783 | J191: 0
D192: 189 | E192: =10*('Frequency vector'!$C$3)^D192 -> 42.65795188 | F192: =IF('CM choke'!B196=0, F191, 'CM choke'!B196) -> 26151.70448 | G192: =IF(CMdata=1,'Frequency vector'!E192,'Frequency vector'!F192) -> 26151.70448 | H192: 26.15170448 | J192: 0
D193: 190 | E193: =10*('Frequency vector'!$C$3)^D193 -> 42.98662347 | F193: =IF('CM choke'!B197=0, F192, 'CM choke'!B197) -> 26607.2506 | G193: =IF(CMdata=1,'Frequency vector'!E193,'Frequency vector'!F193) -> 26607.2506 | H193: 26.6072506 | J193: 0
D194: 191 | E194: =10*('Frequency vector'!$C$3)^D194 -> 43.31782742 | F194: =IF('CM choke'!B198=0, F193, 'CM choke'!B198) -> 27070.73204 | G194: =IF(CMdata=1,'Frequency vector'!E194,'Frequency vector'!F194) -> 27070.73204 | H194: 27.07073204 | J194: 0
D195: 192 | E195: =10*('Frequency vector'!$C$3)^D195 -> 43.65158322 | F195: =IF('CM choke'!B199=0, F194, 'CM choke'!B199) -> 27542.28703 | G195: =IF(CMdata=1,'Frequency vector'!E195,'Frequency vector'!F195) -> 27542.28703 | H195: 27.54228703 | J195: =IF(ABS(Fsw-G195)<=1000,1,0) -> 0
D196: 193 | E196: =10*('Frequency vector'!$C$3)^D196 -> 43.98791056 | F196: =IF('CM choke'!B200=0, F195, 'CM choke'!B200) -> 28022.05622 | G196: =IF(CMdata=1,'Frequency vector'!E196,'Frequency vector'!F196) -> 28022.05622 | H196: =G196/1000 -> 28.02205622 | J196: 0
D197: 194 | E197: =10*('Frequency vector'!$C$3)^D197 -> 44.32682923 | F197: =IF('CM choke'!B201=0, F196, 'CM choke'!B201) -> 28510.18268 | G197: =IF(CMdata=1,'Frequency vector'!E197,'Frequency vector'!F197) -> 28510.18268 | H197: 28.51018267 | J197: 0
D198: 195 | E198: =10*('Frequency vector'!$C$3)^D198 -> 44.66835922 | F198: =IF('CM choke'!B202=0, F197, 'CM choke'!B202) -> 29006.81199 | G198: =IF(CMdata=1,'Frequency vector'!E198,'Frequency vector'!F198) -> 29006.81199 | H198: 29.00681199 | J198: 0
D199: 196 | E199: =10*('Frequency vector'!$C$3)^D199 -> 45.01252062 | F199: =IF('CM choke'!B203=0, F198, 'CM choke'!B203) -> 29512.09227 | G199: =IF(CMdata=1,'Frequency vector'!E199,'Frequency vector'!F199) -> 29512.09227 | H199: 29.51209227 | J199: 0
D200: 197 | E200: =10*('Frequency vector'!$C$3)^D200 -> 45.35933373 | F200: =IF('CM choke'!B204=0, F199, 'CM choke'!B204) -> 30026.17421 | G200: =IF(CMdata=1,'Frequency vector'!E200,'Frequency vector'!F200) -> 30026.17421 | H200: 30.02617421 | J200: 0
D201: 198 | E201: =10*('Frequency vector'!$C$3)^D201 -> 45.70881896 | F201: =IF('CM choke'!B205=0, F200, 'CM choke'!B205) -> 30549.21113 | G201: =IF(CMdata=1,'Frequency vector'!E201,'Frequency vector'!F201) -> 30549.21113 | H201: 30.54921113 | J201: 0
... 924 more rows

Sheet Choke impedance calculations (hidden)
C1: ZL1 (mag, phase) | E1: ZL2 (mag, phase) | G1: ZL1 (real, imag) | I1: ZL2 (real, imag) | K1: ZL1 (complex) | L1: ZL2 (complex) | O1: Lcm1 | Q1: Lcm2
A2: freq_selected [Hz] | B2: j*w [rad] | C2: ZL1_mag [Ω] | D2: ZL1_phase [°] | E2: ZL2_mag [Ω] | F2: ZL2_phase [°] | G2: ZL1_real [Ω] | H2: ZL1_imag [Ω] | I2: ZL2_real [Ω] | J2: ZL2_imag [Ω] | K2: Zch1 [Ω] | L2: Zch2 [Ω]
A3: ='Frequency vector'!G3 -> 1000 | B3: =COMPLEX(0,2*PI()*'Frequency vector'!G3,"j") -> 6283.18530717959j | C3: =IF(CMdata=1,IMABS(K3),'CM choke'!C7) -> 5.889462471 | D3: =IF(CMdata=1,DEGREES(IMARGUMENT(K3)),'CM choke'!D7) -> 87.70389557 | E3: =IF(CMdata=1,IMABS(L3),'CM choke'!E7) -> 5.889462471 | F3: =IF(CMdata=1,DEGREES(IMARGUMENT(L3)),'CM choke'!F7) -> 87.70389557 | G3: =C3*COS(RADIANS(D3)) -> 0.2359545805 | H3: =C3*SIN(RADIANS(D3)) -> 5.884733948 | I3: =E3*COS(RADIANS(F3)) -> 0.2359545805 | J3: =E3*SIN(RADIANS(F3)) -> 5.884733948 | K3: =IF(CMdata=1, IF(Lcm1_core=1, IMDIV(1,IMSUM(IMDIV(1,IMPRODUCT(B3,'Design the AEF circuit'!$G$19*0.001)),IMDIV(1,'Design the AEF circuit'!$G$20*1000),IMPRODUCT(B3,'Design the AEF circuit'!$G$21*0.000000000001))), O3),COMPLEX(G3,H3,"j")) -> 0.235954580546522+5.88473394754208j | L3: =IF(CMdata=1, IF(Lcm2_core=1, IMDIV(1, IMSUM(IMDIV(1,IMPRODUCT(B3,'Design the AEF circuit'!$H$19*0.001)), IMDIV(1,'Design the AEF circuit'!$H$20*1000), IMPRODUCT(B3,'Design the AEF circuit'!$H$21*0.000000000001))), Q3), COMPLEX(I3,J3,"j")) -> 0.235954580546522+5.88473394754208j | N3: =IMSUM(IMDIV(1,IMSUM(IMDIV(1,IMPRODUCT(B3,'Design the AEF circuit'!$G$19*0.001)),IMDIV(1,'Design the AEF circuit'!$G$20*1000))), IMDIV(1,IMSUM(IMDIV(1,IMPRODUCT(B3,'Design the AEF circuit'!$G$22*0.001)),IMDIV(1,'Design the AEF circuit'!$G$23*1000))), IMDIV(1,IMSUM(IMDIV(1,IMPRODUCT(B3,'Design the AEF circuit'!$G$24*0.001)),IMDIV(1,'Design the AEF circuit'!$G$25*1000))) ) -> 0.078504266930553+5.15084904457947j | O3: =IMDIV(1, IMSUM( IMDIV(1, N3), IMPRODUCT(B3,'Design the AEF circuit'!$G$21*0.000000000001) ) ) -> 0.078504297418861+5.15085004455173j | P3: =IMSUM(IMDIV(1,IMSUM(IMDIV(1,IMPRODUCT(B3,'Design the AEF circuit'!$H$19*0.001)),IMDIV(1,'Design the AEF circuit'!$H$20*1000))), IMDIV(1,IMSUM(IMDIV(1,IMPRODUCT(B3,'Design the AEF circuit'!$H$22*0.001)),IMDIV(1,'Design the AEF circuit'!$H$23*1000))), IMDIV(1,IMSUM(IMDIV(1,IMPRODUCT(B3,'Design the AEF circuit'!$H$24*0.001)),IMDIV(1,'Design the AEF circuit'!$H$25*1000))) ) -> 0.078504266930553+5.15084904457947j | Q3: =IMDIV(1, IMSUM( IMDIV(1, P3), IMPRODUCT(B3,'Design the AEF circuit'!$H$21*0.000000000001) ) ) -> 0.078504297418861+5.15085004455173j
A4: ='Frequency vector'!G4 -> 1017.419366 | B4: =COMPLEX(0,2*PI()*'Frequency vector'!G4,"j") -> 6392.63441282214j | C4: =IF(IF(CMdata=1,IMABS(K4),'CM choke'!C8)=0, C3, IF(CMdata=1,IMABS(K4),'CM choke'!C8)) -> 5.974882126 | D4: =IF(IF(CMdata=1,DEGREES(IMARGUMENT(K4)),'CM choke'!D8)=0, D3, IF(CMdata=1,DEGREES(IMARGUMENT(K4)),'CM choke'!D8)) -> 87.69536591 | E4: =IF(IF(CMdata=1,IMABS(L4),'CM choke'!E8)=0, E3, IF(CMdata=1,IMABS(L4),'CM choke'!E8)) -> 5.974882126 | F4: =IF(IF(CMdata=1,DEGREES(IMARGUMENT(L4)),'CM choke'!F8)=0, F3, IF(CMdata=1,DEGREES(IMARGUMENT(L4)),'CM choke'!F8)) -> 87.69536591 | G4: =C4*COS(RADIANS(D4)) -> 0.2402655895 | H4: 5.970049318 | I4: 0.2402655895 | J4: 5.970049318 | K4: =IF(CMdata=1, IF(Lcm1_core=1, IMDIV(1,IMSUM(IMDIV(1,IMPRODUCT(B4,'Design the AEF circuit'!$G$19*0.001)),IMDIV(1,'Design the AEF circuit'!$G$20*1000),IMPRODUCT(B4,'Design the AEF circuit'!$G$21*0.000000000001))), O4),COMPLEX(G4,H4,"j")) -> 0.240265589459105+5.97004931841635j | L4: =IF(CMdata=1, IF(Lcm2_core=1, IMDIV(1, IMSUM(IMDIV(1,IMPRODUCT(B4,'Design the AEF circuit'!$H$19*0.001)), IMDIV(1,'Design the AEF circuit'!$H$20*1000), IMPRODUCT(B4,'Design the AEF circuit'!$H$21*0.000000000001))), Q4), COMPLEX(I4,J4,"j")) -> 0.240265589459105+5.97004931841635j | N4: =IMSUM(IMDIV(1,IMSUM(IMDIV(1,IMPRODUCT(B4,'Design the AEF circuit'!$G$19*0.001)),IMDIV(1,'Design the AEF circuit'!$G$20*1000))), IMDIV(1,IMSUM(IMDIV(1,IMPRODUCT(B4,'Design the AEF circuit'!$G$22*0.001)),IMDIV(1,'Design the AEF circuit'!$G$23*1000))), IMDIV(1,IMSUM(IMDIV(1,IMPRODUCT(B4,'Design the AEF circuit'!$G$24*0.001)),IMDIV(1,'Design the AEF circuit'!$G$25*1000))) ) -> 0.0812622061756573+5.24052485598404j | O4: =IMDIV(1, IMSUM( IMDIV(1, N4), IMPRODUCT(B4,'Design the AEF circuit'!$G$21*0.000000000001))) -> 0.0812622388438146+5.24052590910034j | P4: =IMSUM(IMDIV(1,IMSUM(IMDIV(1,IMPRODUCT(B4,'Design the AEF circuit'!$H$19*0.001)),IMDIV(1,'Design the AEF circuit'!$H$20*1000))), IMDIV(1,IMSUM(IMDIV(1,IMPRODUCT(B4,'Design the AEF circuit'!$H$22*0.001)),IMDIV(1,'Design the AEF circuit'!$H$23*1000))), IMDIV(1,IMSUM(IMDIV(1,IMPRODUCT(B4,'Design the AEF circuit'!$H$24*0.001)),IMDIV(1,'Design the AEF circuit'!$H$25*1000))) ) -> 0.0812622061756573+5.24052485598404j | Q4: =IMDIV(1, IMSUM( IMDIV(1, P4), IMPRODUCT(B4,'Design the AEF circuit'!$H$21*0.000000000001) ) ) -> 0.0812622388438146+5.24052590910034j
A5: ='Frequency vector'!G5 -> 1035.142167 | B5: =COMPLEX(0,2*PI()*'Frequency vector'!G5,"j") -> 6503.99005252582j | C5: =IF(IF(CMdata=1,IMABS(K5),'CM choke'!C9)=0, C4, IF(CMdata=1,IMABS(K5),'CM choke'!C9)) -> 6.082362652 | D5: =IF(IF(CMdata=1,DEGREES(IMARGUMENT(K5)),'CM choke'!D9)=0, D4, IF(CMdata=1,DEGREES(IMARGUMENT(K5)),'CM choke'!D9)) -> 87.65731812 | E5: =IF(IF(CMdata=1,IMABS(L5),'CM choke'!E9)=0, E4, IF(CMdata=1,IMABS(L5),'CM choke'!E9)) -> 6.082362652 | F5: =IF(IF(CMdata=1,DEGREES(IMARGUMENT(L5)),'CM choke'!F9)=0, F4, IF(CMdata=1,DEGREES(IMARGUMENT(L5)),'CM choke'!F9)) -> 87.65731812 | G5: 0.2486233894 | H5: 6.077279148 | I5: 0.2486233894 | J5: 6.077279148 | K5: =IF(CMdata=1, IF(Lcm1_core=1, IMDIV(1,IMSUM(IMDIV(1,IMPRODUCT(B5,'Design the AEF circuit'!$G$19*0.001)),IMDIV(1,'Design the AEF circuit'!$G$20*1000),IMPRODUCT(B5,'Design the AEF circuit'!$G$21*0.000000000001))), O5),COMPLEX(G5,H5,"j")) -> 0.248623389424585+6.07727914765199j | L5: =IF(CMdata=1, IF(Lcm2_core=1, IMDIV(1, IMSUM(IMDIV(1,IMPRODUCT(B5,'Design the AEF circuit'!$H$19*0.001)), IMDIV(1,'Design the AEF circuit'!$H$20*1000), IMPRODUCT(B5,'Design the AEF circuit'!$H$21*0.000000000001))), Q5), COMPLEX(I5,J5,"j")) -> 0.248623389424585+6.07727914765199j | N5: =IMSUM(IMDIV(1,IMSUM(IMDIV(1,IMPRODUCT(B5,'Design the AEF circuit'!$G$19*0.001)),IMDIV(1,'Design the AEF circuit'!$G$20*1000))), IMDIV(1,IMSUM(IMDIV(1,IMPRODUCT(B5,'Design the AEF circuit'!$G$22*0.001)),IMDIV(1,'Design the AEF circuit'!$G$23*1000))), IMDIV(1,IMSUM(IMDIV(1,IMPRODUCT(B5,'Design the AEF circuit'!$G$24*0.001)),IMDIV(1,'Design the AEF circuit'!$G$25*1000))) ) -> 0.0841170031241768+5.33176017401248j | O5: =IMDIV(1, IMSUM( IMDIV(1, N5), IMPRODUCT(B5,'Design the AEF circuit'!$G$21*0.000000000001))) -> 0.0841170381280132+5.33176128309614j | P5: =IMSUM(IMDIV(1,IMSUM(IMDIV(1,IMPRODUCT(B5,'Design the AEF circuit'!$H$19*0.001)),IMDIV(1,'Design the AEF circuit'!$H$20*1000))), IMDIV(1,IMSUM(IMDIV(1,IMPRODUCT(B5,'Design the AEF circuit'!$H$22*0.001)),IMDIV(1,'Design the AEF circuit'!$H$23*1000))), IMDIV(1,IMSUM(IMDIV(1,IMPRODUCT(B5,'Design the AEF circuit'!$H$24*0.001)),IMDIV(1,'Design the AEF circuit'!$H$25*1000))) ) -> 0.0841170031241768+5.33176017401248j | Q5: =IMDIV(1, IMSUM( IMDIV(1, P5), IMPRODUCT(B5,'Design the AEF circuit'!$H$21*0.000000000001) ) ) -> 0.0841170381280132+5.33176128309614j
A6: ='Frequency vector'!G6 -> 1053.173687 | B6: =COMPLEX(0,2*PI()*'Frequency vector'!G6,"j") -> 6617.28543688337j | C6: =IF(IF(CMdata=1,IMABS(K6),'CM choke'!C10)=0, C5, IF(CMdata=1,IMABS(K6),'CM choke'!C10)) -> 6.180328846 | D6: =IF(IF(CMdata=1,DEGREES(IMARGUMENT(K6)),'CM choke'!D10)=0, D5, IF(CMdata=1,DEGREES(IMARGUMENT(K6)),'CM choke'!D10)) -> 87.6111908 | E6: =IF(IF(CMdata=1,IMABS(L6),'CM choke'!E10)=0, E5, IF(CMdata=1,IMABS(L6),'CM choke'!E10)) -> 6.180328846 | F6: =IF(IF(CMdata=1,DEGREES(IMARGUMENT(L6)),'CM choke'!F10)=0, F5, IF(CMdata=1,DEGREES(IMARGUMENT(L6)),'CM choke'!F10)) -> 87.6111908 | G6: 0.257599246 | H6: 6.174958079 | I6: 0.257599246 | J6: 6.174958079 | K6: =IF(CMdata=1, IF(Lcm1_core=1, IMDIV(1,IMSUM(IMDIV(1,IMPRODUCT(B6,'Design the AEF circuit'!$G$19*0.001)),IMDIV(1,'Design the AEF circuit'!$G$20*1000),IMPRODUCT(B6,'Design the AEF circuit'!$G$21*0.000000000001))), O6),COMPLEX(G6,H6,"j")) -> 0.25759924604868+6.17495807863403j | L6: =IF(CMdata=1, IF(Lcm2_core=1, IMDIV(1, IMSUM(IMDIV(1,IMPRODUCT(B6,'Design the AEF circuit'!$H$19*0.001)), IMDIV(1,'Design the AEF circuit'!$H$20*1000), IMPRODUCT(B6,'Design the AEF circuit'!$H$21*0.000000000001))), Q6), COMPLEX(I6,J6,"j")) -> 0.25759924604868+6.17495807863403j | N6: =IMSUM(IMDIV(1,IMSUM(IMDIV(1,IMPRODUCT(B6,'Design the AEF circuit'!$G$19*0.001)),IMDIV(1,'Design the AEF circuit'!$G$20*1000))), IMDIV(1,IMSUM(IMDIV(1,IMPRODUCT(B6,'Design the AEF circuit'!$G$22*0.001)),IMDIV(1,'Design the AEF circuit'!$G$23*1000))), IMDIV(1,IMSUM(IMDIV(1,IMPRODUCT(B6,'Design the AEF circuit'!$G$24*0.001)),IMDIV(1,'Design the AEF circuit'!$G$25*1000))) ) -> 0.0870720571147343+5.42458202668941j | O6: =IMDIV(1, IMSUM( IMDIV(1, N6), IMPRODUCT(B6,'Design the AEF circuit'!$G$21*0.000000000001))) -> 0.0870720946212174+5.42458319471368j | P6: =IMSUM(IMDIV(1,IMSUM(IMDIV(1,IMPRODUCT(B6,'Design the AEF circuit'!$H$19*0.001)),IMDIV(1,'Design the AEF circuit'!$H$20*1000))), IMDIV(1,IMSUM(IMDIV(1,IMPRODUCT(B6,'Design the AEF circuit'!$H$22*0.001)),IMDIV(1,'Design the AEF circuit'!$H$23*1000))), IMDIV(1,IMSUM(IMDIV(1,IMPRODUCT(B6,'Design the AEF circuit'!$H$24*0.001)),IMDIV(1,'Design the AEF circuit'!$H$25*1000))) ) -> 0.0870720571147343+5.42458202668941j | Q6: =IMDIV(1, IMSUM( IMDIV(1, P6), IMPRODUCT(B6,'Design the AEF circuit'!$H$21*0.000000000001) ) ) -> 0.0870720946212174+5.42458319471368j
A7: ='Frequency vector'!G7 -> 1071.519305 | B7: =COMPLEX(0,2*PI()*'Frequency vector'!G7,"j") -> 6732.55435504325j | C7: =IF(IF(CMdata=1,IMABS(K7),'CM choke'!C11)=0, C6, IF(CMdata=1,IMABS(K7),'CM choke'!C11)) -> 6.295680046 | D7: =IF(IF(CMdata=1,DEGREES(IMARGUMENT(K7)),'CM choke'!D11)=0, D6, IF(CMdata=1,DEGREES(IMARGUMENT(K7)),'CM choke'!D11)) -> 87.58959198 | E7: =IF(IF(CMdata=1,IMABS(L7),'CM choke'!E11)=0, E6, IF(CMdata=1,IMABS(L7),'CM choke'!E11)) -> 6.295680046 | F7: =IF(IF(CMdata=1,DEGREES(IMARGUMENT(L7)),'CM choke'!F11)=0, F6, IF(CMdata=1,DEGREES(IMARGUMENT(L7)),'CM choke'!F11)) -> 87.58959198 | G7: 0.2647783469 | H7: 6.290109671 | I7: 0.2647783469 | J7: 6.290109671 | K7: =IF(CMdata=1, IF(Lcm1_core=1, IMDIV(1,IMSUM(IMDIV(1,IMPRODUCT(B7,'Design the AEF circuit'!$G$19*0.001)),IMDIV(1,'Design the AEF circuit'!$G$20*1000),IMPRODUCT(B7,'Design the AEF circuit'!$G$21*0.000000000001))), O7),COMPLEX(G7,H7,"j")) -> 0.264778346912753+6.2901096707145j | L7: =IF(CMdata=1, IF(Lcm2_core=1, IMDIV(1, IMSUM(IMDIV(1,IMPRODUCT(B7,'Design the AEF circuit'!$H$19*0.001)), IMDIV(1,'Design the AEF circuit'!$H$20*1000), IMPRODUCT(B7,'Design the AEF circuit'!$H$21*0.000000000001))), Q7), COMPLEX(I7,J7,"j")) -> 0.264778346912753+6.2901096707145j | N7: =IMSUM(IMDIV(1,IMSUM(IMDIV(1,IMPRODUCT(B7,'Design the AEF circuit'!$G$19*0.001)),IMDIV(1,'Design the AEF circuit'!$G$20*1000))), IMDIV(1,IMSUM(IMDIV(1,IMPRODUCT(B7,'Design the AEF circuit'!$G$22*0.001)),IMDIV(1,'Design the AEF circuit'!$G$23*1000))), IMDIV(1,IMSUM(IMDIV(1,IMPRODUCT(B7,'Design the AEF circuit'!$G$24*0.001)),IMDIV(1,'Design the AEF circuit'!$G$25*1000))) ) -> 0.0901308866292957+5.51901790558387j | O7: =IMDIV(1, IMSUM( IMDIV(1, N7), IMPRODUCT(B7,'Design the AEF circuit'!$G$21*0.000000000001))) -> 0.0901309268173243+5.51901913567979j | P7: =IMSUM(IMDIV(1,IMSUM(IMDIV(1,IMPRODUCT(B7,'Design the AEF circuit'!$H$19*0.001)),IMDIV(1,'Design the AEF circuit'!$H$20*1000))), IMDIV(1,IMSUM(IMDIV(1,IMPRODUCT(B7,'Design the AEF circuit'!$H$22*0.001)),IMDIV(1,'Design the AEF circuit'!$H$23*1000))), IMDIV(1,IMSUM(IMDIV(1,IMPRODUCT(B7,'Design the AEF circuit'!$H$24*0.001)),IMDIV(1,'Design the AEF circuit'!$H$25*1000))) ) -> 0.0901308866292957+5.51901790558387j | Q7: =IMDIV(1, IMSUM( IMDIV(1, P7), IMPRODUCT(B7,'Design the AEF circuit'!$H$21*0.000000000001) ) ) -> 0.0901309268173243+5.51901913567979j
A8: ='Frequency vector'!G8 -> 1090.184492 | B8: =COMPLEX(0,2*PI()*'Frequency vector'!G8,"j") -> 6849.83118469988j | C8: =IF(IF(CMdata=1,IMABS(K8),'CM choke'!C12)=0, C7, IF(CMdata=1,IMABS(K8),'CM choke'!C12)) -> 6.407814503 | D8: =IF(IF(CMdata=1,DEGREES(IMARGUMENT(K8)),'CM choke'!D12)=0, D7, IF(CMdata=1,DEGREES(IMARGUMENT(K8)),'CM choke'!D12)) -> 87.59597778 | E8: =IF(IF(CMdata=1,IMABS(L8),'CM choke'!E12)=0, E7, IF(CMdata=1,IMABS(L8),'CM choke'!E12)) -> 6.407814503 | F8: =IF(IF(CMdata=1,DEGREES(IMARGUMENT(L8)),'CM choke'!F12)=0, F7, IF(CMdata=1,DEGREES(IMARGUMENT(L8)),'CM choke'!F12)) -> 87.59597778 | G8: 0.2687808605 | H8: 6.402174908 | I8: 0.2687808605 | J8: 6.402174908 | K8: =IF(CMdata=1, IF(Lcm1_core=1, IMDIV(1,IMSUM(IMDIV(1,IMPRODUCT(B8,'Design the AEF circuit'!$G$19*0.001)),IMDIV(1,'Design the AEF circuit'!$G$20*1000),IMPRODUCT(B8,'Design the AEF circuit'!$G$21*0.000000000001))), O8),COMPLEX(G8,H8,"j")) -> 0.26878086054822+6.40217490781623j | L8: =IF(CMdata=1, IF(Lcm2_core=1, IMDIV(1, IMSUM(IMDIV(1,IMPRODUCT(B8,'Design the AEF circuit'!$H$19*0.001)), IMDIV(1,'Design the AEF circuit'!$H$20*1000), IMPRODUCT(B8,'Design the AEF circuit'!$H$21*0.000000000001))), Q8), COMPLEX(I8,J8,"j")) -> 0.26878086054822+6.40217490781623j | N8: =IMSUM(IMDIV(1,IMSUM(IMDIV(1,IMPRODUCT(B8,'Design the AEF circuit'!$G$19*0.001)),IMDIV(1,'Design the AEF circuit'!$G$20*1000))), IMDIV(1,IMSUM(IMDIV(1,IMPRODUCT(B8,'Design the AEF circuit'!$G$22*0.001)),IMDIV(1,'Design the AEF circuit'!$G$23*1000))), IMDIV(1,IMSUM(IMDIV(1,IMPRODUCT(B8,'Design the AEF circuit'!$G$24*0.001)),IMDIV(1,'Design the AEF circuit'!$G$25*1000))) ) -> 0.093297133455105+5.6150957734244j | O8: =IMDIV(1, IMSUM( IMDIV(1, N8), IMPRODUCT(B8,'Design the AEF circuit'!$G$21*0.000000000001))) -> 0.0932971765163645+5.61509706888926j | P8: =IMSUM(IMDIV(1,IMSUM(IMDIV(1,IMPRODUCT(B8,'Design the AEF circuit'!$H$19*0.001)),IMDIV(1,'Design the AEF circuit'!$H$20*1000))), IMDIV(1,IMSUM(IMDIV(1,IMPRODUCT(B8,'Design the AEF circuit'!$H$22*0.001)),IMDIV(1,'Design the AEF circuit'!$H$23*1000))), IMDIV(1,IMSUM(IMDIV(1,IMPRODUCT(B8,'Design the AEF circuit'!$H$24*0.001)),IMDIV(1,'Design the AEF circuit'!$H$25*1000))) ) -> 0.093297133455105+5.6150957734244j | Q8: =IMDIV(1, IMSUM( IMDIV(1, P8), IMPRODUCT(B8,'Design the AEF circuit'!$H$21*0.000000000001) ) ) -> 0.0932971765163645+5.61509706888926j
A9: ='Frequency vector'!G9 -> 1109.174815 | B9: =COMPLEX(0,2*PI()*'Frequency vector'!G9,"j") -> 6969.15090233526j | C9: =IF(IF(CMdata=1,IMABS(K9),'CM choke'!C13)=0, C8, IF(CMdata=1,IMABS(K9),'CM choke'!C13)) -> 6.510790348 | D9: =IF(IF(CMdata=1,DEGREES(IMARGUMENT(K9)),'CM choke'!D13)=0, D8, IF(CMdata=1,DEGREES(IMARGUMENT(K9)),'CM choke'!D13)) -> 87.61585999 | E9: =IF(IF(CMdata=1,IMABS(L9),'CM choke'!E13)=0, E8, IF(CMdata=1,IMABS(L9),'CM choke'!E13)) -> 6.510790348 | F9: =IF(IF(CMdata=1,DEGREES(IMARGUMENT(L9)),'CM choke'!F13)=0, F8, IF(CMdata=1,DEGREES(IMARGUMENT(L9)),'CM choke'!F13)) -> 87.61585999 | G9: 0.2708429274 | H9: 6.5051545 | I9: 0.2708429274 | J9: 6.5051545 | K9: =IF(CMdata=1, IF(Lcm1_core=1, IMDIV(1,IMSUM(IMDIV(1,IMPRODUCT(B9,'Design the AEF circuit'!$G$19*0.001)),IMDIV(1,'Design the AEF circuit'!$G$20*1000),IMPRODUCT(B9,'Design the AEF circuit'!$G$21*0.000000000001))), O9),COMPLEX(G9,H9,"j")) -> 0.270842927436504+6.50515449969626j | L9: =IF(CMdata=1, IF(Lcm2_core=1, IMDIV(1, IMSUM(IMDIV(1,IMPRODUCT(B9,'Design the AEF circuit'!$H$19*0.001)), IMDIV(1,'Design the AEF circuit'!$H$20*1000), IMPRODUCT(B9,'Design the AEF circuit'!$H$21*0.000000000001))), Q9), COMPLEX(I9,J9,"j")) -> 0.270842927436504+6.50515449969626j | N9: =IMSUM(IMDIV(1,IMSUM(IMDIV(1,IMPRODUCT(B9,'Design the AEF circuit'!$G$19*0.001)),IMDIV(1,'Design the AEF circuit'!$G$20*1000))), IMDIV(1,IMSUM(IMDIV(1,IMPRODUCT(B9,'Design the AEF circuit'!$G$22*0.001)),IMDIV(1,'Design the AEF circuit'!$G$23*1000))), IMDIV(1,IMSUM(IMDIV(1,IMPRODUCT(B9,'Design the AEF circuit'!$G$24*0.001)),IMDIV(1,'Design the AEF circuit'!$G$25*1000))) ) -> 0.0965745669931917+5.71284407188952j | O9: =IMDIV(1, IMSUM( IMDIV(1, N9), IMPRODUCT(B9,'Design the AEF circuit'!$G$21*0.000000000001))) -> 0.0965746131330663+5.71284543619566j | P9: =IMSUM(IMDIV(1,IMSUM(IMDIV(1,IMPRODUCT(B9,'Design the AEF circuit'!$H$19*0.001)),IMDIV(1,'Design the AEF circuit'!$H$20*1000))), IMDIV(1,IMSUM(IMDIV(1,IMPRODUCT(B9,'Design the AEF circuit'!$H$22*0.001)),IMDIV(1,'Design the AEF circuit'!$H$23*1000))), IMDIV(1,IMSUM(IMDIV(1,IMPRODUCT(B9,'Design the AEF circuit'!$H$24*0.001)),IMDIV(1,'Design the AEF circuit'!$H$25*1000))) ) -> 0.0965745669931917+5.71284407188952j | Q9: =IMDIV(1, IMSUM( IMDIV(1, P9), IMPRODUCT(B9,'Design the AEF circuit'!$H$21*0.000000000001) ) ) -> 0.0965746131330663+5.71284543619566j
A10: ='Frequency vector'!G10 -> 1128.495938 | B10: =COMPLEX(0,2*PI()*'Frequency vector'!G10,"j") -> 7090.54909390035j | C10: =IF(IF(CMdata=1,IMABS(K10),'CM choke'!C14)=0, C9, IF(CMdata=1,IMABS(K10),'CM choke'!C14)) -> 6.61958313 | D10: =IF(IF(CMdata=1,DEGREES(IMARGUMENT(K10)),'CM choke'!D14)=0, D9, IF(CMdata=1,DEGREES(IMARGUMENT(K10)),'CM choke'!D14)) -> 87.4920578 | E10: =IF(IF(CMdata=1,IMABS(L10),'CM choke'!E14)=0, E9, IF(CMdata=1,IMABS(L10),'CM choke'!E14)) -> 6.61958313 | F10: =IF(IF(CMdata=1,DEGREES(IMARGUMENT(L10)),'CM choke'!F14)=0, F9, IF(CMdata=1,DEGREES(IMARGUMENT(L10)),'CM choke'!F14)) -> 87.4920578 | G10: 0.2896588749 | H10: 6.613242665 | I10: 0.2896588749 | J10: 6.613242665 | K10: =IF(CMdata=1, IF(Lcm1_core=1, IMDIV(1,IMSUM(IMDIV(1,IMPRODUCT(B10,'Design the AEF circuit'!$G$19*0.001)),IMDIV(1,'Design the AEF circuit'!$G$20*1000),IMPRODUCT(B10,'Design the AEF circuit'!$G$21*0.000000000001))), O10),COMPLEX(G10,H10,"j")) -> 0.289658874913289+6.61324266525702j | L10: =IF(CMdata=1, IF(Lcm2_core=1, IMDIV(1, IMSUM(IMDIV(1,IMPRODUCT(B10,'Design the AEF circuit'!$H$19*0.001)), IMDIV(1,'Design the AEF circuit'!$H$20*1000), IMPRODUCT(B10,'Design the AEF circuit'!$H$21*0.000000000001))), Q10), COMPLEX(I10,J10,"j")) -> 0.289658874913289+6.61324266525702j | N10: =IMSUM(IMDIV(1,IMSUM(IMDIV(1,IMPRODUCT(B10,'Design the AEF circuit'!$G$19*0.001)),IMDIV(1,'Design the AEF circuit'!$G$20*1000))), IMDIV(1,IMSUM(IMDIV(1,IMPRODUCT(B10,'Design the AEF circuit'!$G$22*0.001)),IMDIV(1,'Design the AEF circuit'!$G$23*1000))), IMDIV(1,IMSUM(IMDIV(1,IMPRODUCT(B10,'Design the AEF circuit'!$G$24*0.001)),IMDIV(1,'Design the AEF circuit'!$G$25*1000))) ) -> 0.0999670887238957+5.81229172972655j | O10: =IMDIV(1, IMSUM( IMDIV(1, N10), IMPRODUCT(B10,'Design the AEF circuit'!$G$21*0.000000000001))) -> 0.0999671381624457+5.81229316653061j | P10: =IMSUM(IMDIV(1,IMSUM(IMDIV(1,IMPRODUCT(B10,'Design the AEF circuit'!$H$19*0.001)),IMDIV(1,'Design the AEF circuit'!$H$20*1000))), IMDIV(1,IMSUM(IMDIV(1,IMPRODUCT(B10,'Design the AEF circuit'!$H$22*0.001)),IMDIV(1,'Design the AEF circuit'!$H$23*1000))), IMDIV(1,IMSUM(IMDIV(1,IMPRODUCT(B10,'Design the AEF circuit'!$H$24*0.001)),IMDIV(1,'Design the AEF circuit'!$H$25*1000))) ) -> 0.0999670887238957+5.81229172972655j | Q10: =IMDIV(1, IMSUM( IMDIV(1, P10), IMPRODUCT(B10,'Design the AEF circuit'!$H$21*0.000000000001) ) ) -> 0.0999671381624457+5.81229316653061j
A11: ='Frequency vector'!G11 -> 1148.153621 | B11: =COMPLEX(0,2*PI()*'Frequency vector'!G11,"j") -> 7214.06196499383j | C11: =IF(IF(CMdata=1,IMABS(K11),'CM choke'!C15)=0, C10, IF(CMdata=1,IMABS(K11),'CM choke'!C15)) -> 6.741020679 | D11: =IF(IF(CMdata=1,DEGREES(IMARGUMENT(K11)),'CM choke'!D15)=0, D10, IF(CMdata=1,DEGREES(IMARGUMENT(K11)),'CM choke'!D15)) -> 87.41464996 | E11: =IF(IF(CMdata=1,IMABS(L11),'CM choke'!E15)=0, E10, IF(CMdata=1,IMABS(L11),'CM choke'!E15)) -> 6.741020679 | F11: =IF(IF(CMdata=1,DEGREES(IMARGUMENT(L11)),'CM choke'!F15)=0, F10, IF(CMdata=1,DEGREES(IMARGUMENT(L11)),'CM choke'!F15)) -> 87.41464996 | G11: 0.3040709932 | H11: 6.734159237 | I11: 0.3040709932 | J11: 6.734159237 | K11: =IF(CMdata=1, IF(Lcm1_core=1, IMDIV(1,IMSUM(IMDIV(1,IMPRODUCT(B11,'Design the AEF circuit'!$G$19*0.001)),IMDIV(1,'Design the AEF circuit'!$G$20*1000),IMPRODUCT(B11,'Design the AEF circuit'!$G$21*0.000000000001))), O11),COMPLEX(G11,H11,"j")) -> 0.304070993194254+6.73415923721292j | L11: =IF(CMdata=1, IF(Lcm2_core=1, IMDIV(1, IMSUM(IMDIV(1,IMPRODUCT(B11,'Design the AEF circuit'!$H$19*0.001)), IMDIV(1,'Design the AEF circuit'!$H$20*1000), IMPRODUCT(B11,'Design the AEF circuit'!$H$21*0.000000000001))), Q11), COMPLEX(I11,J11,"j")) -> 0.304070993194254+6.73415923721292j | N11: =IMSUM(IMDIV(1,IMSUM(IMDIV(1,IMPRODUCT(B11,'Design the AEF circuit'!$G$19*0.001)),IMDIV(1,'Design the AEF circuit'!$G$20*1000))), IMDIV(1,IMSUM(IMDIV(1,IMPRODUCT(B11,'Design the AEF circuit'!$G$22*0.001)),IMDIV(1,'Design the AEF circuit'!$G$23*1000))), IMDIV(1,IMSUM(IMDIV(1,IMPRODUCT(B11,'Design the AEF circuit'!$G$24*0.001)),IMDIV(1,'Design the AEF circuit'!$G$25*1000))) ) -> 0.103478736808311+5.91346817042466j | O11: =IMDIV(1, IMSUM( IMDIV(1, N11), IMPRODUCT(B11,'Design the AEF circuit'!$G$21*0.000000000001))) -> 0.103478789781323+5.91346968357736j | P11: =IMSUM(IMDIV(1,IMSUM(IMDIV(1,IMPRODUCT(B11,'Design the AEF circuit'!$H$19*0.001)),IMDIV(1,'Design the AEF circuit'!$H$20*1000))), IMDIV(1,IMSUM(IMDIV(1,IMPRODUCT(B11,'Design the AEF circuit'!$H$22*0.001)),IMDIV(1,'Design the AEF circuit'!$H$23*1000))), IMDIV(1,IMSUM(IMDIV(1,IMPRODUCT(B11,'Design the AEF circuit'!$H$24*0.001)),IMDIV(1,'Design the AEF circuit'!$H$25*1000))) ) -> 0.103478736808311+5.91346817042466j | Q11: =IMDIV(1, IMSUM( IMDIV(1, P11), IMPRODUCT(B11,'Design the AEF circuit'!$H$21*0.000000000001) ) ) -> 0.103478789781323+5.91346968357736j
A12: ='Frequency vector'!G12 -> 1168.15373 | B12: =COMPLEX(0,2*PI()*'Frequency vector'!G12,"j") -> 7339.72635198337j | C12: =IF(IF(CMdata=1,IMABS(K12),'CM choke'!C16)=0, C11, IF(CMdata=1,IMABS(K12),'CM choke'!C16)) -> 6.847271919 | D12: =IF(IF(CMdata=1,DEGREES(IMARGUMENT(K12)),'CM choke'!D16)=0, D11, IF(CMdata=1,DEGREES(IMARGUMENT(K12)),'CM choke'!D16)) -> 87.48007202 | E12: =IF(IF(CMdata=1,IMABS(L12),'CM choke'!E16)=0, E11, IF(CMdata=1,IMABS(L12),'CM choke'!E16)) -> 6.847271919 | F12: =IF(IF(CMdata=1,DEGREES(IMARGUMENT(L12)),'CM choke'!F16)=0, F11, IF(CMdata=1,DEGREES(IMARGUMENT(L12)),'CM choke'!F16)) -> 87.48007202 | G12: 0.3010530631 | H12: 6.840650538 | I12: 0.3010530631 | J12: 6.840650538 | K12: =IF(CMdata=1, IF(Lcm1_core=1, IMDIV(1,IMSUM(IMDIV(1,IMPRODUCT(B12,'Design the AEF circuit'!$G$19*0.001)),IMDIV(1,'Design the AEF circuit'!$G$20*1000),IMPRODUCT(B12,'Design the AEF circuit'!$G$21*0.000000000001))), O12),COMPLEX(G12,H12,"j")) -> 0.301053063118498+6.84065053846024j | L12: =IF(CMdata=1, IF(Lcm2_core=1, IMDIV(1, IMSUM(IMDIV(1,IMPRODUCT(B12,'Design the AEF circuit'!$H$19*0.001)), IMDIV(1,'Design the AEF circuit'!$H$20*1000), IMPRODUCT(B12,'Design the AEF circuit'!$H$21*0.000000000001))), Q12), COMPLEX(I12,J12,"j")) -> 0.301053063118498+6.84065053846024j | N12: =IMSUM(IMDIV(1,IMSUM(IMDIV(1,IMPRODUCT(B12,'Design the AEF circuit'!$G$19*0.001)),IMDIV(1,'Design the AEF circuit'!$G$20*1000))), IMDIV(1,IMSUM(IMDIV(1,IMPRODUCT(B12,'Design the AEF circuit'!$G$22*0.001)),IMDIV(1,'Design the AEF circuit'!$G$23*1000))), IMDIV(1,IMSUM(IMDIV(1,IMPRODUCT(B12,'Design the AEF circuit'!$G$24*0.001)),IMDIV(1,'Design the AEF circuit'!$G$25*1000))) ) -> 0.107113690870695+6.01640332062462j | O12: =IMDIV(1, IMSUM( IMDIV(1, N12), IMPRODUCT(B12,'Design the AEF circuit'!$G$21*0.000000000001))) -> 0.107113747630803+6.01640491418101j | P12: =IMSUM(IMDIV(1,IMSUM(IMDIV(1,IMPRODUCT(B12,'Design the AEF circuit'!$H$19*0.001)),IMDIV(1,'Design the AEF circuit'!$H$20*1000))), IMDIV(1,IMSUM(IMDIV(1,IMPRODUCT(B12,'Design the AEF circuit'!$H$22*0.001)),IMDIV(1,'Design the AEF circuit'!$H$23*1000))), IMDIV(1,IMSUM(IMDIV(1,IMPRODUCT(B12,'Design the AEF circuit'!$H$24*0.001)),IMDIV(1,'Design the AEF circuit'!$H$25*1000))) ) -> 0.107113690870695+6.01640332062462j | Q12: =IMDIV(1, IMSUM( IMDIV(1, P12), IMPRODUCT(B12,'Design the AEF circuit'!$H$21*0.000000000001) ) ) -> 0.107113747630803+6.01640491418101j
A13: ='Frequency vector'!G13 -> 1188.502227 | B13: =COMPLEX(0,2*PI()*'Frequency vector'!G13,"j") -> 7467.57973300122j | C13: =IF(IF(CMdata=1,IMABS(K13),'CM choke'!C17)=0, C12, IF(CMdata=1,IMABS(K13),'CM choke'!C17)) -> 6.968936443 | D13: =IF(IF(CMdata=1,DEGREES(IMARGUMENT(K13)),'CM choke'!D17)=0, D12, IF(CMdata=1,DEGREES(IMARGUMENT(K13)),'CM choke'!D17)) -> 87.39090729 | E13: =IF(IF(CMdata=1,IMABS(L13),'CM choke'!E17)=0, E12, IF(CMdata=1,IMABS(L13),'CM choke'!E17)) -> 6.968936443 | F13: =IF(IF(CMdata=1,DEGREES(IMARGUMENT(L13)),'CM choke'!F17)=0, F12, IF(CMdata=1,DEGREES(IMARGUMENT(L13)),'CM choke'!F17)) -> 87.39090729 | G13: 0.3172365933 | H13: 6.961712153 | I13: 0.3172365933 | J13: 6.961712153 | K13: =IF(CMdata=1, IF(Lcm1_core=1, IMDIV(1,IMSUM(IMDIV(1,IMPRODUCT(B13,'Design the AEF circuit'!$G$19*0.001)),IMDIV(1,'Design the AEF circuit'!$G$20*1000),IMPRODUCT(B13,'Design the AEF circuit'!$G$21*0.000000000001))), O13),COMPLEX(G13,H13,"j")) -> 0.317236593331701+6.96171215255444j | L13: =IF(CMdata=1, IF(Lcm2_core=1, IMDIV(1, IMSUM(IMDIV(1,IMPRODUCT(B13,'Design the AEF circuit'!$H$19*0.001)), IMDIV(1,'Design the AEF circuit'!$H$20*1000), IMPRODUCT(B13,'Design the AEF circuit'!$H$21*0.000000000001))), Q13), COMPLEX(I13,J13,"j")) -> 0.317236593331701+6.96171215255444j | N13: =IMSUM(IMDIV(1,IMSUM(IMDIV(1,IMPRODUCT(B13,'Design the AEF circuit'!$G$19*0.001)),IMDIV(1,'Design the AEF circuit'!$G$20*1000))), IMDIV(1,IMSUM(IMDIV(1,IMPRODUCT(B13,'Design the AEF circuit'!$G$22*0.001)),IMDIV(1,'Design the AEF circuit'!$G$23*1000))), IMDIV(1,IMSUM(IMDIV(1,IMPRODUCT(B13,'Design the AEF circuit'!$G$24*0.001)),IMDIV(1,'Design the AEF circuit'!$G$25*1000))) ) -> 0.110876276938144+6.12112761838825j | O13: =IMDIV(1, IMSUM( IMDIV(1, N13), IMPRODUCT(B13,'Design the AEF circuit'!$G$21*0.000000000001))) -> 0.110876337756035+6.12112929661864j | P13: =IMSUM(IMDIV(1,IMSUM(IMDIV(1,IMPRODUCT(B13,'Design the AEF circuit'!$H$19*0.001)),IMDIV(1,'Design the AEF circuit'!$H$20*1000))), IMDIV(1,IMSUM(IMDIV(1,IMPRODUCT(B13,'Design the AEF circuit'!$H$22*0.001)),IMDIV(1,'Design the AEF circuit'!$H$23*1000))), IMDIV(1,IMSUM(IMDIV(1,IMPRODUCT(B13,'Design the AEF circuit'!$H$24*0.001)),IMDIV(1,'Design the AEF circuit'!$H$25*1000))) ) -> 0.110876276938144+6.12112761838825j | Q13: =IMDIV(1, IMSUM( IMDIV(1, P13), IMPRODUCT(B13,'Design the AEF circuit'!$H$21*0.000000000001) ) ) -> 0.110876337756035+6.12112929661864j
A14: ='Frequency vector'!G14 -> 1209.205183 | B14: =COMPLEX(0,2*PI()*'Frequency vector'!G14,"j") -> 7597.66023881401j | C14: =IF(IF(CMdata=1,IMABS(K14),'CM choke'!C18)=0, C13, IF(CMdata=1,IMABS(K14),'CM choke'!C18)) -> 7.096273422 | D14: =IF(IF(CMdata=1,DEGREES(IMARGUMENT(K14)),'CM choke'!D18)=0, D13, IF(CMdata=1,DEGREES(IMARGUMENT(K14)),'CM choke'!D18)) -> 87.39759827 | E14: =IF(IF(CMdata=1,IMABS(L14),'CM choke'!E18)=0, E13, IF(CMdata=1,IMABS(L14),'CM choke'!E18)) -> 7.096273422 | F14: =IF(IF(CMdata=1,DEGREES(IMARGUMENT(L14)),'CM choke'!F18)=0, F13, IF(CMdata=1,DEGREES(IMARGUMENT(L14)),'CM choke'!F18)) -> 87.39759827 | G14: 0.3222053232 | H14: 7.088954804 | I14: 0.3222053232 | J14: 7.088954804 | K14: =IF(CMdata=1, IF(Lcm1_core=1, IMDIV(1,IMSUM(IMDIV(1,IMPRODUCT(B14,'Design the AEF circuit'!$G$19*0.001)),IMDIV(1,'Design the AEF circuit'!$G$20*1000),IMPRODUCT(B14,'Design the AEF circuit'!$G$21*0.000000000001))), O14),COMPLEX(G14,H14,"j")) -> 0.322205323208426+7.08895480398105j | L14: =IF(CMdata=1, IF(Lcm2_core=1, IMDIV(1, IMSUM(IMDIV(1,IMPRODUCT(B14,'Design the AEF circuit'!$H$19*0.001)), IMDIV(1,'Design the AEF circuit'!$H$20*1000), IMPRODUCT(B14,'Design the AEF circuit'!$H$21*0.000000000001))), Q14), COMPLEX(I14,J14,"j")) -> 0.322205323208426+7.08895480398105j | N14: =IMSUM(IMDIV(1,IMSUM(IMDIV(1,IMPRODUCT(B14,'Design the AEF circuit'!$G$19*0.001)),IMDIV(1,'Design the AEF circuit'!$G$20*1000))), IMDIV(1,IMSUM(IMDIV(1,IMPRODUCT(B14,'Design the AEF circuit'!$G$22*0.001)),IMDIV(1,'Design the AEF circuit'!$G$23*1000))), IMDIV(1,IMSUM(IMDIV(1,IMPRODUCT(B14,'Design the AEF circuit'!$G$24*0.001)),IMDIV(1,'Design the AEF circuit'!$G$25*1000))) ) -> 0.114770972541991+6.22767202132511j | O14: =IMDIV(1, IMSUM( IMDIV(1, N14), IMPRODUCT(B14,'Design the AEF circuit'!$G$21*0.000000000001))) -> 0.114771037707695+6.22767378872644j | P14: =IMSUM(IMDIV(1,IMSUM(IMDIV(1,IMPRODUCT(B14,'Design the AEF circuit'!$H$19*0.001)),IMDIV(1,'Design the AEF circuit'!$H$20*1000))), IMDIV(1,IMSUM(IMDIV(1,IMPRODUCT(B14,'Design the AEF circuit'!$H$22*0.001)),IMDIV(1,'Design the AEF circuit'!$H$23*1000))), IMDIV(1,IMSUM(IMDIV(1,IMPRODUCT(B14,'Design the AEF circuit'!$H$24*0.001)),IMDIV(1,'Design the AEF circuit'!$H$25*1000))) ) -> 0.114770972541991+6.22767202132511j | Q14: =IMDIV(1, IMSUM( IMDIV(1, P14), IMPRODUCT(B14,'Design the AEF circuit'!$H$21*0.000000000001) ) ) -> 0.114771037707695+6.22767378872644j
A15: ='Frequency vector'!G15 -> 1230.268771 | B15: =COMPLEX(0,2*PI()*'Frequency vector'!G15,"j") -> 7730.00666463528j | C15: =IF(IF(CMdata=1,IMABS(K15),'CM choke'!C19)=0, C14, IF(CMdata=1,IMABS(K15),'CM choke'!C19)) -> 7.223829746 | D15: =IF(IF(CMdata=1,DEGREES(IMARGUMENT(K15)),'CM choke'!D19)=0, D14, IF(CMdata=1,DEGREES(IMARGUMENT(K15)),'CM choke'!D19)) -> 87.39621735 | E15: =IF(IF(CMdata=1,IMABS(L15),'CM choke'!E19)=0, E14, IF(CMdata=1,IMABS(L15),'CM choke'!E19)) -> 7.223829746 | F15: =IF(IF(CMdata=1,DEGREES(IMARGUMENT(L15)),'CM choke'!F19)=0, F14, IF(CMdata=1,DEGREES(IMARGUMENT(L15)),'CM choke'!F19)) -> 87.39621735 | G15: 0.3281709269 | H15: 7.216371668 | I15: 0.3281709269 | J15: 7.216371668 | K15: =IF(CMdata=1, IF(Lcm1_core=1, IMDIV(1,IMSUM(IMDIV(1,IMPRODUCT(B15,'Design the AEF circuit'!$G$19*0.001)),IMDIV(1,'Design the AEF circuit'!$G$20*1000),IMPRODUCT(B15,'Design the AEF circuit'!$G$21*0.000000000001))), O15),COMPLEX(G15,H15,"j")) -> 0.328170926890915+7.21637166764225j | L15: =IF(CMdata=1, IF(Lcm2_core=1, IMDIV(1, IMSUM(IMDIV(1,IMPRODUCT(B15,'Design the AEF circuit'!$H$19*0.001)), IMDIV(1,'Design the AEF circuit'!$H$20*1000), IMPRODUCT(B15,'Design the AEF circuit'!$H$21*0.000000000001))), Q15), COMPLEX(I15,J15,"j")) -> 0.328170926890915+7.21637166764225j | N15: =IMSUM(IMDIV(1,IMSUM(IMDIV(1,IMPRODUCT(B15,'Design the AEF circuit'!$G$19*0.001)),IMDIV(1,'Design the AEF circuit'!$G$20*1000))), IMDIV(1,IMSUM(IMDIV(1,IMPRODUCT(B15,'Design the AEF circuit'!$G$22*0.001)),IMDIV(1,'Design the AEF circuit'!$G$23*1000))), IMDIV(1,IMSUM(IMDIV(1,IMPRODUCT(B15,'Design the AEF circuit'!$G$24*0.001)),IMDIV(1,'Design the AEF circuit'!$G$25*1000))) ) -> 0.118802412018403+6.33606801545031j | O15: =IMDIV(1, IMSUM( IMDIV(1, N15), IMPRODUCT(B15,'Design the AEF circuit'!$G$21*0.000000000001))) -> 0.118802481842672+6.33606987675811j | P15: =IMSUM(IMDIV(1,IMSUM(IMDIV(1,IMPRODUCT(B15,'Design the AEF circuit'!$H$19*0.001)),IMDIV(1,'Design the AEF circuit'!$H$20*1000))), IMDIV(1,IMSUM(IMDIV(1,IMPRODUCT(B15,'Design the AEF circuit'!$H$22*0.001)),IMDIV(1,'Design the AEF circuit'!$H$23*1000))), IMDIV(1,IMSUM(IMDIV(1,IMPRODUCT(B15,'Design the AEF circuit'!$H$24*0.001)),IMDIV(1,'Design the AEF circuit'!$H$25*1000))) ) -> 0.118802412018403+6.33606801545031j | Q15: =IMDIV(1, IMSUM( IMDIV(1, P15), IMPRODUCT(B15,'Design the AEF circuit'!$H$21*0.000000000001) ) ) -> 0.118802481842672+6.33606987675811j
A16: ='Frequency vector'!G16 -> 1251.699273 | B16: =COMPLEX(0,2*PI()*'Frequency vector'!G16,"j") -> 7864.65848130947j | C16: =IF(IF(CMdata=1,IMABS(K16),'CM choke'!C20)=0, C15, IF(CMdata=1,IMABS(K16),'CM choke'!C20)) -> 7.346939564 | D16: =IF(IF(CMdata=1,DEGREES(IMARGUMENT(K16)),'CM choke'!D20)=0, D15, IF(CMdata=1,DEGREES(IMARGUMENT(K16)),'CM choke'!D20)) -> 87.32360077 | E16: =IF(IF(CMdata=1,IMABS(L16),'CM choke'!E20)=0, E15, IF(CMdata=1,IMABS(L16),'CM choke'!E20)) -> 7.346939564 | F16: =IF(IF(CMdata=1,DEGREES(IMARGUMENT(L16)),'CM choke'!F20)=0, F15, IF(CMdata=1,DEGREES(IMARGUMENT(L16)),'CM choke'!F20)) -> 87.32360077 | G16: 0.3430652906 | H16: 7.338925477 | I16: 0.3430652906 | J16: 7.338925477 | K16: =IF(CMdata=1, IF(Lcm1_core=1, IMDIV(1,IMSUM(IMDIV(1,IMPRODUCT(B16,'Design the AEF circuit'!$G$19*0.001)),IMDIV(1,'Design the AEF circuit'!$G$20*1000),IMPRODUCT(B16,'Design the AEF circuit'!$G$21*0.000000000001))), O16),COMPLEX(G16,H16,"j")) -> 0.343065290566101+7.33892547719377j | L16: =IF(CMdata=1, IF(Lcm2_core=1, IMDIV(1, IMSUM(IMDIV(1,IMPRODUCT(B16,'Design the AEF circuit'!$H$19*0.001)), IMDIV(1,'Design the AEF circuit'!$H$20*1000), IMPRODUCT(B16,'Design the AEF circuit'!$H$21*0.000000000001))), Q16), COMPLEX(I16,J16,"j")) -> 0.343065290566101+7.33892547719377j | N16: =IMSUM(IMDIV(1,IMSUM(IMDIV(1,IMPRODUCT(B16,'Design the AEF circuit'!$G$19*0.001)),IMDIV(1,'Design the AEF circuit'!$G$20*1000))), IMDIV(1,IMSUM(IMDIV(1,IMPRODUCT(B16,'Design the AEF circuit'!$G$22*0.001)),IMDIV(1,'Design the AEF circuit'!$G$23*1000))), IMDIV(1,IMSUM(IMDIV(1,IMPRODUCT(B16,'Design the AEF circuit'!$G$24*0.001)),IMDIV(1,'Design the AEF circuit'!$G$25*1000))) ) -> 0.122975391967686+6.44634762348333j | O16: =IMDIV(1, IMSUM( IMDIV(1, N16), IMPRODUCT(B16,'Design the AEF circuit'!$G$21*0.000000000001))) -> 0.122975466783473+6.44634958368437j | P16: =IMSUM(IMDIV(1,IMSUM(IMDIV(1,IMPRODUCT(B16,'Design the AEF circuit'!$H$19*0.001)),IMDIV(1,'Design the AEF circuit'!$H$20*1000))), IMDIV(1,IMSUM(IMDIV(1,IMPRODUCT(B16,'Design the AEF circuit'!$H$22*0.001)),IMDIV(1,'Design the AEF circuit'!$H$23*1000))), IMDIV(1,IMSUM(IMDIV(1,IMPRODUCT(B16,'Design the AEF circuit'!$H$24*0.001)),IMDIV(1,'Design the AEF circuit'!$H$25*1000))) ) -> 0.122975391967686+6.44634762348333j | Q16: =IMDIV(1, IMSUM( IMDIV(1, P16), IMPRODUCT(B16,'Design the AEF circuit'!$H$21*0.000000000001) ) ) -> 0.122975466783473+6.44634958368437j
A17: ='Frequency vector'!G17 -> 1273.503081 | B17: =COMPLEX(0,2*PI()*'Frequency vector'!G17,"j") -> 8001.6558473128j | C17: =IF(IF(CMdata=1,IMABS(K17),'CM choke'!C21)=0, C16, IF(CMdata=1,IMABS(K17),'CM choke'!C21)) -> 7.464734077 | D17: =IF(IF(CMdata=1,DEGREES(IMARGUMENT(K17)),'CM choke'!D21)=0, D16, IF(CMdata=1,DEGREES(IMARGUMENT(K17)),'CM choke'!D21)) -> 87.30983734 | E17: =IF(IF(CMdata=1,IMABS(L17),'CM choke'!E21)=0, E16, IF(CMdata=1,IMABS(L17),'CM choke'!E21)) -> 7.464734077 | F17: =IF(IF(CMdata=1,DEGREES(IMARGUMENT(L17)),'CM choke'!F21)=0, F16, IF(CMdata=1,DEGREES(IMARGUMENT(L17)),'CM choke'!F21)) -> 87.30983734 | G17: 0.3503568955 | H17: 7.456507553 | I17: 0.3503568955 | J17: 7.456507553 | K17: =IF(CMdata=1, IF(Lcm1_core=1, IMDIV(1,IMSUM(IMDIV(1,IMPRODUCT(B17,'Design the AEF circuit'!$G$19*0.001)),IMDIV(1,'Design the AEF circuit'!$G$20*1000),IMPRODUCT(B17,'Design the AEF circuit'!$G$21*0.000000000001))), O17),COMPLEX(G17,H17,"j")) -> 0.350356895477328+7.45650755332782j | L17: =IF(CMdata=1, IF(Lcm2_core=1, IMDIV(1, IMSUM(IMDIV(1,IMPRODUCT(B17,'Design the AEF circuit'!$H$19*0.001)), IMDIV(1,'Design the AEF circuit'!$H$20*1000), IMPRODUCT(B17,'Design the AEF circuit'!$H$21*0.000000000001))), Q17), COMPLEX(I17,J17,"j")) -> 0.350356895477328+7.45650755332782j | N17: =IMSUM(IMDIV(1,IMSUM(IMDIV(1,IMPRODUCT(B17,'Design the AEF circuit'!$G$19*0.001)),IMDIV(1,'Design the AEF circuit'!$G$20*1000))), IMDIV(1,IMSUM(IMDIV(1,IMPRODUCT(B17,'Design the AEF circuit'!$G$22*0.001)),IMDIV(1,'Design the AEF circuit'!$G$23*1000))), IMDIV(1,IMSUM(IMDIV(1,IMPRODUCT(B17,'Design the AEF circuit'!$G$24*0.001)),IMDIV(1,'Design the AEF circuit'!$G$25*1000))) ) -> 0.127294876921387+6.55854341377041j | O17: =IMDIV(1, IMSUM( IMDIV(1, N17), IMPRODUCT(B17,'Design the AEF circuit'!$G$21*0.000000000001))) -> 0.127294957085435+6.55854547811604j | P17: =IMSUM(IMDIV(1,IMSUM(IMDIV(1,IMPRODUCT(B17,'Design the AEF circuit'!$H$19*0.001)),IMDIV(1,'Design the AEF circuit'!$H$20*1000))), IMDIV(1,IMSUM(IMDIV(1,IMPRODUCT(B17,'Design the AEF circuit'!$H$22*0.001)),IMDIV(1,'Design the AEF circuit'!$H$23*1000))), IMDIV(1,IMSUM(IMDIV(1,IMPRODUCT(B17,'Design the AEF circuit'!$H$24*0.001)),IMDIV(1,'Design the AEF circuit'!$H$25*1000))) ) -> 0.127294876921387+6.55854341377041j | Q17: =IMDIV(1, IMSUM( IMDIV(1, P17), IMPRODUCT(B17,'Design the AEF circuit'!$H$21*0.000000000001) ) ) -> 0.127294957085435+6.55854547811604j
A18: ='Frequency vector'!G18 -> 1295.686698 | B18: =COMPLEX(0,2*PI()*'Frequency vector'!G18,"j") -> 8141.03962056571j | C18: =IF(IF(CMdata=1,IMABS(K18),'CM choke'!C22)=0, C17, IF(CMdata=1,IMABS(K18),'CM choke'!C22)) -> 7.596175194 | D18: =IF(IF(CMdata=1,DEGREES(IMARGUMENT(K18)),'CM choke'!D22)=0, D17, IF(CMdata=1,DEGREES(IMARGUMENT(K18)),'CM choke'!D22)) -> 87.25063324 | E18: =IF(IF(CMdata=1,IMABS(L18),'CM choke'!E22)=0, E17, IF(CMdata=1,IMABS(L18),'CM choke'!E22)) -> 7.596175194 | F18: =IF(IF(CMdata=1,DEGREES(IMARGUMENT(L18)),'CM choke'!F22)=0, F17, IF(CMdata=1,DEGREES(IMARGUMENT(L18)),'CM choke'!F22)) -> 87.25063324 | G18: 0.3643664126 | H18: 7.587431363 | I18: 0.3643664126 | J18: 7.587431363 | K18: =IF(CMdata=1, IF(Lcm1_core=1, IMDIV(1,IMSUM(IMDIV(1,IMPRODUCT(B18,'Design the AEF circuit'!$G$19*0.001)),IMDIV(1,'Design the AEF circuit'!$G$20*1000),IMPRODUCT(B18,'Design the AEF circuit'!$G$21*0.000000000001))), O18),COMPLEX(G18,H18,"j")) -> 0.364366412555956+7.58743136325802j | L18: =IF(CMdata=1, IF(Lcm2_core=1, IMDIV(1, IMSUM(IMDIV(1,IMPRODUCT(B18,'Design the AEF circuit'!$H$19*0.001)), IMDIV(1,'Design the AEF circuit'!$H$20*1000), IMPRODUCT(B18,'Design the AEF circuit'!$H$21*0.000000000001))), Q18), COMPLEX(I18,J18,"j")) -> 0.364366412555956+7.58743136325802j | N18: =IMSUM(IMDIV(1,IMSUM(IMDIV(1,IMPRODUCT(B18,'Design the AEF circuit'!$G$19*0.001)),IMDIV(1,'Design the AEF circuit'!$G$20*1000))), IMDIV(1,IMSUM(IMDIV(1,IMPRODUCT(B18,'Design the AEF circuit'!$G$22*0.001)),IMDIV(1,'Design the AEF circuit'!$G$23*1000))), IMDIV(1,IMSUM(IMDIV(1,IMPRODUCT(B18,'Design the AEF circuit'!$G$24*0.001)),IMDIV(1,'Design the AEF circuit'!$G$25*1000))) ) -> 0.131766005193294+6.67268850900372j | O18: =IMDIV(1, IMSUM( IMDIV(1, N18), IMPRODUCT(B18,'Design the AEF circuit'!$G$21*0.000000000001))) -> 0.131766091087834+6.67269068302394j | P18: =IMSUM(IMDIV(1,IMSUM(IMDIV(1,IMPRODUCT(B18,'Design the AEF circuit'!$H$19*0.001)),IMDIV(1,'Design the AEF circuit'!$H$20*1000))), IMDIV(1,IMSUM(IMDIV(1,IMPRODUCT(B18,'Design the AEF circuit'!$H$22*0.001)),IMDIV(1,'Design the AEF circuit'!$H$23*1000))), IMDIV(1,IMSUM(IMDIV(1,IMPRODUCT(B18,'Design the AEF circuit'!$H$24*0.001)),IMDIV(1,'Design the AEF circuit'!$H$25*1000))) ) -> 0.131766005193294+6.67268850900372j | Q18: =IMDIV(1, IMSUM( IMDIV(1, P18), IMPRODUCT(B18,'Design the AEF circuit'!$H$21*0.000000000001) ) ) -> 0.131766091087834+6.67269068302394j
A19: ='Frequency vector'!G19 -> 1318.256739 | B19: =COMPLEX(0,2*PI()*'Frequency vector'!G19,"j") -> 8282.85137081067j | C19: =IF(IF(CMdata=1,IMABS(K19),'CM choke'!C23)=0, C18, IF(CMdata=1,IMABS(K19),'CM choke'!C23)) -> 7.73435688 | D19: =IF(IF(CMdata=1,DEGREES(IMARGUMENT(K19)),'CM choke'!D23)=0, D18, IF(CMdata=1,DEGREES(IMARGUMENT(K19)),'CM choke'!D23)) -> 87.27842712 | E19: =IF(IF(CMdata=1,IMABS(L19),'CM choke'!E23)=0, E18, IF(CMdata=1,IMABS(L19),'CM choke'!E23)) -> 7.73435688 | F19: =IF(IF(CMdata=1,DEGREES(IMARGUMENT(L19)),'CM choke'!F23)=0, F18, IF(CMdata=1,DEGREES(IMARGUMENT(L19)),'CM choke'!F23)) -> 87.27842712 | G19: 0.3672469648 | H19: 7.72563305 | I19: 0.3672469648 | J19: 7.72563305 | K19: =IF(CMdata=1, IF(Lcm1_core=1, IMDIV(1,IMSUM(IMDIV(1,IMPRODUCT(B19,'Design the AEF circuit'!$G$19*0.001)),IMDIV(1,'Design the AEF circuit'!$G$20*1000),IMPRODUCT(B19,'Design the AEF circuit'!$G$21*0.000000000001))), O19),COMPLEX(G19,H19,"j")) -> 0.367246964815485+7.72563304959381j | L19: =IF(CMdata=1, IF(Lcm2_core=1, IMDIV(1, IMSUM(IMDIV(1,IMPRODUCT(B19,'Design the AEF circuit'!$H$19*0.001)), IMDIV(1,'Design the AEF circuit'!$H$20*1000), IMPRODUCT(B19,'Design the AEF circuit'!$H$21*0.000000000001))), Q19), COMPLEX(I19,J19,"j")) -> 0.367246964815485+7.72563304959381j | N19: =IMSUM(IMDIV(1,IMSUM(IMDIV(1,IMPRODUCT(B19,'Design the AEF circuit'!$G$19*0.001)),IMDIV(1,'Design the AEF circuit'!$G$20*1000))), IMDIV(1,IMSUM(IMDIV(1,IMPRODUCT(B19,'Design the AEF circuit'!$G$22*0.001)),IMDIV(1,'Design the AEF circuit'!$G$23*1000))), IMDIV(1,IMSUM(IMDIV(1,IMPRODUCT(B19,'Design the AEF circuit'!$G$24*0.001)),IMDIV(1,'Design the AEF circuit'!$G$25*1000))) ) -> 0.136394094944212+6.78881659535289j | O19: =IMDIV(1, IMSUM( IMDIV(1, N19), IMPRODUCT(B19,'Design the AEF circuit'!$G$21*0.000000000001))) -> 0.13639418697878+6.78881888487097j | P19: =IMSUM(IMDIV(1,IMSUM(IMDIV(1,IMPRODUCT(B19,'Design the AEF circuit'!$H$19*0.001)),IMDIV(1,'Design the AEF circuit'!$H$20*1000))), IMDIV(1,IMSUM(IMDIV(1,IMPRODUCT(B19,'Design the AEF circuit'!$H$22*0.001)),IMDIV(1,'Design the AEF circuit'!$H$23*1000))), IMDIV(1,IMSUM(IMDIV(1,IMPRODUCT(B19,'Design the AEF circuit'!$H$24*0.001)),IMDIV(1,'Design the AEF circuit'!$H$25*1000))) ) -> 0.136394094944212+6.78881659535289j | Q19: =IMDIV(1, IMSUM( IMDIV(1, P19), IMPRODUCT(B19,'Design the AEF circuit'!$H$21*0.000000000001) ) ) -> 0.13639418697878+6.78881888487097j
A20: ='Frequency vector'!G20 -> 1341.219935 | B20: =COMPLEX(0,2*PI()*'Frequency vector'!G20,"j") -> 8427.13339186447j | C20: =IF(IF(CMdata=1,IMABS(K20),'CM choke'!C24)=0, C19, IF(CMdata=1,IMABS(K20),'CM choke'!C24)) -> 7.859617233 | D20: =IF(IF(CMdata=1,DEGREES(IMARGUMENT(K20)),'CM choke'!D24)=0, D19, IF(CMdata=1,DEGREES(IMARGUMENT(K20)),'CM choke'!D24)) -> 87.17877197 | E20: =IF(IF(CMdata=1,IMABS(L20),'CM choke'!E24)=0, E19, IF(CMdata=1,IMABS(L20),'CM choke'!E24)) -> 7.859617233 | F20: =IF(IF(CMdata=1,DEGREES(IMARGUMENT(L20)),'CM choke'!F24)=0, F19, IF(CMdata=1,DEGREES(IMARGUMENT(L20)),'CM choke'!F24)) -> 87.17877197 | G20: 0.3868489697 | H20: 7.850091141 | I20: 0.3868489697 | J20: 7.850091141 | K20: =IF(CMdata=1, IF(Lcm1_core=1, IMDIV(1,IMSUM(IMDIV(1,IMPRODUCT(B20,'Design the AEF circuit'!$G$19*0.001)),IMDIV(1,'Design the AEF circuit'!$G$20*1000),IMPRODUCT(B20,'Design the AEF circuit'!$G$21*0.000000000001))), O20),COMPLEX(G20,H20,"j")) -> 0.38684896969509+7.85009114140197j | L20: =IF(CMdata=1, IF(Lcm2_core=1, IMDIV(1, IMSUM(IMDIV(1,IMPRODUCT(B20,'Design the AEF circuit'!$H$19*0.001)), IMDIV(1,'Design the AEF circuit'!$H$20*1000), IMPRODUCT(B20,'Design the AEF circuit'!$H$21*0.000000000001))), Q20), COMPLEX(I20,J20,"j")) -> 0.38684896969509+7.85009114140197j | N20: =IMSUM(IMDIV(1,IMSUM(IMDIV(1,IMPRODUCT(B20,'Design the AEF circuit'!$G$19*0.001)),IMDIV(1,'Design the AEF circuit'!$G$20*1000))), IMDIV(1,IMSUM(IMDIV(1,IMPRODUCT(B20,'Design the AEF circuit'!$G$22*0.001)),IMDIV(1,'Design the AEF circuit'!$G$23*1000))), IMDIV(1,IMSUM(IMDIV(1,IMPRODUCT(B20,'Design the AEF circuit'!$G$24*0.001)),IMDIV(1,'Design the AEF circuit'!$G$25*1000))) ) -> 0.141184650445512+6.90696193143987j | O20: =IMDIV(1, IMSUM( IMDIV(1, N20), IMPRODUCT(B20,'Design the AEF circuit'!$G$21*0.000000000001))) -> 0.141184749058901+6.90696434258801j | P20: =IMSUM(IMDIV(1,IMSUM(IMDIV(1,IMPRODUCT(B20,'Design the AEF circuit'!$H$19*0.001)),IMDIV(1,'Design the AEF circuit'!$H$20*1000))), IMDIV(1,IMSUM(IMDIV(1,IMPRODUCT(B20,'Design the AEF circuit'!$H$22*0.001)),IMDIV(1,'Design the AEF circuit'!$H$23*1000))), IMDIV(1,IMSUM(IMDIV(1,IMPRODUCT(B20,'Design the AEF circuit'!$H$24*0.001)),IMDIV(1,'Design the AEF circuit'!$H$25*1000))) ) -> 0.141184650445512+6.90696193143987j | Q20: =IMDIV(1, IMSUM( IMDIV(1, P20), IMPRODUCT(B20,'Design the AEF circuit'!$H$21*0.000000000001) ) ) -> 0.141184749058901+6.90696434258801j
A21: ='Frequency vector'!G21 -> 1364.583137 | B21: =COMPLEX(0,2*PI()*'Frequency vector'!G21,"j") -> 8573.92871424732j | C21: =IF(IF(CMdata=1,IMABS(K21),'CM choke'!C25)=0, C20, IF(CMdata=1,IMABS(K21),'CM choke'!C25)) -> 7.993328571 | D21: =IF(IF(CMdata=1,DEGREES(IMARGUMENT(K21)),'CM choke'!D25)=0, D20, IF(CMdata=1,DEGREES(IMARGUMENT(K21)),'CM choke'!D25)) -> 87.19544983 | E21: =IF(IF(CMdata=1,IMABS(L21),'CM choke'!E25)=0, E20, IF(CMdata=1,IMABS(L21),'CM choke'!E25)) -> 7.993328571 | F21: =IF(IF(CMdata=1,DEGREES(IMARGUMENT(L21)),'CM choke'!F25)=0, F20, IF(CMdata=1,DEGREES(IMARGUMENT(L21)),'CM choke'!F25)) -> 87.19544983 | G21: 0.3911062954 | H21: 7.9837546 | I21: 0.3911062954 | J21: 7.9837546 | K21: =IF(CMdata=1, IF(Lcm1_core=1, IMDIV(1,IMSUM(IMDIV(1,IMPRODUCT(B21,'Design the AEF circuit'!$G$19*0.001)),IMDIV(1,'Design the AEF circuit'!$G$20*1000),IMPRODUCT(B21,'Design the AEF circuit'!$G$21*0.000000000001))), O21),COMPLEX(G21,H21,"j")) -> 0.391106295416248+7.9837546001093j | L21: =IF(CMdata=1, IF(Lcm2_core=1, IMDIV(1, IMSUM(IMDIV(1,IMPRODUCT(B21,'Design the AEF circuit'!$H$19*0.001)), IMDIV(1,'Design the AEF circuit'!$H$20*1000), IMPRODUCT(B21,'Design the AEF circuit'!$H$21*0.000000000001))), Q21), COMPLEX(I21,J21,"j")) -> 0.391106295416248+7.9837546001093j | N21: =IMSUM(IMDIV(1,IMSUM(IMDIV(1,IMPRODUCT(B21,'Design the AEF circuit'!$G$19*0.001)),IMDIV(1,'Design the AEF circuit'!$G$20*1000))), IMDIV(1,IMSUM(IMDIV(1,IMPRODUCT(B21,'Design the AEF circuit'!$G$22*0.001)),IMDIV(1,'Design the AEF circuit'!$G$23*1000))), IMDIV(1,IMSUM(IMDIV(1,IMPRODUCT(B21,'Design the AEF circuit'!$G$24*0.001)),IMDIV(1,'Design the AEF circuit'!$G$25*1000))) ) -> 0.146143368564263+7.02715935756604j | O21: =IMDIV(1, IMSUM( IMDIV(1, N21), IMPRODUCT(B21,'Design the AEF circuit'!$G$21*0.000000000001))) -> 0.146143474226612+7.02716189680163j | P21: =IMSUM(IMDIV(1,IMSUM(IMDIV(1,IMPRODUCT(B21,'Design the AEF circuit'!$H$19*0.001)),IMDIV(1,'Design the AEF circuit'!$H$20*1000))), IMDIV(1,IMSUM(IMDIV(1,IMPRODUCT(B21,'Design the AEF circuit'!$H$22*0.001)),IMDIV(1,'Design the AEF circuit'!$H$23*1000))), IMDIV(1,IMSUM(IMDIV(1,IMPRODUCT(B21,'Design the AEF circuit'!$H$24*0.001)),IMDIV(1,'Design the AEF circuit'!$H$25*1000))) ) -> 0.146143368564263+7.02715935756604j | Q21: =IMDIV(1, IMSUM( IMDIV(1, P21), IMPRODUCT(B21,'Design the AEF circuit'!$H$21*0.000000000001) ) ) -> 0.146143474226612+7.02716189680163j
A22: ='Frequency vector'!G22 -> 1388.35331 | B22: =COMPLEX(0,2*PI()*'Frequency vector'!G22,"j") -> 8723.28111812632j | C22: =IF(IF(CMdata=1,IMABS(K22),'CM choke'!C26)=0, C21, IF(CMdata=1,IMABS(K22),'CM choke'!C26)) -> 8.137718201 | D22: =IF(IF(CMdata=1,DEGREES(IMARGUMENT(K22)),'CM choke'!D26)=0, D21, IF(CMdata=1,DEGREES(IMARGUMENT(K22)),'CM choke'!D26)) -> 87.08048248 | E22: =IF(IF(CMdata=1,IMABS(L22),'CM choke'!E26)=0, E21, IF(CMdata=1,IMABS(L22),'CM choke'!E26)) -> 8.137718201 | F22: =IF(IF(CMdata=1,DEGREES(IMARGUMENT(L22)),'CM choke'!F26)=0, F21, IF(CMdata=1,DEGREES(IMARGUMENT(L22)),'CM choke'!F26)) -> 87.08048248 | G22: 0.4144795878 | H22: 8.127155971 | I22: 0.4144795878 | J22: 8.127155971 | K22: =IF(CMdata=1, IF(Lcm1_core=1, IMDIV(1,IMSUM(IMDIV(1,IMPRODUCT(B22,'Design the AEF circuit'!$G$19*0.001)),IMDIV(1,'Design the AEF circuit'!$G$20*1000),IMPRODUCT(B22,'Design the AEF circuit'!$G$21*0.000000000001))), O22),COMPLEX(G22,H22,"j")) -> 0.414479587801892+8.12715597149299j | L22: =IF(CMdata=1, IF(Lcm2_core=1, IMDIV(1, IMSUM(IMDIV(1,IMPRODUCT(B22,'Design the AEF circuit'!$H$19*0.001)), IMDIV(1,'Design the AEF circuit'!$H$20*1000), IMPRODUCT(B22,'Design the AEF circuit'!$H$21*0.000000000001))), Q22), COMPLEX(I22,J22,"j")) -> 0.414479587801892+8.12715597149299j | N22: =IMSUM(IMDIV(1,IMSUM(IMDIV(1,IMPRODUCT(B22,'Design the AEF circuit'!$G$19*0.001)),IMDIV(1,'Design the AEF circuit'!$G$20*1000))), IMDIV(1,IMSUM(IMDIV(1,IMPRODUCT(B22,'Design the AEF circuit'!$G$22*0.001)),IMDIV(1,'Design the AEF circuit'!$G$23*1000))), IMDIV(1,IMSUM(IMDIV(1,IMPRODUCT(B22,'Design the AEF circuit'!$G$24*0.001)),IMDIV(1,'Design the AEF circuit'!$G$25*1000))) ) -> 0.151276145475586+7.14944430513708j | O22: =IMDIV(1, IMSUM( IMDIV(1, N22), IMPRODUCT(B22,'Design the AEF circuit'!$G$21*0.000000000001))) -> 0.151276258690619+7.14944697926005j | P22: =IMSUM(IMDIV(1,IMSUM(IMDIV(1,IMPRODUCT(B22,'Design the AEF circuit'!$H$19*0.001)),IMDIV(1,'Design the AEF circuit'!$H$20*1000))), IMDIV(1,IMSUM(IMDIV(1,IMPRODUCT(B22,'Design the AEF circuit'!$H$22*0.001)),IMDIV(1,'Design the AEF circuit'!$H$23*1000))), IMDIV(1,IMSUM(IMDIV(1,IMPRODUCT(B22,'Design the AEF circuit'!$H$24*0.001)),IMDIV(1,'Design the AEF circuit'!$H$25*1000))) ) -> 0.151276145475586+7.14944430513708j | Q22: =IMDIV(1, IMSUM( IMDIV(1, P22), IMPRODUCT(B22,'Design the AEF circuit'!$H$21*0.000000000001) ) ) -> 0.151276258690619+7.14944697926005j
A23: ='Frequency vector'!G23 -> 1412.537545 | B23: =COMPLEX(0,2*PI()*'Frequency vector'!G23,"j") -> 8875.23514619591j | C23: =IF(IF(CMdata=1,IMABS(K23),'CM choke'!C27)=0, C22, IF(CMdata=1,IMABS(K23),'CM choke'!C27)) -> 8.266537666 | D23: =IF(IF(CMdata=1,DEGREES(IMARGUMENT(K23)),'CM choke'!D27)=0, D22, IF(CMdata=1,DEGREES(IMARGUMENT(K23)),'CM choke'!D27)) -> 87.11509705 | E23: =IF(IF(CMdata=1,IMABS(L23),'CM choke'!E27)=0, E22, IF(CMdata=1,IMABS(L23),'CM choke'!E27)) -> 8.266537666 | F23: =IF(IF(CMdata=1,DEGREES(IMARGUMENT(L23)),'CM choke'!F27)=0, F22, IF(CMdata=1,DEGREES(IMARGUMENT(L23)),'CM choke'!F27)) -> 87.11509705 | G23: 0.4160530436 | H23: 8.256061098 | I23: 0.4160530436 | J23: 8.256061098 | K23: =IF(CMdata=1, IF(Lcm1_core=1, IMDIV(1,IMSUM(IMDIV(1,IMPRODUCT(B23,'Design the AEF circuit'!$G$19*0.001)),IMDIV(1,'Design the AEF circuit'!$G$20*1000),IMPRODUCT(B23,'Design the AEF circuit'!$G$21*0.000000000001))), O23),COMPLEX(G23,H23,"j")) -> 0.416053043648537+8.25606109797874j | L23: =IF(CMdata=1, IF(Lcm2_core=1, IMDIV(1, IMSUM(IMDIV(1,IMPRODUCT(B23,'Design the AEF circuit'!$H$19*0.001)), IMDIV(1,'Design the AEF circuit'!$H$20*1000), IMPRODUCT(B23,'Design the AEF circuit'!$H$21*0.000000000001))), Q23), COMPLEX(I23,J23,"j")) -> 0.416053043648537+8.25606109797874j | N23: =IMSUM(IMDIV(1,IMSUM(IMDIV(1,IMPRODUCT(B23,'Design the AEF circuit'!$G$19*0.001)),IMDIV(1,'Design the AEF circuit'!$G$20*1000))), IMDIV(1,IMSUM(IMDIV(1,IMPRODUCT(B23,'Design the AEF circuit'!$G$22*0.001)),IMDIV(1,'Design the AEF circuit'!$G$23*1000))), IMDIV(1,IMSUM(IMDIV(1,IMPRODUCT(B23,'Design the AEF circuit'!$G$24*0.001)),IMDIV(1,'Design the AEF circuit'!$G$25*1000))) ) -> 0.156589083596819+7.2738528059737j | O23: =IMDIV(1, IMSUM( IMDIV(1, N23), IMPRODUCT(B23,'Design the AEF circuit'!$G$21*0.000000000001))) -> 0.156589204904237+7.27385562214448j | P23: =IMSUM(IMDIV(1,IMSUM(IMDIV(1,IMPRODUCT(B23,'Design the AEF circuit'!$H$19*0.001)),IMDIV(1,'Design the AEF circuit'!$H$20*1000))), IMDIV(1,IMSUM(IMDIV(1,IMPRODUCT(B23,'Design the AEF circuit'!$H$22*0.001)),IMDIV(1,'Design the AEF circuit'!$H$23*1000))), IMDIV(1,IMSUM(IMDIV(1,IMPRODUCT(B23,'Design the AEF circuit'!$H$24*0.001)),IMDIV(1,'Design the AEF circuit'!$H$25*1000))) ) -> 0.156589083596819+7.2738528059737j | Q23: =IMDIV(1, IMSUM( IMDIV(1, P23), IMPRODUCT(B23,'Design the AEF circuit'!$H$21*0.000000000001) ) ) -> 0.156589204904237+7.27385562214448j
A24: ='Frequency vector'!G24 -> 1437.143053 | B24: =COMPLEX(0,2*PI()*'Frequency vector'!G24,"j") -> 9029.83611718676j | C24: =IF(IF(CMdata=1,IMABS(K24),'CM choke'!C28)=0, C23, IF(CMdata=1,IMABS(K24),'CM choke'!C28)) -> 8.426178932 | D24: =IF(IF(CMdata=1,DEGREES(IMARGUMENT(K24)),'CM choke'!D28)=0, D23, IF(CMdata=1,DEGREES(IMARGUMENT(K24)),'CM choke'!D28)) -> 87.07208252 | E24: =IF(IF(CMdata=1,IMABS(L24),'CM choke'!E28)=0, E23, IF(CMdata=1,IMABS(L24),'CM choke'!E28)) -> 8.426178932 | F24: =IF(IF(CMdata=1,DEGREES(IMARGUMENT(L24)),'CM choke'!F28)=0, F23, IF(CMdata=1,DEGREES(IMARGUMENT(L24)),'CM choke'!F28)) -> 87.07208252 | G24: 0.4304055293 | H24: 8.41517929 | I24: 0.4304055293 | J24: 8.41517929 | K24: =IF(CMdata=1, IF(Lcm1_core=1, IMDIV(1,IMSUM(IMDIV(1,IMPRODUCT(B24,'Design the AEF circuit'!$G$19*0.001)),IMDIV(1,'Design the AEF circuit'!$G$20*1000),IMPRODUCT(B24,'Design the AEF circuit'!$G$21*0.000000000001))), O24),COMPLEX(G24,H24,"j")) -> 0.430405529270638+8.41517928969169j | L24: =IF(CMdata=1, IF(Lcm2_core=1, IMDIV(1, IMSUM(IMDIV(1,IMPRODUCT(B24,'Design the AEF circuit'!$H$19*0.001)), IMDIV(1,'Design the AEF circuit'!$H$20*1000), IMPRODUCT(B24,'Design the AEF circuit'!$H$21*0.000000000001))), Q24), COMPLEX(I24,J24,"j")) -> 0.430405529270638+8.41517928969169j | N24: =IMSUM(IMDIV(1,IMSUM(IMDIV(1,IMPRODUCT(B24,'Design the AEF circuit'!$G$19*0.001)),IMDIV(1,'Design the AEF circuit'!$G$20*1000))), IMDIV(1,IMSUM(IMDIV(1,IMPRODUCT(B24,'Design the AEF circuit'!$G$22*0.001)),IMDIV(1,'Design the AEF circuit'!$G$23*1000))), IMDIV(1,IMSUM(IMDIV(1,IMPRODUCT(B24,'Design the AEF circuit'!$G$24*0.001)),IMDIV(1,'Design the AEF circuit'!$G$25*1000))) ) -> 0.162088498774753+7.40042150207095j | O24: =IMDIV(1, IMSUM( IMDIV(1, N24), IMPRODUCT(B24,'Design the AEF circuit'!$G$21*0.000000000001))) -> 0.162088628752808+7.40042446782967j | P24: =IMSUM(IMDIV(1,IMSUM(IMDIV(1,IMPRODUCT(B24,'Design the AEF circuit'!$H$19*0.001)),IMDIV(1,'Design the AEF circuit'!$H$20*1000))), IMDIV(1,IMSUM(IMDIV(1,IMPRODUCT(B24,'Design the AEF circuit'!$H$22*0.001)),IMDIV(1,'Design the AEF circuit'!$H$23*1000))), IMDIV(1,IMSUM(IMDIV(1,IMPRODUCT(B24,'Design the AEF circuit'!$H$24*0.001)),IMDIV(1,'Design the AEF circuit'!$H$25*1000))) ) -> 0.162088498774753+7.40042150207095j | Q24: =IMDIV(1, IMSUM( IMDIV(1, P24), IMPRODUCT(B24,'Design the AEF circuit'!$H$21*0.000000000001) ) ) -> 0.162088628752808+7.40042446782967j
A25: ='Frequency vector'!G25 -> 1462.177174 | B25: =COMPLEX(0,2*PI()*'Frequency vector'!G25,"j") -> 9187.13013906043j | C25: =IF(IF(CMdata=1,IMABS(K25),'CM choke'!C29)=0, C24, IF(CMdata=1,IMABS(K25),'CM choke'!C29)) -> 8.570441246 | D25: =IF(IF(CMdata=1,DEGREES(IMARGUMENT(K25)),'CM choke'!D29)=0, D24, IF(CMdata=1,DEGREES(IMARGUMENT(K25)),'CM choke'!D29)) -> 87.03477478 | E25: =IF(IF(CMdata=1,IMABS(L25),'CM choke'!E29)=0, E24, IF(CMdata=1,IMABS(L25),'CM choke'!E29)) -> 8.570441246 | F25: =IF(IF(CMdata=1,DEGREES(IMARGUMENT(L25)),'CM choke'!F29)=0, F24, IF(CMdata=1,DEGREES(IMARGUMENT(L25)),'CM choke'!F29)) -> 87.03477478 | G25: 0.4433475888 | H25: 8.558966413 | I25: 0.4433475888 | J25: 8.558966413 | K25: =IF(CMdata=1, IF(Lcm1_core=1, IMDIV(1,IMSUM(IMDIV(1,IMPRODUCT(B25,'Design the AEF circuit'!$G$19*0.001)),IMDIV(1,'Design the AEF circuit'!$G$20*1000),IMPRODUCT(B25,'Design the AEF circuit'!$G$21*0.000000000001))), O25),COMPLEX(G25,H25,"j")) -> 0.443347588756591+8.55896641348685j | L25: =IF(CMdata=1, IF(Lcm2_core=1, IMDIV(1, IMSUM(IMDIV(1,IMPRODUCT(B25,'Design the AEF circuit'!$H$19*0.001)), IMDIV(1,'Design the AEF circuit'!$H$20*1000), IMPRODUCT(B25,'Design the AEF circuit'!$H$21*0.000000000001))), Q25), COMPLEX(I25,J25,"j")) -> 0.443347588756591+8.55896641348685j | N25: =IMSUM(IMDIV(1,IMSUM(IMDIV(1,IMPRODUCT(B25,'Design the AEF circuit'!$G$19*0.001)),IMDIV(1,'Design the AEF circuit'!$G$20*1000))), IMDIV(1,IMSUM(IMDIV(1,IMPRODUCT(B25,'Design the AEF circuit'!$G$22*0.001)),IMDIV(1,'Design the AEF circuit'!$G$23*1000))), IMDIV(1,IMSUM(IMDIV(1,IMPRODUCT(B25,'Design the AEF circuit'!$G$24*0.001)),IMDIV(1,'Design the AEF circuit'!$G$25*1000))) ) -> 0.167780927701205+7.52918765503086j | O25: =IMDIV(1, IMSUM( IMDIV(1, N25), IMPRODUCT(B25,'Design the AEF circuit'!$G$21*0.000000000001))) -> 0.16778106696945+7.5291907783174j | P25: =IMSUM(IMDIV(1,IMSUM(IMDIV(1,IMPRODUCT(B25,'Design the AEF circuit'!$H$19*0.001)),IMDIV(1,'Design the AEF circuit'!$H$20*1000))), IMDIV(1,IMSUM(IMDIV(1,IMPRODUCT(B25,'Design the AEF circuit'!$H$22*0.001)),IMDIV(1,'Design the AEF circuit'!$H$23*1000))), IMDIV(1,IMSUM(IMDIV(1,IMPRODUCT(B25,'Design the AEF circuit'!$H$24*0.001)),IMDIV(1,'Design the AEF circuit'!$H$25*1000))) ) -> 0.167780927701205+7.52918765503086j | Q25: =IMDIV(1, IMSUM( IMDIV(1, P25), IMPRODUCT(B25,'Design the AEF circuit'!$H$21*0.000000000001) ) ) -> 0.16778106696945+7.5291907783174j
A26: ='Frequency vector'!G26 -> 1487.647374 | B26: =COMPLEX(0,2*PI()*'Frequency vector'!G26,"j") -> 9347.16412308375j | C26: =IF(IF(CMdata=1,IMABS(K26),'CM choke'!C30)=0, C25, IF(CMdata=1,IMABS(K26),'CM choke'!C30)) -> 8.700901031 | D26: =IF(IF(CMdata=1,DEGREES(IMARGUMENT(K26)),'CM choke'!D30)=0, D25, IF(CMdata=1,DEGREES(IMARGUMENT(K26)),'CM choke'!D30)) -> 86.96448517 | E26: =IF(IF(CMdata=1,IMABS(L26),'CM choke'!E30)=0, E25, IF(CMdata=1,IMABS(L26),'CM choke'!E30)) -> 8.700901031 | F26: =IF(IF(CMdata=1,DEGREES(IMARGUMENT(L26)),'CM choke'!F30)=0, F25, IF(CMdata=1,DEGREES(IMARGUMENT(L26)),'CM choke'!F30)) -> 86.96448517 | G26: 0.4607557565 | H26: 8.688692818 | I26: 0.4607557565 | J26: 8.688692818 | K26: =IF(CMdata=1, IF(Lcm1_core=1, IMDIV(1,IMSUM(IMDIV(1,IMPRODUCT(B26,'Design the AEF circuit'!$G$19*0.001)),IMDIV(1,'Design the AEF circuit'!$G$20*1000),IMPRODUCT(B26,'Design the AEF circuit'!$G$21*0.000000000001))), O26),COMPLEX(G26,H26,"j")) -> 0.46075575652688+8.68869281840548j | L26: =IF(CMdata=1, IF(Lcm2_core=1, IMDIV(1, IMSUM(IMDIV(1,IMPRODUCT(B26,'Design the AEF circuit'!$H$19*0.001)), IMDIV(1,'Design the AEF circuit'!$H$20*1000), IMPRODUCT(B26,'Design the AEF circuit'!$H$21*0.000000000001))), Q26), COMPLEX(I26,J26,"j")) -> 0.46075575652688+8.68869281840548j | N26: =IMSUM(IMDIV(1,IMSUM(IMDIV(1,IMPRODUCT(B26,'Design the AEF circuit'!$G$19*0.001)),IMDIV(1,'Design the AEF circuit'!$G$20*1000))), IMDIV(1,IMSUM(IMDIV(1,IMPRODUCT(B26,'Design the AEF circuit'!$G$22*0.001)),IMDIV(1,'Design the AEF circuit'!$G$23*1000))), IMDIV(1,IMSUM(IMDIV(1,IMPRODUCT(B26,'Design the AEF circuit'!$G$24*0.001)),IMDIV(1,'Design the AEF circuit'!$G$25*1000))) ) -> 0.173673135607103+7.66018915614244j | O26: =IMDIV(1, IMSUM( IMDIV(1, N26), IMPRODUCT(B26,'Design the AEF circuit'!$G$21*0.000000000001))) -> 0.173673284829335+7.66019244531755j | P26: =IMSUM(IMDIV(1,IMSUM(IMDIV(1,IMPRODUCT(B26,'Design the AEF circuit'!$H$19*0.001)),IMDIV(1,'Design the AEF circuit'!$H$20*1000))), IMDIV(1,IMSUM(IMDIV(1,IMPRODUCT(B26,'Design the AEF circuit'!$H$22*0.001)),IMDIV(1,'Design the AEF circuit'!$H$23*1000))), IMDIV(1,IMSUM(IMDIV(1,IMPRODUCT(B26,'Design the AEF circuit'!$H$24*0.001)),IMDIV(1,'Design the AEF circuit'!$H$25*1000))) ) -> 0.173673135607103+7.66018915614244j | Q26: =IMDIV(1, IMSUM( IMDIV(1, P26), IMPRODUCT(B26,'Design the AEF circuit'!$H$21*0.000000000001) ) ) -> 0.173673284829335+7.66019244531755j
A27: ='Frequency vector'!G27 -> 1513.561248 | B27: =COMPLEX(0,2*PI()*'Frequency vector'!G27,"j") -> 9509.9857977146j | C27: =IF(IF(CMdata=1,IMABS(K27),'CM choke'!C31)=0, C26, IF(CMdata=1,IMABS(K27),'CM choke'!C31)) -> 8.862319946 | D27: =IF(IF(CMdata=1,DEGREES(IMARGUMENT(K27)),'CM choke'!D31)=0, D26, IF(CMdata=1,DEGREES(IMARGUMENT(K27)),'CM choke'!D31)) -> 86.86663055 | E27: =IF(IF(CMdata=1,IMABS(L27),'CM choke'!E31)=0, E26, IF(CMdata=1,IMABS(L27),'CM choke'!E31)) -> 8.862319946 | F27: =IF(IF(CMdata=1,DEGREES(IMARGUMENT(L27)),'CM choke'!F31)=0, F26, IF(CMdata=1,DEGREES(IMARGUMENT(L27)),'CM choke'!F31)) -> 86.86663055 | G27: 0.484417583 | H27: 8.849070823 | I27: 0.484417583 | J27: 8.849070823 | K27: =IF(CMdata=1, IF(Lcm1_core=1, IMDIV(1,IMSUM(IMDIV(1,IMPRODUCT(B27,'Design the AEF circuit'!$G$19*0.001)),IMDIV(1,'Design the AEF circuit'!$G$20*1000),IMPRODUCT(B27,'Design the AEF circuit'!$G$21*0.000000000001))), O27),COMPLEX(G27,H27,"j")) -> 0.484417582977363+8.84907082329619j | L27: =IF(CMdata=1, IF(Lcm2_core=1, IMDIV(1, IMSUM(IMDIV(1,IMPRODUCT(B27,'Design the AEF circuit'!$H$19*0.001)), IMDIV(1,'Design the AEF circuit'!$H$20*1000), IMPRODUCT(B27,'Design the AEF circuit'!$H$21*0.000000000001))), Q27), COMPLEX(I27,J27,"j")) -> 0.484417582977363+8.84907082329619j | N27: =IMSUM(IMDIV(1,IMSUM(IMDIV(1,IMPRODUCT(B27,'Design the AEF circuit'!$G$19*0.001)),IMDIV(1,'Design the AEF circuit'!$G$20*1000))), IMDIV(1,IMSUM(IMDIV(1,IMPRODUCT(B27,'Design the AEF circuit'!$G$22*0.001)),IMDIV(1,'Design the AEF circuit'!$G$23*1000))), IMDIV(1,IMSUM(IMDIV(1,IMPRODUCT(B27,'Design the AEF circuit'!$G$24*0.001)),IMDIV(1,'Design the AEF circuit'!$G$25*1000))) ) -> 0.179772124205967+7.79346453622986j | O27: =IMDIV(1, IMSUM( IMDIV(1, N27), IMPRODUCT(B27,'Design the AEF circuit'!$G$21*0.000000000001))) -> 0.179772284093397+7.79346800009757j | P27: =IMSUM(IMDIV(1,IMSUM(IMDIV(1,IMPRODUCT(B27,'Design the AEF circuit'!$H$19*0.001)),IMDIV(1,'Design the AEF circuit'!$H$20*1000))), IMDIV(1,IMSUM(IMDIV(1,IMPRODUCT(B27,'Design the AEF circuit'!$H$22*0.001)),IMDIV(1,'Design the AEF circuit'!$H$23*1000))), IMDIV(1,IMSUM(IMDIV(1,IMPRODUCT(B27,'Design the AEF circuit'!$H$24*0.001)),IMDIV(1,'Design the AEF circuit'!$H$25*1000))) ) -> 0.179772124205967+7.79346453622986j | Q27: =IMDIV(1, IMSUM( IMDIV(1, P27), IMPRODUCT(B27,'Design the AEF circuit'!$H$21*0.000000000001) ) ) -> 0.179772284093397+7.79346800009757j
A28: ='Frequency vector'!G28 -> 1539.926526 | B28: =COMPLEX(0,2*PI()*'Frequency vector'!G28,"j") -> 9675.64372267629j | C28: =IF(IF(CMdata=1,IMABS(K28),'CM choke'!C32)=0, C27, IF(CMdata=1,IMABS(K28),'CM choke'!C32)) -> 9.014159203 | D28: =IF(IF(CMdata=1,DEGREES(IMARGUMENT(K28)),'CM choke'!D32)=0, D27, IF(CMdata=1,DEGREES(IMARGUMENT(K28)),'CM choke'!D32)) -> 86.90089416 | E28: =IF(IF(CMdata=1,IMABS(L28),'CM choke'!E32)=0, E27, IF(CMdata=1,IMABS(L28),'CM choke'!E32)) -> 9.014159203 | F28: =IF(IF(CMdata=1,DEGREES(IMARGUMENT(L28)),'CM choke'!F32)=0, F27, IF(CMdata=1,DEGREES(IMARGUMENT(L28)),'CM choke'!F32)) -> 86.90089416 | G28: 0.4873345594 | H28: 9.000976122 | I28: 0.4873345594 | J28: 9.000976122 | K28: =IF(CMdata=1, IF(Lcm1_core=1, IMDIV(1,IMSUM(IMDIV(1,IMPRODUCT(B28,'Design the AEF circuit'!$G$19*0.001)),IMDIV(1,'Design the AEF circuit'!$G$20*1000),IMPRODUCT(B28,'Design the AEF circuit'!$G$21*0.000000000001))), O28),COMPLEX(G28,H28,"j")) -> 0.48733455944744+9.00097612243394j | L28: =IF(CMdata=1, IF(Lcm2_core=1, IMDIV(1, IMSUM(IMDIV(1,IMPRODUCT(B28,'Design the AEF circuit'!$H$19*0.001)), IMDIV(1,'Design the AEF circuit'!$H$20*1000), IMPRODUCT(B28,'Design the AEF circuit'!$H$21*0.000000000001))), Q28), COMPLEX(I28,J28,"j")) -> 0.48733455944744+9.00097612243394j | N28: =IMSUM(IMDIV(1,IMSUM(IMDIV(1,IMPRODUCT(B28,'Design the AEF circuit'!$G$19*0.001)),IMDIV(1,'Design the AEF circuit'!$G$20*1000))), IMDIV(1,IMSUM(IMDIV(1,IMPRODUCT(B28,'Design the AEF circuit'!$G$22*0.001)),IMDIV(1,'Design the AEF circuit'!$G$23*1000))), IMDIV(1,IMSUM(IMDIV(1,IMPRODUCT(B28,'Design the AEF circuit'!$G$24*0.001)),IMDIV(1,'Design the AEF circuit'!$G$25*1000))) ) -> 0.186085139908193+7.92905297557466j | O28: =IMDIV(1, IMSUM( IMDIV(1, N28), IMPRODUCT(B28,'Design the AEF circuit'!$G$21*0.000000000001))) -> 0.186085311222811+7.92905662340546j | P28: =IMSUM(IMDIV(1,IMSUM(IMDIV(1,IMPRODUCT(B28,'Design the AEF circuit'!$H$19*0.001)),IMDIV(1,'Design the AEF circuit'!$H$20*1000))), IMDIV(1,IMSUM(IMDIV(1,IMPRODUCT(B28,'Design the AEF circuit'!$H$22*0.001)),IMDIV(1,'Design the AEF circuit'!$H$23*1000))), IMDIV(1,IMSUM(IMDIV(1,IMPRODUCT(B28,'Design the AEF circuit'!$H$24*0.001)),IMDIV(1,'Design the AEF circuit'!$H$25*1000))) ) -> 0.186085139908193+7.92905297557466j | Q28: =IMDIV(1, IMSUM( IMDIV(1, P28), IMPRODUCT(B28,'Design the AEF circuit'!$H$21*0.000000000001) ) ) -> 0.186085311222811+7.92905662340546j
A29: ='Frequency vector'!G29 -> 1566.75107 | B29: =COMPLEX(0,2*PI()*'Frequency vector'!G29,"j") -> 9844.18730372305j | C29: =IF(IF(CMdata=1,IMABS(K29),'CM choke'!C33)=0, C28, IF(CMdata=1,IMABS(K29),'CM choke'!C33)) -> 9.17023468 | D29: =IF(IF(CMdata=1,DEGREES(IMARGUMENT(K29)),'CM choke'!D33)=0, D28, IF(CMdata=1,DEGREES(IMARGUMENT(K29)),'CM choke'!D33)) -> 86.81458282 | E29: =IF(IF(CMdata=1,IMABS(L29),'CM choke'!E33)=0, E28, IF(CMdata=1,IMABS(L29),'CM choke'!E33)) -> 9.17023468 | F29: =IF(IF(CMdata=1,DEGREES(IMARGUMENT(L29)),'CM choke'!F33)=0, F28, IF(CMdata=1,DEGREES(IMARGUMENT(L29)),'CM choke'!F33)) -> 86.81458282 | G29: 0.5095659311 | H29: 9.156066112 | I29: 0.5095659311 | J29: 9.156066112 | K29: =IF(CMdata=1, IF(Lcm1_core=1, IMDIV(1,IMSUM(IMDIV(1,IMPRODUCT(B29,'Design the AEF circuit'!$G$19*0.001)),IMDIV(1,'Design the AEF circuit'!$G$20*1000),IMPRODUCT(B29,'Design the AEF circuit'!$G$21*0.000000000001))), O29),COMPLEX(G29,H29,"j")) -> 0.509565931088362+9.15606611222582j | L29: =IF(CMdata=1, IF(Lcm2_core=1, IMDIV(1, IMSUM(IMDIV(1,IMPRODUCT(B29,'Design the AEF circuit'!$H$19*0.001)), IMDIV(1,'Design the AEF circuit'!$H$20*1000), IMPRODUCT(B29,'Design the AEF circuit'!$H$21*0.000000000001))), Q29), COMPLEX(I29,J29,"j")) -> 0.509565931088362+9.15606611222582j | N29: =IMSUM(IMDIV(1,IMSUM(IMDIV(1,IMPRODUCT(B29,'Design the AEF circuit'!$G$19*0.001)),IMDIV(1,'Design the AEF circuit'!$G$20*1000))), IMDIV(1,IMSUM(IMDIV(1,IMPRODUCT(B29,'Design the AEF circuit'!$G$22*0.001)),IMDIV(1,'Design the AEF circuit'!$G$23*1000))), IMDIV(1,IMSUM(IMDIV(1,IMPRODUCT(B29,'Design the AEF circuit'!$G$24*0.001)),IMDIV(1,'Design the AEF circuit'!$G$25*1000))) ) -> 0.192619682334471+8.06699431431811j | O29: =IMDIV(1, IMSUM( IMDIV(1, N29), IMPRODUCT(B29,'Design the AEF circuit'!$G$21*0.000000000001))) -> 0.192619865892691+8.06699815587395j | P29: =IMSUM(IMDIV(1,IMSUM(IMDIV(1,IMPRODUCT(B29,'Design the AEF circuit'!$H$19*0.001)),IMDIV(1,'Design the AEF circuit'!$H$20*1000))), IMDIV(1,IMSUM(IMDIV(1,IMPRODUCT(B29,'Design the AEF circuit'!$H$22*0.001)),IMDIV(1,'Design the AEF circuit'!$H$23*1000))), IMDIV(1,IMSUM(IMDIV(1,IMPRODUCT(B29,'Design the AEF circuit'!$H$24*0.001)),IMDIV(1,'Design the AEF circuit'!$H$25*1000))) ) -> 0.192619682334471+8.06699431431811j | Q29: =IMDIV(1, IMSUM( IMDIV(1, P29), IMPRODUCT(B29,'Design the AEF circuit'!$H$21*0.000000000001) ) ) -> 0.192619865892691+8.06699815587395j
A30: ='Frequency vector'!G30 -> 1594.042881 | B30: =COMPLEX(0,2*PI()*'Frequency vector'!G30,"j") -> 10015.6668070913j | C30: =IF(IF(CMdata=1,IMABS(K30),'CM choke'!C34)=0, C29, IF(CMdata=1,IMABS(K30),'CM choke'!C34)) -> 9.324559212 | D30: =IF(IF(CMdata=1,DEGREES(IMARGUMENT(K30)),'CM choke'!D34)=0, D29, IF(CMdata=1,DEGREES(IMARGUMENT(K30)),'CM choke'!D34)) -> 86.83856964 | E30: =IF(IF(CMdata=1,IMABS(L30),'CM choke'!E34)=0, E29, IF(CMdata=1,IMABS(L30),'CM choke'!E34)) -> 9.324559212 | F30: =IF(IF(CMdata=1,DEGREES(IMARGUMENT(L30)),'CM choke'!F34)=0, F29, IF(CMdata=1,DEGREES(IMARGUMENT(L30)),'CM choke'!F34)) -> 86.83856964 | G30: 0.5142436108 | H30: 9.310368306 | I30: 0.5142436108 | J30: 9.310368306 | K30: =IF(CMdata=1, IF(Lcm1_core=1, IMDIV(1,IMSUM(IMDIV(1,IMPRODUCT(B30,'Design the AEF circuit'!$G$19*0.001)),IMDIV(1,'Design the AEF circuit'!$G$20*1000),IMPRODUCT(B30,'Design the AEF circuit'!$G$21*0.000000000001))), O30),COMPLEX(G30,H30,"j")) -> 0.514243610756566+9.3103683064557j | L30: =IF(CMdata=1, IF(Lcm2_core=1, IMDIV(1, IMSUM(IMDIV(1,IMPRODUCT(B30,'Design the AEF circuit'!$H$19*0.001)), IMDIV(1,'Design the AEF circuit'!$H$20*1000), IMPRODUCT(B30,'Design the AEF circuit'!$H$21*0.000000000001))), Q30), COMPLEX(I30,J30,"j")) -> 0.514243610756566+9.3103683064557j | N30: =IMSUM(IMDIV(1,IMSUM(IMDIV(1,IMPRODUCT(B30,'Design the AEF circuit'!$G$19*0.001)),IMDIV(1,'Design the AEF circuit'!$G$20*1000))), IMDIV(1,IMSUM(IMDIV(1,IMPRODUCT(B30,'Design the AEF circuit'!$G$22*0.001)),IMDIV(1,'Design the AEF circuit'!$G$23*1000))), IMDIV(1,IMSUM(IMDIV(1,IMPRODUCT(B30,'Design the AEF circuit'!$G$24*0.001)),IMDIV(1,'Design the AEF circuit'!$G$25*1000))) ) -> 0.199383513099722+8.20732906251649j | O30: =IMDIV(1, IMSUM( IMDIV(1, N30), IMPRODUCT(B30,'Design the AEF circuit'!$G$21*0.000000000001))) -> 0.199383709776247+8.20733310807647j | P30: =IMSUM(IMDIV(1,IMSUM(IMDIV(1,IMPRODUCT(B30,'Design the AEF circuit'!$H$19*0.001)),IMDIV(1,'Design the AEF circuit'!$H$20*1000))), IMDIV(1,IMSUM(IMDIV(1,IMPRODUCT(B30,'Design the AEF circuit'!$H$22*0.001)),IMDIV(1,'Design the AEF circuit'!$H$23*1000))), IMDIV(1,IMSUM(IMDIV(1,IMPRODUCT(B30,'Design the AEF circuit'!$H$24*0.001)),IMDIV(1,'Design the AEF circuit'!$H$25*1000))) ) -> 0.199383513099722+8.20732906251649j | Q30: =IMDIV(1, IMSUM( IMDIV(1, P30), IMPRODUCT(B30,'Design the AEF circuit'!$H$21*0.000000000001) ) ) -> 0.199383709776247+8.20733310807647j
A31: ='Frequency vector'!G31 -> 1621.810097 | B31: =COMPLEX(0,2*PI()*'Frequency vector'!G31,"j") -> 10190.1333747678j | C31: =IF(IF(CMdata=1,IMABS(K31),'CM choke'!C35)=0, C30, IF(CMdata=1,IMABS(K31),'CM choke'!C35)) -> 9.488832474 | D31: =IF(IF(CMdata=1,DEGREES(IMARGUMENT(K31)),'CM choke'!D35)=0, D30, IF(CMdata=1,DEGREES(IMARGUMENT(K31)),'CM choke'!D35)) -> 86.75388336 | E31: =IF(IF(CMdata=1,IMABS(L31),'CM choke'!E35)=0, E30, IF(CMdata=1,IMABS(L31),'CM choke'!E35)) -> 9.488832474 | F31: =IF(IF(CMdata=1,DEGREES(IMARGUMENT(L31)),'CM choke'!F35)=0, F30, IF(CMdata=1,DEGREES(IMARGUMENT(L31)),'CM choke'!F35)) -> 86.75388336 | G31: 0.5373062679 | H31: 9.473607744 | I31: 0.5373062679 | J31: 9.473607744 | K31: =IF(CMdata=1, IF(Lcm1_core=1, IMDIV(1,IMSUM(IMDIV(1,IMPRODUCT(B31,'Design the AEF circuit'!$G$19*0.001)),IMDIV(1,'Design the AEF circuit'!$G$20*1000),IMPRODUCT(B31,'Design the AEF circuit'!$G$21*0.000000000001))), O31),COMPLEX(G31,H31,"j")) -> 0.537306267923366+9.47360774411431j | L31: =IF(CMdata=1, IF(Lcm2_core=1, IMDIV(1, IMSUM(IMDIV(1,IMPRODUCT(B31,'Design the AEF circuit'!$H$19*0.001)), IMDIV(1,'Design the AEF circuit'!$H$20*1000), IMPRODUCT(B31,'Design the AEF circuit'!$H$21*0.000000000001))), Q31), COMPLEX(I31,J31,"j")) -> 0.537306267923366+9.47360774411431j | N31: =IMSUM(IMDIV(1,IMSUM(IMDIV(1,IMPRODUCT(B31,'Design the AEF circuit'!$G$19*0.001)),IMDIV(1,'Design the AEF circuit'!$G$20*1000))), IMDIV(1,IMSUM(IMDIV(1,IMPRODUCT(B31,'Design the AEF circuit'!$G$22*0.001)),IMDIV(1,'Design the AEF circuit'!$G$23*1000))), IMDIV(1,IMSUM(IMDIV(1,IMPRODUCT(B31,'Design the AEF circuit'!$G$24*0.001)),IMDIV(1,'Design the AEF circuit'!$G$25*1000))) ) -> 0.206384664920261+8.35009841077117j | O31: =IMDIV(1, IMSUM( IMDIV(1, N31), IMPRODUCT(B31,'Design the AEF circuit'!$G$21*0.000000000001))) -> 0.206384875652248+8.35010267115898j | P31: =IMSUM(IMDIV(1,IMSUM(IMDIV(1,IMPRODUCT(B31,'Design the AEF circuit'!$H$19*0.001)),IMDIV(1,'Design the AEF circuit'!$H$20*1000))), IMDIV(1,IMSUM(IMDIV(1,IMPRODUCT(B31,'Design the AEF circuit'!$H$22*0.001)),IMDIV(1,'Design the AEF circuit'!$H$23*1000))), IMDIV(1,IMSUM(IMDIV(1,IMPRODUCT(B31,'Design the AEF circuit'!$H$24*0.001)),IMDIV(1,'Design the AEF circuit'!$H$25*1000))) ) -> 0.206384664920261+8.35009841077117j | Q31: =IMDIV(1, IMSUM( IMDIV(1, P31), IMPRODUCT(B31,'Design the AEF circuit'!$H$21*0.000000000001) ) ) -> 0.206384875652248+8.35010267115898j
A32: ='Frequency vector'!G32 -> 1650.061001 | B32: =COMPLEX(0,2*PI()*'Frequency vector'!G32,"j") -> 10367.6390394439j | C32: =IF(IF(CMdata=1,IMABS(K32),'CM choke'!C36)=0, C31, IF(CMdata=1,IMABS(K32),'CM choke'!C36)) -> 9.65196991 | D32: =IF(IF(CMdata=1,DEGREES(IMARGUMENT(K32)),'CM choke'!D36)=0, D31, IF(CMdata=1,DEGREES(IMARGUMENT(K32)),'CM choke'!D36)) -> 86.69368744 | E32: =IF(IF(CMdata=1,IMABS(L32),'CM choke'!E36)=0, E31, IF(CMdata=1,IMABS(L32),'CM choke'!E36)) -> 9.65196991 | F32: =IF(IF(CMdata=1,DEGREES(IMARGUMENT(L32)),'CM choke'!F36)=0, F31, IF(CMdata=1,DEGREES(IMARGUMENT(L32)),'CM choke'!F36)) -> 86.69368744 | G32: 0.5566678949 | H32: 9.635903901 | I32: 0.5566678949 | J32: 9.635903901 | K32: =IF(CMdata=1, IF(Lcm1_core=1, IMDIV(1,IMSUM(IMDIV(1,IMPRODUCT(B32,'Design the AEF circuit'!$G$19*0.001)),IMDIV(1,'Design the AEF circuit'!$G$20*1000),IMPRODUCT(B32,'Design the AEF circuit'!$G$21*0.000000000001))), O32),COMPLEX(G32,H32,"j")) -> 0.55666789492831+9.63590390113616j | L32: =IF(CMdata=1, IF(Lcm2_core=1, IMDIV(1, IMSUM(IMDIV(1,IMPRODUCT(B32,'Design the AEF circuit'!$H$19*0.001)), IMDIV(1,'Design the AEF circuit'!$H$20*1000), IMPRODUCT(B32,'Design the AEF circuit'!$H$21*0.000000000001))), Q32), COMPLEX(I32,J32,"j")) -> 0.55666789492831+9.63590390113616j | N32: =IMSUM(IMDIV(1,IMSUM(IMDIV(1,IMPRODUCT(B32,'Design the AEF circuit'!$G$19*0.001)),IMDIV(1,'Design the AEF circuit'!$G$20*1000))), IMDIV(1,IMSUM(IMDIV(1,IMPRODUCT(B32,'Design the AEF circuit'!$G$22*0.001)),IMDIV(1,'Design the AEF circuit'!$G$23*1000))), IMDIV(1,IMSUM(IMDIV(1,IMPRODUCT(B32,'Design the AEF circuit'!$G$24*0.001)),IMDIV(1,'Design the AEF circuit'!$G$25*1000))) ) -> 0.213631451010202+8.49534424050167j | O32: =IMDIV(1, IMSUM( IMDIV(1, N32), IMPRODUCT(B32,'Design the AEF circuit'!$G$21*0.000000000001))) -> 0.213631676801724+8.49534872711448j | P32: =IMSUM(IMDIV(1,IMSUM(IMDIV(1,IMPRODUCT(B32,'Design the AEF circuit'!$H$19*0.001)),IMDIV(1,'Design the AEF circuit'!$H$20*1000))), IMDIV(1,IMSUM(IMDIV(1,IMPRODUCT(B32,'Design the AEF circuit'!$H$22*0.001)),IMDIV(1,'Design the AEF circuit'!$H$23*1000))), IMDIV(1,IMSUM(IMDIV(1,IMPRODUCT(B32,'Design the AEF circuit'!$H$24*0.001)),IMDIV(1,'Design the AEF circuit'!$H$25*1000))) ) -> 0.213631451010202+8.49534424050167j | Q32: =IMDIV(1, IMSUM( IMDIV(1, P32), IMPRODUCT(B32,'Design the AEF circuit'!$H$21*0.000000000001) ) ) -> 0.213631676801724+8.49534872711448j
A33: ='Frequency vector'!G33 -> 1678.804018 | B33: =COMPLEX(0,2*PI()*'Frequency vector'!G33,"j") -> 10548.2367402856j | C33: =IF(IF(CMdata=1,IMABS(K33),'CM choke'!C37)=0, C32, IF(CMdata=1,IMABS(K33),'CM choke'!C37)) -> 9.821387291 | D33: =IF(IF(CMdata=1,DEGREES(IMARGUMENT(K33)),'CM choke'!D37)=0, D32, IF(CMdata=1,DEGREES(IMARGUMENT(K33)),'CM choke'!D37)) -> 86.670578 | E33: =IF(IF(CMdata=1,IMABS(L33),'CM choke'!E37)=0, E32, IF(CMdata=1,IMABS(L33),'CM choke'!E37)) -> 9.821387291 | F33: =IF(IF(CMdata=1,DEGREES(IMARGUMENT(L33)),'CM choke'!F37)=0, F32, IF(CMdata=1,DEGREES(IMARGUMENT(L33)),'CM choke'!F37)) -> 86.670578 | G33: 0.5703935529 | H33: 9.804810019 | I33: 0.5703935529 | J33: 9.804810019 | K33: =IF(CMdata=1, IF(Lcm1_core=1, IMDIV(1,IMSUM(IMDIV(1,IMPRODUCT(B33,'Design the AEF circuit'!$G$19*0.001)),IMDIV(1,'Design the AEF circuit'!$G$20*1000),IMPRODUCT(B33,'Design the AEF circuit'!$G$21*0.000000000001))), O33),COMPLEX(G33,H33,"j")) -> 0.570393552850937+9.80481001925586j | L33: =IF(CMdata=1, IF(Lcm2_core=1, IMDIV(1, IMSUM(IMDIV(1,IMPRODUCT(B33,'Design the AEF circuit'!$H$19*0.001)), IMDIV(1,'Design the AEF circuit'!$H$20*1000), IMPRODUCT(B33,'Design the AEF circuit'!$H$21*0.000000000001))), Q33), COMPLEX(I33,J33,"j")) -> 0.570393552850937+9.80481001925586j | N33: =IMSUM(IMDIV(1,IMSUM(IMDIV(1,IMPRODUCT(B33,'Design the AEF circuit'!$G$19*0.001)),IMDIV(1,'Design the AEF circuit'!$G$20*1000))), IMDIV(1,IMSUM(IMDIV(1,IMPRODUCT(B33,'Design the AEF circuit'!$G$22*0.001)),IMDIV(1,'Design the AEF circuit'!$G$23*1000))), IMDIV(1,IMSUM(IMDIV(1,IMPRODUCT(B33,'Design the AEF circuit'!$G$24*0.001)),IMDIV(1,'Design the AEF circuit'!$G$25*1000))) ) -> 0.221132474821804+8.64310913478203j | O33: =IMDIV(1, IMSUM( IMDIV(1, N33), IMPRODUCT(B33,'Design the AEF circuit'!$G$21*0.000000000001))) -> 0.221132716748611+8.64311385962058j | P33: =IMSUM(IMDIV(1,IMSUM(IMDIV(1,IMPRODUCT(B33,'Design the AEF circuit'!$H$19*0.001)),IMDIV(1,'Design the AEF circuit'!$H$20*1000))), IMDIV(1,IMSUM(IMDIV(1,IMPRODUCT(B33,'Design the AEF circuit'!$H$22*0.001)),IMDIV(1,'Design the AEF circuit'!$H$23*1000))), IMDIV(1,IMSUM(IMDIV(1,IMPRODUCT(B33,'Design the AEF circuit'!$H$24*0.001)),IMDIV(1,'Design the AEF circuit'!$H$25*1000))) ) -> 0.221132474821804+8.64310913478203j | Q33: =IMDIV(1, IMSUM( IMDIV(1, P33), IMPRODUCT(B33,'Design the AEF circuit'!$H$21*0.000000000001) ) ) -> 0.221132716748611+8.64311385962058j
A34: ='Frequency vector'!G34 -> 1708.04772 | B34: =COMPLEX(0,2*PI()*'Frequency vector'!G34,"j") -> 10731.9803386426j | C34: =IF(IF(CMdata=1,IMABS(K34),'CM choke'!C38)=0, C33, IF(CMdata=1,IMABS(K34),'CM choke'!C38)) -> 9.990907669 | D34: =IF(IF(CMdata=1,DEGREES(IMARGUMENT(K34)),'CM choke'!D38)=0, D33, IF(CMdata=1,DEGREES(IMARGUMENT(K34)),'CM choke'!D38)) -> 86.64935303 | E34: =IF(IF(CMdata=1,IMABS(L34),'CM choke'!E38)=0, E33, IF(CMdata=1,IMABS(L34),'CM choke'!E38)) -> 9.990907669 | F34: =IF(IF(CMdata=1,DEGREES(IMARGUMENT(L34)),'CM choke'!F38)=0, F33, IF(CMdata=1,DEGREES(IMARGUMENT(L34)),'CM choke'!F38)) -> 86.64935303 | G34: 0.5839335354 | H34: 9.973828637 | I34: 0.5839335354 | J34: 9.973828637 | K34: =IF(CMdata=1, IF(Lcm1_core=1, IMDIV(1,IMSUM(IMDIV(1,IMPRODUCT(B34,'Design the AEF circuit'!$G$19*0.001)),IMDIV(1,'Design the AEF circuit'!$G$20*1000),IMPRODUCT(B34,'Design the AEF circuit'!$G$21*0.000000000001))), O34),COMPLEX(G34,H34,"j")) -> 0.583933535354561+9.97382863689616j | L34: =IF(CMdata=1, IF(Lcm2_core=1, IMDIV(1, IMSUM(IMDIV(1,IMPRODUCT(B34,'Design the AEF circuit'!$H$19*0.001)), IMDIV(1,'Design the AEF circuit'!$H$20*1000), IMPRODUCT(B34,'Design the AEF circuit'!$H$21*0.000000000001))), Q34), COMPLEX(I34,J34,"j")) -> 0.583933535354561+9.97382863689616j | N34: =IMSUM(IMDIV(1,IMSUM(IMDIV(1,IMPRODUCT(B34,'Design the AEF circuit'!$G$19*0.001)),IMDIV(1,'Design the AEF circuit'!$G$20*1000))), IMDIV(1,IMSUM(IMDIV(1,IMPRODUCT(B34,'Design the AEF circuit'!$G$22*0.001)),IMDIV(1,'Design the AEF circuit'!$G$23*1000))), IMDIV(1,IMSUM(IMDIV(1,IMPRODUCT(B34,'Design the AEF circuit'!$G$24*0.001)),IMDIV(1,'Design the AEF circuit'!$G$25*1000))) ) -> 0.22889664010569+8.79343638901728j | O34: =IMDIV(1, IMSUM( IMDIV(1, N34), IMPRODUCT(B34,'Design the AEF circuit'!$G$21*0.000000000001))) -> 0.228896899320329+8.79344136471793j | P34: =IMSUM(IMDIV(1,IMSUM(IMDIV(1,IMPRODUCT(B34,'Design the AEF circuit'!$H$19*0.001)),IMDIV(1,'Design the AEF circuit'!$H$20*1000))), IMDIV(1,IMSUM(IMDIV(1,IMPRODUCT(B34,'Design the AEF circuit'!$H$22*0.001)),IMDIV(1,'Design the AEF circuit'!$H$23*1000))), IMDIV(1,IMSUM(IMDIV(1,IMPRODUCT(B34,'Design the AEF circuit'!$H$24*0.001)),IMDIV(1,'Design the AEF circuit'!$H$25*1000))) ) -> 0.22889664010569+8.79343638901728j | Q34: =IMDIV(1, IMSUM( IMDIV(1, P34), IMPRODUCT(B34,'Design the AEF circuit'!$H$21*0.000000000001) ) ) -> 0.228896899320329+8.79344136471793j
A35: ='Frequency vector'!G35 -> 1737.800829 | B35: =COMPLEX(0,2*PI()*'Frequency vector'!G35,"j") -> 10918.9246340065j | C35: =IF(IF(CMdata=1,IMABS(K35),'CM choke'!C39)=0, C34, IF(CMdata=1,IMABS(K35),'CM choke'!C39)) -> 10.16649723 | D35: =IF(IF(CMdata=1,DEGREES(IMARGUMENT(K35)),'CM choke'!D39)=0, D34, IF(CMdata=1,DEGREES(IMARGUMENT(K35)),'CM choke'!D39)) -> 86.63343048 | E35: =IF(IF(CMdata=1,IMABS(L35),'CM choke'!E39)=0, E34, IF(CMdata=1,IMABS(L35),'CM choke'!E39)) -> 10.16649723 | F35: =IF(IF(CMdata=1,DEGREES(IMARGUMENT(L35)),'CM choke'!F39)=0, F34, IF(CMdata=1,DEGREES(IMARGUMENT(L35)),'CM choke'!F39)) -> 86.63343048 | G35: 0.5970165554 | H35: 10.14895252 | I35: 0.5970165554 | J35: 10.14895252 | K35: =IF(CMdata=1, IF(Lcm1_core=1, IMDIV(1,IMSUM(IMDIV(1,IMPRODUCT(B35,'Design the AEF circuit'!$G$19*0.001)),IMDIV(1,'Design the AEF circuit'!$G$20*1000),IMPRODUCT(B35,'Design the AEF circuit'!$G$21*0.000000000001))), O35),COMPLEX(G35,H35,"j")) -> 0.597016555414259+10.1489525159163j | L35: =IF(CMdata=1, IF(Lcm2_core=1, IMDIV(1, IMSUM(IMDIV(1,IMPRODUCT(B35,'Design the AEF circuit'!$H$19*0.001)), IMDIV(1,'Design the AEF circuit'!$H$20*1000), IMPRODUCT(B35,'Design the AEF circuit'!$H$21*0.000000000001))), Q35), COMPLEX(I35,J35,"j")) -> 0.597016555414259+10.1489525159163j | N35: =IMSUM(IMDIV(1,IMSUM(IMDIV(1,IMPRODUCT(B35,'Design the AEF circuit'!$G$19*0.001)),IMDIV(1,'Design the AEF circuit'!$G$20*1000))), IMDIV(1,IMSUM(IMDIV(1,IMPRODUCT(B35,'Design the AEF circuit'!$G$22*0.001)),IMDIV(1,'Design the AEF circuit'!$G$23*1000))), IMDIV(1,IMSUM(IMDIV(1,IMPRODUCT(B35,'Design the AEF circuit'!$G$24*0.001)),IMDIV(1,'Design the AEF circuit'!$G$25*1000))) ) -> 0.236933161313522+8.94637002170763j | O35: =IMDIV(1, IMSUM( IMDIV(1, N35), IMPRODUCT(B35,'Design the AEF circuit'!$G$21*0.000000000001))) -> 0.236933439050817+8.94637526157591j | P35: =IMSUM(IMDIV(1,IMSUM(IMDIV(1,IMPRODUCT(B35,'Design the AEF circuit'!$H$19*0.001)),IMDIV(1,'Design the AEF circuit'!$H$20*1000))), IMDIV(1,IMSUM(IMDIV(1,IMPRODUCT(B35,'Design the AEF circuit'!$H$22*0.001)),IMDIV(1,'Design the AEF circuit'!$H$23*1000))), IMDIV(1,IMSUM(IMDIV(1,IMPRODUCT(B35,'Design the AEF circuit'!$H$24*0.001)),IMDIV(1,'Design the AEF circuit'!$H$25*1000))) ) -> 0.236933161313522+8.94637002170763j | Q35: =IMDIV(1, IMSUM( IMDIV(1, P35), IMPRODUCT(B35,'Design the AEF circuit'!$H$21*0.000000000001) ) ) -> 0.236933439050817+8.94637526157591j
A36: ='Frequency vector'!G36 -> 1768.072218 | B36: =COMPLEX(0,2*PI()*'Frequency vector'!G36,"j") -> 11109.1253804736j | C36: =IF(IF(CMdata=1,IMABS(K36),'CM choke'!C40)=0, C35, IF(CMdata=1,IMABS(K36),'CM choke'!C40)) -> 10.32996655 | D36: =IF(IF(CMdata=1,DEGREES(IMARGUMENT(K36)),'CM choke'!D40)=0, D35, IF(CMdata=1,DEGREES(IMARGUMENT(K36)),'CM choke'!D40)) -> 86.54706573 | E36: =IF(IF(CMdata=1,IMABS(L36),'CM choke'!E40)=0, E35, IF(CMdata=1,IMABS(L36),'CM choke'!E40)) -> 10.32996655 | F36: =IF(IF(CMdata=1,DEGREES(IMARGUMENT(L36)),'CM choke'!F40)=0, F35, IF(CMdata=1,DEGREES(IMARGUMENT(L36)),'CM choke'!F40)) -> 86.54706573 | G36: 0.6221594144 | H36: 10.31121363 | I36: 0.6221594144 | J36: 10.31121363 | K36: =IF(CMdata=1, IF(Lcm1_core=1, IMDIV(1,IMSUM(IMDIV(1,IMPRODUCT(B36,'Design the AEF circuit'!$G$19*0.001)),IMDIV(1,'Design the AEF circuit'!$G$20*1000),IMPRODUCT(B36,'Design the AEF circuit'!$G$21*0.000000000001))), O36),COMPLEX(G36,H36,"j")) -> 0.622159414428144+10.3112136281779j | L36: =IF(CMdata=1, IF(Lcm2_core=1, IMDIV(1, IMSUM(IMDIV(1,IMPRODUCT(B36,'Design the AEF circuit'!$H$19*0.001)), IMDIV(1,'Design the AEF circuit'!$H$20*1000), IMPRODUCT(B36,'Design the AEF circuit'!$H$21*0.000000000001))), Q36), COMPLEX(I36,J36,"j")) -> 0.622159414428144+10.3112136281779j | N36: =IMSUM(IMDIV(1,IMSUM(IMDIV(1,IMPRODUCT(B36,'Design the AEF circuit'!$G$19*0.001)),IMDIV(1,'Design the AEF circuit'!$G$20*1000))), IMDIV(1,IMSUM(IMDIV(1,IMPRODUCT(B36,'Design the AEF circuit'!$G$22*0.001)),IMDIV(1,'Design the AEF circuit'!$G$23*1000))), IMDIV(1,IMSUM(IMDIV(1,IMPRODUCT(B36,'Design the AEF circuit'!$G$24*0.001)),IMDIV(1,'Design the AEF circuit'!$G$25*1000))) ) -> 0.245251574365485+9.10195478550361j | O36: =IMDIV(1, IMSUM( IMDIV(1, N36), IMPRODUCT(B36,'Design the AEF circuit'!$G$21*0.000000000001))) -> 0.245251871948396+9.10196030354946j | P36: =IMSUM(IMDIV(1,IMSUM(IMDIV(1,IMPRODUCT(B36,'Design the AEF circuit'!$H$19*0.001)),IMDIV(1,'Design the AEF circuit'!$H$20*1000))), IMDIV(1,IMSUM(IMDIV(1,IMPRODUCT(B36,'Design the AEF circuit'!$H$22*0.001)),IMDIV(1,'Design the AEF circuit'!$H$23*1000))), IMDIV(1,IMSUM(IMDIV(1,IMPRODUCT(B36,'Design the AEF circuit'!$H$24*0.001)),IMDIV(1,'Design the AEF circuit'!$H$25*1000))) ) -> 0.245251574365485+9.10195478550361j | Q36: =IMDIV(1, IMSUM( IMDIV(1, P36), IMPRODUCT(B36,'Design the AEF circuit'!$H$21*0.000000000001) ) ) -> 0.245251871948396+9.10196030354946j
A37: ='Frequency vector'!G37 -> 1798.870915 | B37: =COMPLEX(0,2*PI()*'Frequency vector'!G37,"j") -> 11302.6393034575j | C37: =IF(IF(CMdata=1,IMABS(K37),'CM choke'!C41)=0, C36, IF(CMdata=1,IMABS(K37),'CM choke'!C41)) -> 10.51758766 | D37: =IF(IF(CMdata=1,DEGREES(IMARGUMENT(K37)),'CM choke'!D41)=0, D36, IF(CMdata=1,DEGREES(IMARGUMENT(K37)),'CM choke'!D41)) -> 86.5177536 | E37: =IF(IF(CMdata=1,IMABS(L37),'CM choke'!E41)=0, E36, IF(CMdata=1,IMABS(L37),'CM choke'!E41)) -> 10.51758766 | F37: =IF(IF(CMdata=1,DEGREES(IMARGUMENT(L37)),'CM choke'!F41)=0, F36, IF(CMdata=1,DEGREES(IMARGUMENT(L37)),'CM choke'!F41)) -> 86.5177536 | G37: 0.638830447 | H37: 10.49816869 | I37: 0.638830447 | J37: 10.49816869 | K37: =IF(CMdata=1, IF(Lcm1_core=1, IMDIV(1,IMSUM(IMDIV(1,IMPRODUCT(B37,'Design the AEF circuit'!$G$19*0.001)),IMDIV(1,'Design the AEF circuit'!$G$20*1000),IMPRODUCT(B37,'Design the AEF circuit'!$G$21*0.000000000001))), O37),COMPLEX(G37,H37,"j")) -> 0.638830447014035+10.4981686918011j | L37: =IF(CMdata=1, IF(Lcm2_core=1, IMDIV(1, IMSUM(IMDIV(1,IMPRODUCT(B37,'Design the AEF circuit'!$H$19*0.001)), IMDIV(1,'Design the AEF circuit'!$H$20*1000), IMPRODUCT(B37,'Design the AEF circuit'!$H$21*0.000000000001))), Q37), COMPLEX(I37,J37,"j")) -> 0.638830447014035+10.4981686918011j | N37: =IMSUM(IMDIV(1,IMSUM(IMDIV(1,IMPRODUCT(B37,'Design the AEF circuit'!$G$19*0.001)),IMDIV(1,'Design the AEF circuit'!$G$20*1000))), IMDIV(1,IMSUM(IMDIV(1,IMPRODUCT(B37,'Design the AEF circuit'!$G$22*0.001)),IMDIV(1,'Design the AEF circuit'!$G$23*1000))), IMDIV(1,IMSUM(IMDIV(1,IMPRODUCT(B37,'Design the AEF circuit'!$G$24*0.001)),IMDIV(1,'Design the AEF circuit'!$G$25*1000))) ) -> 0.253861747783821+9.26023617833724j | O37: =IMDIV(1, IMSUM( IMDIV(1, N37), IMPRODUCT(B37,'Design the AEF circuit'!$G$21*0.000000000001))) -> 0.253862066629732+9.26024198931222j | P37: =IMSUM(IMDIV(1,IMSUM(IMDIV(1,IMPRODUCT(B37,'Design the AEF circuit'!$H$19*0.001)),IMDIV(1,'Design the AEF circuit'!$H$20*1000))), IMDIV(1,IMSUM(IMDIV(1,IMPRODUCT(B37,'Design the AEF circuit'!$H$22*0.001)),IMDIV(1,'Design the AEF circuit'!$H$23*1000))), IMDIV(1,IMSUM(IMDIV(1,IMPRODUCT(B37,'Design the AEF circuit'!$H$24*0.001)),IMDIV(1,'Design the AEF circuit'!$H$25*1000))) ) -> 0.253861747783821+9.26023617833724j | Q37: =IMDIV(1, IMSUM( IMDIV(1, P37), IMPRODUCT(B37,'Design the AEF circuit'!$H$21*0.000000000001) ) ) -> 0.253862066629732+9.26024198931222j
A38: ='Frequency vector'!G38 -> 1830.206106 | B38: =COMPLEX(0,2*PI()*'Frequency vector'!G38,"j") -> 11499.5241162774j | C38: =IF(IF(CMdata=1,IMABS(K38),'CM choke'!C42)=0, C37, IF(CMdata=1,IMABS(K38),'CM choke'!C42)) -> 10.69663715 | D38: =IF(IF(CMdata=1,DEGREES(IMARGUMENT(K38)),'CM choke'!D42)=0, D37, IF(CMdata=1,DEGREES(IMARGUMENT(K38)),'CM choke'!D42)) -> 86.48651886 | E38: =IF(IF(CMdata=1,IMABS(L38),'CM choke'!E42)=0, E37, IF(CMdata=1,IMABS(L38),'CM choke'!E42)) -> 10.69663715 | F38: =IF(IF(CMdata=1,DEGREES(IMARGUMENT(L38)),'CM choke'!F42)=0, F37, IF(CMdata=1,DEGREES(IMARGUMENT(L38)),'CM choke'!F42)) -> 86.48651886 | G38: 0.6555261785 | H38: 10.67653183 | I38: 0.6555261785 | J38: 10.67653183 | K38: =IF(CMdata=1, IF(Lcm1_core=1, IMDIV(1,IMSUM(IMDIV(1,IMPRODUCT(B38,'Design the AEF circuit'!$G$19*0.001)),IMDIV(1,'Design the AEF circuit'!$G$20*1000),IMPRODUCT(B38,'Design the AEF circuit'!$G$21*0.000000000001))), O38),COMPLEX(G38,H38,"j")) -> 0.655526178464347+10.676531825697j | L38: =IF(CMdata=1, IF(Lcm2_core=1, IMDIV(1, IMSUM(IMDIV(1,IMPRODUCT(B38,'Design the AEF circuit'!$H$19*0.001)), IMDIV(1,'Design the AEF circuit'!$H$20*1000), IMPRODUCT(B38,'Design the AEF circuit'!$H$21*0.000000000001))), Q38), COMPLEX(I38,J38,"j")) -> 0.655526178464347+10.676531825697j | N38: =IMSUM(IMDIV(1,IMSUM(IMDIV(1,IMPRODUCT(B38,'Design the AEF circuit'!$G$19*0.001)),IMDIV(1,'Design the AEF circuit'!$G$20*1000))), IMDIV(1,IMSUM(IMDIV(1,IMPRODUCT(B38,'Design the AEF circuit'!$G$22*0.001)),IMDIV(1,'Design the AEF circuit'!$G$23*1000))), IMDIV(1,IMSUM(IMDIV(1,IMPRODUCT(B38,'Design the AEF circuit'!$G$24*0.001)),IMDIV(1,'Design the AEF circuit'!$G$25*1000))) ) -> 0.262773894187061+9.42126045431618j | O38: =IMDIV(1, IMSUM( IMDIV(1, N38), IMPRODUCT(B38,'Design the AEF circuit'!$G$21*0.000000000001))) -> 0.26277423581452+9.42126657375277j | P38: =IMSUM(IMDIV(1,IMSUM(IMDIV(1,IMPRODUCT(B38,'Design the AEF circuit'!$H$19*0.001)),IMDIV(1,'Design the AEF circuit'!$H$20*1000))), IMDIV(1,IMSUM(IMDIV(1,IMPRODUCT(B38,'Design the AEF circuit'!$H$22*0.001)),IMDIV(1,'Design the AEF circuit'!$H$23*1000))), IMDIV(1,IMSUM(IMDIV(1,IMPRODUCT(B38,'Design the AEF circuit'!$H$24*0.001)),IMDIV(1,'Design the AEF circuit'!$H$25*1000))) ) -> 0.262773894187061+9.42126045431618j | Q38: =IMDIV(1, IMSUM( IMDIV(1, P38), IMPRODUCT(B38,'Design the AEF circuit'!$H$21*0.000000000001) ) ) -> 0.26277423581452+9.42126657375277j
A39: ='Frequency vector'!G39 -> 1862.087137 | B39: =COMPLEX(0,2*PI()*'Frequency vector'!G39,"j") -> 11699.8385377502j | C39: =IF(IF(CMdata=1,IMABS(K39),'CM choke'!C43)=0, C38, IF(CMdata=1,IMABS(K39),'CM choke'!C43)) -> 10.87343597 | D39: =IF(IF(CMdata=1,DEGREES(IMARGUMENT(K39)),'CM choke'!D43)=0, D38, IF(CMdata=1,DEGREES(IMARGUMENT(K39)),'CM choke'!D43)) -> 86.43436432 | E39: =IF(IF(CMdata=1,IMABS(L39),'CM choke'!E43)=0, E38, IF(CMdata=1,IMABS(L39),'CM choke'!E43)) -> 10.87343597 | F39: =IF(IF(CMdata=1,DEGREES(IMARGUMENT(L39)),'CM choke'!F43)=0, F38, IF(CMdata=1,DEGREES(IMARGUMENT(L39)),'CM choke'!F43)) -> 86.43436432 | G39: 0.6762398741 | H39: 10.85238727 | I39: 0.6762398741 | J39: 10.85238727 | K39: =IF(CMdata=1, IF(Lcm1_core=1, IMDIV(1,IMSUM(IMDIV(1,IMPRODUCT(B39,'Design the AEF circuit'!$G$19*0.001)),IMDIV(1,'Design the AEF circuit'!$G$20*1000),IMPRODUCT(B39,'Design the AEF circuit'!$G$21*0.000000000001))), O39),COMPLEX(G39,H39,"j")) -> 0.676239874072388+10.8523872726495j | L39: =IF(CMdata=1, IF(Lcm2_core=1, IMDIV(1, IMSUM(IMDIV(1,IMPRODUCT(B39,'Design the AEF circuit'!$H$19*0.001)), IMDIV(1,'Design the AEF circuit'!$H$20*1000), IMPRODUCT(B39,'Design the AEF circuit'!$H$21*0.000000000001))), Q39), COMPLEX(I39,J39,"j")) -> 0.676239874072388+10.8523872726495j | N39: =IMSUM(IMDIV(1,IMSUM(IMDIV(1,IMPRODUCT(B39,'Design the AEF circuit'!$G$19*0.001)),IMDIV(1,'Design the AEF circuit'!$G$20*1000))), IMDIV(1,IMSUM(IMDIV(1,IMPRODUCT(B39,'Design the AEF circuit'!$G$22*0.001)),IMDIV(1,'Design the AEF circuit'!$G$23*1000))), IMDIV(1,IMSUM(IMDIV(1,IMPRODUCT(B39,'Design the AEF circuit'!$G$24*0.001)),IMDIV(1,'Design the AEF circuit'!$G$25*1000))) ) -> 0.27199858220735+9.58507463529705j | O39: =IMDIV(1, IMSUM( IMDIV(1, N39), IMPRODUCT(B39,'Design the AEF circuit'!$G$21*0.000000000001))) -> 0.271998948243258+9.58508107954944j | P39: =IMSUM(IMDIV(1,IMSUM(IMDIV(1,IMPRODUCT(B39,'Design the AEF circuit'!$H$19*0.001)),IMDIV(1,'Design the AEF circuit'!$H$20*1000))), IMDIV(1,IMSUM(IMDIV(1,IMPRODUCT(B39,'Design the AEF circuit'!$H$22*0.001)),IMDIV(1,'Design the AEF circuit'!$H$23*1000))), IMDIV(1,IMSUM(IMDIV(1,IMPRODUCT(B39,'Design the AEF circuit'!$H$24*0.001)),IMDIV(1,'Design the AEF circuit'!$H$25*1000))) ) -> 0.27199858220735+9.58507463529705j | Q39: =IMDIV(1, IMSUM( IMDIV(1, P39), IMPRODUCT(B39,'Design the AEF circuit'!$H$21*0.000000000001) ) ) -> 0.271998948243258+9.58508107954944j
A40: ='Frequency vector'!G40 -> 1894.523514 | B40: =COMPLEX(0,2*PI()*'Frequency vector'!G40,"j") -> 11903.642309533j | C40: =IF(IF(CMdata=1,IMABS(K40),'CM choke'!C44)=0, C39, IF(CMdata=1,IMABS(K40),'CM choke'!C44)) -> 11.06445789 | D40: =IF(IF(CMdata=1,DEGREES(IMARGUMENT(K40)),'CM choke'!D44)=0, D39, IF(CMdata=1,DEGREES(IMARGUMENT(K40)),'CM choke'!D44)) -> 86.42674255 | E40: =IF(IF(CMdata=1,IMABS(L40),'CM choke'!E44)=0, E39, IF(CMdata=1,IMABS(L40),'CM choke'!E44)) -> 11.06445789 | F40: =IF(IF(CMdata=1,DEGREES(IMARGUMENT(L40)),'CM choke'!F44)=0, F39, IF(CMdata=1,DEGREES(IMARGUMENT(L40)),'CM choke'!F44)) -> 86.42674255 | G40: 0.6895888873 | H40: 11.04294778 | I40: 0.6895888873 | J40: 11.04294778 | K40: =IF(CMdata=1, IF(Lcm1_core=1, IMDIV(1,IMSUM(IMDIV(1,IMPRODUCT(B40,'Design the AEF circuit'!$G$19*0.001)),IMDIV(1,'Design the AEF circuit'!$G$20*1000),IMPRODUCT(B40,'Design the AEF circuit'!$G$21*0.000000000001))), O40),COMPLEX(G40,H40,"j")) -> 0.68958888731368+11.0429477786194j | L40: =IF(CMdata=1, IF(Lcm2_core=1, IMDIV(1, IMSUM(IMDIV(1,IMPRODUCT(B40,'Design the AEF circuit'!$H$19*0.001)), IMDIV(1,'Design the AEF circuit'!$H$20*1000), IMPRODUCT(B40,'Design the AEF circuit'!$H$21*0.000000000001))), Q40), COMPLEX(I40,J40,"j")) -> 0.68958888731368+11.0429477786194j | N40: =IMSUM(IMDIV(1,IMSUM(IMDIV(1,IMPRODUCT(B40,'Design the AEF circuit'!$G$19*0.001)),IMDIV(1,'Design the AEF circuit'!$G$20*1000))), IMDIV(1,IMSUM(IMDIV(1,IMPRODUCT(B40,'Design the AEF circuit'!$G$22*0.001)),IMDIV(1,'Design the AEF circuit'!$G$23*1000))), IMDIV(1,IMSUM(IMDIV(1,IMPRODUCT(B40,'Design the AEF circuit'!$G$24*0.001)),IMDIV(1,'Design the AEF circuit'!$G$25*1000))) ) -> 0.281546748788135+9.75172652210481j | O40: =IMDIV(1, IMSUM( IMDIV(1, N40), IMPRODUCT(B40,'Design the AEF circuit'!$G$21*0.000000000001))) -> 0.281547140975502+9.75173330839282j | P40: =IMSUM(IMDIV(1,IMSUM(IMDIV(1,IMPRODUCT(B40,'Design the AEF circuit'!$H$19*0.001)),IMDIV(1,'Design the AEF circuit'!$H$20*1000))), IMDIV(1,IMSUM(IMDIV(1,IMPRODUCT(B40,'Design the AEF circuit'!$H$22*0.001)),IMDIV(1,'Design the AEF circuit'!$H$23*1000))), IMDIV(1,IMSUM(IMDIV(1,IMPRODUCT(B40,'Design the AEF circuit'!$H$24*0.001)),IMDIV(1,'Design the AEF circuit'!$H$25*1000))) ) -> 0.281546748788135+9.75172652210481j | Q40: =IMDIV(1, IMSUM( IMDIV(1, P40), IMPRODUCT(B40,'Design the AEF circuit'!$H$21*0.000000000001) ) ) -> 0.281547140975502+9.75173330839282j
A41: ='Frequency vector'!G41 -> 1927.524913 | B41: =COMPLEX(0,2*PI()*'Frequency vector'!G41,"j") -> 12110.996213778j | C41: =IF(IF(CMdata=1,IMABS(K41),'CM choke'!C45)=0, C40, IF(CMdata=1,IMABS(K41),'CM choke'!C45)) -> 11.25201225 | D41: =IF(IF(CMdata=1,DEGREES(IMARGUMENT(K41)),'CM choke'!D45)=0, D40, IF(CMdata=1,DEGREES(IMARGUMENT(K41)),'CM choke'!D45)) -> 86.40750885 | E41: =IF(IF(CMdata=1,IMABS(L41),'CM choke'!E45)=0, E40, IF(CMdata=1,IMABS(L41),'CM choke'!E45)) -> 11.25201225 | F41: =IF(IF(CMdata=1,DEGREES(IMARGUMENT(L41)),'CM choke'!F45)=0, F40, IF(CMdata=1,DEGREES(IMARGUMENT(L41)),'CM choke'!F45)) -> 86.40750885 | G41: 0.7050479759 | H41: 11.22990147 | I41: 0.7050479759 | J41: 11.22990147 | K41: =IF(CMdata=1, IF(Lcm1_core=1, IMDIV(1,IMSUM(IMDIV(1,IMPRODUCT(B41,'Design the AEF circuit'!$G$19*0.001)),IMDIV(1,'Design the AEF circuit'!$G$20*1000),IMPRODUCT(B41,'Design the AEF circuit'!$G$21*0.000000000001))), O41),COMPLEX(G41,H41,"j")) -> 0.705047975888495+11.2299014728027j | L41: =IF(CMdata=1, IF(Lcm2_core=1, IMDIV(1, IMSUM(IMDIV(1,IMPRODUCT(B41,'Design the AEF circuit'!$H$19*0.001)), IMDIV(1,'Design the AEF circuit'!$H$20*1000), IMPRODUCT(B41,'Design the AEF circuit'!$H$21*0.000000000001))), Q41), COMPLEX(I41,J41,"j")) -> 0.705047975888495+11.2299014728027j | N41: =IMSUM(IMDIV(1,IMSUM(IMDIV(1,IMPRODUCT(B41,'Design the AEF circuit'!$G$19*0.001)),IMDIV(1,'Design the AEF circuit'!$G$20*1000))), IMDIV(1,IMSUM(IMDIV(1,IMPRODUCT(B41,'Design the AEF circuit'!$G$22*0.001)),IMDIV(1,'Design the AEF circuit'!$G$23*1000))), IMDIV(1,IMSUM(IMDIV(1,IMPRODUCT(B41,'Design the AEF circuit'!$G$24*0.001)),IMDIV(1,'Design the AEF circuit'!$G$25*1000))) ) -> 0.291429711899186+9.92126470584984j | O41: =IMDIV(1, IMSUM( IMDIV(1, N41), IMPRODUCT(B41,'Design the AEF circuit'!$G$21*0.000000000001))) -> 0.291430132105378+9.92127185230402j | P41: =IMSUM(IMDIV(1,IMSUM(IMDIV(1,IMPRODUCT(B41,'Design the AEF circuit'!$H$19*0.001)),IMDIV(1,'Design the AEF circuit'!$H$20*1000))), IMDIV(1,IMSUM(IMDIV(1,IMPRODUCT(B41,'Design the AEF circuit'!$H$22*0.001)),IMDIV(1,'Design the AEF circuit'!$H$23*1000))), IMDIV(1,IMSUM(IMDIV(1,IMPRODUCT(B41,'Design the AEF circuit'!$H$24*0.001)),IMDIV(1,'Design the AEF circuit'!$H$25*1000))) ) -> 0.291429711899186+9.92126470584984j | Q41: =IMDIV(1, IMSUM( IMDIV(1, P41), IMPRODUCT(B41,'Design the AEF circuit'!$H$21*0.000000000001) ) ) -> 0.291430132105378+9.92127185230402j
A42: ='Frequency vector'!G42 -> 1961.101175 | B42: =COMPLEX(0,2*PI()*'Frequency vector'!G42,"j") -> 12321.9620916686j | C42: =IF(IF(CMdata=1,IMABS(K42),'CM choke'!C46)=0, C41, IF(CMdata=1,IMABS(K42),'CM choke'!C46)) -> 11.45058918 | D42: =IF(IF(CMdata=1,DEGREES(IMARGUMENT(K42)),'CM choke'!D46)=0, D41, IF(CMdata=1,DEGREES(IMARGUMENT(K42)),'CM choke'!D46)) -> 86.2947998 | E42: =IF(IF(CMdata=1,IMABS(L42),'CM choke'!E46)=0, E41, IF(CMdata=1,IMABS(L42),'CM choke'!E46)) -> 11.45058918 | F42: =IF(IF(CMdata=1,DEGREES(IMARGUMENT(L42)),'CM choke'!F46)=0, F41, IF(CMdata=1,DEGREES(IMARGUMENT(L42)),'CM choke'!F46)) -> 86.2947998 | G42: 0.7399700429 | H42: 11.42665467 | I42: 0.7399700429 | J42: 11.42665467 | K42: =IF(CMdata=1, IF(Lcm1_core=1, IMDIV(1,IMSUM(IMDIV(1,IMPRODUCT(B42,'Design the AEF circuit'!$G$19*0.001)),IMDIV(1,'Design the AEF circuit'!$G$20*1000),IMPRODUCT(B42,'Design the AEF circuit'!$G$21*0.000000000001))), O42),COMPLEX(G42,H42,"j")) -> 0.739970042918796+11.4266546681307j | L42: =IF(CMdata=1, IF(Lcm2_core=1, IMDIV(1, IMSUM(IMDIV(1,IMPRODUCT(B42,'Design the AEF circuit'!$H$19*0.001)), IMDIV(1,'Design the AEF circuit'!$H$20*1000), IMPRODUCT(B42,'Design the AEF circuit'!$H$21*0.000000000001))), Q42), COMPLEX(I42,J42,"j")) -> 0.739970042918796+11.4266546681307j | N42: =IMSUM(IMDIV(1,IMSUM(IMDIV(1,IMPRODUCT(B42,'Design the AEF circuit'!$G$19*0.001)),IMDIV(1,'Design the AEF circuit'!$G$20*1000))), IMDIV(1,IMSUM(IMDIV(1,IMPRODUCT(B42,'Design the AEF circuit'!$G$22*0.001)),IMDIV(1,'Design the AEF circuit'!$G$23*1000))), IMDIV(1,IMSUM(IMDIV(1,IMPRODUCT(B42,'Design the AEF circuit'!$G$24*0.001)),IMDIV(1,'Design the AEF circuit'!$G$25*1000))) ) -> 0.301659183710188+10.0937385798006j | O42: =IMDIV(1, IMSUM( IMDIV(1, N42), IMPRODUCT(B42,'Design the AEF circuit'!$G$21*0.000000000001))) -> 0.301659633935808+10.0937461055106j | P42: =IMSUM(IMDIV(1,IMSUM(IMDIV(1,IMPRODUCT(B42,'Design the AEF circuit'!$H$19*0.001)),IMDIV(1,'Design the AEF circuit'!$H$20*1000))), IMDIV(1,IMSUM(IMDIV(1,IMPRODUCT(B42,'Design the AEF circuit'!$H$22*0.001)),IMDIV(1,'Design the AEF circuit'!$H$23*1000))), IMDIV(1,IMSUM(IMDIV(1,IMPRODUCT(B42,'Design the AEF circuit'!$H$24*0.001)),IMDIV(1,'Design the AEF circuit'!$H$25*1000))) ) -> 0.301659183710188+10.0937385798006j | Q42: =IMDIV(1, IMSUM( IMDIV(1, P42), IMPRODUCT(B42,'Design the AEF circuit'!$H$21*0.000000000001) ) ) -> 0.301659633935808+10.0937461055106j
A43: ='Frequency vector'!G43 -> 1995.262315 | B43: =COMPLEX(0,2*PI()*'Frequency vector'!G43,"j") -> 12536.6028613886j | C43: =IF(IF(CMdata=1,IMABS(K43),'CM choke'!C47)=0, C42, IF(CMdata=1,IMABS(K43),'CM choke'!C47)) -> 11.64210129 | D43: =IF(IF(CMdata=1,DEGREES(IMARGUMENT(K43)),'CM choke'!D47)=0, D42, IF(CMdata=1,DEGREES(IMARGUMENT(K43)),'CM choke'!D47)) -> 86.28974152 | E43: =IF(IF(CMdata=1,IMABS(L43),'CM choke'!E47)=0, E42, IF(CMdata=1,IMABS(L43),'CM choke'!E47)) -> 11.64210129 | F43: =IF(IF(CMdata=1,DEGREES(IMARGUMENT(L43)),'CM choke'!F47)=0, F42, IF(CMdata=1,DEGREES(IMARGUMENT(L43)),'CM choke'!F47)) -> 86.28974152 | G43: 0.7533717643 | H43: 11.6177 | I43: 0.7533717643 | J43: 11.6177 | K43: =IF(CMdata=1, IF(Lcm1_core=1, IMDIV(1,IMSUM(IMDIV(1,IMPRODUCT(B43,'Design the AEF circuit'!$G$19*0.001)),IMDIV(1,'Design the AEF circuit'!$G$20*1000),IMPRODUCT(B43,'Design the AEF circuit'!$G$21*0.000000000001))), O43),COMPLEX(G43,H43,"j")) -> 0.75337176428159+11.6177000038809j | L43: =IF(CMdata=1, IF(Lcm2_core=1, IMDIV(1, IMSUM(IMDIV(1,IMPRODUCT(B43,'Design the AEF circuit'!$H$19*0.001)), IMDIV(1,'Design the AEF circuit'!$H$20*1000), IMPRODUCT(B43,'Design the AEF circuit'!$H$21*0.000000000001))), Q43), COMPLEX(I43,J43,"j")) -> 0.75337176428159+11.6177000038809j | N43: =IMSUM(IMDIV(1,IMSUM(IMDIV(1,IMPRODUCT(B43,'Design the AEF circuit'!$G$19*0.001)),IMDIV(1,'Design the AEF circuit'!$G$20*1000))), IMDIV(1,IMSUM(IMDIV(1,IMPRODUCT(B43,'Design the AEF circuit'!$G$22*0.001)),IMDIV(1,'Design the AEF circuit'!$G$23*1000))), IMDIV(1,IMSUM(IMDIV(1,IMPRODUCT(B43,'Design the AEF circuit'!$G$24*0.001)),IMDIV(1,'Design the AEF circuit'!$G$25*1000))) ) -> 0.312247284167901+10.2691983506174j | O43: =IMDIV(1, IMSUM( IMDIV(1, N43), IMPRODUCT(B43,'Design the AEF circuit'!$G$21*0.000000000001))) -> 0.312247766556272+10.2692062756824j | P43: =IMSUM(IMDIV(1,IMSUM(IMDIV(1,IMPRODUCT(B43,'Design the AEF circuit'!$H$19*0.001)),IMDIV(1,'Design the AEF circuit'!$H$20*1000))), IMDIV(1,IMSUM(IMDIV(1,IMPRODUCT(B43,'Design the AEF circuit'!$H$22*0.001)),IMDIV(1,'Design the AEF circuit'!$H$23*1000))), IMDIV(1,IMSUM(IMDIV(1,IMPRODUCT(B43,'Design the AEF circuit'!$H$24*0.001)),IMDIV(1,'Design the AEF circuit'!$H$25*1000))) ) -> 0.312247284167901+10.2691983506174j | Q43: =IMDIV(1, IMSUM( IMDIV(1, P43), IMPRODUCT(B43,'Design the AEF circuit'!$H$21*0.000000000001) ) ) -> 0.312247766556272+10.2692062756824j
A44: ='Frequency vector'!G44 -> 2030.01852 | B44: =COMPLEX(0,2*PI()*'Frequency vector'!G44,"j") -> 12754.9825372868j | C44: =IF(IF(CMdata=1,IMABS(K44),'CM choke'!C48)=0, C43, IF(CMdata=1,IMABS(K44),'CM choke'!C48)) -> 11.8449831 | D44: =IF(IF(CMdata=1,DEGREES(IMARGUMENT(K44)),'CM choke'!D48)=0, D43, IF(CMdata=1,DEGREES(IMARGUMENT(K44)),'CM choke'!D48)) -> 86.19703674 | E44: =IF(IF(CMdata=1,IMABS(L44),'CM choke'!E48)=0, E43, IF(CMdata=1,IMABS(L44),'CM choke'!E48)) -> 11.8449831 | F44: =IF(IF(CMdata=1,DEGREES(IMARGUMENT(L44)),'CM choke'!F48)=0, F43, IF(CMdata=1,DEGREES(IMARGUMENT(L44)),'CM choke'!F48)) -> 86.19703674 | G44: 0.7856244882 | H44: 11.81890091 | I44: 0.7856244882 | J44: 11.81890091 | K44: =IF(CMdata=1, IF(Lcm1_core=1, IMDIV(1,IMSUM(IMDIV(1,IMPRODUCT(B44,'Design the AEF circuit'!$G$19*0.001)),IMDIV(1,'Design the AEF circuit'!$G$20*1000),IMPRODUCT(B44,'Design the AEF circuit'!$G$21*0.000000000001))), O44),COMPLEX(G44,H44,"j")) -> 0.785624488183115+11.8189009143902j | L44: =IF(CMdata=1, IF(Lcm2_core=1, IMDIV(1, IMSUM(IMDIV(1,IMPRODUCT(B44,'Design the AEF circuit'!$H$19*0.001)), IMDIV(1,'Design the AEF circuit'!$H$20*1000), IMPRODUCT(B44,'Design the AEF circuit'!$H$21*0.000000000001))), Q44), COMPLEX(I44,J44,"j")) -> 0.785624488183115+11.8189009143902j | N44: =IMSUM(IMDIV(1,IMSUM(IMDIV(1,IMPRODUCT(B44,'Design the AEF circuit'!$G$19*0.001)),IMDIV(1,'Design the AEF circuit'!$G$20*1000))), IMDIV(1,IMSUM(IMDIV(1,IMPRODUCT(B44,'Design the AEF circuit'!$G$22*0.001)),IMDIV(1,'Design the AEF circuit'!$G$23*1000))), IMDIV(1,IMSUM(IMDIV(1,IMPRODUCT(B44,'Design the AEF circuit'!$G$24*0.001)),IMDIV(1,'Design the AEF circuit'!$G$25*1000))) ) -> 0.323206555075141+10.4476950503811j | O44: =IMDIV(1, IMSUM( IMDIV(1, N44), IMPRODUCT(B44,'Design the AEF circuit'!$G$21*0.000000000001))) -> 0.323207071922478+10.4477033959628j | P44: =IMSUM(IMDIV(1,IMSUM(IMDIV(1,IMPRODUCT(B44,'Design the AEF circuit'!$H$19*0.001)),IMDIV(1,'Design the AEF circuit'!$H$20*1000))), IMDIV(1,IMSUM(IMDIV(1,IMPRODUCT(B44,'Design the AEF circuit'!$H$22*0.001)),IMDIV(1,'Design the AEF circuit'!$H$23*1000))), IMDIV(1,IMSUM(IMDIV(1,IMPRODUCT(B44,'Design the AEF circuit'!$H$24*0.001)),IMDIV(1,'Design the AEF circuit'!$H$25*1000))) ) -> 0.323206555075141+10.4476950503811j | Q44: =IMDIV(1, IMSUM( IMDIV(1, P44), IMPRODUCT(B44,'Design the AEF circuit'!$H$21*0.000000000001) ) ) -> 0.323207071922478+10.4477033959628j
A45: ='Frequency vector'!G45 -> 2065.380156 | B45: =COMPLEX(0,2*PI()*'Frequency vector'!G45,"j") -> 12977.1662487257j | C45: =IF(IF(CMdata=1,IMABS(K45),'CM choke'!C49)=0, C44, IF(CMdata=1,IMABS(K45),'CM choke'!C49)) -> 12.05259991 | D45: =IF(IF(CMdata=1,DEGREES(IMARGUMENT(K45)),'CM choke'!D49)=0, D44, IF(CMdata=1,DEGREES(IMARGUMENT(K45)),'CM choke'!D49)) -> 86.14245605 | E45: =IF(IF(CMdata=1,IMABS(L45),'CM choke'!E49)=0, E44, IF(CMdata=1,IMABS(L45),'CM choke'!E49)) -> 12.05259991 | F45: =IF(IF(CMdata=1,DEGREES(IMARGUMENT(L45)),'CM choke'!F49)=0, F44, IF(CMdata=1,DEGREES(IMARGUMENT(L45)),'CM choke'!F49)) -> 86.14245605 | G45: 0.8108505916 | H45: 12.02529359 | I45: 0.8108505916 | J45: 12.02529359 | K45: =IF(CMdata=1, IF(Lcm1_core=1, IMDIV(1,IMSUM(IMDIV(1,IMPRODUCT(B45,'Design the AEF circuit'!$G$19*0.001)),IMDIV(1,'Design the AEF circuit'!$G$20*1000),IMPRODUCT(B45,'Design the AEF circuit'!$G$21*0.000000000001))), O45),COMPLEX(G45,H45,"j")) -> 0.810850591566896+12.0252935861857j | L45: =IF(CMdata=1, IF(Lcm2_core=1, IMDIV(1, IMSUM(IMDIV(1,IMPRODUCT(B45,'Design the AEF circuit'!$H$19*0.001)), IMDIV(1,'Design the AEF circuit'!$H$20*1000), IMPRODUCT(B45,'Design the AEF circuit'!$H$21*0.000000000001))), Q45), COMPLEX(I45,J45,"j")) -> 0.810850591566896+12.0252935861857j | N45: =IMSUM(IMDIV(1,IMSUM(IMDIV(1,IMPRODUCT(B45,'Design the AEF circuit'!$G$19*0.001)),IMDIV(1,'Design the AEF circuit'!$G$20*1000))), IMDIV(1,IMSUM(IMDIV(1,IMPRODUCT(B45,'Design the AEF circuit'!$G$22*0.001)),IMDIV(1,'Design the AEF circuit'!$G$23*1000))), IMDIV(1,IMSUM(IMDIV(1,IMPRODUCT(B45,'Design the AEF circuit'!$G$24*0.001)),IMDIV(1,'Design the AEF circuit'!$G$25*1000))) ) -> 0.33454997461353+10.6292805481688j | O45: =IMDIV(1, IMSUM( IMDIV(1, N45), IMPRODUCT(B45,'Design the AEF circuit'!$G$21*0.000000000001))) -> 0.334550528379832+10.6292893365478j | P45: =IMSUM(IMDIV(1,IMSUM(IMDIV(1,IMPRODUCT(B45,'Design the AEF circuit'!$H$19*0.001)),IMDIV(1,'Design the AEF circuit'!$H$20*1000))), IMDIV(1,IMSUM(IMDIV(1,IMPRODUCT(B45,'Design the AEF circuit'!$H$22*0.001)),IMDIV(1,'Design the AEF circuit'!$H$23*1000))), IMDIV(1,IMSUM(IMDIV(1,IMPRODUCT(B45,'Design the AEF circuit'!$H$24*0.001)),IMDIV(1,'Design the AEF circuit'!$H$25*1000))) ) -> 0.33454997461353+10.6292805481688j | Q45: =IMDIV(1, IMSUM( IMDIV(1, P45), IMPRODUCT(B45,'Design the AEF circuit'!$H$21*0.000000000001) ) ) -> 0.334550528379832+10.6292893365478j
A46: ='Frequency vector'!G46 -> 2101.357769 | B46: =COMPLEX(0,2*PI()*'Frequency vector'!G46,"j") -> 13203.2202596226j | C46: =IF(IF(CMdata=1,IMABS(K46),'CM choke'!C50)=0, C45, IF(CMdata=1,IMABS(K46),'CM choke'!C50)) -> 12.25127125 | D46: =IF(IF(CMdata=1,DEGREES(IMARGUMENT(K46)),'CM choke'!D50)=0, D45, IF(CMdata=1,DEGREES(IMARGUMENT(K46)),'CM choke'!D50)) -> 86.12330627 | E46: =IF(IF(CMdata=1,IMABS(L46),'CM choke'!E50)=0, E45, IF(CMdata=1,IMABS(L46),'CM choke'!E50)) -> 12.25127125 | F46: =IF(IF(CMdata=1,DEGREES(IMARGUMENT(L46)),'CM choke'!F50)=0, F45, IF(CMdata=1,DEGREES(IMARGUMENT(L46)),'CM choke'!F50)) -> 86.12330627 | G46: 0.8283017818 | H46: 12.22323866 | I46: 0.8283017818 | J46: 12.22323866 | K46: =IF(CMdata=1, IF(Lcm1_core=1, IMDIV(1,IMSUM(IMDIV(1,IMPRODUCT(B46,'Design the AEF circuit'!$G$19*0.001)),IMDIV(1,'Design the AEF circuit'!$G$20*1000),IMPRODUCT(B46,'Design the AEF circuit'!$G$21*0.000000000001))), O46),COMPLEX(G46,H46,"j")) -> 0.828301781849334+12.2232386603472j | L46: =IF(CMdata=1, IF(Lcm2_core=1, IMDIV(1, IMSUM(IMDIV(1,IMPRODUCT(B46,'Design the AEF circuit'!$H$19*0.001)), IMDIV(1,'Design the AEF circuit'!$H$20*1000), IMPRODUCT(B46,'Design the AEF circuit'!$H$21*0.000000000001))), Q46), COMPLEX(I46,J46,"j")) -> 0.828301781849334+12.2232386603472j | N46: =IMSUM(IMDIV(1,IMSUM(IMDIV(1,IMPRODUCT(B46,'Design the AEF circuit'!$G$19*0.001)),IMDIV(1,'Design the AEF circuit'!$G$20*1000))), IMDIV(1,IMSUM(IMDIV(1,IMPRODUCT(B46,'Design the AEF circuit'!$G$22*0.001)),IMDIV(1,'Design the AEF circuit'!$G$23*1000))), IMDIV(1,IMSUM(IMDIV(1,IMPRODUCT(B46,'Design the AEF circuit'!$G$24*0.001)),IMDIV(1,'Design the AEF circuit'!$G$25*1000))) ) -> 0.346290972374049+10.8140075619946j | O46: =IMDIV(1, IMSUM( IMDIV(1, N46), IMPRODUCT(B46,'Design the AEF circuit'!$G$21*0.000000000001))) -> 0.346291565694763+10.8140168166288j | P46: =IMSUM(IMDIV(1,IMSUM(IMDIV(1,IMPRODUCT(B46,'Design the AEF circuit'!$H$19*0.001)),IMDIV(1,'Design the AEF circuit'!$H$20*1000))), IMDIV(1,IMSUM(IMDIV(1,IMPRODUCT(B46,'Design the AEF circuit'!$H$22*0.001)),IMDIV(1,'Design the AEF circuit'!$H$23*1000))), IMDIV(1,IMSUM(IMDIV(1,IMPRODUCT(B46,'Design the AEF circuit'!$H$24*0.001)),IMDIV(1,'Design the AEF circuit'!$H$25*1000))) ) -> 0.346290972374049+10.8140075619946j | Q46: =IMDIV(1, IMSUM( IMDIV(1, P46), IMPRODUCT(B46,'Design the AEF circuit'!$H$21*0.000000000001) ) ) -> 0.346291565694763+10.8140168166288j
A47: ='Frequency vector'!G47 -> 2137.96209 | B47: =COMPLEX(0,2*PI()*'Frequency vector'!G47,"j") -> 13433.2119880534j | C47: =IF(IF(CMdata=1,IMABS(K47),'CM choke'!C51)=0, C46, IF(CMdata=1,IMABS(K47),'CM choke'!C51)) -> 12.46498966 | D47: =IF(IF(CMdata=1,DEGREES(IMARGUMENT(K47)),'CM choke'!D51)=0, D46, IF(CMdata=1,DEGREES(IMARGUMENT(K47)),'CM choke'!D51)) -> 86.06594086 | E47: =IF(IF(CMdata=1,IMABS(L47),'CM choke'!E51)=0, E46, IF(CMdata=1,IMABS(L47),'CM choke'!E51)) -> 12.46498966 | F47: =IF(IF(CMdata=1,DEGREES(IMARGUMENT(L47)),'CM choke'!F51)=0, F46, IF(CMdata=1,DEGREES(IMARGUMENT(L47)),'CM choke'!F51)) -> 86.06594086 | G47: 0.8552023265 | H47: 12.43561805 | I47: 0.8552023265 | J47: 12.43561805 | K47: =IF(CMdata=1, IF(Lcm1_core=1, IMDIV(1,IMSUM(IMDIV(1,IMPRODUCT(B47,'Design the AEF circuit'!$G$19*0.001)),IMDIV(1,'Design the AEF circuit'!$G$20*1000),IMPRODUCT(B47,'Design the AEF circuit'!$G$21*0.000000000001))), O47),COMPLEX(G47,H47,"j")) -> 0.855202326544519+12.4356180489522j | L47: =IF(CMdata=1, IF(Lcm2_core=1, IMDIV(1, IMSUM(IMDIV(1,IMPRODUCT(B47,'Design the AEF circuit'!$H$19*0.001)), IMDIV(1,'Design the AEF circuit'!$H$20*1000), IMPRODUCT(B47,'Design the AEF circuit'!$H$21*0.000000000001))), Q47), COMPLEX(I47,J47,"j")) -> 0.855202326544519+12.4356180489522j | N47: =IMSUM(IMDIV(1,IMSUM(IMDIV(1,IMPRODUCT(B47,'Design the AEF circuit'!$G$19*0.001)),IMDIV(1,'Design the AEF circuit'!$G$20*1000))), IMDIV(1,IMSUM(IMDIV(1,IMPRODUCT(B47,'Design the AEF circuit'!$G$22*0.001)),IMDIV(1,'Design the AEF circuit'!$G$23*1000))), IMDIV(1,IMSUM(IMDIV(1,IMPRODUCT(B47,'Design the AEF circuit'!$G$24*0.001)),IMDIV(1,'Design the AEF circuit'!$G$25*1000))) ) -> 0.358443444879375+11.0019296705856j | O47: =IMDIV(1, IMSUM( IMDIV(1, N47), IMPRODUCT(B47,'Design the AEF circuit'!$G$21*0.000000000001))) -> 0.358444080577892+11.0019394161725j | P47: =IMSUM(IMDIV(1,IMSUM(IMDIV(1,IMPRODUCT(B47,'Design the AEF circuit'!$H$19*0.001)),IMDIV(1,'Design the AEF circuit'!$H$20*1000))), IMDIV(1,IMSUM(IMDIV(1,IMPRODUCT(B47,'Design the AEF circuit'!$H$22*0.001)),IMDIV(1,'Design the AEF circuit'!$H$23*1000))), IMDIV(1,IMSUM(IMDIV(1,IMPRODUCT(B47,'Design the AEF circuit'!$H$24*0.001)),IMDIV(1,'Design the AEF circuit'!$H$25*1000))) ) -> 0.358443444879375+11.0019296705856j | Q47: =IMDIV(1, IMSUM( IMDIV(1, P47), IMPRODUCT(B47,'Design the AEF circuit'!$H$21*0.000000000001) ) ) -> 0.358444080577892+11.0019394161725j
A48: ='Frequency vector'!G48 -> 2175.204034 | B48: =COMPLEX(0,2*PI()*'Frequency vector'!G48,"j") -> 13667.2100266722j | C48: =IF(IF(CMdata=1,IMABS(K48),'CM choke'!C52)=0, C47, IF(CMdata=1,IMABS(K48),'CM choke'!C52)) -> 12.67407417 | D48: =IF(IF(CMdata=1,DEGREES(IMARGUMENT(K48)),'CM choke'!D52)=0, D47, IF(CMdata=1,DEGREES(IMARGUMENT(K48)),'CM choke'!D52)) -> 86.02178955 | E48: =IF(IF(CMdata=1,IMABS(L48),'CM choke'!E52)=0, E47, IF(CMdata=1,IMABS(L48),'CM choke'!E52)) -> 12.67407417 | F48: =IF(IF(CMdata=1,DEGREES(IMARGUMENT(L48)),'CM choke'!F52)=0, F47, IF(CMdata=1,DEGREES(IMARGUMENT(L48)),'CM choke'!F52)) -> 86.02178955 | G48: 0.8792904567 | H48: 12.64353607 | I48: 0.8792904567 | J48: 12.64353607 | K48: =IF(CMdata=1, IF(Lcm1_core=1, IMDIV(1,IMSUM(IMDIV(1,IMPRODUCT(B48,'Design the AEF circuit'!$G$19*0.001)),IMDIV(1,'Design the AEF circuit'!$G$20*1000),IMPRODUCT(B48,'Design the AEF circuit'!$G$21*0.000000000001))), O48),COMPLEX(G48,H48,"j")) -> 0.879290456747754+12.6435360732421j | L48: =IF(CMdata=1, IF(Lcm2_core=1, IMDIV(1, IMSUM(IMDIV(1,IMPRODUCT(B48,'Design the AEF circuit'!$H$19*0.001)), IMDIV(1,'Design the AEF circuit'!$H$20*1000), IMPRODUCT(B48,'Design the AEF circuit'!$H$21*0.000000000001))), Q48), COMPLEX(I48,J48,"j")) -> 0.879290456747754+12.6435360732421j | N48: =IMSUM(IMDIV(1,IMSUM(IMDIV(1,IMPRODUCT(B48,'Design the AEF circuit'!$G$19*0.001)),IMDIV(1,'Design the AEF circuit'!$G$20*1000))), IMDIV(1,IMSUM(IMDIV(1,IMPRODUCT(B48,'Design the AEF circuit'!$G$22*0.001)),IMDIV(1,'Design the AEF circuit'!$G$23*1000))), IMDIV(1,IMSUM(IMDIV(1,IMPRODUCT(B48,'Design the AEF circuit'!$G$24*0.001)),IMDIV(1,'Design the AEF circuit'!$G$25*1000))) ) -> 0.371021771653113+11.1931013256007j | O48: =IMDIV(1, IMSUM( IMDIV(1, N48), IMPRODUCT(B48,'Design the AEF circuit'!$G$21*0.000000000001))) -> 0.371022452754151+11.1931115881426j | P48: =IMSUM(IMDIV(1,IMSUM(IMDIV(1,IMPRODUCT(B48,'Design the AEF circuit'!$H$19*0.001)),IMDIV(1,'Design the AEF circuit'!$H$20*1000))), IMDIV(1,IMSUM(IMDIV(1,IMPRODUCT(B48,'Design the AEF circuit'!$H$22*0.001)),IMDIV(1,'Design the AEF circuit'!$H$23*1000))), IMDIV(1,IMSUM(IMDIV(1,IMPRODUCT(B48,'Design the AEF circuit'!$H$24*0.001)),IMDIV(1,'Design the AEF circuit'!$H$25*1000))) ) -> 0.371021771653113+11.1931013256007j | Q48: =IMDIV(1, IMSUM( IMDIV(1, P48), IMPRODUCT(B48,'Design the AEF circuit'!$H$21*0.000000000001) ) ) -> 0.371022452754151+11.1931115881426j
A49: ='Frequency vector'!G49 -> 2213.09471 | B49: =COMPLEX(0,2*PI()*'Frequency vector'!G49,"j") -> 13905.2841628184j | C49: =IF(IF(CMdata=1,IMABS(K49),'CM choke'!C53)=0, C48, IF(CMdata=1,IMABS(K49),'CM choke'!C53)) -> 12.89514542 | D49: =IF(IF(CMdata=1,DEGREES(IMARGUMENT(K49)),'CM choke'!D53)=0, D48, IF(CMdata=1,DEGREES(IMARGUMENT(K49)),'CM choke'!D53)) -> 85.93096924 | E49: =IF(IF(CMdata=1,IMABS(L49),'CM choke'!E53)=0, E48, IF(CMdata=1,IMABS(L49),'CM choke'!E53)) -> 12.89514542 | F49: =IF(IF(CMdata=1,DEGREES(IMARGUMENT(L49)),'CM choke'!F53)=0, F48, IF(CMdata=1,DEGREES(IMARGUMENT(L49)),'CM choke'!F53)) -> 85.93096924 | G49: 0.9150176232 | H49: 12.8626404 | I49: 0.9150176232 | J49: 12.8626404 | K49: =IF(CMdata=1, IF(Lcm1_core=1, IMDIV(1,IMSUM(IMDIV(1,IMPRODUCT(B49,'Design the AEF circuit'!$G$19*0.001)),IMDIV(1,'Design the AEF circuit'!$G$20*1000),IMPRODUCT(B49,'Design the AEF circuit'!$G$21*0.000000000001))), O49),COMPLEX(G49,H49,"j")) -> 0.915017623237711+12.8626403998824j | L49: =IF(CMdata=1, IF(Lcm2_core=1, IMDIV(1, IMSUM(IMDIV(1,IMPRODUCT(B49,'Design the AEF circuit'!$H$19*0.001)), IMDIV(1,'Design the AEF circuit'!$H$20*1000), IMPRODUCT(B49,'Design the AEF circuit'!$H$21*0.000000000001))), Q49), COMPLEX(I49,J49,"j")) -> 0.915017623237711+12.8626403998824j | N49: =IMSUM(IMDIV(1,IMSUM(IMDIV(1,IMPRODUCT(B49,'Design the AEF circuit'!$G$19*0.001)),IMDIV(1,'Design the AEF circuit'!$G$20*1000))), IMDIV(1,IMSUM(IMDIV(1,IMPRODUCT(B49,'Design the AEF circuit'!$G$22*0.001)),IMDIV(1,'Design the AEF circuit'!$G$23*1000))), IMDIV(1,IMSUM(IMDIV(1,IMPRODUCT(B49,'Design the AEF circuit'!$G$24*0.001)),IMDIV(1,'Design the AEF circuit'!$G$25*1000))) ) -> 0.384040831792994+11.3875778633575j | O49: =IMDIV(1, IMSUM( IMDIV(1, N49), IMPRODUCT(B49,'Design the AEF circuit'!$G$21*0.000000000001))) -> 0.384041561536929+11.38758867023j | P49: =IMSUM(IMDIV(1,IMSUM(IMDIV(1,IMPRODUCT(B49,'Design the AEF circuit'!$H$19*0.001)),IMDIV(1,'Design the AEF circuit'!$H$20*1000))), IMDIV(1,IMSUM(IMDIV(1,IMPRODUCT(B49,'Design the AEF circuit'!$H$22*0.001)),IMDIV(1,'Design the AEF circuit'!$H$23*1000))), IMDIV(1,IMSUM(IMDIV(1,IMPRODUCT(B49,'Design the AEF circuit'!$H$24*0.001)),IMDIV(1,'Design the AEF circuit'!$H$25*1000))) ) -> 0.384040831792994+11.3875778633575j | Q49: =IMDIV(1, IMSUM( IMDIV(1, P49), IMPRODUCT(B49,'Design the AEF circuit'!$H$21*0.000000000001) ) ) -> 0.384041561536929+11.38758867023j
A50: ='Frequency vector'!G50 -> 2251.645417 | B50: =COMPLEX(0,2*PI()*'Frequency vector'!G50,"j") -> 14147.505399439j | C50: =IF(IF(CMdata=1,IMABS(K50),'CM choke'!C54)=0, C49, IF(CMdata=1,IMABS(K50),'CM choke'!C54)) -> 13.12805367 | D50: =IF(IF(CMdata=1,DEGREES(IMARGUMENT(K50)),'CM choke'!D54)=0, D49, IF(CMdata=1,DEGREES(IMARGUMENT(K50)),'CM choke'!D54)) -> 85.925354 | E50: =IF(IF(CMdata=1,IMABS(L50),'CM choke'!E54)=0, E49, IF(CMdata=1,IMABS(L50),'CM choke'!E54)) -> 13.12805367 | F50: =IF(IF(CMdata=1,DEGREES(IMARGUMENT(L50)),'CM choke'!F54)=0, F49, IF(CMdata=1,DEGREES(IMARGUMENT(L50)),'CM choke'!F54)) -> 85.925354 | G50: 0.9328277555 | H50: 13.09487019 | I50: 0.9328277555 | J50: 13.09487019 | K50: =IF(CMdata=1, IF(Lcm1_core=1, IMDIV(1,IMSUM(IMDIV(1,IMPRODUCT(B50,'Design the AEF circuit'!$G$19*0.001)),IMDIV(1,'Design the AEF circuit'!$G$20*1000),IMPRODUCT(B50,'Design the AEF circuit'!$G$21*0.000000000001))), O50),COMPLEX(G50,H50,"j")) -> 0.932827755548314+13.0948701946544j | L50: =IF(CMdata=1, IF(Lcm2_core=1, IMDIV(1, IMSUM(IMDIV(1,IMPRODUCT(B50,'Design the AEF circuit'!$H$19*0.001)), IMDIV(1,'Design the AEF circuit'!$H$20*1000), IMPRODUCT(B50,'Design the AEF circuit'!$H$21*0.000000000001))), Q50), COMPLEX(I50,J50,"j")) -> 0.932827755548314+13.0948701946544j | N50: =IMSUM(IMDIV(1,IMSUM(IMDIV(1,IMPRODUCT(B50,'Design the AEF circuit'!$G$19*0.001)),IMDIV(1,'Design the AEF circuit'!$G$20*1000))), IMDIV(1,IMSUM(IMDIV(1,IMPRODUCT(B50,'Design the AEF circuit'!$G$22*0.001)),IMDIV(1,'Design the AEF circuit'!$G$23*1000))), IMDIV(1,IMSUM(IMDIV(1,IMPRODUCT(B50,'Design the AEF circuit'!$G$24*0.001)),IMDIV(1,'Design the AEF circuit'!$G$25*1000))) ) -> 0.397516021123876+11.5854155169756j | O50: =IMDIV(1, IMSUM( IMDIV(1, N50), IMPRODUCT(B50,'Design the AEF circuit'!$G$21*0.000000000001))) -> 0.397516802982095+11.5854268969996j | P50: =IMSUM(IMDIV(1,IMSUM(IMDIV(1,IMPRODUCT(B50,'Design the AEF circuit'!$H$19*0.001)),IMDIV(1,'Design the AEF circuit'!$H$20*1000))), IMDIV(1,IMSUM(IMDIV(1,IMPRODUCT(B50,'Design the AEF circuit'!$H$22*0.001)),IMDIV(1,'Design the AEF circuit'!$H$23*1000))), IMDIV(1,IMSUM(IMDIV(1,IMPRODUCT(B50,'Design the AEF circuit'!$H$24*0.001)),IMDIV(1,'Design the AEF circuit'!$H$25*1000))) ) -> 0.397516021123876+11.5854155169756j | Q50: =IMDIV(1, IMSUM( IMDIV(1, P50), IMPRODUCT(B50,'Design the AEF circuit'!$H$21*0.000000000001) ) ) -> 0.397516802982095+11.5854268969996j
A51: ='Frequency vector'!G51 -> 2290.867653 | B51: =COMPLEX(0,2*PI()*'Frequency vector'!G51,"j") -> 14393.9459765775j | C51: =IF(IF(CMdata=1,IMABS(K51),'CM choke'!C55)=0, C50, IF(CMdata=1,IMABS(K51),'CM choke'!C55)) -> 13.34597874 | D51: =IF(IF(CMdata=1,DEGREES(IMARGUMENT(K51)),'CM choke'!D55)=0, D50, IF(CMdata=1,DEGREES(IMARGUMENT(K51)),'CM choke'!D55)) -> 85.88395691 | E51: =IF(IF(CMdata=1,IMABS(L51),'CM choke'!E55)=0, E50, IF(CMdata=1,IMABS(L51),'CM choke'!E55)) -> 13.34597874 | F51: =IF(IF(CMdata=1,DEGREES(IMARGUMENT(L51)),'CM choke'!F55)=0, F50, IF(CMdata=1,DEGREES(IMARGUMENT(L51)),'CM choke'!F55)) -> 85.88395691 | G51: 0.9579307082 | H51: 13.31155578 | I51: 0.9579307082 | J51: 13.31155578 | K51: =IF(CMdata=1, IF(Lcm1_core=1, IMDIV(1,IMSUM(IMDIV(1,IMPRODUCT(B51,'Design the AEF circuit'!$G$19*0.001)),IMDIV(1,'Design the AEF circuit'!$G$20*1000),IMPRODUCT(B51,'Design the AEF circuit'!$G$21*0.000000000001))), O51),COMPLEX(G51,H51,"j")) -> 0.957930708246245+13.3115557769925j | L51: =IF(CMdata=1, IF(Lcm2_core=1, IMDIV(1, IMSUM(IMDIV(1,IMPRODUCT(B51,'Design the AEF circuit'!$H$19*0.001)), IMDIV(1,'Design the AEF circuit'!$H$20*1000), IMPRODUCT(B51,'Design the AEF circuit'!$H$21*0.000000000001))), Q51), COMPLEX(I51,J51,"j")) -> 0.957930708246245+13.3115557769925j | N51: =IMSUM(IMDIV(1,IMSUM(IMDIV(1,IMPRODUCT(B51,'Design the AEF circuit'!$G$19*0.001)),IMDIV(1,'Design the AEF circuit'!$G$20*1000))), IMDIV(1,IMSUM(IMDIV(1,IMPRODUCT(B51,'Design the AEF circuit'!$G$22*0.001)),IMDIV(1,'Design the AEF circuit'!$G$23*1000))), IMDIV(1,IMSUM(IMDIV(1,IMPRODUCT(B51,'Design the AEF circuit'!$G$24*0.001)),IMDIV(1,'Design the AEF circuit'!$G$25*1000))) ) -> 0.411463269936531+11.7866714287214j | O51: =IMDIV(1, IMSUM( IMDIV(1, N51), IMPRODUCT(B51,'Design the AEF circuit'!$G$21*0.000000000001))) -> 0.411464107627875+11.7866834122395j | P51: =IMSUM(IMDIV(1,IMSUM(IMDIV(1,IMPRODUCT(B51,'Design the AEF circuit'!$H$19*0.001)),IMDIV(1,'Design the AEF circuit'!$H$20*1000))), IMDIV(1,IMSUM(IMDIV(1,IMPRODUCT(B51,'Design the AEF circuit'!$H$22*0.001)),IMDIV(1,'Design the AEF circuit'!$H$23*1000))), IMDIV(1,IMSUM(IMDIV(1,IMPRODUCT(B51,'Design the AEF circuit'!$H$24*0.001)),IMDIV(1,'Design the AEF circuit'!$H$25*1000))) ) -> 0.411463269936531+11.7866714287214j | Q51: =IMDIV(1, IMSUM( IMDIV(1, P51), IMPRODUCT(B51,'Design the AEF circuit'!$H$21*0.000000000001) ) ) -> 0.411464107627875+11.7866834122395j
A52: ='Frequency vector'!G52 -> 2330.773115 | B52: =COMPLEX(0,2*PI()*'Frequency vector'!G52,"j") -> 14644.6793922965j | C52: =IF(IF(CMdata=1,IMABS(K52),'CM choke'!C56)=0, C51, IF(CMdata=1,IMABS(K52),'CM choke'!C56)) -> 13.5692749 | D52: =IF(IF(CMdata=1,DEGREES(IMARGUMENT(K52)),'CM choke'!D56)=0, D51, IF(CMdata=1,DEGREES(IMARGUMENT(K52)),'CM choke'!D56)) -> 85.82084656 | E52: =IF(IF(CMdata=1,IMABS(L52),'CM choke'!E56)=0, E51, IF(CMdata=1,IMABS(L52),'CM choke'!E56)) -> 13.5692749 | F52: =IF(IF(CMdata=1,DEGREES(IMARGUMENT(L52)),'CM choke'!F56)=0, F51, IF(CMdata=1,DEGREES(IMARGUMENT(L52)),'CM choke'!F56)) -> 85.82084656 | G52: 0.9888653636 | H52: 13.53319499 | I52: 0.9888653636 | J52: 13.53319499 | K52: =IF(CMdata=1, IF(Lcm1_core=1, IMDIV(1,IMSUM(IMDIV(1,IMPRODUCT(B52,'Design the AEF circuit'!$G$19*0.001)),IMDIV(1,'Design the AEF circuit'!$G$20*1000),IMPRODUCT(B52,'Design the AEF circuit'!$G$21*0.000000000001))), O52),COMPLEX(G52,H52,"j")) -> 0.988865363618804+13.5331949910885j | L52: =IF(CMdata=1, IF(Lcm2_core=1, IMDIV(1, IMSUM(IMDIV(1,IMPRODUCT(B52,'Design the AEF circuit'!$H$19*0.001)), IMDIV(1,'Design the AEF circuit'!$H$20*1000), IMPRODUCT(B52,'Design the AEF circuit'!$H$21*0.000000000001))), Q52), COMPLEX(I52,J52,"j")) -> 0.988865363618804+13.5331949910885j | N52: =IMSUM(IMDIV(1,IMSUM(IMDIV(1,IMPRODUCT(B52,'Design the AEF circuit'!$G$19*0.001)),IMDIV(1,'Design the AEF circuit'!$G$20*1000))), IMDIV(1,IMSUM(IMDIV(1,IMPRODUCT(B52,'Design the AEF circuit'!$G$22*0.001)),IMDIV(1,'Design the AEF circuit'!$G$23*1000))), IMDIV(1,IMSUM(IMDIV(1,IMPRODUCT(B52,'Design the AEF circuit'!$G$24*0.001)),IMDIV(1,'Design the AEF circuit'!$G$25*1000))) ) -> 0.4258990612657+11.9914036616147j | O52: =IMDIV(1, IMSUM( IMDIV(1, N52), IMPRODUCT(B52,'Design the AEF circuit'!$G$21*0.000000000001))) -> 0.425899958774067+11.9914162805708j | P52: =IMSUM(IMDIV(1,IMSUM(IMDIV(1,IMPRODUCT(B52,'Design the AEF circuit'!$H$19*0.001)),IMDIV(1,'Design the AEF circuit'!$H$20*1000))), IMDIV(1,IMSUM(IMDIV(1,IMPRODUCT(B52,'Design the AEF circuit'!$H$22*0.001)),IMDIV(1,'Design the AEF circuit'!$H$23*1000))), IMDIV(1,IMSUM(IMDIV(1,IMPRODUCT(B52,'Design the AEF circuit'!$H$24*0.001)),IMDIV(1,'Design the AEF circuit'!$H$25*1000))) ) -> 0.4258990612657+11.9914036616147j | Q52: =IMDIV(1, IMSUM( IMDIV(1, P52), IMPRODUCT(B52,'Design the AEF circuit'!$H$21*0.000000000001) ) ) -> 0.425899958774067+11.9914162805708j
A53: ='Frequency vector'!G53 -> 2371.373706 | B53: =COMPLEX(0,2*PI()*'Frequency vector'!G53,"j") -> 14899.7804252349j | C53: =IF(IF(CMdata=1,IMABS(K53),'CM choke'!C57)=0, C52, IF(CMdata=1,IMABS(K53),'CM choke'!C57)) -> 13.8145113 | D53: =IF(IF(CMdata=1,DEGREES(IMARGUMENT(K53)),'CM choke'!D57)=0, D52, IF(CMdata=1,DEGREES(IMARGUMENT(K53)),'CM choke'!D57)) -> 85.83016205 | E53: =IF(IF(CMdata=1,IMABS(L53),'CM choke'!E57)=0, E52, IF(CMdata=1,IMABS(L53),'CM choke'!E57)) -> 13.8145113 | F53: =IF(IF(CMdata=1,DEGREES(IMARGUMENT(L53)),'CM choke'!F57)=0, F52, IF(CMdata=1,DEGREES(IMARGUMENT(L53)),'CM choke'!F57)) -> 85.83016205 | G53: 1.004496959 | H53: 13.77794282 | I53: 1.004496959 | J53: 13.77794282 | K53: =IF(CMdata=1, IF(Lcm1_core=1, IMDIV(1,IMSUM(IMDIV(1,IMPRODUCT(B53,'Design the AEF circuit'!$G$19*0.001)),IMDIV(1,'Design the AEF circuit'!$G$20*1000),IMPRODUCT(B53,'Design the AEF circuit'!$G$21*0.000000000001))), O53),COMPLEX(G53,H53,"j")) -> 1.00449695944628+13.777942817831j | L53: =IF(CMdata=1, IF(Lcm2_core=1, IMDIV(1, IMSUM(IMDIV(1,IMPRODUCT(B53,'Design the AEF circuit'!$H$19*0.001)), IMDIV(1,'Design the AEF circuit'!$H$20*1000), IMPRODUCT(B53,'Design the AEF circuit'!$H$21*0.000000000001))), Q53), COMPLEX(I53,J53,"j")) -> 1.00449695944628+13.777942817831j | N53: =IMSUM(IMDIV(1,IMSUM(IMDIV(1,IMPRODUCT(B53,'Design the AEF circuit'!$G$19*0.001)),IMDIV(1,'Design the AEF circuit'!$G$20*1000))), IMDIV(1,IMSUM(IMDIV(1,IMPRODUCT(B53,'Design the AEF circuit'!$G$22*0.001)),IMDIV(1,'Design the AEF circuit'!$G$23*1000))), IMDIV(1,IMSUM(IMDIV(1,IMPRODUCT(B53,'Design the AEF circuit'!$G$24*0.001)),IMDIV(1,'Design the AEF circuit'!$G$25*1000))) ) -> 0.440840449849088+12.1996712120791j | O53: =IMDIV(1, IMSUM( IMDIV(1, N53), IMPRODUCT(B53,'Design the AEF circuit'!$G$21*0.000000000001))) -> 0.440841411442297+12.1996845001025j | P53: =IMSUM(IMDIV(1,IMSUM(IMDIV(1,IMPRODUCT(B53,'Design the AEF circuit'!$H$19*0.001)),IMDIV(1,'Design the AEF circuit'!$H$20*1000))), IMDIV(1,IMSUM(IMDIV(1,IMPRODUCT(B53,'Design the AEF circuit'!$H$22*0.001)),IMDIV(1,'Design the AEF circuit'!$H$23*1000))), IMDIV(1,IMSUM(IMDIV(1,IMPRODUCT(B53,'Design the AEF circuit'!$H$24*0.001)),IMDIV(1,'Design the AEF circuit'!$H$25*1000))) ) -> 0.440840449849088+12.1996712120791j | Q53: =IMDIV(1, IMSUM( IMDIV(1, P53), IMPRODUCT(B53,'Design the AEF circuit'!$H$21*0.000000000001) ) ) -> 0.440841411442297+12.1996845001025j
A54: ='Frequency vector'!G54 -> 2412.681533 | B54: =COMPLEX(0,2*PI()*'Frequency vector'!G54,"j") -> 15159.325156473j | C54: =IF(IF(CMdata=1,IMABS(K54),'CM choke'!C58)=0, C53, IF(CMdata=1,IMABS(K54),'CM choke'!C58)) -> 14.03886986 | D54: =IF(IF(CMdata=1,DEGREES(IMARGUMENT(K54)),'CM choke'!D58)=0, D53, IF(CMdata=1,DEGREES(IMARGUMENT(K54)),'CM choke'!D58)) -> 85.71694946 | E54: =IF(IF(CMdata=1,IMABS(L54),'CM choke'!E58)=0, E53, IF(CMdata=1,IMABS(L54),'CM choke'!E58)) -> 14.03886986 | F54: =IF(IF(CMdata=1,DEGREES(IMARGUMENT(L54)),'CM choke'!F58)=0, F53, IF(CMdata=1,DEGREES(IMARGUMENT(L54)),'CM choke'!F58)) -> 85.71694946 | G54: 1.048475199 | H54: 13.99966309 | I54: 1.048475199 | J54: 13.99966309 | K54: =IF(CMdata=1, IF(Lcm1_core=1, IMDIV(1,IMSUM(IMDIV(1,IMPRODUCT(B54,'Design the AEF circuit'!$G$19*0.001)),IMDIV(1,'Design the AEF circuit'!$G$20*1000),IMPRODUCT(B54,'Design the AEF circuit'!$G$21*0.000000000001))), O54),COMPLEX(G54,H54,"j")) -> 1.04847519854498+13.9996630903133j | L54: =IF(CMdata=1, IF(Lcm2_core=1, IMDIV(1, IMSUM(IMDIV(1,IMPRODUCT(B54,'Design the AEF circuit'!$H$19*0.001)), IMDIV(1,'Design the AEF circuit'!$H$20*1000), IMPRODUCT(B54,'Design the AEF circuit'!$H$21*0.000000000001))), Q54), COMPLEX(I54,J54,"j")) -> 1.04847519854498+13.9996630903133j | N54: =IMSUM(IMDIV(1,IMSUM(IMDIV(1,IMPRODUCT(B54,'Design the AEF circuit'!$G$19*0.001)),IMDIV(1,'Design the AEF circuit'!$G$20*1000))), IMDIV(1,IMSUM(IMDIV(1,IMPRODUCT(B54,'Design the AEF circuit'!$G$22*0.001)),IMDIV(1,'Design the AEF circuit'!$G$23*1000))), IMDIV(1,IMSUM(IMDIV(1,IMPRODUCT(B54,'Design the AEF circuit'!$G$24*0.001)),IMDIV(1,'Design the AEF circuit'!$G$25*1000))) ) -> 0.456305081655163+12.4115340217253j | O54: =IMDIV(1, IMSUM( IMDIV(1, N54), IMPRODUCT(B54,'Design the AEF circuit'!$G$21*0.000000000001))) -> 0.456306111905147+12.4115480142192j | P54: =IMSUM(IMDIV(1,IMSUM(IMDIV(1,IMPRODUCT(B54,'Design the AEF circuit'!$H$19*0.001)),IMDIV(1,'Design the AEF circuit'!$H$20*1000))), IMDIV(1,IMSUM(IMDIV(1,IMPRODUCT(B54,'Design the AEF circuit'!$H$22*0.001)),IMDIV(1,'Design the AEF circuit'!$H$23*1000))), IMDIV(1,IMSUM(IMDIV(1,IMPRODUCT(B54,'Design the AEF circuit'!$H$24*0.001)),IMDIV(1,'Design the AEF circuit'!$H$25*1000))) ) -> 0.456305081655163+12.4115340217253j | Q54: =IMDIV(1, IMSUM( IMDIV(1, P54), IMPRODUCT(B54,'Design the AEF circuit'!$H$21*0.000000000001) ) ) -> 0.456306111905147+12.4115480142192j
A55: ='Frequency vector'!G55 -> 2454.708916 | B55: =COMPLEX(0,2*PI()*'Frequency vector'!G55,"j") -> 15423.3909924661j | C55: =IF(IF(CMdata=1,IMABS(K55),'CM choke'!C59)=0, C54, IF(CMdata=1,IMABS(K55),'CM choke'!C59)) -> 14.28875828 | D55: =IF(IF(CMdata=1,DEGREES(IMARGUMENT(K55)),'CM choke'!D59)=0, D54, IF(CMdata=1,DEGREES(IMARGUMENT(K55)),'CM choke'!D59)) -> 85.65406036 | E55: =IF(IF(CMdata=1,IMABS(L55),'CM choke'!E59)=0, E54, IF(CMdata=1,IMABS(L55),'CM choke'!E59)) -> 14.28875828 | F55: =IF(IF(CMdata=1,DEGREES(IMARGUMENT(L55)),'CM choke'!F59)=0, F54, IF(CMdata=1,DEGREES(IMARGUMENT(L55)),'CM choke'!F59)) -> 85.65406036 | G55: 1.082777005 | H55: 14.24767374 | I55: 1.082777005 | J55: 14.24767374 | K55: =IF(CMdata=1, IF(Lcm1_core=1, IMDIV(1,IMSUM(IMDIV(1,IMPRODUCT(B55,'Design the AEF circuit'!$G$19*0.001)),IMDIV(1,'Design the AEF circuit'!$G$20*1000),IMPRODUCT(B55,'Design the AEF circuit'!$G$21*0.000000000001))), O55),COMPLEX(G55,H55,"j")) -> 1.08277700544291+14.2476737427812j | L55: =IF(CMdata=1, IF(Lcm2_core=1, IMDIV(1, IMSUM(IMDIV(1,IMPRODUCT(B55,'Design the AEF circuit'!$H$19*0.001)), IMDIV(1,'Design the AEF circuit'!$H$20*1000), IMPRODUCT(B55,'Design the AEF circuit'!$H$21*0.000000000001))), Q55), COMPLEX(I55,J55,"j")) -> 1.08277700544291+14.2476737427812j | N55: =IMSUM(IMDIV(1,IMSUM(IMDIV(1,IMPRODUCT(B55,'Design the AEF circuit'!$G$19*0.001)),IMDIV(1,'Design the AEF circuit'!$G$20*1000))), IMDIV(1,IMSUM(IMDIV(1,IMPRODUCT(B55,'Design the AEF circuit'!$G$22*0.001)),IMDIV(1,'Design the AEF circuit'!$G$23*1000))), IMDIV(1,IMSUM(IMDIV(1,IMPRODUCT(B55,'Design the AEF circuit'!$G$24*0.001)),IMDIV(1,'Design the AEF circuit'!$G$25*1000))) ) -> 0.472311214098704+12.6270529896819j | O55: =IMDIV(1, IMSUM( IMDIV(1, N55), IMPRODUCT(B55,'Design the AEF circuit'!$G$21*0.000000000001))) -> 0.472312317903142+12.6270677239165j | P55: =IMSUM(IMDIV(1,IMSUM(IMDIV(1,IMPRODUCT(B55,'Design the AEF circuit'!$H$19*0.001)),IMDIV(1,'Design the AEF circuit'!$H$20*1000))), IMDIV(1,IMSUM(IMDIV(1,IMPRODUCT(B55,'Design the AEF circuit'!$H$22*0.001)),IMDIV(1,'Design the AEF circuit'!$H$23*1000))), IMDIV(1,IMSUM(IMDIV(1,IMPRODUCT(B55,'Design the AEF circuit'!$H$24*0.001)),IMDIV(1,'Design the AEF circuit'!$H$25*1000))) ) -> 0.472311214098704+12.6270529896819j | Q55: =IMDIV(1, IMSUM( IMDIV(1, P55), IMPRODUCT(B55,'Design the AEF circuit'!$H$21*0.000000000001) ) ) -> 0.472312317903142+12.6270677239165j
A56: ='Frequency vector'!G56 -> 2497.468389 | B56: =COMPLEX(0,2*PI()*'Frequency vector'!G56,"j") -> 15692.0566878527j | C56: =IF(IF(CMdata=1,IMABS(K56),'CM choke'!C60)=0, C55, IF(CMdata=1,IMABS(K56),'CM choke'!C60)) -> 14.51930523 | D56: =IF(IF(CMdata=1,DEGREES(IMARGUMENT(K56)),'CM choke'!D60)=0, D55, IF(CMdata=1,DEGREES(IMARGUMENT(K56)),'CM choke'!D60)) -> 85.6124649 | E56: =IF(IF(CMdata=1,IMABS(L56),'CM choke'!E60)=0, E55, IF(CMdata=1,IMABS(L56),'CM choke'!E60)) -> 14.51930523 | F56: =IF(IF(CMdata=1,DEGREES(IMARGUMENT(L56)),'CM choke'!F60)=0, F55, IF(CMdata=1,DEGREES(IMARGUMENT(L56)),'CM choke'!F60)) -> 85.6124649 | G56: 1.110757542 | H56: 14.47675523 | I56: 1.110757542 | J56: 14.47675523 | K56: =IF(CMdata=1, IF(Lcm1_core=1, IMDIV(1,IMSUM(IMDIV(1,IMPRODUCT(B56,'Design the AEF circuit'!$G$19*0.001)),IMDIV(1,'Design the AEF circuit'!$G$20*1000),IMPRODUCT(B56,'Design the AEF circuit'!$G$21*0.000000000001))), O56),COMPLEX(G56,H56,"j")) -> 1.11075754192463+14.476755231119j | L56: =IF(CMdata=1, IF(Lcm2_core=1, IMDIV(1, IMSUM(IMDIV(1,IMPRODUCT(B56,'Design the AEF circuit'!$H$19*0.001)), IMDIV(1,'Design the AEF circuit'!$H$20*1000), IMPRODUCT(B56,'Design the AEF circuit'!$H$21*0.000000000001))), Q56), COMPLEX(I56,J56,"j")) -> 1.11075754192463+14.476755231119j | N56: =IMSUM(IMDIV(1,IMSUM(IMDIV(1,IMPRODUCT(B56,'Design the AEF circuit'!$G$19*0.001)),IMDIV(1,'Design the AEF circuit'!$G$20*1000))), IMDIV(1,IMSUM(IMDIV(1,IMPRODUCT(B56,'Design the AEF circuit'!$G$22*0.001)),IMDIV(1,'Design the AEF circuit'!$G$23*1000))), IMDIV(1,IMSUM(IMDIV(1,IMPRODUCT(B56,'Design the AEF circuit'!$G$24*0.001)),IMDIV(1,'Design the AEF circuit'!$G$25*1000))) ) -> 0.488877736894707+12.8462899844902j | O56: =IMDIV(1, IMSUM( IMDIV(1, N56), IMPRODUCT(B56,'Design the AEF circuit'!$G$21*0.000000000001))) -> 0.488878919500177+12.8463054997003j | P56: =IMSUM(IMDIV(1,IMSUM(IMDIV(1,IMPRODUCT(B56,'Design the AEF circuit'!$H$19*0.001)),IMDIV(1,'Design the AEF circuit'!$H$20*1000))), IMDIV(1,IMSUM(IMDIV(1,IMPRODUCT(B56,'Design the AEF circuit'!$H$22*0.001)),IMDIV(1,'Design the AEF circuit'!$H$23*1000))), IMDIV(1,IMSUM(IMDIV(1,IMPRODUCT(B56,'Design the AEF circuit'!$H$24*0.001)),IMDIV(1,'Design the AEF circuit'!$H$25*1000))) ) -> 0.488877736894707+12.8462899844902j | Q56: =IMDIV(1, IMSUM( IMDIV(1, P56), IMPRODUCT(B56,'Design the AEF circuit'!$H$21*0.000000000001) ) ) -> 0.488878919500177+12.8463054997003j
A57: ='Frequency vector'!G57 -> 2540.972706 | B57: =COMPLEX(0,2*PI()*'Frequency vector'!G57,"j") -> 15965.4023694561j | C57: =IF(IF(CMdata=1,IMABS(K57),'CM choke'!C61)=0, C56, IF(CMdata=1,IMABS(K57),'CM choke'!C61)) -> 14.77841377 | D57: =IF(IF(CMdata=1,DEGREES(IMARGUMENT(K57)),'CM choke'!D61)=0, D56, IF(CMdata=1,DEGREES(IMARGUMENT(K57)),'CM choke'!D61)) -> 85.59921265 | E57: =IF(IF(CMdata=1,IMABS(L57),'CM choke'!E61)=0, E56, IF(CMdata=1,IMABS(L57),'CM choke'!E61)) -> 14.77841377 | F57: =IF(IF(CMdata=1,DEGREES(IMARGUMENT(L57)),'CM choke'!F61)=0, F56, IF(CMdata=1,DEGREES(IMARGUMENT(L57)),'CM choke'!F61)) -> 85.59921265 | G57: 1.133988027 | H57: 14.73484254 | I57: 1.133988027 | J57: 14.73484254 | K57: =IF(CMdata=1, IF(Lcm1_core=1, IMDIV(1,IMSUM(IMDIV(1,IMPRODUCT(B57,'Design the AEF circuit'!$G$19*0.001)),IMDIV(1,'Design the AEF circuit'!$G$20*1000),IMPRODUCT(B57,'Design the AEF circuit'!$G$21*0.000000000001))), O57),COMPLEX(G57,H57,"j")) -> 1.13398802689106+14.7348425437478j | L57: =IF(CMdata=1, IF(Lcm2_core=1, IMDIV(1, IMSUM(IMDIV(1,IMPRODUCT(B57,'Design the AEF circuit'!$H$19*0.001)), IMDIV(1,'Design the AEF circuit'!$H$20*1000), IMPRODUCT(B57,'Design the AEF circuit'!$H$21*0.000000000001))), Q57), COMPLEX(I57,J57,"j")) -> 1.13398802689106+14.7348425437478j | N57: =IMSUM(IMDIV(1,IMSUM(IMDIV(1,IMPRODUCT(B57,'Design the AEF circuit'!$G$19*0.001)),IMDIV(1,'Design the AEF circuit'!$G$20*1000))), IMDIV(1,IMSUM(IMDIV(1,IMPRODUCT(B57,'Design the AEF circuit'!$G$22*0.001)),IMDIV(1,'Design the AEF circuit'!$G$23*1000))), IMDIV(1,IMSUM(IMDIV(1,IMPRODUCT(B57,'Design the AEF circuit'!$G$24*0.001)),IMDIV(1,'Design the AEF circuit'!$G$25*1000))) ) -> 0.506024193650307+13.0693078566161j | O57: =IMDIV(1, IMSUM( IMDIV(1, N57), IMPRODUCT(B57,'Design the AEF circuit'!$G$21*0.000000000001))) -> 0.506025460677101+13.0693241941043j | P57: =IMSUM(IMDIV(1,IMSUM(IMDIV(1,IMPRODUCT(B57,'Design the AEF circuit'!$H$19*0.001)),IMDIV(1,'Design the AEF circuit'!$H$20*1000))), IMDIV(1,IMSUM(IMDIV(1,IMPRODUCT(B57,'Design the AEF circuit'!$H$22*0.001)),IMDIV(1,'Design the AEF circuit'!$H$23*1000))), IMDIV(1,IMSUM(IMDIV(1,IMPRODUCT(B57,'Design the AEF circuit'!$H$24*0.001)),IMDIV(1,'Design the AEF circuit'!$H$25*1000))) ) -> 0.506024193650307+13.0693078566161j | Q57: =IMDIV(1, IMSUM( IMDIV(1, P57), IMPRODUCT(B57,'Design the AEF circuit'!$H$21*0.000000000001) ) ) -> 0.506025460677101+13.0693241941043j
A58: ='Frequency vector'!G58 -> 2585.23484 | B58: =COMPLEX(0,2*PI()*'Frequency vector'!G58,"j") -> 16243.5095595322j | C58: =IF(IF(CMdata=1,IMABS(K58),'CM choke'!C62)=0, C57, IF(CMdata=1,IMABS(K58),'CM choke'!C62)) -> 15.04559803 | D58: =IF(IF(CMdata=1,DEGREES(IMARGUMENT(K58)),'CM choke'!D62)=0, D57, IF(CMdata=1,DEGREES(IMARGUMENT(K58)),'CM choke'!D62)) -> 85.51582336 | E58: =IF(IF(CMdata=1,IMABS(L58),'CM choke'!E62)=0, E57, IF(CMdata=1,IMABS(L58),'CM choke'!E62)) -> 15.04559803 | F58: =IF(IF(CMdata=1,DEGREES(IMARGUMENT(L58)),'CM choke'!F62)=0, F57, IF(CMdata=1,DEGREES(IMARGUMENT(L58)),'CM choke'!F62)) -> 85.51582336 | G58: 1.17632164 | H58: 14.99954291 | I58: 1.17632164 | J58: 14.99954291 | K58: =IF(CMdata=1, IF(Lcm1_core=1, IMDIV(1,IMSUM(IMDIV(1,IMPRODUCT(B58,'Design the AEF circuit'!$G$19*0.001)),IMDIV(1,'Design the AEF circuit'!$G$20*1000),IMPRODUCT(B58,'Design the AEF circuit'!$G$21*0.000000000001))), O58),COMPLEX(G58,H58,"j")) -> 1.17632164018587+14.9995429091082j | L58: =IF(CMdata=1, IF(Lcm2_core=1, IMDIV(1, IMSUM(IMDIV(1,IMPRODUCT(B58,'Design the AEF circuit'!$H$19*0.001)), IMDIV(1,'Design the AEF circuit'!$H$20*1000), IMPRODUCT(B58,'Design the AEF circuit'!$H$21*0.000000000001))), Q58), COMPLEX(I58,J58,"j")) -> 1.17632164018587+14.9995429091082j | N58: =IMSUM(IMDIV(1,IMSUM(IMDIV(1,IMPRODUCT(B58,'Design the AEF circuit'!$G$19*0.001)),IMDIV(1,'Design the AEF circuit'!$G$20*1000))), IMDIV(1,IMSUM(IMDIV(1,IMPRODUCT(B58,'Design the AEF circuit'!$G$22*0.001)),IMDIV(1,'Design the AEF circuit'!$G$23*1000))), IMDIV(1,IMSUM(IMDIV(1,IMPRODUCT(B58,'Design the AEF circuit'!$G$24*0.001)),IMDIV(1,'Design the AEF circuit'!$G$25*1000))) ) -> 0.523770804096043+13.2961704499738j | O58: =IMDIV(1, IMSUM( IMDIV(1, N58), IMPRODUCT(B58,'Design the AEF circuit'!$G$21*0.000000000001))) -> 0.523772161564725+13.2961876532189j | P58: =IMSUM(IMDIV(1,IMSUM(IMDIV(1,IMPRODUCT(B58,'Design the AEF circuit'!$H$19*0.001)),IMDIV(1,'Design the AEF circuit'!$H$20*1000))), IMDIV(1,IMSUM(IMDIV(1,IMPRODUCT(B58,'Design the AEF circuit'!$H$22*0.001)),IMDIV(1,'Design the AEF circuit'!$H$23*1000))), IMDIV(1,IMSUM(IMDIV(1,IMPRODUCT(B58,'Design the AEF circuit'!$H$24*0.001)),IMDIV(1,'Design the AEF circuit'!$H$25*1000))) ) -> 0.523770804096043+13.2961704499738j | Q58: =IMDIV(1, IMSUM( IMDIV(1, P58), IMPRODUCT(B58,'Design the AEF circuit'!$H$21*0.000000000001) ) ) -> 0.523772161564725+13.2961876532189j
A59: ='Frequency vector'!G59 -> 2630.267992 | B59: =COMPLEX(0,2*PI()*'Frequency vector'!G59,"j") -> 16526.4612006508j | C59: =IF(IF(CMdata=1,IMABS(K59),'CM choke'!C63)=0, C58, IF(CMdata=1,IMABS(K59),'CM choke'!C63)) -> 15.28451729 | D59: =IF(IF(CMdata=1,DEGREES(IMARGUMENT(K59)),'CM choke'!D63)=0, D58, IF(CMdata=1,DEGREES(IMARGUMENT(K59)),'CM choke'!D63)) -> 85.43989563 | E59: =IF(IF(CMdata=1,IMABS(L59),'CM choke'!E63)=0, E58, IF(CMdata=1,IMABS(L59),'CM choke'!E63)) -> 15.28451729 | F59: =IF(IF(CMdata=1,DEGREES(IMARGUMENT(L59)),'CM choke'!F63)=0, F58, IF(CMdata=1,DEGREES(IMARGUMENT(L59)),'CM choke'!F63)) -> 85.43989563 | G59: 1.215193067 | H59: 15.23613385 | I59: 1.215193067 | J59: 15.23613385 | K59: =IF(CMdata=1, IF(Lcm1_core=1, IMDIV(1,IMSUM(IMDIV(1,IMPRODUCT(B59,'Design the AEF circuit'!$G$19*0.001)),IMDIV(1,'Design the AEF circuit'!$G$20*1000),IMPRODUCT(B59,'Design the AEF circuit'!$G$21*0.000000000001))), O59),COMPLEX(G59,H59,"j")) -> 1.21519306698396+15.2361338450159j | L59: =IF(CMdata=1, IF(Lcm2_core=1, IMDIV(1, IMSUM(IMDIV(1,IMPRODUCT(B59,'Design the AEF circuit'!$H$19*0.001)), IMDIV(1,'Design the AEF circuit'!$H$20*1000), IMPRODUCT(B59,'Design the AEF circuit'!$H$21*0.000000000001))), Q59), COMPLEX(I59,J59,"j")) -> 1.21519306698396+15.2361338450159j | N59: =IMSUM(IMDIV(1,IMSUM(IMDIV(1,IMPRODUCT(B59,'Design the AEF circuit'!$G$19*0.001)),IMDIV(1,'Design the AEF circuit'!$G$20*1000))), IMDIV(1,IMSUM(IMDIV(1,IMPRODUCT(B59,'Design the AEF circuit'!$G$22*0.001)),IMDIV(1,'Design the AEF circuit'!$G$23*1000))), IMDIV(1,IMSUM(IMDIV(1,IMPRODUCT(B59,'Design the AEF circuit'!$G$24*0.001)),IMDIV(1,'Design the AEF circuit'!$G$25*1000))) ) -> 0.542138487125257+13.5269426143913j | O59: =IMDIV(1, IMSUM( IMDIV(1, N59), IMPRODUCT(B59,'Design the AEF circuit'!$G$21*0.000000000001))) -> 0.542139941485101+13.5269607291618j | P59: =IMSUM(IMDIV(1,IMSUM(IMDIV(1,IMPRODUCT(B59,'Design the AEF circuit'!$H$19*0.001)),IMDIV(1,'Design the AEF circuit'!$H$20*1000))), IMDIV(1,IMSUM(IMDIV(1,IMPRODUCT(B59,'Design the AEF circuit'!$H$22*0.001)),IMDIV(1,'Design the AEF circuit'!$H$23*1000))), IMDIV(1,IMSUM(IMDIV(1,IMPRODUCT(B59,'Design the AEF circuit'!$H$24*0.001)),IMDIV(1,'Design the AEF circuit'!$H$25*1000))) ) -> 0.542138487125257+13.5269426143913j | Q59: =IMDIV(1, IMSUM( IMDIV(1, P59), IMPRODUCT(B59,'Design the AEF circuit'!$H$21*0.000000000001) ) ) -> 0.542139941485101+13.5269607291618j
A60: ='Frequency vector'!G60 -> 2676.085593 | B60: =COMPLEX(0,2*PI()*'Frequency vector'!G60,"j") -> 16814.3416799492j | C60: =IF(IF(CMdata=1,IMABS(K60),'CM choke'!C64)=0, C59, IF(CMdata=1,IMABS(K60),'CM choke'!C64)) -> 15.55624485 | D60: =IF(IF(CMdata=1,DEGREES(IMARGUMENT(K60)),'CM choke'!D64)=0, D59, IF(CMdata=1,DEGREES(IMARGUMENT(K60)),'CM choke'!D64)) -> 85.40080261 | E60: =IF(IF(CMdata=1,IMABS(L60),'CM choke'!E64)=0, E59, IF(CMdata=1,IMABS(L60),'CM choke'!E64)) -> 15.55624485 | F60: =IF(IF(CMdata=1,DEGREES(IMARGUMENT(L60)),'CM choke'!F64)=0, F59, IF(CMdata=1,DEGREES(IMARGUMENT(L60)),'CM choke'!F64)) -> 85.40080261 | G60: 1.24737689 | H60: 15.50615377 | I60: 1.24737689 | J60: 15.50615377 | K60: =IF(CMdata=1, IF(Lcm1_core=1, IMDIV(1,IMSUM(IMDIV(1,IMPRODUCT(B60,'Design the AEF circuit'!$G$19*0.001)),IMDIV(1,'Design the AEF circuit'!$G$20*1000),IMPRODUCT(B60,'Design the AEF circuit'!$G$21*0.000000000001))), O60),COMPLEX(G60,H60,"j")) -> 1.247376889979+15.5061537698335j | L60: =IF(CMdata=1, IF(Lcm2_core=1, IMDIV(1, IMSUM(IMDIV(1,IMPRODUCT(B60,'Design the AEF circuit'!$H$19*0.001)), IMDIV(1,'Design the AEF circuit'!$H$20*1000), IMPRODUCT(B60,'Design the AEF circuit'!$H$21*0.000000000001))), Q60), COMPLEX(I60,J60,"j")) -> 1.247376889979+15.5061537698335j | N60: =IMSUM(IMDIV(1,IMSUM(IMDIV(1,IMPRODUCT(B60,'Design the AEF circuit'!$G$19*0.001)),IMDIV(1,'Design the AEF circuit'!$G$20*1000))), IMDIV(1,IMSUM(IMDIV(1,IMPRODUCT(B60,'Design the AEF circuit'!$G$22*0.001)),IMDIV(1,'Design the AEF circuit'!$G$23*1000))), IMDIV(1,IMSUM(IMDIV(1,IMPRODUCT(B60,'Design the AEF circuit'!$G$24*0.001)),IMDIV(1,'Design the AEF circuit'!$G$25*1000))) ) -> 0.56114888452194+13.7616902171484j | O60: =IMDIV(1, IMSUM( IMDIV(1, N60), IMPRODUCT(B60,'Design the AEF circuit'!$G$21*0.000000000001))) -> 0.561150442681396+13.7617092916226j | P60: =IMSUM(IMDIV(1,IMSUM(IMDIV(1,IMPRODUCT(B60,'Design the AEF circuit'!$H$19*0.001)),IMDIV(1,'Design the AEF circuit'!$H$20*1000))), IMDIV(1,IMSUM(IMDIV(1,IMPRODUCT(B60,'Design the AEF circuit'!$H$22*0.001)),IMDIV(1,'Design the AEF circuit'!$H$23*1000))), IMDIV(1,IMSUM(IMDIV(1,IMPRODUCT(B60,'Design the AEF circuit'!$H$24*0.001)),IMDIV(1,'Design the AEF circuit'!$H$25*1000))) ) -> 0.56114888452194+13.7616902171484j | Q60: =IMDIV(1, IMSUM( IMDIV(1, P60), IMPRODUCT(B60,'Design the AEF circuit'!$H$21*0.000000000001) ) ) -> 0.561150442681396+13.7617092916226j
A61: ='Frequency vector'!G61 -> 2722.701308 | B61: =COMPLEX(0,2*PI()*'Frequency vector'!G61,"j") -> 17107.2368547669j | C61: =IF(IF(CMdata=1,IMABS(K61),'CM choke'!C65)=0, C60, IF(CMdata=1,IMABS(K61),'CM choke'!C65)) -> 15.81576443 | D61: =IF(IF(CMdata=1,DEGREES(IMARGUMENT(K61)),'CM choke'!D65)=0, D60, IF(CMdata=1,DEGREES(IMARGUMENT(K61)),'CM choke'!D65)) -> 85.34796906 | E61: =IF(IF(CMdata=1,IMABS(L61),'CM choke'!E65)=0, E60, IF(CMdata=1,IMABS(L61),'CM choke'!E65)) -> 15.81576443 | F61: =IF(IF(CMdata=1,DEGREES(IMARGUMENT(L61)),'CM choke'!F65)=0, F60, IF(CMdata=1,DEGREES(IMARGUMENT(L61)),'CM choke'!F65)) -> 85.34796906 | G61: 1.282722981 | H61: 15.76366157 | I61: 1.282722981 | J61: 15.76366157 | K61: =IF(CMdata=1, IF(Lcm1_core=1, IMDIV(1,IMSUM(IMDIV(1,IMPRODUCT(B61,'Design the AEF circuit'!$G$19*0.001)),IMDIV(1,'Design the AEF circuit'!$G$20*1000),IMPRODUCT(B61,'Design the AEF circuit'!$G$21*0.000000000001))), O61),COMPLEX(G61,H61,"j")) -> 1.28272298063997+15.763661572478j | L61: =IF(CMdata=1, IF(Lcm2_core=1, IMDIV(1, IMSUM(IMDIV(1,IMPRODUCT(B61,'Design the AEF circuit'!$H$19*0.001)), IMDIV(1,'Design the AEF circuit'!$H$20*1000), IMPRODUCT(B61,'Design the AEF circuit'!$H$21*0.000000000001))), Q61), COMPLEX(I61,J61,"j")) -> 1.28272298063997+15.763661572478j | N61: =IMSUM(IMDIV(1,IMSUM(IMDIV(1,IMPRODUCT(B61,'Design the AEF circuit'!$G$19*0.001)),IMDIV(1,'Design the AEF circuit'!$G$20*1000))), IMDIV(1,IMSUM(IMDIV(1,IMPRODUCT(B61,'Design the AEF circuit'!$G$22*0.001)),IMDIV(1,'Design the AEF circuit'!$G$23*1000))), IMDIV(1,IMSUM(IMDIV(1,IMPRODUCT(B61,'Design the AEF circuit'!$G$24*0.001)),IMDIV(1,'Design the AEF circuit'!$G$25*1000))) ) -> 0.580824385527429+14.0004801552099j | O61: =IMDIV(1, IMSUM( IMDIV(1, N61), IMPRODUCT(B61,'Design the AEF circuit'!$G$21*0.000000000001))) -> 0.580826054886733+14.0005002401017j | P61: =IMSUM(IMDIV(1,IMSUM(IMDIV(1,IMPRODUCT(B61,'Design the AEF circuit'!$H$19*0.001)),IMDIV(1,'Design the AEF circuit'!$H$20*1000))), IMDIV(1,IMSUM(IMDIV(1,IMPRODUCT(B61,'Design the AEF circuit'!$H$22*0.001)),IMDIV(1,'Design the AEF circuit'!$H$23*1000))), IMDIV(1,IMSUM(IMDIV(1,IMPRODUCT(B61,'Design the AEF circuit'!$H$24*0.001)),IMDIV(1,'Design the AEF circuit'!$H$25*1000))) ) -> 0.580824385527429+14.0004801552099j | Q61: =IMDIV(1, IMSUM( IMDIV(1, P61), IMPRODUCT(B61,'Design the AEF circuit'!$H$21*0.000000000001) ) ) -> 0.580826054886733+14.0005002401017j
A62: ='Frequency vector'!G62 -> 2770.129039 | B62: =COMPLEX(0,2*PI()*'Frequency vector'!G62,"j") -> 17405.2340778416j | C62: =IF(IF(CMdata=1,IMABS(K62),'CM choke'!C66)=0, C61, IF(CMdata=1,IMABS(K62),'CM choke'!C66)) -> 16.08647919 | D62: =IF(IF(CMdata=1,DEGREES(IMARGUMENT(K62)),'CM choke'!D66)=0, D61, IF(CMdata=1,DEGREES(IMARGUMENT(K62)),'CM choke'!D66)) -> 85.27280426 | E62: =IF(IF(CMdata=1,IMABS(L62),'CM choke'!E66)=0, E61, IF(CMdata=1,IMABS(L62),'CM choke'!E66)) -> 16.08647919 | F62: =IF(IF(CMdata=1,DEGREES(IMARGUMENT(L62)),'CM choke'!F66)=0, F61, IF(CMdata=1,DEGREES(IMARGUMENT(L62)),'CM choke'!F66)) -> 85.27280426 | G62: 1.325711821 | H62: 16.03175913 | I62: 1.325711821 | J62: 16.03175913 | K62: =IF(CMdata=1, IF(Lcm1_core=1, IMDIV(1,IMSUM(IMDIV(1,IMPRODUCT(B62,'Design the AEF circuit'!$G$19*0.001)),IMDIV(1,'Design the AEF circuit'!$G$20*1000),IMPRODUCT(B62,'Design the AEF circuit'!$G$21*0.000000000001))), O62),COMPLEX(G62,H62,"j")) -> 1.32571182058574+16.0317591300063j | L62: =IF(CMdata=1, IF(Lcm2_core=1, IMDIV(1, IMSUM(IMDIV(1,IMPRODUCT(B62,'Design the AEF circuit'!$H$19*0.001)), IMDIV(1,'Design the AEF circuit'!$H$20*1000), IMPRODUCT(B62,'Design the AEF circuit'!$H$21*0.000000000001))), Q62), COMPLEX(I62,J62,"j")) -> 1.32571182058574+16.0317591300063j | N62: =IMSUM(IMDIV(1,IMSUM(IMDIV(1,IMPRODUCT(B62,'Design the AEF circuit'!$G$19*0.001)),IMDIV(1,'Design the AEF circuit'!$G$20*1000))), IMDIV(1,IMSUM(IMDIV(1,IMPRODUCT(B62,'Design the AEF circuit'!$G$22*0.001)),IMDIV(1,'Design the AEF circuit'!$G$23*1000))), IMDIV(1,IMSUM(IMDIV(1,IMPRODUCT(B62,'Design the AEF circuit'!$G$24*0.001)),IMDIV(1,'Design the AEF circuit'!$G$25*1000))) ) -> 0.60118815215056+14.2433803666432j | O62: =IMDIV(1, IMSUM( IMDIV(1, N62), IMPRODUCT(B62,'Design the AEF circuit'!$G$21*0.000000000001))) -> 0.601189940636657+14.2434015153349j | P62: =IMSUM(IMDIV(1,IMSUM(IMDIV(1,IMPRODUCT(B62,'Design the AEF circuit'!$H$19*0.001)),IMDIV(1,'Design the AEF circuit'!$H$20*1000))), IMDIV(1,IMSUM(IMDIV(1,IMPRODUCT(B62,'Design the AEF circuit'!$H$22*0.001)),IMDIV(1,'Design the AEF circuit'!$H$23*1000))), IMDIV(1,IMSUM(IMDIV(1,IMPRODUCT(B62,'Design the AEF circuit'!$H$24*0.001)),IMDIV(1,'Design the AEF circuit'!$H$25*1000))) ) -> 0.60118815215056+14.2433803666432j | Q62: =IMDIV(1, IMSUM( IMDIV(1, P62), IMPRODUCT(B62,'Design the AEF circuit'!$H$21*0.000000000001) ) ) -> 0.601189940636657+14.2434015153349j
A63: ='Frequency vector'!G63 -> 2818.382931 | B63: =COMPLEX(0,2*PI()*'Frequency vector'!G63,"j") -> 17708.4222236986j | C63: =IF(IF(CMdata=1,IMABS(K63),'CM choke'!C67)=0, C62, IF(CMdata=1,IMABS(K63),'CM choke'!C67)) -> 16.36537933 | D63: =IF(IF(CMdata=1,DEGREES(IMARGUMENT(K63)),'CM choke'!D67)=0, D62, IF(CMdata=1,DEGREES(IMARGUMENT(K63)),'CM choke'!D67)) -> 85.23622131 | E63: =IF(IF(CMdata=1,IMABS(L63),'CM choke'!E67)=0, E62, IF(CMdata=1,IMABS(L63),'CM choke'!E67)) -> 16.36537933 | F63: =IF(IF(CMdata=1,DEGREES(IMARGUMENT(L63)),'CM choke'!F67)=0, F62, IF(CMdata=1,DEGREES(IMARGUMENT(L63)),'CM choke'!F67)) -> 85.23622131 | G63: 1.359109775 | H63: 16.30884611 | I63: 1.359109775 | J63: 16.30884611 | K63: =IF(CMdata=1, IF(Lcm1_core=1, IMDIV(1,IMSUM(IMDIV(1,IMPRODUCT(B63,'Design the AEF circuit'!$G$19*0.001)),IMDIV(1,'Design the AEF circuit'!$G$20*1000),IMPRODUCT(B63,'Design the AEF circuit'!$G$21*0.000000000001))), O63),COMPLEX(G63,H63,"j")) -> 1.35910977463941+16.3088461072459j | L63: =IF(CMdata=1, IF(Lcm2_core=1, IMDIV(1, IMSUM(IMDIV(1,IMPRODUCT(B63,'Design the AEF circuit'!$H$19*0.001)), IMDIV(1,'Design the AEF circuit'!$H$20*1000), IMPRODUCT(B63,'Design the AEF circuit'!$H$21*0.000000000001))), Q63), COMPLEX(I63,J63,"j")) -> 1.35910977463941+16.3088461072459j | N63: =IMSUM(IMDIV(1,IMSUM(IMDIV(1,IMPRODUCT(B63,'Design the AEF circuit'!$G$19*0.001)),IMDIV(1,'Design the AEF circuit'!$G$20*1000))), IMDIV(1,IMSUM(IMDIV(1,IMPRODUCT(B63,'Design the AEF circuit'!$G$22*0.001)),IMDIV(1,'Design the AEF circuit'!$G$23*1000))), IMDIV(1,IMSUM(IMDIV(1,IMPRODUCT(B63,'Design the AEF circuit'!$G$24*0.001)),IMDIV(1,'Design the AEF circuit'!$G$25*1000))) ) -> 0.62226414535217+14.490459842529j | O63: =IMDIV(1, IMSUM( IMDIV(1, N63), IMPRODUCT(B63,'Design the AEF circuit'!$G$21*0.000000000001))) -> 0.622266061456102+14.4904821112101j | P63: =IMSUM(IMDIV(1,IMSUM(IMDIV(1,IMPRODUCT(B63,'Design the AEF circuit'!$H$19*0.001)),IMDIV(1,'Design the AEF circuit'!$H$20*1000))), IMDIV(1,IMSUM(IMDIV(1,IMPRODUCT(B63,'Design the AEF circuit'!$H$22*0.001)),IMDIV(1,'Design the AEF circuit'!$H$23*1000))), IMDIV(1,IMSUM(IMDIV(1,IMPRODUCT(B63,'Design the AEF circuit'!$H$24*0.001)),IMDIV(1,'Design the AEF circuit'!$H$25*1000))) ) -> 0.62226414535217+14.490459842529j | Q63: =IMDIV(1, IMSUM( IMDIV(1, P63), IMPRODUCT(B63,'Design the AEF circuit'!$H$21*0.000000000001) ) ) -> 0.622266061456102+14.4904821112101j
A64: ='Frequency vector'!G64 -> 2867.477376 | B64: =COMPLEX(0,2*PI()*'Frequency vector'!G64,"j") -> 18016.8917149141j | C64: =IF(IF(CMdata=1,IMABS(K64),'CM choke'!C68)=0, C63, IF(CMdata=1,IMABS(K64),'CM choke'!C68)) -> 16.64286804 | D64: =IF(IF(CMdata=1,DEGREES(IMARGUMENT(K64)),'CM choke'!D68)=0, D63, IF(CMdata=1,DEGREES(IMARGUMENT(K64)),'CM choke'!D68)) -> 85.17494202 | E64: =IF(IF(CMdata=1,IMABS(L64),'CM choke'!E68)=0, E63, IF(CMdata=1,IMABS(L64),'CM choke'!E68)) -> 16.64286804 | F64: =IF(IF(CMdata=1,DEGREES(IMARGUMENT(L64)),'CM choke'!F68)=0, F63, IF(CMdata=1,DEGREES(IMARGUMENT(L64)),'CM choke'!F68)) -> 85.17494202 | G64: 1.399892308 | H64: 16.58388851 | I64: 1.399892308 | J64: 16.58388851 | K64: =IF(CMdata=1, IF(Lcm1_core=1, IMDIV(1,IMSUM(IMDIV(1,IMPRODUCT(B64,'Design the AEF circuit'!$G$19*0.001)),IMDIV(1,'Design the AEF circuit'!$G$20*1000),IMPRODUCT(B64,'Design the AEF circuit'!$G$21*0.000000000001))), O64),COMPLEX(G64,H64,"j")) -> 1.39989230761529+16.5838885123635j | L64: =IF(CMdata=1, IF(Lcm2_core=1, IMDIV(1, IMSUM(IMDIV(1,IMPRODUCT(B64,'Design the AEF circuit'!$H$19*0.001)), IMDIV(1,'Design the AEF circuit'!$H$20*1000), IMPRODUCT(B64,'Design the AEF circuit'!$H$21*0.000000000001))), Q64), COMPLEX(I64,J64,"j")) -> 1.39989230761529+16.5838885123635j | N64: =IMSUM(IMDIV(1,IMSUM(IMDIV(1,IMPRODUCT(B64,'Design the AEF circuit'!$G$19*0.001)),IMDIV(1,'Design the AEF circuit'!$G$20*1000))), IMDIV(1,IMSUM(IMDIV(1,IMPRODUCT(B64,'Design the AEF circuit'!$G$22*0.001)),IMDIV(1,'Design the AEF circuit'!$G$23*1000))), IMDIV(1,IMSUM(IMDIV(1,IMPRODUCT(B64,'Design the AEF circuit'!$G$24*0.001)),IMDIV(1,'Design the AEF circuit'!$G$25*1000))) ) -> 0.644077152039663+14.7417886382654j | O64: =IMDIV(1, IMSUM( IMDIV(1, N64), IMPRODUCT(B64,'Design the AEF circuit'!$G$21*0.000000000001))) -> 0.644079204856616+14.7418120860797j | P64: =IMSUM(IMDIV(1,IMSUM(IMDIV(1,IMPRODUCT(B64,'Design the AEF circuit'!$H$19*0.001)),IMDIV(1,'Design the AEF circuit'!$H$20*1000))), IMDIV(1,IMSUM(IMDIV(1,IMPRODUCT(B64,'Design the AEF circuit'!$H$22*0.001)),IMDIV(1,'Design the AEF circuit'!$H$23*1000))), IMDIV(1,IMSUM(IMDIV(1,IMPRODUCT(B64,'Design the AEF circuit'!$H$24*0.001)),IMDIV(1,'Design the AEF circuit'!$H$25*1000))) ) -> 0.644077152039663+14.7417886382654j | Q64: =IMDIV(1, IMSUM( IMDIV(1, P64), IMPRODUCT(B64,'Design the AEF circuit'!$H$21*0.000000000001) ) ) -> 0.644079204856616+14.7418120860797j
A65: ='Frequency vector'!G65 -> 2917.427014 | B65: =COMPLEX(0,2*PI()*'Frequency vector'!G65,"j") -> 18330.7345491336j | C65: =IF(IF(CMdata=1,IMABS(K65),'CM choke'!C69)=0, C64, IF(CMdata=1,IMABS(K65),'CM choke'!C69)) -> 16.92840767 | D65: =IF(IF(CMdata=1,DEGREES(IMARGUMENT(K65)),'CM choke'!D69)=0, D64, IF(CMdata=1,DEGREES(IMARGUMENT(K65)),'CM choke'!D69)) -> 85.11641693 | E65: =IF(IF(CMdata=1,IMABS(L65),'CM choke'!E69)=0, E64, IF(CMdata=1,IMABS(L65),'CM choke'!E69)) -> 16.92840767 | F65: =IF(IF(CMdata=1,DEGREES(IMARGUMENT(L65)),'CM choke'!F69)=0, F64, IF(CMdata=1,DEGREES(IMARGUMENT(L65)),'CM choke'!F69)) -> 85.11641693 | G65: 1.441139676 | H65: 16.86695297 | I65: 1.441139676 | J65: 16.86695297 | K65: =IF(CMdata=1, IF(Lcm1_core=1, IMDIV(1,IMSUM(IMDIV(1,IMPRODUCT(B65,'Design the AEF circuit'!$G$19*0.001)),IMDIV(1,'Design the AEF circuit'!$G$20*1000),IMPRODUCT(B65,'Design the AEF circuit'!$G$21*0.000000000001))), O65),COMPLEX(G65,H65,"j")) -> 1.44113967628913+16.86695297452j | L65: =IF(CMdata=1, IF(Lcm2_core=1, IMDIV(1, IMSUM(IMDIV(1,IMPRODUCT(B65,'Design the AEF circuit'!$H$19*0.001)), IMDIV(1,'Design the AEF circuit'!$H$20*1000), IMPRODUCT(B65,'Design the AEF circuit'!$H$21*0.000000000001))), Q65), COMPLEX(I65,J65,"j")) -> 1.44113967628913+16.86695297452j | N65: =IMSUM(IMDIV(1,IMSUM(IMDIV(1,IMPRODUCT(B65,'Design the AEF circuit'!$G$19*0.001)),IMDIV(1,'Design the AEF circuit'!$G$20*1000))), IMDIV(1,IMSUM(IMDIV(1,IMPRODUCT(B65,'Design the AEF circuit'!$G$22*0.001)),IMDIV(1,'Design the AEF circuit'!$G$23*1000))), IMDIV(1,IMSUM(IMDIV(1,IMPRODUCT(B65,'Design the AEF circuit'!$G$24*0.001)),IMDIV(1,'Design the AEF circuit'!$G$25*1000))) ) -> 0.666652812955041+14.9974378849561j | O65: =IMDIV(1, IMSUM( IMDIV(1, N65), IMPRODUCT(B65,'Design the AEF circuit'!$G$21*0.000000000001))) -> 0.666655012227198+14.9974625741553j | P65: =IMSUM(IMDIV(1,IMSUM(IMDIV(1,IMPRODUCT(B65,'Design the AEF circuit'!$H$19*0.001)),IMDIV(1,'Design the AEF circuit'!$H$20*1000))), IMDIV(1,IMSUM(IMDIV(1,IMPRODUCT(B65,'Design the AEF circuit'!$H$22*0.001)),IMDIV(1,'Design the AEF circuit'!$H$23*1000))), IMDIV(1,IMSUM(IMDIV(1,IMPRODUCT(B65,'Design the AEF circuit'!$H$24*0.001)),IMDIV(1,'Design the AEF circuit'!$H$25*1000))) ) -> 0.666652812955041+14.9974378849561j | Q65: =IMDIV(1, IMSUM( IMDIV(1, P65), IMPRODUCT(B65,'Design the AEF circuit'!$H$21*0.000000000001) ) ) -> 0.666655012227198+14.9974625741553j
A66: ='Frequency vector'!G66 -> 2968.246743 | B66: =COMPLEX(0,2*PI()*'Frequency vector'!G66,"j") -> 18650.0443265915j | C66: =IF(IF(CMdata=1,IMABS(K66),'CM choke'!C70)=0, C65, IF(CMdata=1,IMABS(K66),'CM choke'!C70)) -> 17.21315575 | D66: =IF(IF(CMdata=1,DEGREES(IMARGUMENT(K66)),'CM choke'!D70)=0, D65, IF(CMdata=1,DEGREES(IMARGUMENT(K66)),'CM choke'!D70)) -> 85.06463623 | E66: =IF(IF(CMdata=1,IMABS(L66),'CM choke'!E70)=0, E65, IF(CMdata=1,IMABS(L66),'CM choke'!E70)) -> 17.21315575 | F66: =IF(IF(CMdata=1,DEGREES(IMARGUMENT(L66)),'CM choke'!F70)=0, F65, IF(CMdata=1,DEGREES(IMARGUMENT(L66)),'CM choke'!F70)) -> 85.06463623 | G66: 1.480879897 | H66: 17.14933601 | I66: 1.480879897 | J66: 17.14933601 | K66: =IF(CMdata=1, IF(Lcm1_core=1, IMDIV(1,IMSUM(IMDIV(1,IMPRODUCT(B66,'Design the AEF circuit'!$G$19*0.001)),IMDIV(1,'Design the AEF circuit'!$G$20*1000),IMPRODUCT(B66,'Design the AEF circuit'!$G$21*0.000000000001))), O66),COMPLEX(G66,H66,"j")) -> 1.48087989669036+17.1493360071125j | L66: =IF(CMdata=1, IF(Lcm2_core=1, IMDIV(1, IMSUM(IMDIV(1,IMPRODUCT(B66,'Design the AEF circuit'!$H$19*0.001)), IMDIV(1,'Design the AEF circuit'!$H$20*1000), IMPRODUCT(B66,'Design the AEF circuit'!$H$21*0.000000000001))), Q66), COMPLEX(I66,J66,"j")) -> 1.48087989669036+17.1493360071125j | N66: =IMSUM(IMDIV(1,IMSUM(IMDIV(1,IMPRODUCT(B66,'Design the AEF circuit'!$G$19*0.001)),IMDIV(1,'Design the AEF circuit'!$G$20*1000))), IMDIV(1,IMSUM(IMDIV(1,IMPRODUCT(B66,'Design the AEF circuit'!$G$22*0.001)),IMDIV(1,'Design the AEF circuit'!$G$23*1000))), IMDIV(1,IMSUM(IMDIV(1,IMPRODUCT(B66,'Design the AEF circuit'!$G$24*0.001)),IMDIV(1,'Design the AEF circuit'!$G$25*1000))) ) -> 0.690017651465083+15.2574798006502j | O66: =IMDIV(1, IMSUM( IMDIV(1, N66), IMPRODUCT(B66,'Design the AEF circuit'!$G$21*0.000000000001))) -> 0.690020007627532+15.2575057967561j | P66: =IMSUM(IMDIV(1,IMSUM(IMDIV(1,IMPRODUCT(B66,'Design the AEF circuit'!$H$19*0.001)),IMDIV(1,'Design the AEF circuit'!$H$20*1000))), IMDIV(1,IMSUM(IMDIV(1,IMPRODUCT(B66,'Design the AEF circuit'!$H$22*0.001)),IMDIV(1,'Design the AEF circuit'!$H$23*1000))), IMDIV(1,IMSUM(IMDIV(1,IMPRODUCT(B66,'Design the AEF circuit'!$H$24*0.001)),IMDIV(1,'Design the AEF circuit'!$H$25*1000))) ) -> 0.690017651465083+15.2574798006502j | Q66: =IMDIV(1, IMSUM( IMDIV(1, P66), IMPRODUCT(B66,'Design the AEF circuit'!$H$21*0.000000000001) ) ) -> 0.690020007627532+15.2575057967561j
A67: ='Frequency vector'!G67 -> 3019.95172 | B67: =COMPLEX(0,2*PI()*'Frequency vector'!G67,"j") -> 18974.916278009j | C67: =IF(IF(CMdata=1,IMABS(K67),'CM choke'!C71)=0, C66, IF(CMdata=1,IMABS(K67),'CM choke'!C71)) -> 17.50399971 | D67: =IF(IF(CMdata=1,DEGREES(IMARGUMENT(K67)),'CM choke'!D71)=0, D66, IF(CMdata=1,DEGREES(IMARGUMENT(K67)),'CM choke'!D71)) -> 84.96593475 | E67: =IF(IF(CMdata=1,IMABS(L67),'CM choke'!E71)=0, E66, IF(CMdata=1,IMABS(L67),'CM choke'!E71)) -> 17.50399971 | F67: =IF(IF(CMdata=1,DEGREES(IMARGUMENT(L67)),'CM choke'!F71)=0, F66, IF(CMdata=1,DEGREES(IMARGUMENT(L67)),'CM choke'!F71)) -> 84.96593475 | G67: =C67*COS(RADIANS(D67)) -> 1.535941239 | H67: =C67*SIN(RADIANS(D67)) -> 17.43648159 | I67: =E67*COS(RADIANS(F67)) -> 1.535941239 | J67: =E67*SIN(RADIANS(F67)) -> 17.43648159 | K67: =IF(CMdata=1, IF(Lcm1_core=1, IMDIV(1,IMSUM(IMDIV(1,IMPRODUCT(B67,'Design the AEF circuit'!$G$19*0.001)),IMDIV(1,'Design the AEF circuit'!$G$20*1000),IMPRODUCT(B67,'Design the AEF circuit'!$G$21*0.000000000001))), O67),COMPLEX(G67,H67,"j")) -> 1.53594123922352+17.4364815935106j | L67: =IF(CMdata=1, IF(Lcm2_core=1, IMDIV(1, IMSUM(IMDIV(1,IMPRODUCT(B67,'Design the AEF circuit'!$H$19*0.001)), IMDIV(1,'Design the AEF circuit'!$H$20*1000), IMPRODUCT(B67,'Design the AEF circuit'!$H$21*0.000000000001))), Q67), COMPLEX(I67,J67,"j")) -> 1.53594123922352+17.4364815935106j | N67: =IMSUM(IMDIV(1,IMSUM(IMDIV(1,IMPRODUCT(B67,'Design the AEF circuit'!$G$19*0.001)),IMDIV(1,'Design the AEF circuit'!$G$20*1000))), IMDIV(1,IMSUM(IMDIV(1,IMPRODUCT(B67,'Design the AEF circuit'!$G$22*0.001)),IMDIV(1,'Design the AEF circuit'!$G$23*1000))), IMDIV(1,IMSUM(IMDIV(1,IMPRODUCT(B67,'Design the AEF circuit'!$G$24*0.001)),IMDIV(1,'Design the AEF circuit'!$G$25*1000))) ) -> 0.714199103269952+15.5219877013037j | O67: =IMDIV(1, IMSUM( IMDIV(1, N67), IMPRODUCT(B67,'Design the AEF circuit'!$G$21*0.000000000001))) -> 0.714201627499817+15.5220150732783j | P67: =IMSUM(IMDIV(1,IMSUM(IMDIV(1,IMPRODUCT(B67,'Design the AEF circuit'!$H$19*0.001)),IMDIV(1,'Design the AEF circuit'!$H$20*1000))), IMDIV(1,IMSUM(IMDIV(1,IMPRODUCT(B67,'Design the AEF circuit'!$H$22*0.001)),IMDIV(1,'Design the AEF circuit'!$H$23*1000))), IMDIV(1,IMSUM(IMDIV(1,IMPRODUCT(B67,'Design the AEF circuit'!$H$24*0.001)),IMDIV(1,'Design the AEF circuit'!$H$25*1000))) ) -> 0.714199103269952+15.5219877013037j | Q67: =IMDIV(1, IMSUM( IMDIV(1, P67), IMPRODUCT(B67,'Design the AEF circuit'!$H$21*0.000000000001) ) ) -> 0.714201627499817+15.5220150732783j
A68: ='Frequency vector'!G68 -> 3072.557365 | B68: =COMPLEX(0,2*PI()*'Frequency vector'!G68,"j") -> 19305.4472929309j | C68: =IF(IF(CMdata=1,IMABS(K68),'CM choke'!C72)=0, C67, IF(CMdata=1,IMABS(K68),'CM choke'!C72)) -> 17.79743958 | D68: =IF(IF(CMdata=1,DEGREES(IMARGUMENT(K68)),'CM choke'!D72)=0, D67, IF(CMdata=1,DEGREES(IMARGUMENT(K68)),'CM choke'!D72)) -> 84.93994141 | E68: =IF(IF(CMdata=1,IMABS(L68),'CM choke'!E72)=0, E67, IF(CMdata=1,IMABS(L68),'CM choke'!E72)) -> 17.79743958 | F68: =IF(IF(CMdata=1,DEGREES(IMARGUMENT(L68)),'CM choke'!F72)=0, F67, IF(CMdata=1,DEGREES(IMARGUMENT(L68)),'CM choke'!F72)) -> 84.93994141 | G68: 1.569732855 | H68: 17.72807926 | I68: 1.569732855 | J68: 17.72807926 | K68: =IF(CMdata=1, IF(Lcm1_core=1, IMDIV(1,IMSUM(IMDIV(1,IMPRODUCT(B68,'Design the AEF circuit'!$G$19*0.001)),IMDIV(1,'Design the AEF circuit'!$G$20*1000),IMPRODUCT(B68,'Design the AEF circuit'!$G$21*0.000000000001))), O68),COMPLEX(G68,H68,"j")) -> 1.56973285502439+17.7280792585308j | L68: =IF(CMdata=1, IF(Lcm2_core=1, IMDIV(1, IMSUM(IMDIV(1,IMPRODUCT(B68,'Design the AEF circuit'!$H$19*0.001)), IMDIV(1,'Design the AEF circuit'!$H$20*1000), IMPRODUCT(B68,'Design the AEF circuit'!$H$21*0.000000000001))), Q68), COMPLEX(I68,J68,"j")) -> 1.56973285502439+17.7280792585308j | N68: =IMSUM(IMDIV(1,IMSUM(IMDIV(1,IMPRODUCT(B68,'Design the AEF circuit'!$G$19*0.001)),IMDIV(1,'Design the AEF circuit'!$G$20*1000))), IMDIV(1,IMSUM(IMDIV(1,IMPRODUCT(B68,'Design the AEF circuit'!$G$22*0.001)),IMDIV(1,'Design the AEF circuit'!$G$23*1000))), IMDIV(1,IMSUM(IMDIV(1,IMPRODUCT(B68,'Design the AEF circuit'!$G$24*0.001)),IMDIV(1,'Design the AEF circuit'!$G$25*1000))) ) -> 0.739225547059887+15.7910360114819j | O68: =IMDIV(1, IMSUM( IMDIV(1, N68), IMPRODUCT(B68,'Design the AEF circuit'!$G$21*0.000000000001))) -> 0.739228251328929+15.7910648319066j | P68: =IMSUM(IMDIV(1,IMSUM(IMDIV(1,IMPRODUCT(B68,'Design the AEF circuit'!$H$19*0.001)),IMDIV(1,'Design the AEF circuit'!$H$20*1000))), IMDIV(1,IMSUM(IMDIV(1,IMPRODUCT(B68,'Design the AEF circuit'!$H$22*0.001)),IMDIV(1,'Design the AEF circuit'!$H$23*1000))), IMDIV(1,IMSUM(IMDIV(1,IMPRODUCT(B68,'Design the AEF circuit'!$H$24*0.001)),IMDIV(1,'Design the AEF circuit'!$H$25*1000))) ) -> 0.739225547059887+15.7910360114819j | Q68: =IMDIV(1, IMSUM( IMDIV(1, P68), IMPRODUCT(B68,'Design the AEF circuit'!$H$21*0.000000000001) ) ) -> 0.739228251328929+15.7910648319066j
A69: ='Frequency vector'!G69 -> 3126.079367 | B69: =COMPLEX(0,2*PI()*'Frequency vector'!G69,"j") -> 19641.7359485656j | C69: =IF(IF(CMdata=1,IMABS(K69),'CM choke'!C73)=0, C68, IF(CMdata=1,IMABS(K69),'CM choke'!C73)) -> 18.11210251 | D69: =IF(IF(CMdata=1,DEGREES(IMARGUMENT(K69)),'CM choke'!D73)=0, D68, IF(CMdata=1,DEGREES(IMARGUMENT(K69)),'CM choke'!D73)) -> 84.88581085 | E69: =IF(IF(CMdata=1,IMABS(L69),'CM choke'!E73)=0, E68, IF(CMdata=1,IMABS(L69),'CM choke'!E73)) -> 18.11210251 | F69: =IF(IF(CMdata=1,DEGREES(IMARGUMENT(L69)),'CM choke'!F73)=0, F68, IF(CMdata=1,DEGREES(IMARGUMENT(L69)),'CM choke'!F73)) -> 84.88581085 | G69: 1.614530225 | H69: 18.0399986 | I69: 1.614530225 | J69: 18.0399986 | K69: =IF(CMdata=1, IF(Lcm1_core=1, IMDIV(1,IMSUM(IMDIV(1,IMPRODUCT(B69,'Design the AEF circuit'!$G$19*0.001)),IMDIV(1,'Design the AEF circuit'!$G$20*1000),IMPRODUCT(B69,'Design the AEF circuit'!$G$21*0.000000000001))), O69),COMPLEX(G69,H69,"j")) -> 1.61453022455652+18.0399985984591j | L69: =IF(CMdata=1, IF(Lcm2_core=1, IMDIV(1, IMSUM(IMDIV(1,IMPRODUCT(B69,'Design the AEF circuit'!$H$19*0.001)), IMDIV(1,'Design the AEF circuit'!$H$20*1000), IMPRODUCT(B69,'Design the AEF circuit'!$H$21*0.000000000001))), Q69), COMPLEX(I69,J69,"j")) -> 1.61453022455652+18.0399985984591j | N69: =IMSUM(IMDIV(1,IMSUM(IMDIV(1,IMPRODUCT(B69,'Design the AEF circuit'!$G$19*0.001)),IMDIV(1,'Design the AEF circuit'!$G$20*1000))), IMDIV(1,IMSUM(IMDIV(1,IMPRODUCT(B69,'Design the AEF circuit'!$G$22*0.001)),IMDIV(1,'Design the AEF circuit'!$G$23*1000))), IMDIV(1,IMSUM(IMDIV(1,IMPRODUCT(B69,'Design the AEF circuit'!$G$24*0.001)),IMDIV(1,'Design the AEF circuit'!$G$25*1000))) ) -> 0.765126336150993+16.0647002748251j | O69: =IMDIV(1, IMSUM( IMDIV(1, N69), IMPRODUCT(B69,'Design the AEF circuit'!$G$21*0.000000000001))) -> 0.76512923328194+16.0647306200888j | P69: =IMSUM(IMDIV(1,IMSUM(IMDIV(1,IMPRODUCT(B69,'Design the AEF circuit'!$H$19*0.001)),IMDIV(1,'Design the AEF circuit'!$H$20*1000))), IMDIV(1,IMSUM(IMDIV(1,IMPRODUCT(B69,'Design the AEF circuit'!$H$22*0.001)),IMDIV(1,'Design the AEF circuit'!$H$23*1000))), IMDIV(1,IMSUM(IMDIV(1,IMPRODUCT(B69,'Design the AEF circuit'!$H$24*0.001)),IMDIV(1,'Design the AEF circuit'!$H$25*1000))) ) -> 0.765126336150993+16.0647002748251j | Q69: =IMDIV(1, IMSUM( IMDIV(1, P69), IMPRODUCT(B69,'Design the AEF circuit'!$H$21*0.000000000001) ) ) -> 0.76512923328194+16.0647306200888j
A70: ='Frequency vector'!G70 -> 3180.533688 | B70: =COMPLEX(0,2*PI()*'Frequency vector'!G70,"j") -> 19983.8825395048j | C70: =IF(IF(CMdata=1,IMABS(K70),'CM choke'!C74)=0, C69, IF(CMdata=1,IMABS(K70),'CM choke'!C74)) -> 18.40708733 | D70: =IF(IF(CMdata=1,DEGREES(IMARGUMENT(K70)),'CM choke'!D74)=0, D69, IF(CMdata=1,DEGREES(IMARGUMENT(K70)),'CM choke'!D74)) -> 84.80943298 | E70: =IF(IF(CMdata=1,IMABS(L70),'CM choke'!E74)=0, E69, IF(CMdata=1,IMABS(L70),'CM choke'!E74)) -> 18.40708733 | F70: =IF(IF(CMdata=1,DEGREES(IMARGUMENT(L70)),'CM choke'!F74)=0, F69, IF(CMdata=1,DEGREES(IMARGUMENT(L70)),'CM choke'!F74)) -> 84.80943298 | G70: 1.665263787 | H70: 18.3316055 | I70: 1.665263787 | J70: 18.3316055 | K70: =IF(CMdata=1, IF(Lcm1_core=1, IMDIV(1,IMSUM(IMDIV(1,IMPRODUCT(B70,'Design the AEF circuit'!$G$19*0.001)),IMDIV(1,'Design the AEF circuit'!$G$20*1000),IMPRODUCT(B70,'Design the AEF circuit'!$G$21*0.000000000001))), O70),COMPLEX(G70,H70,"j")) -> 1.66526378731959+18.3316055037639j | L70: =IF(CMdata=1, IF(Lcm2_core=1, IMDIV(1, IMSUM(IMDIV(1,IMPRODUCT(B70,'Design the AEF circuit'!$H$19*0.001)), IMDIV(1,'Design the AEF circuit'!$H$20*1000), IMPRODUCT(B70,'Design the AEF circuit'!$H$21*0.000000000001))), Q70), COMPLEX(I70,J70,"j")) -> 1.66526378731959+18.3316055037639j | N70: =IMSUM(IMDIV(1,IMSUM(IMDIV(1,IMPRODUCT(B70,'Design the AEF circuit'!$G$19*0.001)),IMDIV(1,'Design the AEF circuit'!$G$20*1000))), IMDIV(1,IMSUM(IMDIV(1,IMPRODUCT(B70,'Design the AEF circuit'!$G$22*0.001)),IMDIV(1,'Design the AEF circuit'!$G$23*1000))), IMDIV(1,IMSUM(IMDIV(1,IMPRODUCT(B70,'Design the AEF circuit'!$G$24*0.001)),IMDIV(1,'Design the AEF circuit'!$G$25*1000))) ) -> 0.791931831156485+16.3430571645484j | O70: =IMDIV(1, IMSUM( IMDIV(1, N70), IMPRODUCT(B70,'Design the AEF circuit'!$G$21*0.000000000001))) -> 0.791934934883305+16.3430891150453j | P70: =IMSUM(IMDIV(1,IMSUM(IMDIV(1,IMPRODUCT(B70,'Design the AEF circuit'!$H$19*0.001)),IMDIV(1,'Design the AEF circuit'!$H$20*1000))), IMDIV(1,IMSUM(IMDIV(1,IMPRODUCT(B70,'Design the AEF circuit'!$H$22*0.001)),IMDIV(1,'Design the AEF circuit'!$H$23*1000))), IMDIV(1,IMSUM(IMDIV(1,IMPRODUCT(B70,'Design the AEF circuit'!$H$24*0.001)),IMDIV(1,'Design the AEF circuit'!$H$25*1000))) ) -> 0.791931831156485+16.3430571645484j | Q70: =IMDIV(1, IMSUM( IMDIV(1, P70), IMPRODUCT(B70,'Design the AEF circuit'!$H$21*0.000000000001) ) ) -> 0.791934934883305+16.3430891150453j
A71: ='Frequency vector'!G71 -> 3235.936569 | B71: =COMPLEX(0,2*PI()*'Frequency vector'!G71,"j") -> 20331.9891071909j | C71: =IF(IF(CMdata=1,IMABS(K71),'CM choke'!C75)=0, C70, IF(CMdata=1,IMABS(K71),'CM choke'!C75)) -> 18.72450256 | D71: =IF(IF(CMdata=1,DEGREES(IMARGUMENT(K71)),'CM choke'!D75)=0, D70, IF(CMdata=1,DEGREES(IMARGUMENT(K71)),'CM choke'!D75)) -> 84.71435547 | E71: =IF(IF(CMdata=1,IMABS(L71),'CM choke'!E75)=0, E70, IF(CMdata=1,IMABS(L71),'CM choke'!E75)) -> 18.72450256 | F71: =IF(IF(CMdata=1,DEGREES(IMARGUMENT(L71)),'CM choke'!F75)=0, F70, IF(CMdata=1,DEGREES(IMARGUMENT(L71)),'CM choke'!F75)) -> 84.71435547 | G71: 1.724921877 | H71: 18.64488243 | I71: 1.724921877 | J71: 18.64488243 | K71: =IF(CMdata=1, IF(Lcm1_core=1, IMDIV(1,IMSUM(IMDIV(1,IMPRODUCT(B71,'Design the AEF circuit'!$G$19*0.001)),IMDIV(1,'Design the AEF circuit'!$G$20*1000),IMPRODUCT(B71,'Design the AEF circuit'!$G$21*0.000000000001))), O71),COMPLEX(G71,H71,"j")) -> 1.7249218766743+18.6448824284275j | L71: =IF(CMdata=1, IF(Lcm2_core=1, IMDIV(1, IMSUM(IMDIV(1,IMPRODUCT(B71,'Design the AEF circuit'!$H$19*0.001)), IMDIV(1,'Design the AEF circuit'!$H$20*1000), IMPRODUCT(B71,'Design the AEF circuit'!$H$21*0.000000000001))), Q71), COMPLEX(I71,J71,"j")) -> 1.7249218766743+18.6448824284275j | N71: =IMSUM(IMDIV(1,IMSUM(IMDIV(1,IMPRODUCT(B71,'Design the AEF circuit'!$G$19*0.001)),IMDIV(1,'Design the AEF circuit'!$G$20*1000))), IMDIV(1,IMSUM(IMDIV(1,IMPRODUCT(B71,'Design the AEF circuit'!$G$22*0.001)),IMDIV(1,'Design the AEF circuit'!$G$23*1000))), IMDIV(1,IMSUM(IMDIV(1,IMPRODUCT(B71,'Design the AEF circuit'!$G$24*0.001)),IMDIV(1,'Design the AEF circuit'!$G$25*1000))) ) -> 0.819673433633473+16.626184493022j | O71: =IMDIV(1, IMSUM( IMDIV(1, N71), IMPRODUCT(B71,'Design the AEF circuit'!$G$21*0.000000000001))) -> 0.819676758665932+16.6262181333597j | P71: =IMSUM(IMDIV(1,IMSUM(IMDIV(1,IMPRODUCT(B71,'Design the AEF circuit'!$H$19*0.001)),IMDIV(1,'Design the AEF circuit'!$H$20*1000))), IMDIV(1,IMSUM(IMDIV(1,IMPRODUCT(B71,'Design the AEF circuit'!$H$22*0.001)),IMDIV(1,'Design the AEF circuit'!$H$23*1000))), IMDIV(1,IMSUM(IMDIV(1,IMPRODUCT(B71,'Design the AEF circuit'!$H$24*0.001)),IMDIV(1,'Design the AEF circuit'!$H$25*1000))) ) -> 0.819673433633473+16.626184493022j | Q71: =IMDIV(1, IMSUM( IMDIV(1, P71), IMPRODUCT(B71,'Design the AEF circuit'!$H$21*0.000000000001) ) ) -> 0.819676758665932+16.6262181333597j
A72: ='Frequency vector'!G72 -> 3292.304533 | B72: =COMPLEX(0,2*PI()*'Frequency vector'!G72,"j") -> 20686.1594705798j | C72: =IF(IF(CMdata=1,IMABS(K72),'CM choke'!C76)=0, C71, IF(CMdata=1,IMABS(K72),'CM choke'!C76)) -> 19.04473495 | D72: =IF(IF(CMdata=1,DEGREES(IMARGUMENT(K72)),'CM choke'!D76)=0, D71, IF(CMdata=1,DEGREES(IMARGUMENT(K72)),'CM choke'!D76)) -> 84.6871109 | E72: =IF(IF(CMdata=1,IMABS(L72),'CM choke'!E76)=0, E71, IF(CMdata=1,IMABS(L72),'CM choke'!E76)) -> 19.04473495 | F72: =IF(IF(CMdata=1,DEGREES(IMARGUMENT(L72)),'CM choke'!F76)=0, F71, IF(CMdata=1,DEGREES(IMARGUMENT(L72)),'CM choke'!F76)) -> 84.6871109 | G72: 1.763439245 | H72: 18.96291675 | I72: 1.763439245 | J72: 18.96291675 | K72: =IF(CMdata=1, IF(Lcm1_core=1, IMDIV(1,IMSUM(IMDIV(1,IMPRODUCT(B72,'Design the AEF circuit'!$G$19*0.001)),IMDIV(1,'Design the AEF circuit'!$G$20*1000),IMPRODUCT(B72,'Design the AEF circuit'!$G$21*0.000000000001))), O72),COMPLEX(G72,H72,"j")) -> 1.76343924509883+18.9629167463084j | L72: =IF(CMdata=1, IF(Lcm2_core=1, IMDIV(1, IMSUM(IMDIV(1,IMPRODUCT(B72,'Design the AEF circuit'!$H$19*0.001)), IMDIV(1,'Design the AEF circuit'!$H$20*1000), IMPRODUCT(B72,'Design the AEF circuit'!$H$21*0.000000000001))), Q72), COMPLEX(I72,J72,"j")) -> 1.76343924509883+18.9629167463084j | N72: =IMSUM(IMDIV(1,IMSUM(IMDIV(1,IMPRODUCT(B72,'Design the AEF circuit'!$G$19*0.001)),IMDIV(1,'Design the AEF circuit'!$G$20*1000))), IMDIV(1,IMSUM(IMDIV(1,IMPRODUCT(B72,'Design the AEF circuit'!$G$22*0.001)),IMDIV(1,'Design the AEF circuit'!$G$23*1000))), IMDIV(1,IMSUM(IMDIV(1,IMPRODUCT(B72,'Design the AEF circuit'!$G$24*0.001)),IMDIV(1,'Design the AEF circuit'!$G$25*1000))) ) -> 0.848383620844071+16.9141612215729j | O72: =IMDIV(1, IMSUM( IMDIV(1, N72), IMPRODUCT(B72,'Design the AEF circuit'!$G$21*0.000000000001))) -> 0.848387182936811+16.9141966407905j | P72: =IMSUM(IMDIV(1,IMSUM(IMDIV(1,IMPRODUCT(B72,'Design the AEF circuit'!$H$19*0.001)),IMDIV(1,'Design the AEF circuit'!$H$20*1000))), IMDIV(1,IMSUM(IMDIV(1,IMPRODUCT(B72,'Design the AEF circuit'!$H$22*0.001)),IMDIV(1,'Design the AEF circuit'!$H$23*1000))), IMDIV(1,IMSUM(IMDIV(1,IMPRODUCT(B72,'Design the AEF circuit'!$H$24*0.001)),IMDIV(1,'Design the AEF circuit'!$H$25*1000))) ) -> 0.848383620844071+16.9141612215729j | Q72: =IMDIV(1, IMSUM( IMDIV(1, P72), IMPRODUCT(B72,'Design the AEF circuit'!$H$21*0.000000000001) ) ) -> 0.848387182936811+16.9141966407905j
A73: ='Frequency vector'!G73 -> 3349.654392 | B73: =COMPLEX(0,2*PI()*'Frequency vector'!G73,"j") -> 21046.499257305j | C73: =IF(IF(CMdata=1,IMABS(K73),'CM choke'!C77)=0, C72, IF(CMdata=1,IMABS(K73),'CM choke'!C77)) -> 19.37426186 | D73: =IF(IF(CMdata=1,DEGREES(IMARGUMENT(K73)),'CM choke'!D77)=0, D72, IF(CMdata=1,DEGREES(IMARGUMENT(K73)),'CM choke'!D77)) -> 84.60634613 | E73: =IF(IF(CMdata=1,IMABS(L73),'CM choke'!E77)=0, E72, IF(CMdata=1,IMABS(L73),'CM choke'!E77)) -> 19.37426186 | F73: =IF(IF(CMdata=1,DEGREES(IMARGUMENT(L73)),'CM choke'!F77)=0, F72, IF(CMdata=1,DEGREES(IMARGUMENT(L73)),'CM choke'!F77)) -> 84.60634613 | G73: 1.821142707 | H73: 19.28848003 | I73: 1.821142707 | J73: 19.28848003 | K73: =IF(CMdata=1, IF(Lcm1_core=1, IMDIV(1,IMSUM(IMDIV(1,IMPRODUCT(B73,'Design the AEF circuit'!$G$19*0.001)),IMDIV(1,'Design the AEF circuit'!$G$20*1000),IMPRODUCT(B73,'Design the AEF circuit'!$G$21*0.000000000001))), O73),COMPLEX(G73,H73,"j")) -> 1.82114270741077+19.2884800258593j | L73: =IF(CMdata=1, IF(Lcm2_core=1, IMDIV(1, IMSUM(IMDIV(1,IMPRODUCT(B73,'Design the AEF circuit'!$H$19*0.001)), IMDIV(1,'Design the AEF circuit'!$H$20*1000), IMPRODUCT(B73,'Design the AEF circuit'!$H$21*0.000000000001))), Q73), COMPLEX(I73,J73,"j")) -> 1.82114270741077+19.2884800258593j | N73: =IMSUM(IMDIV(1,IMSUM(IMDIV(1,IMPRODUCT(B73,'Design the AEF circuit'!$G$19*0.001)),IMDIV(1,'Design the AEF circuit'!$G$20*1000))), IMDIV(1,IMSUM(IMDIV(1,IMPRODUCT(B73,'Design the AEF circuit'!$G$22*0.001)),IMDIV(1,'Design the AEF circuit'!$G$23*1000))), IMDIV(1,IMSUM(IMDIV(1,IMPRODUCT(B73,'Design the AEF circuit'!$G$24*0.001)),IMDIV(1,'Design the AEF circuit'!$G$25*1000))) ) -> 0.878095981607521+17.2070674699031j | O73: =IMDIV(1, IMSUM( IMDIV(1, N73), IMPRODUCT(B73,'Design the AEF circuit'!$G$21*0.000000000001))) -> 0.878099797634004+17.2071047617014j | P73: =IMSUM(IMDIV(1,IMSUM(IMDIV(1,IMPRODUCT(B73,'Design the AEF circuit'!$H$19*0.001)),IMDIV(1,'Design the AEF circuit'!$H$20*1000))), IMDIV(1,IMSUM(IMDIV(1,IMPRODUCT(B73,'Design the AEF circuit'!$H$22*0.001)),IMDIV(1,'Design the AEF circuit'!$H$23*1000))), IMDIV(1,IMSUM(IMDIV(1,IMPRODUCT(B73,'Design the AEF circuit'!$H$24*0.001)),IMDIV(1,'Design the AEF circuit'!$H$25*1000))) ) -> 0.878095981607521+17.2070674699031j | Q73: =IMDIV(1, IMSUM( IMDIV(1, P73), IMPRODUCT(B73,'Design the AEF circuit'!$H$21*0.000000000001) ) ) -> 0.878099797634004+17.2071047617014j
A74: ='Frequency vector'!G74 -> 3408.003248 | B74: =COMPLEX(0,2*PI()*'Frequency vector'!G74,"j") -> 21413.1159346539j | C74: =IF(IF(CMdata=1,IMABS(K74),'CM choke'!C78)=0, C73, IF(CMdata=1,IMABS(K74),'CM choke'!C78)) -> 19.69452667 | D74: =IF(IF(CMdata=1,DEGREES(IMARGUMENT(K74)),'CM choke'!D78)=0, D73, IF(CMdata=1,DEGREES(IMARGUMENT(K74)),'CM choke'!D78)) -> 84.53355408 | E74: =IF(IF(CMdata=1,IMABS(L74),'CM choke'!E78)=0, E73, IF(CMdata=1,IMABS(L74),'CM choke'!E78)) -> 19.69452667 | F74: =IF(IF(CMdata=1,DEGREES(IMARGUMENT(L74)),'CM choke'!F78)=0, F73, IF(CMdata=1,DEGREES(IMARGUMENT(L74)),'CM choke'!F78)) -> 84.53355408 | G74: 1.876155817 | H74: 19.60495907 | I74: 1.876155817 | J74: 19.60495907 | K74: =IF(CMdata=1, IF(Lcm1_core=1, IMDIV(1,IMSUM(IMDIV(1,IMPRODUCT(B74,'Design the AEF circuit'!$G$19*0.001)),IMDIV(1,'Design the AEF circuit'!$G$20*1000),IMPRODUCT(B74,'Design the AEF circuit'!$G$21*0.000000000001))), O74),COMPLEX(G74,H74,"j")) -> 1.87615581684174+19.6049590716431j | L74: =IF(CMdata=1, IF(Lcm2_core=1, IMDIV(1, IMSUM(IMDIV(1,IMPRODUCT(B74,'Design the AEF circuit'!$H$19*0.001)), IMDIV(1,'Design the AEF circuit'!$H$20*1000), IMPRODUCT(B74,'Design the AEF circuit'!$H$21*0.000000000001))), Q74), COMPLEX(I74,J74,"j")) -> 1.87615581684174+19.6049590716431j | N74: =IMSUM(IMDIV(1,IMSUM(IMDIV(1,IMPRODUCT(B74,'Design the AEF circuit'!$G$19*0.001)),IMDIV(1,'Design the AEF circuit'!$G$20*1000))), IMDIV(1,IMSUM(IMDIV(1,IMPRODUCT(B74,'Design the AEF circuit'!$G$22*0.001)),IMDIV(1,'Design the AEF circuit'!$G$23*1000))), IMDIV(1,IMSUM(IMDIV(1,IMPRODUCT(B74,'Design the AEF circuit'!$G$24*0.001)),IMDIV(1,'Design the AEF circuit'!$G$25*1000))) ) -> 0.908845253213766+17.5049845245274j | O74: =IMDIV(1, IMSUM( IMDIV(1, N74), IMPRODUCT(B74,'Design the AEF circuit'!$G$21*0.000000000001))) -> 0.908849341245446+17.5050237875098j | P74: =IMSUM(IMDIV(1,IMSUM(IMDIV(1,IMPRODUCT(B74,'Design the AEF circuit'!$H$19*0.001)),IMDIV(1,'Design the AEF circuit'!$H$20*1000))), IMDIV(1,IMSUM(IMDIV(1,IMPRODUCT(B74,'Design the AEF circuit'!$H$22*0.001)),IMDIV(1,'Design the AEF circuit'!$H$23*1000))), IMDIV(1,IMSUM(IMDIV(1,IMPRODUCT(B74,'Design the AEF circuit'!$H$24*0.001)),IMDIV(1,'Design the AEF circuit'!$H$25*1000))) ) -> 0.908845253213766+17.5049845245274j | Q74: =IMDIV(1, IMSUM( IMDIV(1, P74), IMPRODUCT(B74,'Design the AEF circuit'!$H$21*0.000000000001) ) ) -> 0.908849341245446+17.5050237875098j
A75: ='Frequency vector'!G75 -> 3467.368505 | B75: =COMPLEX(0,2*PI()*'Frequency vector'!G75,"j") -> 21786.1188422402j | C75: =IF(IF(CMdata=1,IMABS(K75),'CM choke'!C79)=0, C74, IF(CMdata=1,IMABS(K75),'CM choke'!C79)) -> 20.02367401 | D75: =IF(IF(CMdata=1,DEGREES(IMARGUMENT(K75)),'CM choke'!D79)=0, D74, IF(CMdata=1,DEGREES(IMARGUMENT(K75)),'CM choke'!D79)) -> 84.44616699 | E75: =IF(IF(CMdata=1,IMABS(L75),'CM choke'!E79)=0, E74, IF(CMdata=1,IMABS(L75),'CM choke'!E79)) -> 20.02367401 | F75: =IF(IF(CMdata=1,DEGREES(IMARGUMENT(L75)),'CM choke'!F79)=0, F74, IF(CMdata=1,DEGREES(IMARGUMENT(L75)),'CM choke'!F79)) -> 84.44616699 | G75: 1.937910148 | H75: 19.929677 | I75: 1.937910148 | J75: 19.929677 | K75: =IF(CMdata=1, IF(Lcm1_core=1, IMDIV(1,IMSUM(IMDIV(1,IMPRODUCT(B75,'Design the AEF circuit'!$G$19*0.001)),IMDIV(1,'Design the AEF circuit'!$G$20*1000),IMPRODUCT(B75,'Design the AEF circuit'!$G$21*0.000000000001))), O75),COMPLEX(G75,H75,"j")) -> 1.93791014817955+19.9296769959874j | L75: =IF(CMdata=1, IF(Lcm2_core=1, IMDIV(1, IMSUM(IMDIV(1,IMPRODUCT(B75,'Design the AEF circuit'!$H$19*0.001)), IMDIV(1,'Design the AEF circuit'!$H$20*1000), IMPRODUCT(B75,'Design the AEF circuit'!$H$21*0.000000000001))), Q75), COMPLEX(I75,J75,"j")) -> 1.93791014817955+19.9296769959874j | N75: =IMSUM(IMDIV(1,IMSUM(IMDIV(1,IMPRODUCT(B75,'Design the AEF circuit'!$G$19*0.001)),IMDIV(1,'Design the AEF circuit'!$G$20*1000))), IMDIV(1,IMSUM(IMDIV(1,IMPRODUCT(B75,'Design the AEF circuit'!$G$22*0.001)),IMDIV(1,'Design the AEF circuit'!$G$23*1000))), IMDIV(1,IMSUM(IMDIV(1,IMPRODUCT(B75,'Design the AEF circuit'!$G$24*0.001)),IMDIV(1,'Design the AEF circuit'!$G$25*1000))) ) -> 0.940667359581877+17.8079948477171j | O75: =IMDIV(1, IMSUM( IMDIV(1, N75), IMPRODUCT(B75,'Design the AEF circuit'!$G$21*0.000000000001))) -> 0.940671738972913+17.8080361856433j | P75: =IMSUM(IMDIV(1,IMSUM(IMDIV(1,IMPRODUCT(B75,'Design the AEF circuit'!$H$19*0.001)),IMDIV(1,'Design the AEF circuit'!$H$20*1000))), IMDIV(1,IMSUM(IMDIV(1,IMPRODUCT(B75,'Design the AEF circuit'!$H$22*0.001)),IMDIV(1,'Design the AEF circuit'!$H$23*1000))), IMDIV(1,IMSUM(IMDIV(1,IMPRODUCT(B75,'Design the AEF circuit'!$H$24*0.001)),IMDIV(1,'Design the AEF circuit'!$H$25*1000))) ) -> 0.940667359581877+17.8079948477171j | Q75: =IMDIV(1, IMSUM( IMDIV(1, P75), IMPRODUCT(B75,'Design the AEF circuit'!$H$21*0.000000000001) ) ) -> 0.940671738972913+17.8080361856433j
A76: ='Frequency vector'!G76 -> 3527.767866 | B76: =COMPLEX(0,2*PI()*'Frequency vector'!G76,"j") -> 22165.6192239853j | C76: =IF(IF(CMdata=1,IMABS(K76),'CM choke'!C80)=0, C75, IF(CMdata=1,IMABS(K76),'CM choke'!C80)) -> 20.37530327 | D76: =IF(IF(CMdata=1,DEGREES(IMARGUMENT(K76)),'CM choke'!D80)=0, D75, IF(CMdata=1,DEGREES(IMARGUMENT(K76)),'CM choke'!D80)) -> 84.3996048 | E76: =IF(IF(CMdata=1,IMABS(L76),'CM choke'!E80)=0, E75, IF(CMdata=1,IMABS(L76),'CM choke'!E80)) -> 20.37530327 | F76: =IF(IF(CMdata=1,DEGREES(IMARGUMENT(L76)),'CM choke'!F80)=0, F75, IF(CMdata=1,DEGREES(IMARGUMENT(L76)),'CM choke'!F80)) -> 84.3996048 | G76: 1.988421046 | H76: 20.27804638 | I76: 1.988421046 | J76: 20.27804638 | K76: =IF(CMdata=1, IF(Lcm1_core=1, IMDIV(1,IMSUM(IMDIV(1,IMPRODUCT(B76,'Design the AEF circuit'!$G$19*0.001)),IMDIV(1,'Design the AEF circuit'!$G$20*1000),IMPRODUCT(B76,'Design the AEF circuit'!$G$21*0.000000000001))), O76),COMPLEX(G76,H76,"j")) -> 1.98842104603047+20.278046380827j | L76: =IF(CMdata=1, IF(Lcm2_core=1, IMDIV(1, IMSUM(IMDIV(1,IMPRODUCT(B76,'Design the AEF circuit'!$H$19*0.001)), IMDIV(1,'Design the AEF circuit'!$H$20*1000), IMPRODUCT(B76,'Design the AEF circuit'!$H$21*0.000000000001))), Q76), COMPLEX(I76,J76,"j")) -> 1.98842104603047+20.278046380827j | N76: =IMSUM(IMDIV(1,IMSUM(IMDIV(1,IMPRODUCT(B76,'Design the AEF circuit'!$G$19*0.001)),IMDIV(1,'Design the AEF circuit'!$G$20*1000))), IMDIV(1,IMSUM(IMDIV(1,IMPRODUCT(B76,'Design the AEF circuit'!$G$22*0.001)),IMDIV(1,'Design the AEF circuit'!$G$23*1000))), IMDIV(1,IMSUM(IMDIV(1,IMPRODUCT(B76,'Design the AEF circuit'!$G$24*0.001)),IMDIV(1,'Design the AEF circuit'!$G$25*1000))) ) -> 0.973599450495569+18.1161820849674j | O76: =IMDIV(1, IMSUM( IMDIV(1, N76), IMPRODUCT(B76,'Design the AEF circuit'!$G$21*0.000000000001))) -> 0.973604141973519+18.1162256070199j | P76: =IMSUM(IMDIV(1,IMSUM(IMDIV(1,IMPRODUCT(B76,'Design the AEF circuit'!$H$19*0.001)),IMDIV(1,'Design the AEF circuit'!$H$20*1000))), IMDIV(1,IMSUM(IMDIV(1,IMPRODUCT(B76,'Design the AEF circuit'!$H$22*0.001)),IMDIV(1,'Design the AEF circuit'!$H$23*1000))), IMDIV(1,IMSUM(IMDIV(1,IMPRODUCT(B76,'Design the AEF circuit'!$H$24*0.001)),IMDIV(1,'Design the AEF circuit'!$H$25*1000))) ) -> 0.973599450495569+18.1161820849674j | Q76: =IMDIV(1, IMSUM( IMDIV(1, P76), IMPRODUCT(B76,'Design the AEF circuit'!$H$21*0.000000000001) ) ) -> 0.973604141973519+18.1162256070199j
A77: ='Frequency vector'!G77 -> 3589.219346 | B77: =COMPLEX(0,2*PI()*'Frequency vector'!G77,"j") -> 22551.7302618594j | C77: =IF(IF(CMdata=1,IMABS(K77),'CM choke'!C81)=0, C76, IF(CMdata=1,IMABS(K77),'CM choke'!C81)) -> 20.71669579 | D77: =IF(IF(CMdata=1,DEGREES(IMARGUMENT(K77)),'CM choke'!D81)=0, D76, IF(CMdata=1,DEGREES(IMARGUMENT(K77)),'CM choke'!D81)) -> 84.33182526 | E77: =IF(IF(CMdata=1,IMABS(L77),'CM choke'!E81)=0, E76, IF(CMdata=1,IMABS(L77),'CM choke'!E81)) -> 20.71669579 | F77: =IF(IF(CMdata=1,DEGREES(IMARGUMENT(L77)),'CM choke'!F81)=0, F76, IF(CMdata=1,DEGREES(IMARGUMENT(L77)),'CM choke'!F81)) -> 84.33182526 | G77: 2.046126418 | H77: 20.61540324 | I77: 2.046126418 | J77: 20.61540324 | K77: =IF(CMdata=1, IF(Lcm1_core=1, IMDIV(1,IMSUM(IMDIV(1,IMPRODUCT(B77,'Design the AEF circuit'!$G$19*0.001)),IMDIV(1,'Design the AEF circuit'!$G$20*1000),IMPRODUCT(B77,'Design the AEF circuit'!$G$21*0.000000000001))), O77),COMPLEX(G77,H77,"j")) -> 2.04612641788996+20.6154032449275j | L77: =IF(CMdata=1, IF(Lcm2_core=1, IMDIV(1, IMSUM(IMDIV(1,IMPRODUCT(B77,'Design the AEF circuit'!$H$19*0.001)), IMDIV(1,'Design the AEF circuit'!$H$20*1000), IMPRODUCT(B77,'Design the AEF circuit'!$H$21*0.000000000001))), Q77), COMPLEX(I77,J77,"j")) -> 2.04612641788996+20.6154032449275j | N77: =IMSUM(IMDIV(1,IMSUM(IMDIV(1,IMPRODUCT(B77,'Design the AEF circuit'!$G$19*0.001)),IMDIV(1,'Design the AEF circuit'!$G$20*1000))), IMDIV(1,IMSUM(IMDIV(1,IMPRODUCT(B77,'Design the AEF circuit'!$G$22*0.001)),IMDIV(1,'Design the AEF circuit'!$G$23*1000))), IMDIV(1,IMSUM(IMDIV(1,IMPRODUCT(B77,'Design the AEF circuit'!$G$24*0.001)),IMDIV(1,'Design the AEF circuit'!$G$25*1000))) ) -> 1.00767994215067+18.429631072932j | O77: =IMDIV(1, IMSUM( IMDIV(1, N77), IMPRODUCT(B77,'Design the AEF circuit'!$G$21*0.000000000001))) -> 1.00768496791353+18.4296768939961j | P77: =IMSUM(IMDIV(1,IMSUM(IMDIV(1,IMPRODUCT(B77,'Design the AEF circuit'!$H$19*0.001)),IMDIV(1,'Design the AEF circuit'!$H$20*1000))), IMDIV(1,IMSUM(IMDIV(1,IMPRODUCT(B77,'Design the AEF circuit'!$H$22*0.001)),IMDIV(1,'Design the AEF circuit'!$H$23*1000))), IMDIV(1,IMSUM(IMDIV(1,IMPRODUCT(B77,'Design the AEF circuit'!$H$24*0.001)),IMDIV(1,'Design the AEF circuit'!$H$25*1000))) ) -> 1.00767994215067+18.429631072932j | Q77: =IMDIV(1, IMSUM( IMDIV(1, P77), IMPRODUCT(B77,'Design the AEF circuit'!$H$21*0.000000000001) ) ) -> 1.00768496791353+18.4296768939961j
A78: ='Frequency vector'!G78 -> 3651.741273 | B78: =COMPLEX(0,2*PI()*'Frequency vector'!G78,"j") -> 22944.5671093074j | C78: =IF(IF(CMdata=1,IMABS(K78),'CM choke'!C82)=0, C77, IF(CMdata=1,IMABS(K78),'CM choke'!C82)) -> 21.06759644 | D78: =IF(IF(CMdata=1,DEGREES(IMARGUMENT(K78)),'CM choke'!D82)=0, D77, IF(CMdata=1,DEGREES(IMARGUMENT(K78)),'CM choke'!D82)) -> 84.24908447 | E78: =IF(IF(CMdata=1,IMABS(L78),'CM choke'!E82)=0, E77, IF(CMdata=1,IMABS(L78),'CM choke'!E82)) -> 21.06759644 | F78: =IF(IF(CMdata=1,DEGREES(IMARGUMENT(L78)),'CM choke'!F82)=0, F77, IF(CMdata=1,DEGREES(IMARGUMENT(L78)),'CM choke'!F82)) -> 84.24908447 | G78: 2.111056594 | H78: 20.96156148 | I78: 2.111056594 | J78: 20.96156148 | K78: =IF(CMdata=1, IF(Lcm1_core=1, IMDIV(1,IMSUM(IMDIV(1,IMPRODUCT(B78,'Design the AEF circuit'!$G$19*0.001)),IMDIV(1,'Design the AEF circuit'!$G$20*1000),IMPRODUCT(B78,'Design the AEF circuit'!$G$21*0.000000000001))), O78),COMPLEX(G78,H78,"j")) -> 2.11105659404122+20.9615614787126j | L78: =IF(CMdata=1, IF(Lcm2_core=1, IMDIV(1, IMSUM(IMDIV(1,IMPRODUCT(B78,'Design the AEF circuit'!$H$19*0.001)), IMDIV(1,'Design the AEF circuit'!$H$20*1000), IMPRODUCT(B78,'Design the AEF circuit'!$H$21*0.000000000001))), Q78), COMPLEX(I78,J78,"j")) -> 2.11105659404122+20.9615614787126j | N78: =IMSUM(IMDIV(1,IMSUM(IMDIV(1,IMPRODUCT(B78,'Design the AEF circuit'!$G$19*0.001)),IMDIV(1,'Design the AEF circuit'!$G$20*1000))), IMDIV(1,IMSUM(IMDIV(1,IMPRODUCT(B78,'Design the AEF circuit'!$G$22*0.001)),IMDIV(1,'Design the AEF circuit'!$G$23*1000))), IMDIV(1,IMSUM(IMDIV(1,IMPRODUCT(B78,'Design the AEF circuit'!$G$24*0.001)),IMDIV(1,'Design the AEF circuit'!$G$25*1000))) ) -> 1.04294855886908+18.748427846093j | O78: =IMDIV(1, IMSUM( IMDIV(1, N78), IMPRODUCT(B78,'Design the AEF circuit'!$G$21*0.000000000001))) -> 1.04295394268916+18.7484760870505j | P78: =IMSUM(IMDIV(1,IMSUM(IMDIV(1,IMPRODUCT(B78,'Design the AEF circuit'!$H$19*0.001)),IMDIV(1,'Design the AEF circuit'!$H$20*1000))), IMDIV(1,IMSUM(IMDIV(1,IMPRODUCT(B78,'Design the AEF circuit'!$H$22*0.001)),IMDIV(1,'Design the AEF circuit'!$H$23*1000))), IMDIV(1,IMSUM(IMDIV(1,IMPRODUCT(B78,'Design the AEF circuit'!$H$24*0.001)),IMDIV(1,'Design the AEF circuit'!$H$25*1000))) ) -> 1.04294855886908+18.748427846093j | Q78: =IMDIV(1, IMSUM( IMDIV(1, P78), IMPRODUCT(B78,'Design the AEF circuit'!$H$21*0.000000000001) ) ) -> 1.04295394268916+18.7484760870505j
A79: ='Frequency vector'!G79 -> 3715.352291 | B79: =COMPLEX(0,2*PI()*'Frequency vector'!G79,"j") -> 23344.2469256187j | C79: =IF(IF(CMdata=1,IMABS(K79),'CM choke'!C83)=0, C78, IF(CMdata=1,IMABS(K79),'CM choke'!C83)) -> 21.42105865 | D79: =IF(IF(CMdata=1,DEGREES(IMARGUMENT(K79)),'CM choke'!D83)=0, D78, IF(CMdata=1,DEGREES(IMARGUMENT(K79)),'CM choke'!D83)) -> 84.18872833 | E79: =IF(IF(CMdata=1,IMABS(L79),'CM choke'!E83)=0, E78, IF(CMdata=1,IMABS(L79),'CM choke'!E83)) -> 21.42105865 | F79: =IF(IF(CMdata=1,DEGREES(IMARGUMENT(L79)),'CM choke'!F83)=0, F78, IF(CMdata=1,DEGREES(IMARGUMENT(L79)),'CM choke'!F83)) -> 84.18872833 | G79: 2.16892537 | H79: 21.31097174 | I79: 2.16892537 | J79: 21.31097174 | K79: =IF(CMdata=1, IF(Lcm1_core=1, IMDIV(1,IMSUM(IMDIV(1,IMPRODUCT(B79,'Design the AEF circuit'!$G$19*0.001)),IMDIV(1,'Design the AEF circuit'!$G$20*1000),IMPRODUCT(B79,'Design the AEF circuit'!$G$21*0.000000000001))), O79),COMPLEX(G79,H79,"j")) -> 2.16892537000665+21.3109717430182j | L79: =IF(CMdata=1, IF(Lcm2_core=1, IMDIV(1, IMSUM(IMDIV(1,IMPRODUCT(B79,'Design the AEF circuit'!$H$19*0.001)), IMDIV(1,'Design the AEF circuit'!$H$20*1000), IMPRODUCT(B79,'Design the AEF circuit'!$H$21*0.000000000001))), Q79), COMPLEX(I79,J79,"j")) -> 2.16892537000665+21.3109717430182j | N79: =IMSUM(IMDIV(1,IMSUM(IMDIV(1,IMPRODUCT(B79,'Design the AEF circuit'!$G$19*0.001)),IMDIV(1,'Design the AEF circuit'!$G$20*1000))), IMDIV(1,IMSUM(IMDIV(1,IMPRODUCT(B79,'Design the AEF circuit'!$G$22*0.001)),IMDIV(1,'Design the AEF circuit'!$G$23*1000))), IMDIV(1,IMSUM(IMDIV(1,IMPRODUCT(B79,'Design the AEF circuit'!$G$24*0.001)),IMDIV(1,'Design the AEF circuit'!$G$25*1000))) ) -> 1.07944637611588+19.0726596431353j | O79: =IMDIV(1, IMSUM( IMDIV(1, N79), IMPRODUCT(B79,'Design the AEF circuit'!$G$21*0.000000000001))) -> 1.07945214345096+19.0727104311736j | P79: =IMSUM(IMDIV(1,IMSUM(IMDIV(1,IMPRODUCT(B79,'Design the AEF circuit'!$H$19*0.001)),IMDIV(1,'Design the AEF circuit'!$H$20*1000))), IMDIV(1,IMSUM(IMDIV(1,IMPRODUCT(B79,'Design the AEF circuit'!$H$22*0.001)),IMDIV(1,'Design the AEF circuit'!$H$23*1000))), IMDIV(1,IMSUM(IMDIV(1,IMPRODUCT(B79,'Design the AEF circuit'!$H$24*0.001)),IMDIV(1,'Design the AEF circuit'!$H$25*1000))) ) -> 1.07944637611588+19.0726596431353j | Q79: =IMDIV(1, IMSUM( IMDIV(1, P79), IMPRODUCT(B79,'Design the AEF circuit'!$H$21*0.000000000001) ) ) -> 1.07945214345096+19.0727104311736j
A80: ='Frequency vector'!G80 -> 3780.071373 | B80: =COMPLEX(0,2*PI()*'Frequency vector'!G80,"j") -> 23750.8889110494j | C80: =IF(IF(CMdata=1,IMABS(K80),'CM choke'!C84)=0, C79, IF(CMdata=1,IMABS(K80),'CM choke'!C84)) -> 21.78864098 | D80: =IF(IF(CMdata=1,DEGREES(IMARGUMENT(K80)),'CM choke'!D84)=0, D79, IF(CMdata=1,DEGREES(IMARGUMENT(K80)),'CM choke'!D84)) -> 84.13259125 | E80: =IF(IF(CMdata=1,IMABS(L80),'CM choke'!E84)=0, E79, IF(CMdata=1,IMABS(L80),'CM choke'!E84)) -> 21.78864098 | F80: =IF(IF(CMdata=1,DEGREES(IMARGUMENT(L80)),'CM choke'!F84)=0, F79, IF(CMdata=1,DEGREES(IMARGUMENT(L80)),'CM choke'!F84)) -> 84.13259125 | G80: 2.227381056 | H80: 21.67449306 | I80: 2.227381056 | J80: 21.67449306 | K80: =IF(CMdata=1, IF(Lcm1_core=1, IMDIV(1,IMSUM(IMDIV(1,IMPRODUCT(B80,'Design the AEF circuit'!$G$19*0.001)),IMDIV(1,'Design the AEF circuit'!$G$20*1000),IMPRODUCT(B80,'Design the AEF circuit'!$G$21*0.000000000001))), O80),COMPLEX(G80,H80,"j")) -> 2.22738105571706+21.674493055517j | L80: =IF(CMdata=1, IF(Lcm2_core=1, IMDIV(1, IMSUM(IMDIV(1,IMPRODUCT(B80,'Design the AEF circuit'!$H$19*0.001)), IMDIV(1,'Design the AEF circuit'!$H$20*1000), IMPRODUCT(B80,'Design the AEF circuit'!$H$21*0.000000000001))), Q80), COMPLEX(I80,J80,"j")) -> 2.22738105571706+21.674493055517j | N80: =IMSUM(IMDIV(1,IMSUM(IMDIV(1,IMPRODUCT(B80,'Design the AEF circuit'!$G$19*0.001)),IMDIV(1,'Design the AEF circuit'!$G$20*1000))), IMDIV(1,IMSUM(IMDIV(1,IMPRODUCT(B80,'Design the AEF circuit'!$G$22*0.001)),IMDIV(1,'Design the AEF circuit'!$G$23*1000))), IMDIV(1,IMSUM(IMDIV(1,IMPRODUCT(B80,'Design the AEF circuit'!$G$24*0.001)),IMDIV(1,'Design the AEF circuit'!$G$25*1000))) ) -> 1.11721586483583+19.4024149128189j | O80: =IMDIV(1, IMSUM( IMDIV(1, N80), IMPRODUCT(B80,'Design the AEF circuit'!$G$21*0.000000000001))) -> 1.11722204294809+19.4024683817554j | P80: =IMSUM(IMDIV(1,IMSUM(IMDIV(1,IMPRODUCT(B80,'Design the AEF circuit'!$H$19*0.001)),IMDIV(1,'Design the AEF circuit'!$H$20*1000))), IMDIV(1,IMSUM(IMDIV(1,IMPRODUCT(B80,'Design the AEF circuit'!$H$22*0.001)),IMDIV(1,'Design the AEF circuit'!$H$23*1000))), IMDIV(1,IMSUM(IMDIV(1,IMPRODUCT(B80,'Design the AEF circuit'!$H$24*0.001)),IMDIV(1,'Design the AEF circuit'!$H$25*1000))) ) -> 1.11721586483583+19.4024149128189j | Q80: =IMDIV(1, IMSUM( IMDIV(1, P80), IMPRODUCT(B80,'Design the AEF circuit'!$H$21*0.000000000001) ) ) -> 1.11722204294809+19.4024683817554j
A81: ='Frequency vector'!G81 -> 3845.91782 | B81: =COMPLEX(0,2*PI()*'Frequency vector'!G81,"j") -> 24164.6143420716j | C81: =IF(IF(CMdata=1,IMABS(K81),'CM choke'!C85)=0, C80, IF(CMdata=1,IMABS(K81),'CM choke'!C85)) -> 22.15925789 | D81: =IF(IF(CMdata=1,DEGREES(IMARGUMENT(K81)),'CM choke'!D85)=0, D80, IF(CMdata=1,DEGREES(IMARGUMENT(K81)),'CM choke'!D85)) -> 84.05221558 | E81: =IF(IF(CMdata=1,IMABS(L81),'CM choke'!E85)=0, E80, IF(CMdata=1,IMABS(L81),'CM choke'!E85)) -> 22.15925789 | F81: =IF(IF(CMdata=1,DEGREES(IMARGUMENT(L81)),'CM choke'!F85)=0, F80, IF(CMdata=1,DEGREES(IMARGUMENT(L81)),'CM choke'!F85)) -> 84.05221558 | G81: 2.296188364 | H81: 22.0399689 | I81: 2.296188364 | J81: 22.0399689 | K81: =IF(CMdata=1, IF(Lcm1_core=1, IMDIV(1,IMSUM(IMDIV(1,IMPRODUCT(B81,'Design the AEF circuit'!$G$19*0.001)),IMDIV(1,'Design the AEF circuit'!$G$20*1000),IMPRODUCT(B81,'Design the AEF circuit'!$G$21*0.000000000001))), O81),COMPLEX(G81,H81,"j")) -> 2.29618836360455+22.0399689015477j | L81: =IF(CMdata=1, IF(Lcm2_core=1, IMDIV(1, IMSUM(IMDIV(1,IMPRODUCT(B81,'Design the AEF circuit'!$H$19*0.001)), IMDIV(1,'Design the AEF circuit'!$H$20*1000), IMPRODUCT(B81,'Design the AEF circuit'!$H$21*0.000000000001))), Q81), COMPLEX(I81,J81,"j")) -> 2.29618836360455+22.0399689015477j | N81: =IMSUM(IMDIV(1,IMSUM(IMDIV(1,IMPRODUCT(B81,'Design the AEF circuit'!$G$19*0.001)),IMDIV(1,'Design the AEF circuit'!$G$20*1000))), IMDIV(1,IMSUM(IMDIV(1,IMPRODUCT(B81,'Design the AEF circuit'!$G$22*0.001)),IMDIV(1,'Design the AEF circuit'!$G$23*1000))), IMDIV(1,IMSUM(IMDIV(1,IMPRODUCT(B81,'Design the AEF circuit'!$G$24*0.001)),IMDIV(1,'Design the AEF circuit'!$G$25*1000))) ) -> 1.15630093708192+19.7377833187848j | O81: =IMDIV(1, IMSUM( IMDIV(1, N81), IMPRODUCT(B81,'Design the AEF circuit'!$G$21*0.000000000001))) -> 1.15630755516525+19.7378396094075j | P81: =IMSUM(IMDIV(1,IMSUM(IMDIV(1,IMPRODUCT(B81,'Design the AEF circuit'!$H$19*0.001)),IMDIV(1,'Design the AEF circuit'!$H$20*1000))), IMDIV(1,IMSUM(IMDIV(1,IMPRODUCT(B81,'Design the AEF circuit'!$H$22*0.001)),IMDIV(1,'Design the AEF circuit'!$H$23*1000))), IMDIV(1,IMSUM(IMDIV(1,IMPRODUCT(B81,'Design the AEF circuit'!$H$24*0.001)),IMDIV(1,'Design the AEF circuit'!$H$25*1000))) ) -> 1.15630093708192+19.7377833187848j | Q81: =IMDIV(1, IMSUM( IMDIV(1, P81), IMPRODUCT(B81,'Design the AEF circuit'!$H$21*0.000000000001) ) ) -> 1.15630755516525+19.7378396094075j
A82: ='Frequency vector'!G82 -> 3912.911271 | B82: =COMPLEX(0,2*PI()*'Frequency vector'!G82,"j") -> 24585.5466079411j | C82: =IF(IF(CMdata=1,IMABS(K82),'CM choke'!C86)=0, C81, IF(CMdata=1,IMABS(K82),'CM choke'!C86)) -> 22.52973175 | D82: =IF(IF(CMdata=1,DEGREES(IMARGUMENT(K82)),'CM choke'!D86)=0, D81, IF(CMdata=1,DEGREES(IMARGUMENT(K82)),'CM choke'!D86)) -> 83.96512604 | E82: =IF(IF(CMdata=1,IMABS(L82),'CM choke'!E86)=0, E81, IF(CMdata=1,IMABS(L82),'CM choke'!E86)) -> 22.52973175 | F82: =IF(IF(CMdata=1,DEGREES(IMARGUMENT(L82)),'CM choke'!F86)=0, F81, IF(CMdata=1,DEGREES(IMARGUMENT(L82)),'CM choke'!F86)) -> 83.96512604 | G82: 2.368635749 | H82: 22.40487397 | I82: 2.368635749 | J82: 22.40487397 | K82: =IF(CMdata=1, IF(Lcm1_core=1, IMDIV(1,IMSUM(IMDIV(1,IMPRODUCT(B82,'Design the AEF circuit'!$G$19*0.001)),IMDIV(1,'Design the AEF circuit'!$G$20*1000),IMPRODUCT(B82,'Design the AEF circuit'!$G$21*0.000000000001))), O82),COMPLEX(G82,H82,"j")) -> 2.3686357487066+22.4048739661583j | L82: =IF(CMdata=1, IF(Lcm2_core=1, IMDIV(1, IMSUM(IMDIV(1,IMPRODUCT(B82,'Design the AEF circuit'!$H$19*0.001)), IMDIV(1,'Design the AEF circuit'!$H$20*1000), IMPRODUCT(B82,'Design the AEF circuit'!$H$21*0.000000000001))), Q82), COMPLEX(I82,J82,"j")) -> 2.3686357487066+22.4048739661583j | N82: =IMSUM(IMDIV(1,IMSUM(IMDIV(1,IMPRODUCT(B82,'Design the AEF circuit'!$G$19*0.001)),IMDIV(1,'Design the AEF circuit'!$G$20*1000))), IMDIV(1,IMSUM(IMDIV(1,IMPRODUCT(B82,'Design the AEF circuit'!$G$22*0.001)),IMDIV(1,'Design the AEF circuit'!$G$23*1000))), IMDIV(1,IMSUM(IMDIV(1,IMPRODUCT(B82,'Design the AEF circuit'!$G$24*0.001)),IMDIV(1,'Design the AEF circuit'!$G$25*1000))) ) -> 1.19674699307674+20.0788557442028j | O82: =IMDIV(1, IMSUM( IMDIV(1, N82), IMPRODUCT(B82,'Design the AEF circuit'!$G$21*0.000000000001))) -> 1.19675408239292+20.078915004628j | P82: =IMSUM(IMDIV(1,IMSUM(IMDIV(1,IMPRODUCT(B82,'Design the AEF circuit'!$H$19*0.001)),IMDIV(1,'Design the AEF circuit'!$H$20*1000))), IMDIV(1,IMSUM(IMDIV(1,IMPRODUCT(B82,'Design the AEF circuit'!$H$22*0.001)),IMDIV(1,'Design the AEF circuit'!$H$23*1000))), IMDIV(1,IMSUM(IMDIV(1,IMPRODUCT(B82,'Design the AEF circuit'!$H$24*0.001)),IMDIV(1,'Design the AEF circuit'!$H$25*1000))) ) -> 1.19674699307674+20.0788557442028j | Q82: =IMDIV(1, IMSUM( IMDIV(1, P82), IMPRODUCT(B82,'Design the AEF circuit'!$H$21*0.000000000001) ) ) -> 1.19675408239292+20.078915004628j
A83: ='Frequency vector'!G83 -> 3981.071706 | B83: =COMPLEX(0,2*PI()*'Frequency vector'!G83,"j") -> 25013.8112470145j | C83: =IF(IF(CMdata=1,IMABS(K83),'CM choke'!C87)=0, C82, IF(CMdata=1,IMABS(K83),'CM choke'!C87)) -> 22.90275955 | D83: =IF(IF(CMdata=1,DEGREES(IMARGUMENT(K83)),'CM choke'!D87)=0, D82, IF(CMdata=1,DEGREES(IMARGUMENT(K83)),'CM choke'!D87)) -> 83.89364624 | E83: =IF(IF(CMdata=1,IMABS(L83),'CM choke'!E87)=0, E82, IF(CMdata=1,IMABS(L83),'CM choke'!E87)) -> 22.90275955 | F83: =IF(IF(CMdata=1,DEGREES(IMARGUMENT(L83)),'CM choke'!F87)=0, F82, IF(CMdata=1,DEGREES(IMARGUMENT(L83)),'CM choke'!F87)) -> 83.89364624 | G83: 2.436265859 | H83: 22.77281282 | I83: 2.436265859 | J83: 22.77281282 | K83: =IF(CMdata=1, IF(Lcm1_core=1, IMDIV(1,IMSUM(IMDIV(1,IMPRODUCT(B83,'Design the AEF circuit'!$G$19*0.001)),IMDIV(1,'Design the AEF circuit'!$G$20*1000),IMPRODUCT(B83,'Design the AEF circuit'!$G$21*0.000000000001))), O83),COMPLEX(G83,H83,"j")) -> 2.43626585875662+22.7728128206021j | L83: =IF(CMdata=1, IF(Lcm2_core=1, IMDIV(1, IMSUM(IMDIV(1,IMPRODUCT(B83,'Design the AEF circuit'!$H$19*0.001)), IMDIV(1,'Design the AEF circuit'!$H$20*1000), IMPRODUCT(B83,'Design the AEF circuit'!$H$21*0.000000000001))), Q83), COMPLEX(I83,J83,"j")) -> 2.43626585875662+22.7728128206021j | N83: =IMSUM(IMDIV(1,IMSUM(IMDIV(1,IMPRODUCT(B83,'Design the AEF circuit'!$G$19*0.001)),IMDIV(1,'Design the AEF circuit'!$G$20*1000))), IMDIV(1,IMSUM(IMDIV(1,IMPRODUCT(B83,'Design the AEF circuit'!$G$22*0.001)),IMDIV(1,'Design the AEF circuit'!$G$23*1000))), IMDIV(1,IMSUM(IMDIV(1,IMPRODUCT(B83,'Design the AEF circuit'!$G$24*0.001)),IMDIV(1,'Design the AEF circuit'!$G$25*1000))) ) -> 1.2386009695905+20.425724294927j | O83: =IMDIV(1, IMSUM( IMDIV(1, N83), IMPRODUCT(B83,'Design the AEF circuit'!$G$21*0.000000000001))) -> 1.23860856361494+20.425786680975j | P83: =IMSUM(IMDIV(1,IMSUM(IMDIV(1,IMPRODUCT(B83,'Design the AEF circuit'!$H$19*0.001)),IMDIV(1,'Design the AEF circuit'!$H$20*1000))), IMDIV(1,IMSUM(IMDIV(1,IMPRODUCT(B83,'Design the AEF circuit'!$H$22*0.001)),IMDIV(1,'Design the AEF circuit'!$H$23*1000))), IMDIV(1,IMSUM(IMDIV(1,IMPRODUCT(B83,'Design the AEF circuit'!$H$24*0.001)),IMDIV(1,'Design the AEF circuit'!$H$25*1000))) ) -> 1.2386009695905+20.425724294927j | Q83: =IMDIV(1, IMSUM( IMDIV(1, P83), IMPRODUCT(B83,'Design the AEF circuit'!$H$21*0.000000000001) ) ) -> 1.23860856361494+20.425786680975j
A84: ='Frequency vector'!G84 -> 4050.419451 | B84: =COMPLEX(0,2*PI()*'Frequency vector'!G84,"j") -> 25449.5359846996j | C84: =IF(IF(CMdata=1,IMABS(K84),'CM choke'!C88)=0, C83, IF(CMdata=1,IMABS(K84),'CM choke'!C88)) -> 23.29142952 | D84: =IF(IF(CMdata=1,DEGREES(IMARGUMENT(K84)),'CM choke'!D88)=0, D83, IF(CMdata=1,DEGREES(IMARGUMENT(K84)),'CM choke'!D88)) -> 83.83097076 | E84: =IF(IF(CMdata=1,IMABS(L84),'CM choke'!E88)=0, E83, IF(CMdata=1,IMABS(L84),'CM choke'!E88)) -> 23.29142952 | F84: =IF(IF(CMdata=1,DEGREES(IMARGUMENT(L84)),'CM choke'!F88)=0, F83, IF(CMdata=1,DEGREES(IMARGUMENT(L84)),'CM choke'!F88)) -> 83.83097076 | G84: 2.502942663 | H84: 23.15655344 | I84: 2.502942663 | J84: 23.15655344 | K84: =IF(CMdata=1, IF(Lcm1_core=1, IMDIV(1,IMSUM(IMDIV(1,IMPRODUCT(B84,'Design the AEF circuit'!$G$19*0.001)),IMDIV(1,'Design the AEF circuit'!$G$20*1000),IMPRODUCT(B84,'Design the AEF circuit'!$G$21*0.000000000001))), O84),COMPLEX(G84,H84,"j")) -> 2.50294266262869+23.1565534373909j | L84: =IF(CMdata=1, IF(Lcm2_core=1, IMDIV(1, IMSUM(IMDIV(1,IMPRODUCT(B84,'Design the AEF circuit'!$H$19*0.001)), IMDIV(1,'Design the AEF circuit'!$H$20*1000), IMPRODUCT(B84,'Design the AEF circuit'!$H$21*0.000000000001))), Q84), COMPLEX(I84,J84,"j")) -> 2.50294266262869+23.1565534373909j | N84: =IMSUM(IMDIV(1,IMSUM(IMDIV(1,IMPRODUCT(B84,'Design the AEF circuit'!$G$19*0.001)),IMDIV(1,'Design the AEF circuit'!$G$20*1000))), IMDIV(1,IMSUM(IMDIV(1,IMPRODUCT(B84,'Design the AEF circuit'!$G$22*0.001)),IMDIV(1,'Design the AEF circuit'!$G$23*1000))), IMDIV(1,IMSUM(IMDIV(1,IMPRODUCT(B84,'Design the AEF circuit'!$G$24*0.001)),IMDIV(1,'Design the AEF circuit'!$G$25*1000))) ) -> 1.28191138984522+20.7784823026247j | O84: =IMDIV(1, IMSUM( IMDIV(1, N84), IMPRODUCT(B84,'Design the AEF circuit'!$G$21*0.000000000001))) -> 1.28191952442284+20.778547978214j | P84: =IMSUM(IMDIV(1,IMSUM(IMDIV(1,IMPRODUCT(B84,'Design the AEF circuit'!$H$19*0.001)),IMDIV(1,'Design the AEF circuit'!$H$20*1000))), IMDIV(1,IMSUM(IMDIV(1,IMPRODUCT(B84,'Design the AEF circuit'!$H$22*0.001)),IMDIV(1,'Design the AEF circuit'!$H$23*1000))), IMDIV(1,IMSUM(IMDIV(1,IMPRODUCT(B84,'Design the AEF circuit'!$H$24*0.001)),IMDIV(1,'Design the AEF circuit'!$H$25*1000))) ) -> 1.28191138984522+20.7784823026247j | Q84: =IMDIV(1, IMSUM( IMDIV(1, P84), IMPRODUCT(B84,'Design the AEF circuit'!$H$21*0.000000000001) ) ) -> 1.28191952442284+20.778547978214j
A85: ='Frequency vector'!G85 -> 4120.975191 | B85: =COMPLEX(0,2*PI()*'Frequency vector'!G85,"j") -> 25892.8507711543j | C85: =IF(IF(CMdata=1,IMABS(K85),'CM choke'!C89)=0, C84, IF(CMdata=1,IMABS(K85),'CM choke'!C89)) -> 23.69144058 | D85: =IF(IF(CMdata=1,DEGREES(IMARGUMENT(K85)),'CM choke'!D89)=0, D84, IF(CMdata=1,DEGREES(IMARGUMENT(K85)),'CM choke'!D89)) -> 83.72653198 | E85: =IF(IF(CMdata=1,IMABS(L85),'CM choke'!E89)=0, E84, IF(CMdata=1,IMABS(L85),'CM choke'!E89)) -> 23.69144058 | F85: =IF(IF(CMdata=1,DEGREES(IMARGUMENT(L85)),'CM choke'!F89)=0, F84, IF(CMdata=1,DEGREES(IMARGUMENT(L85)),'CM choke'!F89)) -> 83.72653198 | G85: 2.58885908 | H85: 23.54956827 | I85: 2.58885908 | J85: 23.54956827 | K85: =IF(CMdata=1, IF(Lcm1_core=1, IMDIV(1,IMSUM(IMDIV(1,IMPRODUCT(B85,'Design the AEF circuit'!$G$19*0.001)),IMDIV(1,'Design the AEF circuit'!$G$20*1000),IMPRODUCT(B85,'Design the AEF circuit'!$G$21*0.000000000001))), O85),COMPLEX(G85,H85,"j")) -> 2.5888590798394+23.5495682663055j | L85: =IF(CMdata=1, IF(Lcm2_core=1, IMDIV(1, IMSUM(IMDIV(1,IMPRODUCT(B85,'Design the AEF circuit'!$H$19*0.001)), IMDIV(1,'Design the AEF circuit'!$H$20*1000), IMPRODUCT(B85,'Design the AEF circuit'!$H$21*0.000000000001))), Q85), COMPLEX(I85,J85,"j")) -> 2.5888590798394+23.5495682663055j | N85: =IMSUM(IMDIV(1,IMSUM(IMDIV(1,IMPRODUCT(B85,'Design the AEF circuit'!$G$19*0.001)),IMDIV(1,'Design the AEF circuit'!$G$20*1000))), IMDIV(1,IMSUM(IMDIV(1,IMPRODUCT(B85,'Design the AEF circuit'!$G$22*0.001)),IMDIV(1,'Design the AEF circuit'!$G$23*1000))), IMDIV(1,IMSUM(IMDIV(1,IMPRODUCT(B85,'Design the AEF circuit'!$G$24*0.001)),IMDIV(1,'Design the AEF circuit'!$G$25*1000))) ) -> 1.32672841479492+21.1372243262794j | O85: =IMDIV(1, IMSUM( IMDIV(1, N85), IMPRODUCT(B85,'Design the AEF circuit'!$G$21*0.000000000001))) -> 1.32673712830701+21.1372934638409j | P85: =IMSUM(IMDIV(1,IMSUM(IMDIV(1,IMPRODUCT(B85,'Design the AEF circuit'!$H$19*0.001)),IMDIV(1,'Design the AEF circuit'!$H$20*1000))), IMDIV(1,IMSUM(IMDIV(1,IMPRODUCT(B85,'Design the AEF circuit'!$H$22*0.001)),IMDIV(1,'Design the AEF circuit'!$H$23*1000))), IMDIV(1,IMSUM(IMDIV(1,IMPRODUCT(B85,'Design the AEF circuit'!$H$24*0.001)),IMDIV(1,'Design the AEF circuit'!$H$25*1000))) ) -> 1.32672841479492+21.1372243262794j | Q85: =IMDIV(1, IMSUM( IMDIV(1, P85), IMPRODUCT(B85,'Design the AEF circuit'!$H$21*0.000000000001) ) ) -> 1.32673712830701+21.1372934638409j
A86: ='Frequency vector'!G86 -> 4192.759967 | B86: =COMPLEX(0,2*PI()*'Frequency vector'!G86,"j") -> 26343.8878202427j | C86: =IF(IF(CMdata=1,IMABS(K86),'CM choke'!C90)=0, C85, IF(CMdata=1,IMABS(K86),'CM choke'!C90)) -> 24.09659004 | D86: =IF(IF(CMdata=1,DEGREES(IMARGUMENT(K86)),'CM choke'!D90)=0, D85, IF(CMdata=1,DEGREES(IMARGUMENT(K86)),'CM choke'!D90)) -> 83.67105103 | E86: =IF(IF(CMdata=1,IMABS(L86),'CM choke'!E90)=0, E85, IF(CMdata=1,IMABS(L86),'CM choke'!E90)) -> 24.09659004 | F86: =IF(IF(CMdata=1,DEGREES(IMARGUMENT(L86)),'CM choke'!F90)=0, F85, IF(CMdata=1,DEGREES(IMARGUMENT(L86)),'CM choke'!F90)) -> 83.67105103 | G86: 2.656323766 | H86: 23.9497306 | I86: 2.656323766 | J86: 23.9497306 | K86: =IF(CMdata=1, IF(Lcm1_core=1, IMDIV(1,IMSUM(IMDIV(1,IMPRODUCT(B86,'Design the AEF circuit'!$G$19*0.001)),IMDIV(1,'Design the AEF circuit'!$G$20*1000),IMPRODUCT(B86,'Design the AEF circuit'!$G$21*0.000000000001))), O86),COMPLEX(G86,H86,"j")) -> 2.65632376571631+23.9497305978319j | L86: =IF(CMdata=1, IF(Lcm2_core=1, IMDIV(1, IMSUM(IMDIV(1,IMPRODUCT(B86,'Design the AEF circuit'!$H$19*0.001)), IMDIV(1,'Design the AEF circuit'!$H$20*1000), IMPRODUCT(B86,'Design the AEF circuit'!$H$21*0.000000000001))), Q86), COMPLEX(I86,J86,"j")) -> 2.65632376571631+23.9497305978319j | N86: =IMSUM(IMDIV(1,IMSUM(IMDIV(1,IMPRODUCT(B86,'Design the AEF circuit'!$G$19*0.001)),IMDIV(1,'Design the AEF circuit'!$G$20*1000))), IMDIV(1,IMSUM(IMDIV(1,IMPRODUCT(B86,'Design the AEF circuit'!$G$22*0.001)),IMDIV(1,'Design the AEF circuit'!$G$23*1000))), IMDIV(1,IMSUM(IMDIV(1,IMPRODUCT(B86,'Design the AEF circuit'!$G$24*0.001)),IMDIV(1,'Design the AEF circuit'!$G$25*1000))) ) -> 1.37310389595804+21.5020461532252j | O86: =IMDIV(1, IMSUM( IMDIV(1, N86), IMPRODUCT(B86,'Design the AEF circuit'!$G$21*0.000000000001))) -> 1.37311322950065+21.5021189341363j | P86: =IMSUM(IMDIV(1,IMSUM(IMDIV(1,IMPRODUCT(B86,'Design the AEF circuit'!$H$19*0.001)),IMDIV(1,'Design the AEF circuit'!$H$20*1000))), IMDIV(1,IMSUM(IMDIV(1,IMPRODUCT(B86,'Design the AEF circuit'!$H$22*0.001)),IMDIV(1,'Design the AEF circuit'!$H$23*1000))), IMDIV(1,IMSUM(IMDIV(1,IMPRODUCT(B86,'Design the AEF circuit'!$H$24*0.001)),IMDIV(1,'Design the AEF circuit'!$H$25*1000))) ) -> 1.37310389595804+21.5020461532252j | Q86: =IMDIV(1, IMSUM( IMDIV(1, P86), IMPRODUCT(B86,'Design the AEF circuit'!$H$21*0.000000000001) ) ) -> 1.37311322950065+21.5021189341363j
A87: ='Frequency vector'!G87 -> 4265.795188 | B87: =COMPLEX(0,2*PI()*'Frequency vector'!G87,"j") -> 26802.7816488046j | C87: =IF(IF(CMdata=1,IMABS(K87),'CM choke'!C91)=0, C86, IF(CMdata=1,IMABS(K87),'CM choke'!C91)) -> 24.49474716 | D87: =IF(IF(CMdata=1,DEGREES(IMARGUMENT(K87)),'CM choke'!D91)=0, D86, IF(CMdata=1,DEGREES(IMARGUMENT(K87)),'CM choke'!D91)) -> 83.58314514 | E87: =IF(IF(CMdata=1,IMABS(L87),'CM choke'!E91)=0, E86, IF(CMdata=1,IMABS(L87),'CM choke'!E91)) -> 24.49474716 | F87: =IF(IF(CMdata=1,DEGREES(IMARGUMENT(L87)),'CM choke'!F91)=0, F86, IF(CMdata=1,DEGREES(IMARGUMENT(L87)),'CM choke'!F91)) -> 83.58314514 | G87: 2.737563974 | H87: 24.34128965 | I87: 2.737563974 | J87: 24.34128965 | K87: =IF(CMdata=1, IF(Lcm1_core=1, IMDIV(1,IMSUM(IMDIV(1,IMPRODUCT(B87,'Design the AEF circuit'!$G$19*0.001)),IMDIV(1,'Design the AEF circuit'!$G$20*1000),IMPRODUCT(B87,'Design the AEF circuit'!$G$21*0.000000000001))), O87),COMPLEX(G87,H87,"j")) -> 2.73756397384995+24.3412896538882j | L87: =IF(CMdata=1, IF(Lcm2_core=1, IMDIV(1, IMSUM(IMDIV(1,IMPRODUCT(B87,'Design the AEF circuit'!$H$19*0.001)), IMDIV(1,'Design the AEF circuit'!$H$20*1000), IMPRODUCT(B87,'Design the AEF circuit'!$H$21*0.000000000001))), Q87), COMPLEX(I87,J87,"j")) -> 2.73756397384995+24.3412896538882j | N87: =IMSUM(IMDIV(1,IMSUM(IMDIV(1,IMPRODUCT(B87,'Design the AEF circuit'!$G$19*0.001)),IMDIV(1,'Design the AEF circuit'!$G$20*1000))), IMDIV(1,IMSUM(IMDIV(1,IMPRODUCT(B87,'Design the AEF circuit'!$G$22*0.001)),IMDIV(1,'Design the AEF circuit'!$G$23*1000))), IMDIV(1,IMSUM(IMDIV(1,IMPRODUCT(B87,'Design the AEF circuit'!$G$24*0.001)),IMDIV(1,'Design the AEF circuit'!$G$25*1000))) ) -> 1.42109142973958+21.8730447988718j | O87: =IMDIV(1, IMSUM( IMDIV(1, N87), IMPRODUCT(B87,'Design the AEF circuit'!$G$21*0.000000000001))) -> 1.42110142731446+21.8731214139128j | P87: =IMSUM(IMDIV(1,IMSUM(IMDIV(1,IMPRODUCT(B87,'Design the AEF circuit'!$H$19*0.001)),IMDIV(1,'Design the AEF circuit'!$H$20*1000))), IMDIV(1,IMSUM(IMDIV(1,IMPRODUCT(B87,'Design the AEF circuit'!$H$22*0.001)),IMDIV(1,'Design the AEF circuit'!$H$23*1000))), IMDIV(1,IMSUM(IMDIV(1,IMPRODUCT(B87,'Design the AEF circuit'!$H$24*0.001)),IMDIV(1,'Design the AEF circuit'!$H$25*1000))) ) -> 1.42109142973958+21.8730447988718j | Q87: =IMDIV(1, IMSUM( IMDIV(1, P87), IMPRODUCT(B87,'Design the AEF circuit'!$H$21*0.000000000001) ) ) -> 1.42110142731446+21.8731214139128j
A88: ='Frequency vector'!G88 -> 4340.102636 | B88: =COMPLEX(0,2*PI()*'Frequency vector'!G88,"j") -> 27269.669116994j | C88: =IF(IF(CMdata=1,IMABS(K88),'CM choke'!C92)=0, C87, IF(CMdata=1,IMABS(K88),'CM choke'!C92)) -> 24.90816689 | D88: =IF(IF(CMdata=1,DEGREES(IMARGUMENT(K88)),'CM choke'!D92)=0, D87, IF(CMdata=1,DEGREES(IMARGUMENT(K88)),'CM choke'!D92)) -> 83.48770905 | E88: =IF(IF(CMdata=1,IMABS(L88),'CM choke'!E92)=0, E87, IF(CMdata=1,IMABS(L88),'CM choke'!E92)) -> 24.90816689 | F88: =IF(IF(CMdata=1,DEGREES(IMARGUMENT(L88)),'CM choke'!F92)=0, F87, IF(CMdata=1,DEGREES(IMARGUMENT(L88)),'CM choke'!F92)) -> 83.48770905 | G88: 2.824993369 | H88: 24.74744815 | I88: 2.824993369 | J88: 24.74744815 | K88: =IF(CMdata=1, IF(Lcm1_core=1, IMDIV(1,IMSUM(IMDIV(1,IMPRODUCT(B88,'Design the AEF circuit'!$G$19*0.001)),IMDIV(1,'Design the AEF circuit'!$G$20*1000),IMPRODUCT(B88,'Design the AEF circuit'!$G$21*0.000000000001))), O88),COMPLEX(G88,H88,"j")) -> 2.82499336928076+24.7474481523744j | L88: =IF(CMdata=1, IF(Lcm2_core=1, IMDIV(1, IMSUM(IMDIV(1,IMPRODUCT(B88,'Design the AEF circuit'!$H$19*0.001)), IMDIV(1,'Design the AEF circuit'!$H$20*1000), IMPRODUCT(B88,'Design the AEF circuit'!$H$21*0.000000000001))), Q88), COMPLEX(I88,J88,"j")) -> 2.82499336928076+24.7474481523744j | N88: =IMSUM(IMDIV(1,IMSUM(IMDIV(1,IMPRODUCT(B88,'Design the AEF circuit'!$G$19*0.001)),IMDIV(1,'Design the AEF circuit'!$G$20*1000))), IMDIV(1,IMSUM(IMDIV(1,IMPRODUCT(B88,'Design the AEF circuit'!$G$22*0.001)),IMDIV(1,'Design the AEF circuit'!$G$23*1000))), IMDIV(1,IMSUM(IMDIV(1,IMPRODUCT(B88,'Design the AEF circuit'!$G$24*0.001)),IMDIV(1,'Design the AEF circuit'!$G$25*1000))) ) -> 1.47074641334964+22.2503185056559j | O88: =IMDIV(1, IMSUM( IMDIV(1, N88), IMPRODUCT(B88,'Design the AEF circuit'!$G$21*0.000000000001))) -> 1.47075712206839+22.2503991554881j | P88: =IMSUM(IMDIV(1,IMSUM(IMDIV(1,IMPRODUCT(B88,'Design the AEF circuit'!$H$19*0.001)),IMDIV(1,'Design the AEF circuit'!$H$20*1000))), IMDIV(1,IMSUM(IMDIV(1,IMPRODUCT(B88,'Design the AEF circuit'!$H$22*0.001)),IMDIV(1,'Design the AEF circuit'!$H$23*1000))), IMDIV(1,IMSUM(IMDIV(1,IMPRODUCT(B88,'Design the AEF circuit'!$H$24*0.001)),IMDIV(1,'Design the AEF circuit'!$H$25*1000))) ) -> 1.47074641334964+22.2503185056559j | Q88: =IMDIV(1, IMSUM( IMDIV(1, P88), IMPRODUCT(B88,'Design the AEF circuit'!$H$21*0.000000000001) ) ) -> 1.47075712206839+22.2503991554881j
A89: ='Frequency vector'!G89 -> 4415.704474 | B89: =COMPLEX(0,2*PI()*'Frequency vector'!G89,"j") -> 27744.6894689309j | C89: =IF(IF(CMdata=1,IMABS(K89),'CM choke'!C93)=0, C88, IF(CMdata=1,IMABS(K89),'CM choke'!C93)) -> 25.31632233 | D89: =IF(IF(CMdata=1,DEGREES(IMARGUMENT(K89)),'CM choke'!D93)=0, D88, IF(CMdata=1,DEGREES(IMARGUMENT(K89)),'CM choke'!D93)) -> 83.42502594 | E89: =IF(IF(CMdata=1,IMABS(L89),'CM choke'!E93)=0, E88, IF(CMdata=1,IMABS(L89),'CM choke'!E93)) -> 25.31632233 | F89: =IF(IF(CMdata=1,DEGREES(IMARGUMENT(L89)),'CM choke'!F93)=0, F88, IF(CMdata=1,DEGREES(IMARGUMENT(L89)),'CM choke'!F93)) -> 83.42502594 | G89: 2.898801163 | H89: 25.14981368 | I89: 2.898801163 | J89: 25.14981368 | K89: =IF(CMdata=1, IF(Lcm1_core=1, IMDIV(1,IMSUM(IMDIV(1,IMPRODUCT(B89,'Design the AEF circuit'!$G$19*0.001)),IMDIV(1,'Design the AEF circuit'!$G$20*1000),IMPRODUCT(B89,'Design the AEF circuit'!$G$21*0.000000000001))), O89),COMPLEX(G89,H89,"j")) -> 2.89880116344184+25.1498136765303j | L89: =IF(CMdata=1, IF(Lcm2_core=1, IMDIV(1, IMSUM(IMDIV(1,IMPRODUCT(B89,'Design the AEF circuit'!$H$19*0.001)), IMDIV(1,'Design the AEF circuit'!$H$20*1000), IMPRODUCT(B89,'Design the AEF circuit'!$H$21*0.000000000001))), Q89), COMPLEX(I89,J89,"j")) -> 2.89880116344184+25.1498136765303j | N89: =IMSUM(IMDIV(1,IMSUM(IMDIV(1,IMPRODUCT(B89,'Design the AEF circuit'!$G$19*0.001)),IMDIV(1,'Design the AEF circuit'!$G$20*1000))), IMDIV(1,IMSUM(IMDIV(1,IMPRODUCT(B89,'Design the AEF circuit'!$G$22*0.001)),IMDIV(1,'Design the AEF circuit'!$G$23*1000))), IMDIV(1,IMSUM(IMDIV(1,IMPRODUCT(B89,'Design the AEF circuit'!$G$24*0.001)),IMDIV(1,'Design the AEF circuit'!$G$25*1000))) ) -> 1.52212610226956+22.6339667405258j | O89: =IMDIV(1, IMSUM( IMDIV(1, N89), IMPRODUCT(B89,'Design the AEF circuit'!$G$21*0.000000000001))) -> 1.52213757257208+22.6340516361937j | P89: =IMSUM(IMDIV(1,IMSUM(IMDIV(1,IMPRODUCT(B89,'Design the AEF circuit'!$H$19*0.001)),IMDIV(1,'Design the AEF circuit'!$H$20*1000))), IMDIV(1,IMSUM(IMDIV(1,IMPRODUCT(B89,'Design the AEF circuit'!$H$22*0.001)),IMDIV(1,'Design the AEF circuit'!$H$23*1000))), IMDIV(1,IMSUM(IMDIV(1,IMPRODUCT(B89,'Design the AEF circuit'!$H$24*0.001)),IMDIV(1,'Design the AEF circuit'!$H$25*1000))) ) -> 1.52212610226956+22.6339667405258j | Q89: =IMDIV(1, IMSUM( IMDIV(1, P89), IMPRODUCT(B89,'Design the AEF circuit'!$H$21*0.000000000001) ) ) -> 1.52213757257208+22.6340516361937j
A90: ='Frequency vector'!G90 -> 4492.623247 | B90: =COMPLEX(0,2*PI()*'Frequency vector'!G90,"j") -> 28227.9843743589j | C90: =IF(IF(CMdata=1,IMABS(K90),'CM choke'!C94)=0, C89, IF(CMdata=1,IMABS(K90),'CM choke'!C94)) -> 25.74538422 | D90: =IF(IF(CMdata=1,DEGREES(IMARGUMENT(K90)),'CM choke'!D94)=0, D89, IF(CMdata=1,DEGREES(IMARGUMENT(K90)),'CM choke'!D94)) -> 83.32434082 | E90: =IF(IF(CMdata=1,IMABS(L90),'CM choke'!E94)=0, E89, IF(CMdata=1,IMABS(L90),'CM choke'!E94)) -> 25.74538422 | F90: =IF(IF(CMdata=1,DEGREES(IMARGUMENT(L90)),'CM choke'!F94)=0, F89, IF(CMdata=1,DEGREES(IMARGUMENT(L90)),'CM choke'!F94)) -> 83.32434082 | G90: 2.992870032 | H90: 25.57083373 | I90: 2.992870032 | J90: 25.57083373 | K90: =IF(CMdata=1, IF(Lcm1_core=1, IMDIV(1,IMSUM(IMDIV(1,IMPRODUCT(B90,'Design the AEF circuit'!$G$19*0.001)),IMDIV(1,'Design the AEF circuit'!$G$20*1000),IMPRODUCT(B90,'Design the AEF circuit'!$G$21*0.000000000001))), O90),COMPLEX(G90,H90,"j")) -> 2.99287003156051+25.5708337255376j | L90: =IF(CMdata=1, IF(Lcm2_core=1, IMDIV(1, IMSUM(IMDIV(1,IMPRODUCT(B90,'Design the AEF circuit'!$H$19*0.001)), IMDIV(1,'Design the AEF circuit'!$H$20*1000), IMPRODUCT(B90,'Design the AEF circuit'!$H$21*0.000000000001))), Q90), COMPLEX(I90,J90,"j")) -> 2.99287003156051+25.5708337255376j | N90: =IMSUM(IMDIV(1,IMSUM(IMDIV(1,IMPRODUCT(B90,'Design the AEF circuit'!$G$19*0.001)),IMDIV(1,'Design the AEF circuit'!$G$20*1000))), IMDIV(1,IMSUM(IMDIV(1,IMPRODUCT(B90,'Design the AEF circuit'!$G$22*0.001)),IMDIV(1,'Design the AEF circuit'!$G$23*1000))), IMDIV(1,IMSUM(IMDIV(1,IMPRODUCT(B90,'Design the AEF circuit'!$G$24*0.001)),IMDIV(1,'Design the AEF circuit'!$G$25*1000))) ) -> 1.57528966936669+23.0240901914385j | O90: =IMDIV(1, IMSUM( IMDIV(1, N90), IMPRODUCT(B90,'Design the AEF circuit'!$G$21*0.000000000001))) -> 1.57530195525474+23.0241795548964j | P90: =IMSUM(IMDIV(1,IMSUM(IMDIV(1,IMPRODUCT(B90,'Design the AEF circuit'!$H$19*0.001)),IMDIV(1,'Design the AEF circuit'!$H$20*1000))), IMDIV(1,IMSUM(IMDIV(1,IMPRODUCT(B90,'Design the AEF circuit'!$H$22*0.001)),IMDIV(1,'Design the AEF circuit'!$H$23*1000))), IMDIV(1,IMSUM(IMDIV(1,IMPRODUCT(B90,'Design the AEF circuit'!$H$24*0.001)),IMDIV(1,'Design the AEF circuit'!$H$25*1000))) ) -> 1.57528966936669+23.0240901914385j | Q90: =IMDIV(1, IMSUM( IMDIV(1, P90), IMPRODUCT(B90,'Design the AEF circuit'!$H$21*0.000000000001) ) ) -> 1.57530195525474+23.0241795548964j
A91: ='Frequency vector'!G91 -> 4570.881896 | B91: =COMPLEX(0,2*PI()*'Frequency vector'!G91,"j") -> 28719.6979707428j | C91: =IF(IF(CMdata=1,IMABS(K91),'CM choke'!C95)=0, C90, IF(CMdata=1,IMABS(K91),'CM choke'!C95)) -> 26.17902946 | D91: =IF(IF(CMdata=1,DEGREES(IMARGUMENT(K91)),'CM choke'!D95)=0, D90, IF(CMdata=1,DEGREES(IMARGUMENT(K91)),'CM choke'!D95)) -> 83.25763702 | E91: =IF(IF(CMdata=1,IMABS(L91),'CM choke'!E95)=0, E90, IF(CMdata=1,IMABS(L91),'CM choke'!E95)) -> 26.17902946 | F91: =IF(IF(CMdata=1,DEGREES(IMARGUMENT(L91)),'CM choke'!F95)=0, F90, IF(CMdata=1,DEGREES(IMARGUMENT(L91)),'CM choke'!F95)) -> 83.25763702 | G91: 3.073549717 | H91: 25.9979783 | I91: 3.073549717 | J91: 25.9979783 | K91: =IF(CMdata=1, IF(Lcm1_core=1, IMDIV(1,IMSUM(IMDIV(1,IMPRODUCT(B91,'Design the AEF circuit'!$G$19*0.001)),IMDIV(1,'Design the AEF circuit'!$G$20*1000),IMPRODUCT(B91,'Design the AEF circuit'!$G$21*0.000000000001))), O91),COMPLEX(G91,H91,"j")) -> 3.07354971652593+25.9979783032003j | L91: =IF(CMdata=1, IF(Lcm2_core=1, IMDIV(1, IMSUM(IMDIV(1,IMPRODUCT(B91,'Design the AEF circuit'!$H$19*0.001)), IMDIV(1,'Design the AEF circuit'!$H$20*1000), IMPRODUCT(B91,'Design the AEF circuit'!$H$21*0.000000000001))), Q91), COMPLEX(I91,J91,"j")) -> 3.07354971652593+25.9979783032003j | N91: =IMSUM(IMDIV(1,IMSUM(IMDIV(1,IMPRODUCT(B91,'Design the AEF circuit'!$G$19*0.001)),IMDIV(1,'Design the AEF circuit'!$G$20*1000))), IMDIV(1,IMSUM(IMDIV(1,IMPRODUCT(B91,'Design the AEF circuit'!$G$22*0.001)),IMDIV(1,'Design the AEF circuit'!$G$23*1000))), IMDIV(1,IMSUM(IMDIV(1,IMPRODUCT(B91,'Design the AEF circuit'!$G$24*0.001)),IMDIV(1,'Design the AEF circuit'!$G$25*1000))) ) -> 1.63029826562529+23.4207907623202j | O91: =IMDIV(1, IMSUM( IMDIV(1, N91), IMPRODUCT(B91,'Design the AEF circuit'!$G$21*0.000000000001))) -> 1.63031142491232+23.4208848269847j | P91: =IMSUM(IMDIV(1,IMSUM(IMDIV(1,IMPRODUCT(B91,'Design the AEF circuit'!$H$19*0.001)),IMDIV(1,'Design the AEF circuit'!$H$20*1000))), IMDIV(1,IMSUM(IMDIV(1,IMPRODUCT(B91,'Design the AEF circuit'!$H$22*0.001)),IMDIV(1,'Design the AEF circuit'!$H$23*1000))), IMDIV(1,IMSUM(IMDIV(1,IMPRODUCT(B91,'Design the AEF circuit'!$H$24*0.001)),IMDIV(1,'Design the AEF circuit'!$H$25*1000))) ) -> 1.63029826562529+23.4207907623202j | Q91: =IMDIV(1, IMSUM( IMDIV(1, P91), IMPRODUCT(B91,'Design the AEF circuit'!$H$21*0.000000000001) ) ) -> 1.63031142491232+23.4208848269847j
A92: ='Frequency vector'!G92 -> 4650.503762 | B92: =COMPLEX(0,2*PI()*'Frequency vector'!G92,"j") -> 29219.9769063083j | C92: =IF(IF(CMdata=1,IMABS(K92),'CM choke'!C96)=0, C91, IF(CMdata=1,IMABS(K92),'CM choke'!C96)) -> 26.62114525 | D92: =IF(IF(CMdata=1,DEGREES(IMARGUMENT(K92)),'CM choke'!D96)=0, D91, IF(CMdata=1,DEGREES(IMARGUMENT(K92)),'CM choke'!D96)) -> 83.14248657 | E92: =IF(IF(CMdata=1,IMABS(L92),'CM choke'!E96)=0, E91, IF(CMdata=1,IMABS(L92),'CM choke'!E96)) -> 26.62114525 | F92: =IF(IF(CMdata=1,DEGREES(IMARGUMENT(L92)),'CM choke'!F96)=0, F91, IF(CMdata=1,DEGREES(IMARGUMENT(L92)),'CM choke'!F96)) -> 83.14248657 | G92: 3.178581939 | H92: 26.43070168 | I92: 3.178581939 | J92: 26.43070168 | K92: =IF(CMdata=1, IF(Lcm1_core=1, IMDIV(1,IMSUM(IMDIV(1,IMPRODUCT(B92,'Design the AEF circuit'!$G$19*0.001)),IMDIV(1,'Design the AEF circuit'!$G$20*1000),IMPRODUCT(B92,'Design the AEF circuit'!$G$21*0.000000000001))), O92),COMPLEX(G92,H92,"j")) -> 3.17858193859612+26.4307016780872j | L92: =IF(CMdata=1, IF(Lcm2_core=1, IMDIV(1, IMSUM(IMDIV(1,IMPRODUCT(B92,'Design the AEF circuit'!$H$19*0.001)), IMDIV(1,'Design the AEF circuit'!$H$20*1000), IMPRODUCT(B92,'Design the AEF circuit'!$H$21*0.000000000001))), Q92), COMPLEX(I92,J92,"j")) -> 3.17858193859612+26.4307016780872j | N92: =IMSUM(IMDIV(1,IMSUM(IMDIV(1,IMPRODUCT(B92,'Design the AEF circuit'!$G$19*0.001)),IMDIV(1,'Design the AEF circuit'!$G$20*1000))), IMDIV(1,IMSUM(IMDIV(1,IMPRODUCT(B92,'Design the AEF circuit'!$G$22*0.001)),IMDIV(1,'Design the AEF circuit'!$G$23*1000))), IMDIV(1,IMSUM(IMDIV(1,IMPRODUCT(B92,'Design the AEF circuit'!$G$24*0.001)),IMDIV(1,'Design the AEF circuit'!$G$25*1000))) ) -> 1.68721508257503+23.8241715668075j | O92: =IMDIV(1, IMSUM( IMDIV(1, N92), IMPRODUCT(B92,'Design the AEF circuit'!$G$21*0.000000000001))) -> 1.68722917715336+23.8242705781366j | P92: =IMSUM(IMDIV(1,IMSUM(IMDIV(1,IMPRODUCT(B92,'Design the AEF circuit'!$H$19*0.001)),IMDIV(1,'Design the AEF circuit'!$H$20*1000))), IMDIV(1,IMSUM(IMDIV(1,IMPRODUCT(B92,'Design the AEF circuit'!$H$22*0.001)),IMDIV(1,'Design the AEF circuit'!$H$23*1000))), IMDIV(1,IMSUM(IMDIV(1,IMPRODUCT(B92,'Design the AEF circuit'!$H$24*0.001)),IMDIV(1,'Design the AEF circuit'!$H$25*1000))) ) -> 1.68721508257503+23.8241715668075j | Q92: =IMDIV(1, IMSUM( IMDIV(1, P92), IMPRODUCT(B92,'Design the AEF circuit'!$H$21*0.000000000001) ) ) -> 1.68722917715336+23.8242705781366j
A93: ='Frequency vector'!G93 -> 4731.51259 | B93: =COMPLEX(0,2*PI()*'Frequency vector'!G93,"j") -> 29728.9703837728j | C93: =IF(IF(CMdata=1,IMABS(K93),'CM choke'!C97)=0, C92, IF(CMdata=1,IMABS(K93),'CM choke'!C97)) -> 27.06811905 | D93: =IF(IF(CMdata=1,DEGREES(IMARGUMENT(K93)),'CM choke'!D97)=0, D92, IF(CMdata=1,DEGREES(IMARGUMENT(K93)),'CM choke'!D97)) -> 83.07491302 | E93: =IF(IF(CMdata=1,IMABS(L93),'CM choke'!E97)=0, E92, IF(CMdata=1,IMABS(L93),'CM choke'!E97)) -> 27.06811905 | F93: =IF(IF(CMdata=1,DEGREES(IMARGUMENT(L93)),'CM choke'!F97)=0, F92, IF(CMdata=1,DEGREES(IMARGUMENT(L93)),'CM choke'!F97)) -> 83.07491302 | G93: 3.26364389 | H93: 26.87064751 | I93: 3.26364389 | J93: 26.87064751 | K93: =IF(CMdata=1, IF(Lcm1_core=1, IMDIV(1,IMSUM(IMDIV(1,IMPRODUCT(B93,'Design the AEF circuit'!$G$19*0.001)),IMDIV(1,'Design the AEF circuit'!$G$20*1000),IMPRODUCT(B93,'Design the AEF circuit'!$G$21*0.000000000001))), O93),COMPLEX(G93,H93,"j")) -> 3.26364388969543+26.8706475064801j | L93: =IF(CMdata=1, IF(Lcm2_core=1, IMDIV(1, IMSUM(IMDIV(1,IMPRODUCT(B93,'Design the AEF circuit'!$H$19*0.001)), IMDIV(1,'Design the AEF circuit'!$H$20*1000), IMPRODUCT(B93,'Design the AEF circuit'!$H$21*0.000000000001))), Q93), COMPLEX(I93,J93,"j")) -> 3.26364388969543+26.8706475064801j | N93: =IMSUM(IMDIV(1,IMSUM(IMDIV(1,IMPRODUCT(B93,'Design the AEF circuit'!$G$19*0.001)),IMDIV(1,'Design the AEF circuit'!$G$20*1000))), IMDIV(1,IMSUM(IMDIV(1,IMPRODUCT(B93,'Design the AEF circuit'!$G$22*0.001)),IMDIV(1,'Design the AEF circuit'!$G$23*1000))), IMDIV(1,IMSUM(IMDIV(1,IMPRODUCT(B93,'Design the AEF circuit'!$G$24*0.001)),IMDIV(1,'Design the AEF circuit'!$G$25*1000))) ) -> 1.74610541641635+24.2343369204695j | O93: =IMDIV(1, IMSUM( IMDIV(1, N93), IMPRODUCT(B93,'Design the AEF circuit'!$G$21*0.000000000001))) -> 1.74612051254285+24.2344411365705j | P93: =IMSUM(IMDIV(1,IMSUM(IMDIV(1,IMPRODUCT(B93,'Design the AEF circuit'!$H$19*0.001)),IMDIV(1,'Design the AEF circuit'!$H$20*1000))), IMDIV(1,IMSUM(IMDIV(1,IMPRODUCT(B93,'Design the AEF circuit'!$H$22*0.001)),IMDIV(1,'Design the AEF circuit'!$H$23*1000))), IMDIV(1,IMSUM(IMDIV(1,IMPRODUCT(B93,'Design the AEF circuit'!$H$24*0.001)),IMDIV(1,'Design the AEF circuit'!$H$25*1000))) ) -> 1.74610541641635+24.2343369204695j | Q93: =IMDIV(1, IMSUM( IMDIV(1, P93), IMPRODUCT(B93,'Design the AEF circuit'!$H$21*0.000000000001) ) ) -> 1.74612051254285+24.2344411365705j
A94: ='Frequency vector'!G94 -> 4813.93254 | B94: =COMPLEX(0,2*PI()*'Frequency vector'!G94,"j") -> 30246.8302050817j | C94: =IF(IF(CMdata=1,IMABS(K94),'CM choke'!C98)=0, C93, IF(CMdata=1,IMABS(K94),'CM choke'!C98)) -> 27.51694679 | D94: =IF(IF(CMdata=1,DEGREES(IMARGUMENT(K94)),'CM choke'!D98)=0, D93, IF(CMdata=1,DEGREES(IMARGUMENT(K94)),'CM choke'!D98)) -> 83.00005341 | E94: =IF(IF(CMdata=1,IMABS(L94),'CM choke'!E98)=0, E93, IF(CMdata=1,IMABS(L94),'CM choke'!E98)) -> 27.51694679 | F94: =IF(IF(CMdata=1,DEGREES(IMARGUMENT(L94)),'CM choke'!F98)=0, F93, IF(CMdata=1,DEGREES(IMARGUMENT(L94)),'CM choke'!F98)) -> 83.00005341 | G94: 3.353446781 | H94: 27.31184277 | I94: 3.353446781 | J94: 27.31184277 | K94: =IF(CMdata=1, IF(Lcm1_core=1, IMDIV(1,IMSUM(IMDIV(1,IMPRODUCT(B94,'Design the AEF circuit'!$G$19*0.001)),IMDIV(1,'Design the AEF circuit'!$G$20*1000),IMPRODUCT(B94,'Design the AEF circuit'!$G$21*0.000000000001))), O94),COMPLEX(G94,H94,"j")) -> 3.3534467805688+27.3118427696973j | L94: =IF(CMdata=1, IF(Lcm2_core=1, IMDIV(1, IMSUM(IMDIV(1,IMPRODUCT(B94,'Design the AEF circuit'!$H$19*0.001)), IMDIV(1,'Design the AEF circuit'!$H$20*1000), IMPRODUCT(B94,'Design the AEF circuit'!$H$21*0.000000000001))), Q94), COMPLEX(I94,J94,"j")) -> 3.3534467805688+27.3118427696973j | N94: =IMSUM(IMDIV(1,IMSUM(IMDIV(1,IMPRODUCT(B94,'Design the AEF circuit'!$G$19*0.001)),IMDIV(1,'Design the AEF circuit'!$G$20*1000))), IMDIV(1,IMSUM(IMDIV(1,IMPRODUCT(B94,'Design the AEF circuit'!$G$22*0.001)),IMDIV(1,'Design the AEF circuit'!$G$23*1000))), IMDIV(1,IMSUM(IMDIV(1,IMPRODUCT(B94,'Design the AEF circuit'!$G$24*0.001)),IMDIV(1,'Design the AEF circuit'!$G$25*1000))) ) -> 1.80703673390422+24.6513923316628j | O94: =IMDIV(1, IMSUM( IMDIV(1, N94), IMPRODUCT(B94,'Design the AEF circuit'!$G$21*0.000000000001))) -> 1.80705290250575+24.6515020239286j | P94: =IMSUM(IMDIV(1,IMSUM(IMDIV(1,IMPRODUCT(B94,'Design the AEF circuit'!$H$19*0.001)),IMDIV(1,'Design the AEF circuit'!$H$20*1000))), IMDIV(1,IMSUM(IMDIV(1,IMPRODUCT(B94,'Design the AEF circuit'!$H$22*0.001)),IMDIV(1,'Design the AEF circuit'!$H$23*1000))), IMDIV(1,IMSUM(IMDIV(1,IMPRODUCT(B94,'Design the AEF circuit'!$H$24*0.001)),IMDIV(1,'Design the AEF circuit'!$H$25*1000))) ) -> 1.80703673390422+24.6513923316628j | Q94: =IMDIV(1, IMSUM( IMDIV(1, P94), IMPRODUCT(B94,'Design the AEF circuit'!$H$21*0.000000000001) ) ) -> 1.80705290250575+24.6515020239286j
A95: ='Frequency vector'!G95 -> 4897.788194 | B95: =COMPLEX(0,2*PI()*'Frequency vector'!G95,"j") -> 30773.7108162078j | C95: =IF(IF(CMdata=1,IMABS(K95),'CM choke'!C99)=0, C94, IF(CMdata=1,IMABS(K95),'CM choke'!C99)) -> 27.98274422 | D95: =IF(IF(CMdata=1,DEGREES(IMARGUMENT(K95)),'CM choke'!D99)=0, D94, IF(CMdata=1,DEGREES(IMARGUMENT(K95)),'CM choke'!D99)) -> 82.87880707 | E95: =IF(IF(CMdata=1,IMABS(L95),'CM choke'!E99)=0, E94, IF(CMdata=1,IMABS(L95),'CM choke'!E99)) -> 27.98274422 | F95: =IF(IF(CMdata=1,DEGREES(IMARGUMENT(L95)),'CM choke'!F99)=0, F94, IF(CMdata=1,DEGREES(IMARGUMENT(L95)),'CM choke'!F99)) -> 82.87880707 | G95: 3.468979342 | H95: 27.76688957 | I95: 3.468979342 | J95: 27.76688957 | K95: =IF(CMdata=1, IF(Lcm1_core=1, IMDIV(1,IMSUM(IMDIV(1,IMPRODUCT(B95,'Design the AEF circuit'!$G$19*0.001)),IMDIV(1,'Design the AEF circuit'!$G$20*1000),IMPRODUCT(B95,'Design the AEF circuit'!$G$21*0.000000000001))), O95),COMPLEX(G95,H95,"j")) -> 3.46897934155548+27.7668895671861j | L95: =IF(CMdata=1, IF(Lcm2_core=1, IMDIV(1, IMSUM(IMDIV(1,IMPRODUCT(B95,'Design the AEF circuit'!$H$19*0.001)), IMDIV(1,'Design the AEF circuit'!$H$20*1000), IMPRODUCT(B95,'Design the AEF circuit'!$H$21*0.000000000001))), Q95), COMPLEX(I95,J95,"j")) -> 3.46897934155548+27.7668895671861j | N95: =IMSUM(IMDIV(1,IMSUM(IMDIV(1,IMPRODUCT(B95,'Design the AEF circuit'!$G$19*0.001)),IMDIV(1,'Design the AEF circuit'!$G$20*1000))), IMDIV(1,IMSUM(IMDIV(1,IMPRODUCT(B95,'Design the AEF circuit'!$G$22*0.001)),IMDIV(1,'Design the AEF circuit'!$G$23*1000))), IMDIV(1,IMSUM(IMDIV(1,IMPRODUCT(B95,'Design the AEF circuit'!$G$24*0.001)),IMDIV(1,'Design the AEF circuit'!$G$25*1000))) ) -> 1.87007873990399+25.0754444901591j | O95: =IMDIV(1, IMSUM( IMDIV(1, N95), IMPRODUCT(B95,'Design the AEF circuit'!$G$21*0.000000000001))) -> 1.87009605690403+25.0755599439363j | P95: =IMSUM(IMDIV(1,IMSUM(IMDIV(1,IMPRODUCT(B95,'Design the AEF circuit'!$H$19*0.001)),IMDIV(1,'Design the AEF circuit'!$H$20*1000))), IMDIV(1,IMSUM(IMDIV(1,IMPRODUCT(B95,'Design the AEF circuit'!$H$22*0.001)),IMDIV(1,'Design the AEF circuit'!$H$23*1000))), IMDIV(1,IMSUM(IMDIV(1,IMPRODUCT(B95,'Design the AEF circuit'!$H$24*0.001)),IMDIV(1,'Design the AEF circuit'!$H$25*1000))) ) -> 1.87007873990399+25.0754444901591j | Q95: =IMDIV(1, IMSUM( IMDIV(1, P95), IMPRODUCT(B95,'Design the AEF circuit'!$H$21*0.000000000001) ) ) -> 1.87009605690403+25.0755599439363j
